Workbook

Sheet Overview
A2: CDCM Annual Review Pack | G2: Colour coding
G3: Data input
A4: Company: | B4: Electricity North West | G4: Void cell in input data table
A5: Date of Issue: | B5: ='CDCM Forecast Data'!F4 -> 2013-12-23 | G5: Calculation
G6: Copy data
A7: ="Although every effort has been made to ensure the accuracy of the information provided in this annual review pack, " & 'CDCM Forecast Data'!F3 & " does not accept any liability for the accuracy of the information contained herein and, in particular, " & 'CDCM Forecast Data'!F3 & " or any of its employees, shall not be held liable for any misstatement or opinion on which the recipient of this statement relies or seeks to rely." -> Although every effort has been made to ensure the accuracy of the information provided in this annual review pack, Electricity North West does not accept any liability for the accuracy of the information contained herein and, in particular, Electricity North West or any of its employees, shall not be held liable for any misstatement or opinion on which the recipient of this statement relies or seeks to rely. | G7: Void cell in calculation table
G8: Space for user notes
A12: Contents:
A14: Sheet Name | B14: Detail
A15: Commentary | B15: This sheet contains the DNO's commentary on the forecast input CDCM data for the forecast over the 5 year period.
A16: CDCM Forecast Data | B16: This sheet contains historical and forecast data for all CDCM inputs except for volume data (table 1053) and matrix of applicability data (table 1025 - 1028). The RPI forecast is seperated out and listed as a standalone assumption. Any forecasts that relate to RPI will be linked to this row. Comments are provided alongside each forecast explaining any assumptions made by the DNO.
A17: Mat of App | B17: This sheet contains the forecast CDCM matrix of applicability data (table 1025 - 1028). The default value is that the same matrix will be used for each of the five years.
A18: CDCM Volume Forecasts | B18: This sheet contains forecast CDCM volume data (table 1053). The matrix at the top can be used to apply different growth rates to groups of customers.
A19: CDCM Timebands | B19: Contains the time bands that the DNO plans to use for the coming year and advance warning of any changes.
A20: CDCM Input Sheet (Y) | B20: This sheet contains the CDCM input sheet for base year 0 (Y) in a format that can be copy and pasted (paste-value) into the CDCM spreadsheet model.
A21: CDCM Input Sheet (Y + 1) | B21: This sheet contains the CDCM input sheet for base year +1 (Y+1) in a format that can be copy and pasted (paste-value) into the CDCM spreadsheet model.
A22: CDCM Input Sheet (Y + 2) | B22: This sheet contains the CDCM input sheet for base year +2 (Y+2) in a format that can be copy and pasted (paste-value) into the CDCM spreadsheet model.
A23: CDCM Input Sheet (Y + 3) | B23: This sheet contains the CDCM input sheet for base year +3 (Y+3) in a format that can be copy and pasted (paste-value) into the CDCM spreadsheet model.
A24: CDCM Input Sheet (Y + 4) | B24: This sheet contains the CDCM input sheet for base year +4 (Y+4) in a format that can be copy and pasted (paste-value) into the CDCM spreadsheet model.
A25: Tariffs | B25: This sheet contains the CDCM tariffs that are produced from the CDCM input data, after the Macro on this sheet has been run. It contains the tariffs for each of the 5 years.
A26: DNO Checklist | B26: This sheet contains a checklist for the DNOs to ensure all items have been updated when producing the Annual review Pack.

Sheet ARP Versions (hidden)
B3: CDCM Annual Review Pack AdatVersions
B5: ARP Version Ref | D5: ARP Adatptation Number | G5: Description
B7: 100 | D7: 100 | G7: Initial Model for 2011 to 2012
B8: 100 | D8: 100 | G8: Model Used for 2012 to 2013
B9: 101 | D9: 101 | G9: Model Used for 2013 to 2014
B10: 101 | D10: 102 | G10: Adapted to comply with DCP130 and DCP132

Sheet Commentary
B3: Electricity North West

Sheet CDCM Forecast Data
E3: Company: | F3: Electricity North West
E4: Date of Issue: | F4: 2013-12-23
E5: Status | F5: April 2014 (Finals)
D9: Historical CDCM Input Data (Actuals) | F9: ="CDCM Values - "&F5 -> CDCM Values - April 2014 (Finals) | G9: Forecast CDCM Values
C10: Year Ref -> | D10: Y-2 | E10: Y-1 | F10: Y | G10: Y+1 | H10: Y+2 | I10: Y+3 | J10: Y+4
C11: Charging Year -> | D11: 2012/13 | E11: 2013/14 | F11: 2014/15 | G11: 2015/16 | H11: 2016/17 | I11: 2017/18 | J11: 2018/19
C12: DPCR -> | D12: DPCR5 | E12: DPCR5 | F12: DPCR5 | G12: RIIO - ED1 | H12: RIIO - ED1 | I12: RIIO - ED1 | J12: RIIO - ED1 | K12: Assumptions
C13: RPI Forecast: | G13: 0.03117537339 | H13: 0.0275 | I13: 0.0275 | J13: 0.0275 | K13: RPI Forecast
B14: 1 | C14: 1000 Company name, charging year and model version
B15: =+B14+1 -> 2 | C15: Company | D15: ENWL | E15: ENWL | F15: ENWL | G15: ENWL | H15: ENWL | I15: ENWL | J15: ENWL
B16: =+B15+1 -> 3 | C16: Year | D16: 2012/13 | E16: 2013/14 | F16: 2014/15 | G16: 2015/16 | H16: 2016/17 | I16: 2017/18 | J16: 2018/19
B17: 4 | C17: Version | D17: v3 | E17: v1 | F17: v1 | G17: v1 | H17: v1 | I17: v1 | J17: v1
B18: 5 | C18: 1010 Financial and general assumptions
B19: 6 | C19: Rate of return | D19: 0.056 | E19: 0.056 | F19: 0.056 | G19: 0.056 | H19: 0.056 | I19: 0.056 | J19: 0.056 | K19: Assumed constant
B20: 7 | C20: Annualisation period (years) | D20: 40 | E20: 40 | F20: 40 | G20: 40 | H20: 40 | I20: 40 | J20: 40 | K20: Assumed constant
B21: 8 | C21: Power factor | D21: 0.95 | E21: 0.95 | F21: 0.95 | G21: 0.95 | H21: 0.95 | I21: 0.95 | J21: 0.95 | K21: Assumed constant
B22: 9 | C22: Days in the charging period | D22: 365 | E22: 365 | F22: 365 | G22: 366 | H22: 365 | I22: 365 | J22: 365 | K22: Leap year in 2015/16
B23: 10 | C23: 1017 Diversity allowance between top and bottom of network level
B24: 11 | C24: GSPs | D24: 0.092675 | E24: 0.08478373473 | F24: 0.08478373473 | G24: 0.1143197131 | H24: 0.1143197131 | I24: 0.1143197131 | J24: 0.1143197131 | K24: The 2015/16 value will be used in the CDCM model for April 2015 tariffs and this constitutes 15 month notice of a change to this value by Electricity North West, in line with DCUSA.
B25: 12 | C25: 132kV | D25: 0.0677 | E25: 0.0430819956 | F25: 0.0430819956 | G25: 0.04852694908 | H25: 0.04852694908 | I25: 0.04852694908 | J25: 0.04852694908 | K25: The 2015/16 value will be used in the CDCM model for April 2015 tariffs and this constitutes 15 month notice of a change to this value by Electricity North West, in line with DCUSA.
B26: 13 | C26: EHV | D26: 0.0651 | E26: 0.0850110413 | F26: 0.0850110413 | G26: 0.06976086598 | H26: 0.06976086598 | I26: 0.06976086598 | J26: 0.06976086598 | K26: The 2015/16 value will be used in the CDCM model for April 2015 tariffs and this constitutes 15 month notice of a change to this value by Electricity North West, in line with DCUSA.
B27: 14 | C27: HV | D27: 0.3098 | E27: 0.33411 | F27: 0.33411 | G27: 0.33998 | H27: 0.33998 | I27: 0.33998 | J27: 0.33998 | K27: The 2015/16 value will be used in the CDCM model for April 2015 tariffs and this constitutes 15 month notice of a change to this value by Electricity North West, in line with DCUSA.
B28: 15 | C28: 1018 Proportion of relevant load going through 132kV/HV direct transformation | D28: 0 | E28: 0 | F28: 0 | G28: 0 | H28: 0 | I28: 0 | J28: 0 | K28: The 2015/16 value will be used in the CDCM model for April 2015 tariffs and this constitutes 15 month notice of a change to this value by Electricity North West, in line with DCUSA.
B29: 16 | C29: 1019 Network model GSP demand (MW) | D29: 500 | E29: 500 | F29: 500 | G29: 500 | H29: 500 | I29: 500 | J29: 500 | K29: The 2015/16 value will be used in the CDCM model for April 2015 tariffs and this constitutes 15 month notice of a change to this value by Electricity North West, in line with DCUSA.
B30: 17 | C30: 1020 Gross asset cost by network level (£)
B31: 18 | C31: 132kV | D31: 42397008 | E31: 42397008 | F31: 69440518.35 | G31: 83368102.69 | H31: =G31*(1+H$13) -> 85660725.52 | I31: =H31*(1+I$13) -> 88016395.47 | J31: =I31*(1+J$13) -> 90436846.35 | K31: The 2015/16 value will be used in the CDCM model for April 2015 tariffs and this constitutes 15 month notice of a change to this value by Electricity North West, in line with DCUSA.
B32: 19 | C32: 132kV/EHV | D32: 39106356 | E32: 39106356 | F32: 36438519.6 | G32: 34102423.29 | H32: =G32*(1+H$13) -> 35040239.93 | I32: =H32*(1+I$13) -> 36003846.53 | J32: =I32*(1+J$13) -> 36993952.31 | K32: The 2015/16 value will be used in the CDCM model for April 2015 tariffs and this constitutes 15 month notice of a change to this value by Electricity North West, in line with DCUSA.
B33: 20 | C33: EHV | D33: 59607696 | E33: 59607696 | F33: 79532172.72 | G33: 84319183.47 | H33: 86637961.02 | I33: 89020504.95 | J33: 91468568.83 | K33: The 2015/16 value will be used in the CDCM model for April 2015 tariffs and this constitutes 15 month notice of a change to this value by Electricity North West, in line with DCUSA.
B34: 21 | C34: EHV/HV | D34: 73812370 | E34: 73812370 | F34: 64113474.6 | G34: 61366613.59 | H34: 63054195.46 | I34: 64788185.84 | J34: 66569860.95 | K34: The 2015/16 value will be used in the CDCM model for April 2015 tariffs and this constitutes 15 month notice of a change to this value by Electricity North West, in line with DCUSA.
B35: 22 | C35: 132kV/HV | F35: 0 | G35: 0 | H35: 0 | I35: 0 | J35: 0
B36: 23 | C36: HV | D36: 107231851 | E36: 107231851 | F36: 117354063.5 | G36: 107407524 | H36: 110361230.9 | I36: 113396164.8 | J36: 116514559.3 | K36: The 2015/16 value will be used in the CDCM model for April 2015 tariffs and this constitutes 15 month notice of a change to this value by Electricity North West, in line with DCUSA.
B37: 24 | C37: HV/LV | D37: 92686127 | E37: 92686127 | F37: 94490955.36 | G37: 88717503.72 | H37: 91157235.07 | I37: 93664059.04 | J37: 96239820.66 | K37: The 2015/16 value will be used in the CDCM model for April 2015 tariffs and this constitutes 15 month notice of a change to this value by Electricity North West, in line with DCUSA.
B38: 25 | C38: LV circuits | D38: 55106404 | E38: 55106404 | F38: 62237013 | G38: 56877258.37 | H38: 58441382.98 | I38: 60048521.01 | J38: 61699855.34 | K38: The 2015/16 value will be used in the CDCM model for April 2015 tariffs and this constitutes 15 month notice of a change to this value by Electricity North West, in line with DCUSA.
B39: 26 | C39: 1022 LV service model asset cost (£)
B40: 27 | C40: LV service model 1 | D40: 9108 | E40: 9108 | F40: 9806.134028 | G40: 9801.997385 | H40: =IF(OR($F40 = 0,$F40="")=FALSE,G40*(1+H$13),"-") -> 10071.55231 | I40: =IF(OR($F40 = 0,$F40="")=FALSE,H40*(1+I$13),"-") -> 10348.52 | J40: =IF(OR($F40 = 0,$F40="")=FALSE,I40*(1+J$13),"-") -> 10633.1043 | K40: The 2015/16 value will be used in the CDCM model for April 2015 tariffs and this constitutes 15 month notice of a change to this value by Electricity North West, in line with DCUSA.
B41: 28 | C41: LV service model 2 | D41: 455 | E41: 455 | F41: 490.3067014 | G41: 490.0998692 | H41: 503.5776156 | I41: 517.4260001 | J41: 531.6552151 | K41: The 2015/16 value will be used in the CDCM model for April 2015 tariffs and this constitutes 15 month notice of a change to this value by Electricity North West, in line with DCUSA.
B42: 29 | C42: LV service model 3 | D42: 2089 | E42: 2089 | F42: 2233.887586 | G42: 2347.400002 | H42: 2411.953502 | I42: 2478.282223 | J42: 2546.434984 | K42: The 2015/16 value will be used in the CDCM model for April 2015 tariffs and this constitutes 15 month notice of a change to this value by Electricity North West, in line with DCUSA.
B43: 30 | C43: LV service model 4 | D43: 6118 | E43: 6118 | F43: 9238.858043 | G43: 7517.031302 | H43: 7723.749662 | I43: 7936.152778 | J43: 8154.39698 | K43: The 2015/16 value will be used in the CDCM model for April 2015 tariffs and this constitutes 15 month notice of a change to this value by Electricity North West, in line with DCUSA.
B44: 31 | C44: LV service model 5 | D44: 242 | E44: 242 | F44: 261.9511657 | G44: 271.9836973 | H44: 279.463249 | I44: 287.1484884 | J44: 295.0450718 | K44: The 2015/16 value will be used in the CDCM model for April 2015 tariffs and this constitutes 15 month notice of a change to this value by Electricity North West, in line with DCUSA.
B45: 32 | C45: LV service model 6 | D45: 0 | F45: 0 | G45: 0 | H45: - | I45: - | J45: -
B46: 33 | C46: LV service model 7 | D46: 0 | E46: 0 | F46: 0 | G46: 0 | H46: =IF(OR($F46 = 0,$F46="")=FALSE,G46*(1+H$13),"-") -> - | I46: - | J46: -
B47: 34 | C47: LV service model 8 | D47: 0 | E47: 0 | F47: 0 | G47: 0 | H47: =IF(OR($F47 = 0,$F47="")=FALSE,G47*(1+H$13),"-") -> - | I47: - | J47: -
B48: 35 | C48: 1023 HV service model asset cost (£)
B49: 36 | C49: HV service model 1 | D49: 23578 | E49: 23578 | F49: 17978.17449 | G49: 18868.15825 | H49: =IF(OR($F49 = 0,$F49="")=FALSE,G49*(1+H$13),"-") -> 19387.03261 | I49: =IF(OR($F49 = 0,$F49="")=FALSE,H49*(1+I$13),"-") -> 19920.176 | J49: =IF(OR($F49 = 0,$F49="")=FALSE,I49*(1+J$13),"-") -> 20467.98084 | K49: The 2015/16 value will be used in the CDCM model for April 2015 tariffs and this constitutes 15 month notice of a change to this value by Electricity North West, in line with DCUSA.
B50: 37 | C50: HV service model 2 | D50: 17965 | E50: 17965 | F50: 18750.53678 | G50: 16696.82258 | H50: 17155.9852 | I50: 17627.7748 | J50: 18112.5386 | K50: The 2015/16 value will be used in the CDCM model for April 2015 tariffs and this constitutes 15 month notice of a change to this value by Electricity North West, in line with DCUSA.
B51: 38 | C51: HV service model 3 | D51: 1114 | E51: 1114 | F51: 1143.9666 | G51: 1187.91403 | H51: 1220.581666 | I51: 1254.147662 | J51: 1288.636722 | K51: The 2015/16 value will be used in the CDCM model for April 2015 tariffs and this constitutes 15 month notice of a change to this value by Electricity North West, in line with DCUSA.
B52: 39 | C52: HV service model 4 | D52: 0 | E52: 0 | F52: - | G52: 0 | H52: - | I52: - | J52: -
B53: 40 | C53: HV service model 5 | D53: 0 | E53: 0 | F53: - | G53: 0 | H53: - | I53: - | J53: -
B54: 41 | C54: 1025 Matrix of applicability of LV service models to tariffs with fixed charges
B55: 42 | C55: 1026 Matrix of applicability of LV service models to unmetered tariffs
B56: 43 | C56: 1028 Matrix of applicability of HV service models to tariffs with fixed charges
B57: 44 | C57: 1032 Loss adjustment factors to transmission
B58: 45 | C58: 132kV | D58: 1.01 | E58: 1.01 | F58: 1.01 | G58: 1.01 | H58: 1.01 | I58: 1.01 | J58: 1.01 | K58: No change from 2013/14. Assumed constant from 2014/15
B59: 46 | C59: 132kV/EHV | D59: 1.015 | E59: 1.015 | F59: 1.015 | G59: 1.015 | H59: 1.015 | I59: 1.015 | J59: 1.015 | K59: No change from 2013/14. Assumed constant from 2014/15
B60: 47 | C60: EHV | D60: 1.022 | E60: 1.021 | F60: 1.021 | G60: 1.021 | H60: 1.021 | I60: 1.021 | J60: 1.021 | K60: No change from 2013/14. Assumed constant from 2014/15
B61: 48 | C61: EHV/HV | D61: 1.028 | E61: 1.027 | F61: 1.027 | G61: 1.027 | H61: 1.027 | I61: 1.027 | J61: 1.027 | K61: No change from 2013/14. Assumed constant from 2014/15
B62: 49 | C62: HV | D62: 1.041 | E62: 1.039 | F62: 1.039 | G62: 1.039 | H62: 1.039 | I62: 1.039 | J62: 1.039 | K62: No change from 2013/14. Assumed constant from 2014/15
B63: 50 | C63: HV/LV | D63: 1.055 | E63: 1.052 | F63: 1.052 | G63: 1.052 | H63: 1.052 | I63: 1.052 | J63: 1.052 | K63: No change from 2013/14. Assumed constant from 2014/15
B64: 51 | C64: LV circuits | D64: 1.115 | E64: 1.102 | F64: 1.102 | G64: 1.102 | H64: 1.102 | I64: 1.102 | J64: 1.102 | K64: No change from 2013/14. Assumed constant from 2014/15
B65: 52 | C65: 1037 Embedded network (LDNO) discounts
B66: 53 | C66: LDNO LV: LV user | D66: 0.325 | E66: 0.3254861402 | F66: 0.3341290619 | G66: 0.3341290619 | H66: 0.3341290619 | I66: 0.3341290619 | J66: 0.3341290619 | K66: Assumed constant from 2014/15
B67: 54 | C67: LDNO HV: LV user | D67: 0.559 | E67: 0.5477577363 | F67: 0.5844116687 | G67: 0.5844116687 | H67: 0.5844116687 | I67: 0.5844116687 | J67: 0.5844116687 | K67: Assumed constant from 2014/15
B68: 55 | C68: LDNO HV: LV sub user | D68: 0.327 | E68: 0.3094731168 | F68: 0.3566533208 | G68: 0.3566533208 | H68: 0.3566533208 | I68: 0.3566533208 | J68: 0.3566533208 | K68: Assumed constant from 2014/15
B69: 56 | C69: LDNO HV: HV user | D69: 0.214 | E69: 0.1932065798 | F69: 0.2429095212 | G69: 0.2429095212 | H69: 0.2429095212 | I69: 0.2429095212 | J69: 0.2429095212 | K69: Assumed constant from 2014/15
B70: 57 | C70: 1041 Load profile data for demand users: coincidence factor
B71: 58 | C71: Domestic Unrestricted | D71: 0.919 | E71: 0.9079551077 | F71: 0.8894527476 | G71: 0.8894527476 | H71: 0.8894527476 | I71: 0.8894527476 | J71: 0.8894527476 | K71: Assumed constant from 2014/15
B72: 59 | C72: Domestic Two Rate | D72: 0.335 | E72: 0.303445318 | F72: 0.2923961216 | G72: 0.2923961216 | H72: 0.2923961216 | I72: 0.2923961216 | J72: 0.2923961216 | K72: Assumed constant from 2014/15
B73: 60 | C73: Domestic Off Peak (related MPAN)
B74: 61 | C74: Small Non Domestic Unrestricted | D74: 0.647 | E74: 0.6496844237 | F74: 0.6810846655 | G74: 0.6810846655 | H74: 0.6810846655 | I74: 0.6810846655 | J74: 0.6810846655 | K74: Assumed constant from 2014/15
B75: 62 | C75: Small Non Domestic Two Rate | D75: 0.583 | E75: 0.6878287543 | F75: 0.6898873841 | G75: 0.6898873841 | H75: 0.6898873841 | I75: 0.6898873841 | J75: 0.6898873841 | K75: Assumed constant from 2014/15
B76: 63 | C76: Small Non Domestic Off Peak (related MPAN)
B77: 64 | C77: LV Medium Non-Domestic | D77: 0.703 | E77: 0.8021672994 | F77: 0.8329407611 | G77: 0.8329407611 | H77: 0.8329407611 | I77: 0.8329407611 | J77: 0.8329407611 | K77: Assumed constant from 2014/15
B78: 65 | C78: LV Sub Medium Non-Domestic | D78: 0.693 | E78: 0.7805167166 | F78: 0.8126048746 | G78: 0.8126048746 | H78: 0.8126048746 | I78: 0.8126048746 | J78: 0.8126048746 | K78: Assumed constant from 2014/15
B79: 66 | C79: HV Medium Non-Domestic | D79: 0.589 | E79: 0.634720087 | F79: 0.7136785066 | G79: 0.7136785066 | H79: 0.7136785066 | I79: 0.7136785066 | J79: 0.7136785066 | K79: Assumed constant from 2014/15
B80: =+B79+1 -> 67 | C80: LV HH Metered | D80: 0.501 | E80: 0.5871023618 | F80: 0.6832247724 | G80: 0.6832247724 | H80: 0.6832247724 | I80: 0.6832247724 | J80: 0.6832247724 | K80: Assumed constant from 2014/15
B81: 68 | C81: LV Sub HH Metered | D81: 0.675 | E81: 0.6680016547 | F81: 0.7627675285 | G81: 0.7627675285 | H81: 0.7627675285 | I81: 0.7627675285 | J81: 0.7627675285 | K81: Assumed constant from 2014/15
B82: 69 | C82: HV HH Metered | D82: 0.775 | E82: 0.797588255 | F82: 0.8478213281 | G82: 0.8478213281 | H82: 0.8478213281 | I82: 0.8478213281 | J82: 0.8478213281 | K82: Assumed constant from 2014/15
B83: 70 | C83: HV Sub HH Metered | D83: 0.775 | E83: 0.797588255 | F83: 0.8478213281 | G83: 0.8478213281 | H83: 0.8478213281 | I83: 0.8478213281 | J83: 0.8478213281 | K83: Assumed constant from 2014/15
B84: 71 | C84: NHH UMS category A | D84: 0.649 | E84: 1 | F84: 1 | G84: 1 | H84: 1 | I84: 1 | J84: 1 | K84: Assumed constant from 2014/15
B85: 72 | C85: NHH UMS category B | E85: 1 | F85: 1 | G85: 1 | H85: 1 | I85: 1 | J85: 1 | K85: Assumed constant from 2014/15
B86: 73 | C86: NHH UMS category C | E86: 1 | F86: 1 | G86: 1 | H86: 1 | I86: 1 | J86: 1 | K86: Assumed constant from 2014/15
B87: 74 | C87: NHH UMS category D | E87: 0 | F87: 0 | G87: 0 | H87: 0 | I87: 0 | J87: 0
B88: 75 | C88: LV UMS (Pseudo HH Metered) | D88: 0.7 | E88: 0.7847919424 | F88: 0.9077193592 | G88: 0.9077193592 | H88: 0.9077193592 | I88: 0.9077193592 | J88: 0.9077193592 | K88: Assumed constant from 2014/15
B89: 76 | C89: 1041 Load profile data for demand users: load factor
B90: 77 | C90: Domestic Unrestricted | D90: 0.414 | E90: 0.4156444452 | F90: 0.425096632 | G90: 0.425096632 | H90: 0.425096632 | I90: 0.425096632 | J90: 0.425096632 | K90: Assumed constant from 2014/15
B91: 78 | C91: Domestic Two Rate | D91: 0.242 | E91: 0.2180675977 | F91: 0.2241627496 | G91: 0.2241627496 | H91: 0.2241627496 | I91: 0.2241627496 | J91: 0.2241627496 | K91: Assumed constant from 2014/15
B92: 79 | C92: Domestic Off Peak (related MPAN) | D92: 0.192 | E92: 0.147672271 | F92: 0.1536521176 | G92: 0.1536521176 | H92: 0.1536521176 | I92: 0.1536521176 | J92: 0.1536521176 | K92: Assumed constant from 2014/15
B93: 80 | C93: Small Non Domestic Unrestricted | D93: 0.36 | E93: 0.3560094368 | F93: 0.3702747492 | G93: 0.3702747492 | H93: 0.3702747492 | I93: 0.3702747492 | J93: 0.3702747492 | K93: Assumed constant from 2014/15
B94: 81 | C94: Small Non Domestic Two Rate | D94: 0.407 | E94: 0.4938784236 | F94: 0.4968878577 | G94: 0.4968878577 | H94: 0.4968878577 | I94: 0.4968878577 | J94: 0.4968878577 | K94: Assumed constant from 2014/15
B95: 82 | C95: Small Non Domestic Off Peak (related MPAN) | D95: 0.191 | E95: 0.1484568814 | F95: 0.1545401669 | G95: 0.1545401669 | H95: 0.1545401669 | I95: 0.1545401669 | J95: 0.1545401669 | K95: Assumed constant from 2014/15
B96: 83 | C96: LV Medium Non-Domestic | D96: 0.499 | E96: 0.5302557485 | F96: 0.5456237824 | G96: 0.5456237824 | H96: 0.5456237824 | I96: 0.5456237824 | J96: 0.5456237824 | K96: Assumed constant from 2014/15
B97: 84 | C97: LV Sub Medium Non-Domestic | D97: 0.497 | E97: 0.5220890553 | F97: 0.5454104986 | G97: 0.5454104986 | H97: 0.5454104986 | I97: 0.5454104986 | J97: 0.5454104986 | K97: Assumed constant from 2014/15
B98: 85 | C98: HV Medium Non-Domestic | D98: 0.418 | E98: 0.4121506246 | F98: 0.4626342321 | G98: 0.4626342321 | H98: 0.4626342321 | I98: 0.4626342321 | J98: 0.4626342321 | K98: Assumed constant from 2014/15
B99: 86 | C99: LV HH Metered | D99: 0.489 | E99: 0.5029874239 | F99: 0.5410071103 | G99: 0.5410071103 | H99: 0.5410071103 | I99: 0.5410071103 | J99: 0.5410071103 | K99: Assumed constant from 2014/15
B100: 87 | C100: LV Sub HH Metered | D100: 0.515 | E100: 0.4999871537 | F100: 0.5418394901 | G100: 0.5418394901 | H100: 0.5418394901 | I100: 0.5418394901 | J100: 0.5418394901 | K100: Assumed constant from 2014/15
B101: 88 | C101: HV HH Metered | D101: 0.635 | E101: 0.6709020877 | F101: 0.6967159082 | G101: 0.6967159082 | H101: 0.6967159082 | I101: 0.6967159082 | J101: 0.6967159082 | K101: Assumed constant from 2014/15
B102: 89 | C102: HV Sub HH Metered | D102: 0.635 | E102: 0.6709020877 | F102: 0.6967159082 | G102: 0.6967159082 | H102: 0.6967159082 | I102: 0.6967159082 | J102: 0.6967159082 | K102: Assumed constant from 2014/15
B103: 90 | C103: NHH UMS category A | D103: 0.516 | E103: 1 | F103: 1 | G103: 1 | H103: 1 | I103: 1 | J103: 1 | K103: Assumed constant from 2014/15
B104: 91 | C104: NHH UMS category B | E104: 0.4743366324 | F104: 0.4743366324 | G104: 0.4743366324 | H104: 0.4743366324 | I104: 0.4743366324 | J104: 0.4743366324 | K104: Assumed constant from 2014/15
B105: 92 | C105: NHH UMS category C | E105: 0.2580201598 | F105: 0.2580201598 | G105: 0.2580201598 | H105: 0.2580201598 | I105: 0.2580201598 | J105: 0.2580201598 | K105: Assumed constant from 2014/15
B106: 93 | C106: NHH UMS category D | E106: 0.5537948744 | F106: 0.5537948744 | G106: 0.5537948744 | H106: 0.5537948744 | I106: 0.5537948744 | J106: 0.5537948744 | K106: Assumed constant from 2014/15
B107: 94 | C107: LV UMS (Pseudo HH Metered) | D107: 0.517 | E107: 0.4963303147 | F107: 0.4793103092 | G107: 0.4793103092 | H107: 0.4793103092 | I107: 0.4793103092 | J107: 0.4793103092 | K107: Assumed constant from 2014/15
B108: 95 | C108: 1053. Volume forecasts for the charging year
B109: 96 | C109: 1055 Transmission exit charges (£/year) | D109: 16124632 | E109: 16923397 | F109: 16749000 | G109: 16887000 | H109: =+G109*(1+H$13) -> 17351392.5 | I109: =+H109*(1+I$13) -> 17828555.79 | J109: =+I109*(1+J$13) -> 18318841.08 | K109: Latest assumptions
B110: 97 | C110: 1059 Other Expenditure (£/year)
B111: 98 | C111: Direct cost (£/year) | D111: 31543626 | E111: 28775497.34 | F111: 26120170.59 | G111: 27355244.23 | H111: 27249251.59 | I111: 27419885.87 | J111: =+I111*(1+J$13) -> 28173932.73 | K111: Latest assumptions
B112: 99 | C112: Indirect cost (£/year) | D112: 108019339 | E112: 113122579.8 | F112: 112239910.1 | G112: 106708242.7 | H112: 102188944.5 | I112: 101628612.7 | J112: 104423399.6 | K112: Latest assumptions
B113: 100 | C113: Indirect cost proportion | D113: 0.6 | E113: 0.6 | F113: 0.6 | G113: 0.6 | H113: 0.6 | I113: 0.6 | J113: 0.6 | K113: Assumed constant
B114: 101 | C114: Network rates (£/year) | D114: 23251490 | E114: 24417835.72 | F114: 25573871.7 | G114: 26618571.17 | H114: 27705975.08 | I114: 28837758.42 | J114: =+I114*(1+J$13) -> 29630796.77 | K114: Latest assumptions
B115: 102 | C115: 1060 Customer contributions under current connection charging policy
B116: 103 | C116: LV network
B117: 104 | C117: Assets 132kV
B118: 105 | C118: Assets 132kV/EHV
B119: 106 | C119: Assets EHV | D119: 0 | E119: 0 | F119: 0 | G119: 0 | H119: 0 | I119: 0 | J119: 0 | K119: Assumed constant from 2013/14
B120: 107 | C120: Assets EHV/HV | D120: 0 | E120: 0 | F120: 0 | G120: 0 | H120: 0 | I120: 0 | J120: 0 | K120: Assumed constant from 2013/14
B121: 108 | C121: Assets 132kV/HV | D121: 0 | E121: 0 | F121: 0 | G121: 0 | H121: 0 | I121: 0 | J121: 0 | K121: Assumed constant from 2013/14
B122: 109 | C122: Assets HV | D122: 0.3 | E122: 0.3 | F122: 0.3 | G122: 0.3 | H122: 0.3 | I122: 0.3 | J122: 0.3 | K122: Assumed constant from 2013/14
B123: 110 | C123: Assets HV/LV | D123: 0.3 | E123: 0.3 | F123: 0.3 | G123: 0.3 | H123: 0.3 | I123: 0.3 | J123: 0.3 | K123: Assumed constant from 2013/14
B124: 111 | C124: Assets LV circuits | D124: 0.97 | E124: 0.97 | F124: 0.97 | G124: 0.97 | H124: 0.97 | I124: 0.97 | J124: 0.97 | K124: Assumed constant from 2013/14
B125: 112 | C125: LV substation
B126: 113 | C126: Assets 132kV | D126: 0
B127: 114 | C127: Assets 132kV/EHV | D127: 0
B128: 115 | C128: Assets EHV | D128: 0 | E128: 0 | F128: 0 | G128: 0 | H128: 0 | I128: 0 | J128: 0 | K128: Assumed constant from 2013/14
B129: 116 | C129: Assets EHV/HV | D129: 0 | E129: 0 | F129: 0 | G129: 0 | H129: 0 | I129: 0 | J129: 0 | K129: Assumed constant from 2013/14
B130: 117 | C130: Assets 132kV/HV | D130: 0
B131: 118 | C131: Assets HV | D131: 0.3 | E131: 0.3 | F131: 0.3 | G131: 0.3 | H131: 0.3 | I131: 0.3 | J131: 0.3 | K131: Assumed constant from 2013/14
B132: 119 | C132: Assets HV/LV | D132: 0.97 | E132: 0.97 | F132: 0.97 | G132: 0.97 | H132: 0.97 | I132: 0.97 | J132: 0.97 | K132: Assumed constant from 2013/14
B133: 120 | C133: HV network
B134: 121 | C134: Assets 132kV | D134: 0
B135: 122 | C135: Assets 132kV/EHV | D135: 0
B136: 123 | C136: Assets EHV | D136: 0
B137: 124 | C137: Assets EHV/HV | D137: 0.57 | E137: 0.57 | F137: 0.57 | G137: 0.57 | H137: 0.57 | I137: 0.57 | J137: 0.57 | K137: Assumed constant from 2013/14
B138: 125 | C138: Assets 132kV/HV | D138: 0
B139: 126 | C139: Assets HV | D139: 0.91 | E139: 0.91 | F139: 0.91 | G139: 0.91 | H139: 0.91 | I139: 0.91 | J139: 0.91 | K139: Assumed constant from 2013/14
B140: 127 | C140: HV substation
B141: 128 | C141: Assets 132kV | D141: 0
B142: 129 | C142: Assets 132kV/EHV | D142: 0
B143: 130 | C143: Assets EHV | D143: 0.57 | E143: 0.57 | F143: 0.57 | G143: 0.57 | H143: 0.57 | I143: 0.57 | J143: 0.57 | K143: Assumed constant from 2013/14
B144: =+B143+1 -> 131 | C144: Assets EHV/HV | D144: 0.92 | E144: 0.92 | F144: 0.92 | G144: 0.92 | H144: 0.92 | I144: 0.92 | J144: 0.92 | K144: Assumed constant from 2013/14
B145: 132 | C145: Assets 132kV/HV | D145: 0 | E145: 0 | F145: 0 | G145: 0 | H145: 0 | I145: 0 | J145: 0 | K145: Assumed constant from 2013/14
B146: 133 | C146: 1061 Average split of rate 1 units by distribution time band
B147: 134 | C147: RED
B148: 135 | C148: Domestic Two Rate | D148: 0.094 | E148: 0.09257556043 | F148: 0.09156920881 | G148: 0.1333636567 | H148: 0.1333636567 | I148: 0.1333636567 | J148: 0.1333636567 | K148: Latest averages for 2014/15 used . New Time band from 2015/16
B149: 136 | C149: Domestic Off Peak (related MPAN) | D149: 0.003 | E149: 0.002374531295 | F149: 0.002592678632 | G149: 0.005290385781 | H149: 0.005290385781 | I149: 0.005290385781 | J149: 0.005290385781 | K149: Latest averages for 2014/15 used . New Time band from 2015/16
B150: 137 | C150: Small Non Domestic Two Rate | D150: 0.082 | E150: 0.08205671391 | F150: 0.08151827345 | G150: 0.1224429372 | H150: 0.1224429372 | I150: 0.1224429372 | J150: 0.1224429372 | K150: Latest averages for 2014/15 used . New Time band from 2015/16
B151: 138 | C151: Small Non Domestic Off Peak (related MPAN) | D151: 0.002 | E151: 0.001025332756 | F151: 0.000666219041 | G151: 0.00131117735 | H151: 0.00131117735 | I151: 0.00131117735 | J151: 0.00131117735 | K151: Latest averages for 2014/15 used . New Time band from 2015/16
B152: 139 | C152: LV Medium Non-Domestic | D152: 0.089 | E152: 0.08917874081 | F152: 0.09022075879 | G152: 0.1357361834 | H152: 0.1357361834 | I152: 0.1357361834 | J152: 0.1357361834 | K152: Latest averages for 2014/15 used . New Time band from 2015/16
B153: 140 | C153: LV Sub Medium Non-Domestic | D153: 0.09 | E153: 0.08979615472 | F153: 0.0894711874 | G153: 0.1345217072 | H153: 0.1345217072 | I153: 0.1345217072 | J153: 0.1345217072 | K153: Latest averages for 2014/15 used . New Time band from 2015/16
B154: 141 | C154: HV Medium Non-Domestic | D154: 0.09 | E154: 0.0883498301 | F154: 0.08744503124 | G154: 0.1316769101 | H154: 0.1316769101 | I154: 0.1316769101 | J154: 0.1316769101 | K154: Latest averages for 2014/15 used . New Time band from 2015/16
B155: 142 | C155: AMBER
B156: 143 | C156: Domestic Two Rate | D156: 0.36 | E156: 0.3627688395 | F156: 0.3655445151 | G156: 0.3408792093 | H156: 0.3408792093 | I156: 0.3408792093 | J156: 0.3408792093 | K156: Latest averages for 2014/15 used . New Time band from 2015/16
B157: 144 | C157: Domestic Off Peak (related MPAN) | D157: 0.082 | E157: 0.08975790565 | F157: 0.09653021441 | G157: 0.09506992232 | H157: 0.09506992232 | I157: 0.09506992232 | J157: 0.09506992232 | K157: Latest averages for 2014/15 used . New Time band from 2015/16
B158: 145 | C158: Small Non Domestic Two Rate | D158: 0.487 | E158: 0.4849970974 | F158: 0.4847030588 | G158: 0.459021859 | H158: 0.459021859 | I158: 0.459021859 | J158: 0.459021859 | K158: Latest averages for 2014/15 used . New Time band from 2015/16
B159: 146 | C159: Small Non Domestic Off Peak (related MPAN) | D159: 0.065 | E159: 0.05701718165 | F159: 0.04862448566 | G159: 0.04856600265 | H159: 0.04856600265 | I159: 0.04856600265 | J159: 0.04856600265 | K159: Latest averages for 2014/15 used . New Time band from 2015/16
B160: 147 | C160: LV Medium Non-Domestic | D160: 0.516 | E160: 0.510632365 | F160: 0.514176377 | G160: 0.4829128654 | H160: 0.4829128654 | I160: 0.4829128654 | J160: 0.4829128654 | K160: Latest averages for 2014/15 used . New Time band from 2015/16
B161: 148 | C161: LV Sub Medium Non-Domestic | D161: 0.526 | E161: 0.5209374758 | F161: 0.5153537158 | G161: 0.4839340079 | H161: 0.4839340079 | I161: 0.4839340079 | J161: 0.4839340079 | K161: Latest averages for 2014/15 used . New Time band from 2015/16
B162: 149 | C162: HV Medium Non-Domestic | D162: 0.54 | E162: 0.5314674673 | F162: 0.5241533161 | G162: 0.492770602 | H162: 0.492770602 | I162: 0.492770602 | J162: 0.492770602 | K162: Latest averages for 2014/15 used . New Time band from 2015/16
B163: 150 | C163: GREEN
B164: 151 | C164: Domestic Two Rate | D164: 0.545 | E164: 0.5446556 | F164: 0.5428862761 | G164: 0.525757134 | H164: 0.525757134 | I164: 0.525757134 | J164: 0.525757134 | K164: Latest averages for 2014/15 used . New Time band from 2015/16
B165: 152 | C165: Domestic Off Peak (related MPAN) | D165: 0.915 | E165: 0.9078675631 | F165: 0.900877107 | G165: 0.8996396919 | H165: 0.8996396919 | I165: 0.8996396919 | J165: 0.8996396919 | K165: Latest averages for 2014/15 used . New Time band from 2015/16
B166: 153 | C166: Small Non Domestic Two Rate | D166: 0.431 | E166: 0.4329461887 | F166: 0.4337786678 | G166: 0.4185352038 | H166: 0.4185352038 | I166: 0.4185352038 | J166: 0.4185352038 | K166: Latest averages for 2014/15 used . New Time band from 2015/16
B167: 154 | C167: Small Non Domestic Off Peak (related MPAN) | D167: 0.933 | E167: 0.9419574856 | F167: 0.9507092953 | G167: 0.95012282 | H167: 0.95012282 | I167: 0.95012282 | J167: 0.95012282 | K167: Latest averages for 2014/15 used . New Time band from 2015/16
B168: 155 | C168: LV Medium Non-Domestic | D168: 0.395 | E168: 0.4001888942 | F168: 0.3956028642 | G168: 0.3813509512 | H168: 0.3813509512 | I168: 0.3813509512 | J168: 0.3813509512 | K168: Latest averages for 2014/15 used . New Time band from 2015/16
B169: 156 | C169: LV Sub Medium Non-Domestic | D169: 0.384 | E169: 0.3892663695 | F169: 0.3951750968 | G169: 0.3815442849 | H169: 0.3815442849 | I169: 0.3815442849 | J169: 0.3815442849 | K169: Latest averages for 2014/15 used . New Time band from 2015/16
B170: 157 | C170: HV Medium Non-Domestic | D170: 0.371 | E170: 0.3801827026 | F170: 0.3884016527 | G170: 0.3755524879 | H170: 0.3755524879 | I170: 0.3755524879 | J170: 0.3755524879 | K170: Latest averages for 2014/15 used . New Time band from 2015/16
B171: 158 | C171: 1062 Average split of rate 2 units by distribution time band
B172: 159 | C172: RED
B173: 160 | C173: Domestic Two Rate | D173: 0 | E173: 0 | F173: 0 | G173: 0 | H173: 0 | I173: 0 | J173: 0 | K173: Latest averages for 2014/15 used . New Time band from 2015/16
B174: 161 | C174: Small Non Domestic Two Rate | D174: 0 | E174: 0 | F174: 0 | G174: 0 | H174: 0 | I174: 0 | J174: 0 | K174: Latest averages for 2014/15 used . New Time band from 2015/16
B175: 162 | C175: LV Medium Non-Domestic | D175: 0 | E175: 0 | F175: 0 | G175: 0 | H175: 0 | I175: 0 | J175: 0 | K175: Latest averages for 2014/15 used . New Time band from 2015/16
B176: 163 | C176: LV Sub Medium Non-Domestic | D176: 0 | E176: 0 | F176: 0 | G176: 0 | H176: 0 | I176: 0 | J176: 0 | K176: Latest averages for 2014/15 used . New Time band from 2015/16
B177: 164 | C177: HV Medium Non-Domestic | D177: 0 | E177: 0 | F177: 0 | G177: 0 | H177: 0 | I177: 0 | J177: 0 | K177: Latest averages for 2014/15 used . New Time band from 2015/16
B178: 165 | C178: AMBER
B179: 166 | C179: Domestic Two Rate | D179: 0 | E179: 0 | F179: 0 | G179: 0 | H179: 0 | I179: 0 | J179: 0 | K179: Latest averages for 2014/15 used . New Time band from 2015/16
B180: 167 | C180: Small Non Domestic Two Rate | D180: 0 | E180: 0 | F180: 0 | G180: 0 | H180: 0 | I180: 0 | J180: 0 | K180: Latest averages for 2014/15 used . New Time band from 2015/16
B181: 168 | C181: LV Medium Non-Domestic | D181: 0 | E181: 0 | F181: 0 | G181: 0 | H181: 0 | I181: 0 | J181: 0 | K181: Latest averages for 2014/15 used . New Time band from 2015/16
B182: 169 | C182: LV Sub Medium Non-Domestic | D182: 0 | E182: 0 | F182: 0 | G182: 0 | H182: 0 | I182: 0 | J182: 0 | K182: Latest averages for 2014/15 used . New Time band from 2015/16
B183: 170 | C183: HV Medium Non-Domestic | D183: 0 | E183: 0 | F183: 0 | G183: 0 | H183: 0 | I183: 0 | J183: 0 | K183: Latest averages for 2014/15 used . New Time band from 2015/16
B184: 171 | C184: GREEN
B185: 172 | C185: Domestic Two Rate | D185: 1 | E185: 1 | F185: 1 | G185: 1 | H185: 1 | I185: 1 | J185: 1 | K185: Latest averages for 2014/15 used . New Time band from 2015/16
B186: 173 | C186: Small Non Domestic Two Rate | D186: 1 | E186: 1 | F186: 1 | G186: 1 | H186: 1 | I186: 1 | J186: 1 | K186: Latest averages for 2014/15 used . New Time band from 2015/16
B187: 174 | C187: LV Medium Non-Domestic | D187: 1 | E187: 1 | F187: 1 | G187: 1 | H187: 1 | I187: 1 | J187: 1 | K187: Latest averages for 2014/15 used . New Time band from 2015/16
B188: 175 | C188: LV Sub Medium Non-Domestic | D188: 1 | E188: 1 | F188: 1 | G188: 1 | H188: 1 | I188: 1 | J188: 1 | K188: Latest averages for 2014/15 used . New Time band from 2015/16
B189: 176 | C189: HV Medium Non-Domestic | D189: 1 | E189: 1 | F189: 1 | G189: 1 | H189: 1 | I189: 1 | J189: 1 | K189: Latest averages for 2014/15 used . New Time band from 2015/16
B190: 177 | C190: 1064. Average split of rate 1 units by special distribution time band
B191: 178 | C191: BLACK
B192: 179 | C192: NHH UMS category A | E192: 0.0196347032 | F192: 0.0196347032 | G192: 0.02945205479 | H192: 0.02945205479 | I192: 0.02945205479 | J192: 0.02945205479 | K192: Latest averages for 2014/15 used . New Time band from 2015/16
B193: 180 | C193: NHH UMS category B | E193: 0.03631645494 | F193: 0.03560808437 | G193: 0.05006046606 | H193: 0.05006046606 | I193: 0.05006046606 | J193: 0.05006046606 | K193: Latest averages for 2014/15 used . New Time band from 2015/16
B194: 181 | C194: NHH UMS category C | E194: 0.06886288928 | F194: 0.06748819806 | G194: 0.09588250091 | H194: 0.09588250091 | I194: 0.09588250091 | J194: 0.09588250091 | K194: Latest averages for 2014/15 used . New Time band from 2015/16
B195: 182 | C195: NHH UMS category D | E195: 0.008382428825 | F195: 0.008506707131 | G195: 0.01671174643 | H195: 0.01671174643 | I195: 0.01671174643 | J195: 0.01671174643 | K195: Latest averages for 2014/15 used . New Time band from 2015/16
B196: 183 | C196: YELLOW
B197: 184 | C197: NHH UMS category A | E197: 0.3467465753 | F197: 0.3456621005 | G197: 0.3478310502 | H197: 0.3478310502 | I197: 0.3478310502 | J197: 0.3478310502 | K197: Latest averages for 2014/15 used . New Time band from 2015/16
B198: 185 | C198: NHH UMS category B | E198: 0.08968129709 | F198: 0.09026905232 | G198: 0.08342919622 | H198: 0.08342919622 | I198: 0.08342919622 | J198: 0.08342919622 | K198: Latest averages for 2014/15 used . New Time band from 2015/16
B199: 186 | C199: NHH UMS category C | E199: 0.1759231231 | F199: 0.1769462646 | G199: 0.1637992171 | H199: 0.1637992171 | I199: 0.1637992171 | J199: 0.1637992171 | K199: Latest averages for 2014/15 used . New Time band from 2015/16
B200: 187 | C200: NHH UMS category D | E200: 0.5592881132 | F200: 0.5572864614 | G200: 0.5659682653 | H200: 0.5659682653 | I200: 0.5659682653 | J200: 0.5659682653 | K200: Latest averages for 2014/15 used . New Time band from 2015/16
B201: 188 | C201: GREEN
B202: 189 | C202: NHH UMS category A | E202: 0.6336187215 | F202: 0.6347031963 | G202: 0.622716895 | H202: 0.622716895 | I202: 0.622716895 | J202: 0.622716895 | K202: Latest averages for 2014/15 used . New Time band from 2015/16
B203: 190 | C203: NHH UMS category B | E203: 0.874002248 | F203: 0.8741228633 | G203: 0.8665103377 | H203: 0.8665103377 | I203: 0.8665103377 | J203: 0.8665103377 | K203: Latest averages for 2014/15 used . New Time band from 2015/16
B204: 191 | C204: NHH UMS category C | E204: 0.7552139877 | F204: 0.7555655373 | G204: 0.740318282 | H204: 0.740318282 | I204: 0.740318282 | J204: 0.740318282 | K204: Latest averages for 2014/15 used . New Time band from 2015/16
B205: 192 | C205: NHH UMS category D | E205: 0.432329458 | F205: 0.4342068315 | G205: 0.4173199883 | H205: 0.4173199883 | I205: 0.4173199883 | J205: 0.4173199883 | K205: Latest averages for 2014/15 used . New Time band from 2015/16
... 65 more rows

Sheet Smoothed Input Details
A1: DNO | B1: =+'CDCM Forecast Data'!F3 -> Electricity North West
A2: Charges for (year Y) | B2: =+'CDCM Forecast Data'!F11 -> 2014/15
A4: Year charges are set (year Y-1) | B4: =+'CDCM Forecast Data'!E11 -> 2013/14
A6: Year to which input data relates
A7: Year Y-2 | B7: 2012/13
A8: Year Y - 3 | B8: 2011/12
A9: Year Y - 4 | B9: 2010/11
A11: 1041 - load profile for demand users - coincidence factors
A12: 2014/15 charges are set in 2013/14 using historical dats for the previous three years
B14: Y - 4 | C14: Y - 3 | D14: Y - 2 | E14: Information to be used calculating tariffs in year t
A15: Domestic Unrestricted | B15: 0.9342593164 | C15: 0.8759944789 | D15: 0.8581044475 | E15: =AVERAGE(B15:D15) -> 0.8894527476
A16: Domestic Two Rate | B16: 0.3150759137 | C16: 0.2910946238 | D16: 0.2710178272 | E16: =AVERAGE(B16:D16) -> 0.2923961216
A17: Domestic Off Peak (related MPAN)
A18: Small Non Domestic Unrestricted | B18: 0.6520046997 | C18: 0.643997216 | D18: 0.7472520808 | E18: 0.6810846655
A19: Small Non Domestic Two Rate | B19: 0.6959844978 | C19: 0.6932169035 | D19: 0.6804607509 | E19: 0.6898873841
A20: Small Non Domestic Off Peak (related MPAN)
A21: LV Medium Non-Domestic | B21: 0.8041820139 | C21: 0.823352836 | D21: 0.8712874334 | E21: 0.8329407611
A22: LV Sub Medium Non-Domestic | B22: 0.792809678 | C22: 0.7852576908 | D22: 0.859747255 | E22: 0.8126048746
A23: HV Medium Non-Domestic | B23: 0.6240105541 | C23: 0.6887626263 | D23: 0.8282623394 | E23: 0.7136785066
A24: LV HH Metered | B24: 0.4048612989 | C24: 0.7837215571 | D24: 0.8610914613 | E24: 0.6832247724
A25: LV Sub HH Metered | B25: 0.7001325078 | C25: 0.7583345116 | D25: 0.8298355661 | E25: 0.7627675285
A26: HV HH Metered | B26: 0.8201117517 | C26: 0.8377246673 | D26: 0.8856275653 | E26: 0.8478213281
A27: HV Sub HH Metered | B27: 0.8201117517 | C27: 0.8377246673 | D27: 0.8856275653 | E27: 0.8478213281
A28: NHH UMS category A | B28: 1 | C28: 1 | D28: 1 | E28: 1
A29: NHH UMS category B | B29: 1 | C29: 1 | D29: 1 | E29: 1
A30: NHH UMS category C | B30: 1 | C30: 1 | D30: 1 | E30: 1
A31: NHH UMS category D | B31: 0 | C31: 0 | D31: 0 | E31: 0
A32: LV UMS (Pseudo HH Metered) | B32: 0.763933766 | C32: 0.9664622494 | D32: 0.9927620623 | E32: 0.9077193592
A36: 1041 - load profile for demand users - load factors
A37: 2014/15 charges are set in 2013/14 using historical dats for the previous three years
B40: Y - 4 | C40: Y - 3 | D40: Y - 2 | E40: Information to be used calculating tariffs in year t
A41: Domestic Unrestricted | B41: 0.3960664997 | C41: 0.4362692532 | D41: 0.4429541431 | E41: =AVERAGE(B41:D41) -> 0.425096632
A42: Domestic Two Rate | B42: 0.20769874 | C42: 0.2291373449 | D42: 0.235652164 | E42: =AVERAGE(B42:D42) -> 0.2241627496
A43: Domestic Off Peak (related MPAN) | B43: 0.148010904 | C43: 0.1484809281 | D43: 0.1644645207 | E43: 0.1536521176
A44: Small Non Domestic Unrestricted | B44: 0.3335372778 | C44: 0.3921620378 | D44: 0.3851249321 | E44: 0.3702747492
A45: Small Non Domestic Two Rate | B45: 0.4700606646 | C45: 0.5395583023 | D45: 0.4810446063 | E45: 0.4968878577
A46: Small Non Domestic Off Peak (related MPAN) | B46: 0.1448142585 | C46: 0.1540314046 | D46: 0.1647748375 | E46: 0.1545401669
A47: LV Medium Non-Domestic | B47: 0.5114445651 | C47: 0.5657248292 | D47: 0.559701953 | E47: 0.5456237824
A48: LV Sub Medium Non-Domestic | B48: 0.5173119482 | C48: 0.5482462255 | D48: 0.5706733221 | E48: 0.5454104986
A49: HV Medium Non-Domestic | B49: 0.454485714 | C49: 0.4351584481 | D49: 0.4982585342 | E49: 0.4626342321
A50: LV HH Metered | B50: 0.5228764664 | C50: 0.5485801032 | D50: 0.5515647613 | E50: 0.5410071103
A51: LV Sub HH Metered | B51: 0.524013086 | C51: 0.5443141644 | D51: 0.5571912198 | E51: 0.5418394901
A52: HV HH Metered | B52: 0.6773459438 | C52: 0.7052395403 | D52: 0.7075622406 | E52: 0.6967159082
A53: HV Sub HH Metered | B53: 0.6773459438 | C53: 0.7052395403 | D53: 0.7075622406 | E53: 0.6967159082
A54: NHH UMS category A | B54: 1 | C54: 1 | D54: 1 | E54: 1
A55: NHH UMS category B | B55: 0.474 | C55: 0.474 | D55: 0.474 | E55: 0.474
A56: NHH UMS category C | B56: 0.258 | C56: 0.258 | D56: 0.258 | E56: 0.258
A57: NHH UMS category D | B57: 0.554 | C57: 0.554 | D57: 0.554 | E57: 0.554
A58: LV UMS (Pseudo HH Metered) | B58: 0.4640684038 | C58: 0.4862829586 | D58: 0.4875795651 | E58: 0.4793103092
A62: 1061 - Average split of rate 1 units by distribution time band
A63: 2014/15 charges are set in 2013/14 using historical dats for the previous three years
B66: Y - 4 | E66: Y - 3 | H66: Y - 2 | K66: Information to be used calculating tariffs in year t
B67: Red | C67: Amber | D67: Green | E67: Red | F67: Amber | G67: Green | H67: Red | I67: Amber | J67: Green | K67: Red | L67: Amber | M67: Green
A68: Domestic Two Rate | B68: 0.09220430489 | C68: 0.3618593108 | D68: 0.5459363843 | E68: 0.09145992157 | F68: 0.3668347538 | G68: 0.5417053247 | H68: 0.09104339996 | I68: 0.3679394808 | J68: 0.5410171193 | K68: =AVERAGE(B68,E68,H68) -> 0.09156920881 | L68: 0.3655445151 | M68: 0.5428862761
A69: Domestic Off Peak (related MPAN) | B69: 0.002716885029 | C69: 0.09915792987 | D69: 0.8981251851 | E69: 0.002599529513 | F69: 0.09527588725 | G69: 0.9021245832 | H69: 0.002461621353 | I69: 0.09515682611 | J69: 0.9023815525 | K69: 0.002592678632 | L69: 0.09653021441 | M69: 0.900877107
A70: Small Non Domestic Two Rate | B70: 0.08233909877 | C70: 0.4853123854 | D70: 0.4323485159 | E70: 0.08183912303 | F70: 0.4832333011 | G70: 0.4349275758 | H70: 0.08037659856 | I70: 0.4855634898 | J70: 0.4340599117 | K70: 0.08151827345 | L70: 0.4847030588 | M70: 0.4337786678
A71: Small Non Domestic Off Peak (related MPAN) | B71: 0.0006381019289 | C71: 0.04822009829 | D71: 0.9511417998 | E71: 0.0006307169966 | F71: 0.04799154683 | G71: 0.9513777362 | H71: 0.0007298381975 | I71: 0.04966181186 | J71: 0.9496083499 | K71: 0.000666219041 | L71: 0.04862448566 | M71: 0.9507092953
A72: LV Medium Non-Domestic | B72: 0.09087564208 | C72: 0.5185185883 | D72: 0.3906057696 | E72: 0.09054947743 | F72: 0.5124725754 | G72: 0.3969779472 | H72: 0.08923715685 | I72: 0.5115379674 | J72: 0.3992248757 | K72: 0.09022075879 | L72: 0.514176377 | M72: 0.3956028642
A73: LV Sub Medium Non-Domestic | B73: 0.09002169153 | C73: 0.520817729 | D73: 0.3891605794 | E73: 0.08967975499 | F73: 0.5147136627 | G73: 0.3956065823 | H73: 0.08871211567 | I73: 0.5105297556 | J73: 0.4007581287 | K73: 0.0894711874 | L73: =AVERAGE(C73,F73,I73) -> 0.5153537158 | M73: =AVERAGE(D73,G73,J73) -> 0.3951750968
A74: HV Medium Non-Domestic | B74: 0.08864708932 | C74: 0.5304193594 | D74: 0.3809335512 | E74: 0.08749934541 | F74: 0.5218095915 | G74: 0.3906910631 | H74: 0.08618865898 | I74: 0.5202309974 | J74: 0.3935803436 | K74: 0.08744503124 | L74: =AVERAGE(C74,F74,I74) -> 0.5241533161 | M74: =AVERAGE(D74,G74,J74) -> 0.3884016527
A78: 1062 - Average split of rate 2 units by distribution time band
A79: 2014/15 charges are set in 2013/14 using historical dats for the previous three years
B82: Y - 4 | E82: Y - 3 | H82: Y - 2 | K82: Information to be used calculating tariffs in year t
B83: Red | C83: Amber | D83: Green | E83: Red | F83: Amber | G83: Green | H83: Red | I83: Amber | J83: Green | K83: Red | L83: Amber | M83: Green
A84: Domestic Two Rate | B84: 0 | C84: 0 | D84: 1 | E84: 0 | F84: 0 | G84: 1 | H84: 0 | I84: 0 | J84: 1 | K84: =AVERAGE(B84,E84,H84) -> 0 | L84: =AVERAGE(C84,F84,I84) -> 0 | M84: 1
A85: Small Non Domestic Two Rate | B85: 0 | C85: 0 | D85: 1 | E85: 0 | F85: 0 | G85: 1 | H85: 0 | I85: 0 | J85: 1 | K85: =AVERAGE(B85,E85,H85) -> 0 | L85: 0 | M85: 1
A86: LV Medium Non-Domestic | B86: 0 | C86: 0 | D86: 1 | E86: 0 | F86: 0 | G86: 1 | H86: 0 | I86: 0 | J86: 1 | K86: =AVERAGE(B86,E86,H86) -> 0 | L86: 0 | M86: 1
A87: LV Sub Medium Non-Domestic | B87: 0 | C87: 0 | D87: 1 | E87: 0 | F87: 0 | G87: 1 | H87: 0 | I87: 0 | J87: 1 | K87: =AVERAGE(B87,E87,H87) -> 0 | L87: 0 | M87: 1
A88: HV Medium Non-Domestic | B88: 0 | C88: 0 | D88: 1 | E88: 0 | F88: 0 | G88: 1 | H88: 0 | I88: 0 | J88: 1 | K88: =AVERAGE(B88,E88,H88) -> 0 | L88: 0 | M88: 1
A92: 1069 - Peaking probabilities by network level
A93: 2014/15 charges are set in 2013/14 using historical dats for the previous three years
B96: Y - 4 | E96: Y - 3 | H96: Y - 2 | K96: Information to be used calculating tariffs in year t
B97: Red | C97: Amber | D97: Green | E97: Red | F97: Amber | G97: Green | H97: Red | I97: Amber | J97: Green | K97: Red | L97: Amber | M97: Green
A98: GSPs | B98: 0.7778 | C98: 0.111 | D98: 0.1111 | E98: 0.6111111111 | F98: 0.2777777778 | G98: 0.1111111111 | H98: 0.8235294118 | I98: 0.1764705882 | J98: 0 | K98: =AVERAGE(B98,E98,H98) -> 0.7374801743 | L98: =AVERAGE(C98,F98,I98) -> 0.188416122 | M98: =AVERAGE(D98,G98,J98) -> 0.07407037037
A99: 132kV | B99: 0.6143 | C99: 0.2714 | D99: 0.1143 | E99: 0.6571428571 | F99: 0.2857142857 | G99: 0.05714285714 | H99: 0.6428571429 | I99: 0.3 | J99: 0.05714285714 | K99: =AVERAGE(B99,E99,H99) -> 0.6381 | L99: 0.2857047619 | M99: 0.0761952381
A100: 132kV/EHV | B100: 0.6143 | C100: 0.2714 | D100: 0.1143 | E100: 0.6571428571 | F100: 0.2857142857 | G100: 0.05714285714 | H100: 0.6428571429 | I100: 0.3 | J100: 0.05714285714 | K100: 0.6381 | L100: 0.2857047619 | M100: 0.0761952381
A101: EHV | B101: 0.5935 | C101: 0.3198 | D101: 0.0867 | E101: 0.5648648649 | F101: 0.3513513514 | G101: 0.08378378378 | H101: 0.5309973046 | I101: 0.3881401617 | J101: 0.08086253369 | K101: 0.5631207231 | L101: 0.353097171 | M101: 0.08378210583
A102: EHV/HV | B102: 0.5935 | C102: 0.3198 | D102: 0.0867 | E102: 0.5648648649 | F102: 0.3513513514 | G102: 0.08378378378 | H102: 0.5309973046 | I102: 0.3881401617 | J102: 0.08086253369 | K102: 0.5631207231 | L102: 0.353097171 | M102: 0.08378210583
A103: 132kV/HV
A104: HV | B104: 0.5935 | C104: 0.3198 | D104: 0.0867 | E104: 0.5648648649 | F104: 0.3513513514 | G104: 0.08378378378 | H104: 0.5309973046 | I104: 0.3881401617 | J104: 0.08086253369 | K104: 0.5631207231 | L104: 0.353097171 | M104: 0.08378210583
A105: HV/LV | B105: 0.5935 | C105: 0.3198 | D105: 0.0867 | E105: 0.5648648649 | F105: 0.3513513514 | G105: 0.08378378378 | H105: 0.5309973046 | I105: 0.3881401617 | J105: 0.08086253369 | K105: 0.5631207231 | L105: 0.353097171 | M105: 0.08378210583
A106: LV circuits | B106: 0.5935 | C106: 0.3198 | D106: 0.0867 | E106: 0.5648648649 | F106: 0.3513513514 | G106: 0.08378378378 | H106: 0.5309973046 | I106: 0.3881401617 | J106: 0.08086253369 | K106: 0.5631207231 | L106: 0.353097171 | M106: 0.08378210583

Sheet Mat of App
B3: 1025. Matrix of applicability of LV service models to tariffs with fixed charges
C5: ='CDCM Forecast Data'!$F$11 -> 2014/15 | K5: ='CDCM Forecast Data'!$G$11 -> 2015/16 | S5: ='CDCM Forecast Data'!$H$11 -> 2016/17 | AA5: ='CDCM Forecast Data'!$I$11 -> 2017/18 | AI5: ='CDCM Forecast Data'!$J$11 -> 2018/19
C6: LV service model 1 | D6: LV service model 2 | E6: LV service model 3 | F6: LV service model 4 | G6: LV service model 5 | H6: LV service model 6 | I6: LV service model 7 | J6: LV service model 8 | K6: LV service model 1 | L6: LV service model 2 | M6: LV service model 3 | N6: LV service model 4 | O6: LV service model 5 | P6: LV service model 6 | Q6: LV service model 7 | R6: LV service model 8 | S6: LV service model 1 | T6: LV service model 2 | U6: LV service model 3 | V6: LV service model 4 | W6: LV service model 5 | X6: LV service model 6 | Y6: LV service model 7 | Z6: LV service model 8 | AA6: LV service model 1 | AB6: LV service model 2 | AC6: LV service model 3 | AD6: LV service model 4 | AE6: LV service model 5 | AF6: LV service model 6 | AG6: LV service model 7 | AH6: LV service model 8 | AI6: LV service model 1 | AJ6: LV service model 2 | AK6: LV service model 3 | AL6: LV service model 4 | AM6: LV service model 5 | AN6: LV service model 6 | AO6: LV service model 7 | AP6: LV service model 8
B7: Domestic Unrestricted | C7: 0.05 | D7: 0 | E7: 0 | F7: 0 | G7: 0 | H7: 0 | I7: 0 | J7: 0 | K7: =C7 -> 0.05 | L7: =D7 -> 0 | M7: =E7 -> 0 | N7: =F7 -> 0 | O7: =G7 -> 0 | P7: =H7 -> 0 | Q7: =I7 -> 0 | R7: =J7 -> 0 | S7: =K7 -> 0.05 | T7: 0 | U7: 0 | V7: 0 | W7: 0 | X7: 0 | Y7: 0 | Z7: 0 | AA7: 0.05 | AB7: =T7 -> 0 | AC7: 0 | AD7: 0 | AE7: 0 | AF7: 0 | AG7: 0 | AH7: 0 | AI7: 0.05 | AJ7: 0 | AK7: 0 | AL7: 0 | AM7: 0 | AN7: 0 | AO7: 0 | AP7: 0
B8: Domestic Two Rate | C8: 0.05 | D8: 0 | E8: 0 | F8: 0 | G8: 0 | H8: 0 | I8: 0 | J8: 0 | K8: 0.05 | L8: 0 | M8: 0 | N8: 0 | O8: 0 | P8: 0 | Q8: 0 | R8: 0 | S8: 0.05 | T8: 0 | U8: 0 | V8: 0 | W8: 0 | X8: 0 | Y8: 0 | Z8: 0 | AA8: 0.05 | AB8: 0 | AC8: 0 | AD8: 0 | AE8: 0 | AF8: 0 | AG8: 0 | AH8: 0 | AI8: 0.05 | AJ8: 0 | AK8: 0 | AL8: 0 | AM8: 0 | AN8: 0 | AO8: 0 | AP8: 0
B9: Small Non Domestic Unrestricted | C9: 0 | D9: 1 | E9: 0 | F9: 0 | G9: 0 | H9: 0 | I9: 0 | J9: 0 | K9: 0 | L9: 1 | M9: 0 | N9: 0 | O9: 0 | P9: 0 | Q9: 0 | R9: 0 | S9: 0 | T9: 1 | U9: 0 | V9: 0 | W9: 0 | X9: 0 | Y9: 0 | Z9: 0 | AA9: 0 | AB9: 1 | AC9: 0 | AD9: 0 | AE9: 0 | AF9: 0 | AG9: 0 | AH9: 0 | AI9: 0 | AJ9: 1 | AK9: 0 | AL9: 0 | AM9: 0 | AN9: 0 | AO9: 0 | AP9: 0
B10: Small Non Domestic Two Rate | C10: 0 | D10: 1 | E10: 0 | F10: 0 | G10: 0 | H10: 0 | I10: 0 | J10: 0 | K10: 0 | L10: 1 | M10: 0 | N10: 0 | O10: 0 | P10: 0 | Q10: 0 | R10: 0 | S10: 0 | T10: 1 | U10: 0 | V10: 0 | W10: 0 | X10: 0 | Y10: 0 | Z10: 0 | AA10: 0 | AB10: 1 | AC10: 0 | AD10: 0 | AE10: 0 | AF10: 0 | AG10: 0 | AH10: 0 | AI10: 0 | AJ10: 1 | AK10: 0 | AL10: 0 | AM10: 0 | AN10: 0 | AO10: 0 | AP10: 0
B11: LV Medium Non-Domestic | D11: 0.1413350728 | E11: 0.8586649272 | F11: 0 | H11: 0 | I11: 0 | J11: 0 | K11: 0 | L11: 0.1652421652 | M11: 0.8347578348 | N11: 0 | O11: 0 | P11: 0 | Q11: 0 | R11: 0 | S11: 0 | T11: 0.1652421652 | U11: 0.8347578348 | V11: 0 | W11: 0 | X11: 0 | Y11: 0 | Z11: 0 | AA11: 0 | AB11: 0.1652421652 | AC11: 0.8347578348 | AD11: 0 | AE11: 0 | AF11: 0 | AG11: 0 | AH11: 0 | AI11: 0 | AJ11: 0.1652421652 | AK11: 0.8347578348 | AL11: 0 | AM11: 0 | AN11: 0 | AO11: 0 | AP11: 0
B12: LV Sub Medium Non-Domestic | C12: 0 | F12: 1 | H12: 0 | I12: 0 | J12: 0 | K12: 0 | L12: 0 | M12: 0 | N12: 1 | O12: 0 | P12: 0 | Q12: 0 | R12: 0 | S12: 0 | T12: 0 | U12: 0 | V12: 1 | W12: 0 | X12: 0 | Y12: 0 | Z12: 0 | AA12: 0 | AB12: 0 | AC12: 0 | AD12: 1 | AE12: 0 | AF12: 0 | AG12: 0 | AH12: 0 | AI12: 0 | AJ12: 0 | AK12: 0 | AL12: 1 | AM12: 0 | AN12: 0 | AO12: 0 | AP12: 0
B13: LV HH Metered | C13: 0 | E13: 1 | F13: 0 | H13: 0 | I13: 0 | J13: 0 | K13: 0 | L13: 0 | M13: 1 | N13: 0 | O13: 0 | P13: 0 | Q13: 0 | R13: 0 | S13: 0 | T13: 0 | U13: 1 | V13: 0 | W13: 0 | X13: 0 | Y13: 0 | Z13: 0 | AA13: 0 | AB13: 0 | AC13: 1 | AD13: 0 | AE13: 0 | AF13: 0 | AG13: 0 | AH13: 0 | AI13: 0 | AJ13: 0 | AK13: 1 | AL13: 0 | AM13: 0 | AN13: 0 | AO13: 0 | AP13: 0
B14: LV Sub HH Metered | C14: 0 | F14: 1 | H14: 0 | I14: 0 | J14: 0 | K14: 0 | L14: 0 | M14: 0 | N14: 1 | O14: 0 | P14: 0 | Q14: 0 | R14: 0 | S14: 0 | T14: 0 | U14: 0 | V14: 1 | W14: 0 | X14: 0 | Y14: 0 | Z14: 0 | AA14: 0 | AB14: 0 | AC14: 0 | AD14: 1 | AE14: 0 | AF14: 0 | AG14: 0 | AH14: 0 | AI14: 0 | AJ14: 0 | AK14: 0 | AL14: 1 | AM14: 0 | AN14: 0 | AO14: 0 | AP14: 0
B15: LV Generation NHH | C15: 0 | D15: 0 | E15: 0 | F15: 0 | H15: 0 | I15: 0 | J15: 0 | K15: 0 | L15: 0 | M15: 0 | N15: 0 | O15: 0 | P15: 0 | Q15: 0 | R15: 0 | S15: 0 | T15: 0 | U15: 0 | V15: 0 | W15: 0 | X15: 0 | Y15: 0 | Z15: 0 | AA15: 0 | AB15: 0 | AC15: 0 | AD15: 0 | AE15: 0 | AF15: 0 | AG15: 0 | AH15: 0 | AI15: 0 | AJ15: 0 | AK15: 0 | AL15: 0 | AM15: 0 | AN15: 0 | AO15: 0 | AP15: 0
B16: LV Sub Generation NHH | C16: 0 | D16: 0 | E16: 0 | F16: 0 | H16: 0 | I16: 0 | J16: 0 | K16: 0 | L16: 0 | M16: 0 | N16: 0 | O16: 0 | P16: 0 | Q16: 0 | R16: 0 | S16: 0 | T16: 0 | U16: 0 | V16: 0 | W16: 0 | X16: 0 | Y16: 0 | Z16: 0 | AA16: 0 | AB16: 0 | AC16: 0 | AD16: 0 | AE16: 0 | AF16: 0 | AG16: 0 | AH16: 0 | AI16: 0 | AJ16: 0 | AK16: 0 | AL16: 0 | AM16: 0 | AN16: 0 | AO16: 0 | AP16: 0
B17: LV Generation Intermittent | C17: 0 | D17: 0 | E17: 0 | F17: 0 | G17: 0 | H17: 0 | I17: 0 | J17: 0 | K17: 0 | L17: 0 | M17: 0 | N17: 0 | O17: 0 | P17: 0 | Q17: 0 | R17: 0 | S17: 0 | T17: 0 | U17: 0 | V17: 0 | W17: 0 | X17: 0 | Y17: 0 | Z17: 0 | AA17: 0 | AB17: 0 | AC17: 0 | AD17: 0 | AE17: 0 | AF17: 0 | AG17: 0 | AH17: 0 | AI17: 0 | AJ17: 0 | AK17: 0 | AL17: 0 | AM17: 0 | AN17: 0 | AO17: 0 | AP17: 0
B18: LV Generation Non-Intermittent | C18: 0 | D18: 0 | E18: 0 | F18: 0 | G18: 0 | H18: 0 | I18: 0 | J18: 0 | K18: 0 | L18: 0 | M18: 0 | N18: 0 | O18: 0 | P18: 0 | Q18: 0 | R18: 0 | S18: 0 | T18: 0 | U18: 0 | V18: 0 | W18: 0 | X18: 0 | Y18: 0 | Z18: 0 | AA18: 0 | AB18: 0 | AC18: 0 | AD18: 0 | AE18: 0 | AF18: 0 | AG18: 0 | AH18: 0 | AI18: 0 | AJ18: 0 | AK18: 0 | AL18: 0 | AM18: 0 | AN18: 0 | AO18: 0 | AP18: 0
B19: LV Sub Generation Intermittent | C19: 0 | D19: 0 | E19: 0 | F19: 0 | G19: 0 | H19: 0 | I19: 0 | J19: 0 | K19: 0 | L19: 0 | M19: 0 | N19: 0 | O19: 0 | P19: 0 | Q19: 0 | R19: 0 | S19: 0 | T19: 0 | U19: 0 | V19: 0 | W19: 0 | X19: 0 | Y19: 0 | Z19: 0 | AA19: 0 | AB19: 0 | AC19: 0 | AD19: 0 | AE19: 0 | AF19: 0 | AG19: 0 | AH19: 0 | AI19: 0 | AJ19: 0 | AK19: 0 | AL19: 0 | AM19: 0 | AN19: 0 | AO19: 0 | AP19: 0
B20: LV Sub Generation Non-Intermittent | C20: 0 | D20: 0 | E20: 0 | F20: 0 | G20: 0 | H20: 0 | I20: 0 | J20: 0 | K20: 0 | L20: 0 | M20: 0 | N20: 0 | O20: 0 | P20: 0 | Q20: 0 | R20: 0 | S20: 0 | T20: 0 | U20: 0 | V20: 0 | W20: 0 | X20: 0 | Y20: 0 | Z20: 0 | AA20: 0 | AB20: 0 | AC20: 0 | AD20: 0 | AE20: 0 | AF20: 0 | AG20: 0 | AH20: 0 | AI20: 0 | AJ20: 0 | AK20: 0 | AL20: 0 | AM20: 0 | AN20: 0 | AO20: 0 | AP20: 0
B22: 1026. Matrix of applicability of LV service models to unmetered tariffs
B24: Source: service models
B25: Proportion of service model involved in connecting load of 1 MWh/year | C25: ='CDCM Forecast Data'!$F$11 -> 2014/15 | K25: ='CDCM Forecast Data'!$G$11 -> 2015/16 | S25: ='CDCM Forecast Data'!$H$11 -> 2016/17 | AA25: ='CDCM Forecast Data'!$I$11 -> 2017/18 | AI25: ='CDCM Forecast Data'!$J$11 -> 2018/19
C26: LV service model 1 | D26: LV service model 2 | E26: LV service model 3 | F26: LV service model 4 | G26: LV service model 5 | H26: LV service model 6 | I26: LV service model 7 | J26: LV service model 8 | K26: LV service model 1 | L26: LV service model 2 | M26: LV service model 3 | N26: LV service model 4 | O26: LV service model 5 | P26: LV service model 6 | Q26: LV service model 7 | R26: LV service model 8 | S26: LV service model 1 | T26: LV service model 2 | U26: LV service model 3 | V26: LV service model 4 | W26: LV service model 5 | X26: LV service model 6 | Y26: LV service model 7 | Z26: LV service model 8 | AA26: LV service model 1 | AB26: LV service model 2 | AC26: LV service model 3 | AD26: LV service model 4 | AE26: LV service model 5 | AF26: LV service model 6 | AG26: LV service model 7 | AH26: LV service model 8 | AI26: LV service model 1 | AJ26: LV service model 2 | AK26: LV service model 3 | AL26: LV service model 4 | AM26: LV service model 5 | AN26: LV service model 6 | AO26: LV service model 7 | AP26: LV service model 8
B27: All LV unmetered tariffs | C27: 0 | D27: 0 | E27: 0 | F27: 0 | G27: 2.874 | H27: 0 | I27: 0 | J27: 0 | K27: 0 | L27: 0 | M27: 0 | N27: 0 | O27: 2.874359556 | P27: 0 | Q27: 0 | R27: 0 | S27: 0 | T27: 0 | U27: 0 | V27: 0 | W27: 2.874359556 | X27: 0 | Y27: 0 | Z27: 0 | AA27: 0 | AB27: 0 | AC27: 0 | AD27: 0 | AE27: 2.874359556 | AF27: 0 | AG27: 0 | AH27: 0 | AI27: 0 | AJ27: 0 | AK27: 0 | AL27: 0 | AM27: 2.874359556 | AN27: 0 | AO27: 0 | AP27: 0
B29: 1028. Matrix of applicability of HV service models to tariffs with fixed charges
C30: ='CDCM Forecast Data'!$F$11 -> 2014/15 | H30: =+'CDCM Forecast Data'!G11 -> 2015/16 | M30: =+'CDCM Forecast Data'!H11 -> 2016/17 | R30: =+'CDCM Forecast Data'!I11 -> 2017/18 | W30: =+'CDCM Forecast Data'!J11 -> 2018/19
C31: HV service model 1 | D31: HV service model 2 | E31: HV service model 3 | F31: HV service model 4 | G31: HV service model 5 | H31: HV service model 1 | I31: HV service model 2 | J31: HV service model 3 | K31: HV service model 4 | L31: HV service model 5 | M31: HV service model 1 | N31: HV service model 2 | O31: HV service model 3 | P31: HV service model 4 | Q31: HV service model 5 | R31: HV service model 1 | S31: HV service model 2 | T31: HV service model 3 | U31: HV service model 4 | V31: HV service model 5 | W31: HV service model 1 | X31: HV service model 2 | Y31: HV service model 3 | Z31: HV service model 4 | AA31: HV service model 5
B32: HV Medium Non-Domestic | D32: 1 | E32: 0 | H32: =C32 -> 0 | I32: 1 | J32: 0 | K32: 0 | L32: 0 | M32: 0 | N32: 1 | O32: 0 | P32: 0 | Q32: 0 | R32: 0 | S32: 1 | T32: 0 | U32: 0 | V32: 0 | W32: 0 | X32: =S32 -> 1 | Y32: 0 | Z32: 0 | AA32: 0
B33: HV HH Metered | D33: 1 | E33: 0 | H33: 0 | I33: 1 | J33: 0 | K33: 0 | L33: 0 | M33: 0 | N33: 1 | O33: 0 | P33: 0 | Q33: 0 | R33: 0 | S33: 1 | T33: 0 | U33: 0 | V33: 0 | W33: 0 | X33: 1 | Y33: 0 | Z33: 0 | AA33: 0
B34: HV Sub HH Metered | C34: 1 | E34: 0 | H34: 1 | I34: 0 | J34: 0 | K34: 0 | L34: 0 | M34: 1 | N34: 0 | O34: 0 | P34: 0 | Q34: 0 | R34: 1 | S34: 0 | T34: 0 | U34: 0 | V34: 0 | W34: 1 | X34: 0 | Y34: 0 | Z34: 0 | AA34: 0
B35: HV Generation Intermittent | C35: 0 | D35: 0 | E35: 1 | H35: 0 | I35: 0 | J35: 1 | K35: 0 | L35: 0 | M35: 0 | N35: 0 | O35: 1 | P35: 0 | Q35: 0 | R35: 0 | S35: 0 | T35: 1 | U35: 0 | V35: 0 | W35: 0 | X35: 0 | Y35: 1 | Z35: 0 | AA35: 0
B36: HV Generation Non-Intermittent | C36: 0 | D36: 0 | E36: 1 | H36: 0 | I36: 0 | J36: 1 | K36: 0 | L36: 0 | M36: 0 | N36: 0 | O36: 1 | P36: 0 | Q36: 0 | R36: 0 | S36: 0 | T36: 1 | U36: 0 | V36: 0 | W36: 0 | X36: 0 | Y36: 1 | Z36: 0 | AA36: 0
B37: HV Sub Generation Non-Intermittent | E37: 1 | H37: 0 | I37: 0 | J37: 1 | K37: 0 | L37: 0 | M37: 0 | N37: 0 | O37: 1 | P37: 0 | Q37: 0 | R37: 0 | S37: 0 | T37: 1 | U37: 0 | V37: 0 | W37: 0 | X37: 0 | Y37: 1 | Z37: 0 | AA37: 0
B38: HV Sub Generation Intermittent | E38: 1 | H38: 0 | I38: 0 | J38: 1 | K38: 0 | L38: 0 | M38: 0 | N38: 0 | O38: 1 | P38: 0 | Q38: 0 | R38: 0 | S38: 0 | T38: 1 | U38: 0 | V38: 0 | W38: 0 | X38: 0 | Y38: 1 | Z38: 0 | AA38: 0

Sheet CDCM Volume Forecasts
G3: Growth Rates (%)
G4: VOLUME - RED BAND | L4: VOLUME - AMBER BAND | P4: VOLUME - GREEN BAND | T4: CUSTOMER NUMBERS | X4: IMPORT CAPACITY | AB4: REACTIVE POWER
G5: Y | H5: Y + 1 | I5: Y + 2 | J5: Y + 3 | K5: Y + 4 | L5: Y + 1 | M5: Y + 2 | N5: Y + 3 | O5: Y + 4 | P5: Y + 1 | Q5: Y + 2 | R5: Y + 3 | S5: Y + 4 | T5: Y + 1 | U5: Y + 2 | V5: Y + 3 | W5: Y + 4 | X5: Y + 1 | Y5: Y + 2 | Z5: Y + 3 | AA5: Y + 4 | AB5: Y + 1 | AC5: Y + 2 | AD5: Y + 3 | AE5: Y + 4
E6: Customer Category | F6: Description | G6: =+'CDCM Forecast Data'!F11 -> 2014/15 | H6: =+'CDCM Forecast Data'!G11 -> 2015/16 | I6: =+'CDCM Forecast Data'!H11 -> 2016/17 | J6: =+'CDCM Forecast Data'!I11 -> 2017/18 | K6: =+'CDCM Forecast Data'!J11 -> 2018/19 | L6: =+H6 -> 2015/16 | M6: 2016/17 | N6: 2017/18 | O6: 2018/19 | P6: 2015/16 | Q6: 2016/17 | R6: 2017/18 | S6: 2018/19 | T6: 2015/16 | U6: 2016/17 | V6: 2017/18 | W6: 2018/19 | X6: 2015/16 | Y6: 2016/17 | Z6: 2017/18 | AA6: 2018/19 | AB6: 2015/16 | AC6: 2016/17 | AD6: 2017/18 | AE6: 2018/19 | AF6: Assumptions
E7: 1 | F7: NHH Dem | I7: 0.003219651759 | J7: 0.008819136795 | K7: 0.007302414263 | M7: 0.003219651759 | N7: 0.008819136795 | O7: 0.007302414263 | Q7: 0.003219651759 | R7: 0.008819136795 | S7: 0.007302414263 | U7: 0.0013 | V7: 0.0013 | W7: 0.0013 | Y7: 0 | Z7: 0 | AA7: 0 | AC7: 0 | AD7: 0 | AE7: 0
E8: 2 | F8: HH Dem | I8: 0.003219651759 | J8: 0.008819136795 | K8: 0.007302414263 | M8: 0.003219651759 | N8: 0.008819136795 | O8: 0.007302414263 | Q8: 0.003219651759 | R8: 0.008819136795 | S8: 0.007302414263 | U8: 0.0013 | V8: 0.0013 | W8: 0.0013 | Y8: 0 | Z8: 0 | AA8: 0 | AC8: 0 | AD8: 0 | AE8: 0
E9: 3 | F9: NHH Gen | I9: 0.003219651759 | J9: 0.008819136795 | K9: 0.007302414263 | M9: 0.003219651759 | N9: 0.008819136795 | O9: 0.007302414263 | Q9: 0.003219651759 | R9: 0.008819136795 | S9: 0.007302414263 | U9: 0.0013 | V9: 0.0013 | W9: 0.0013 | Y9: 0 | Z9: 0 | AA9: 0 | AC9: 0 | AD9: 0 | AE9: 0
E10: 4 | F10: HH Gen | I10: 0.003219651759 | J10: 0.008819136795 | K10: 0.007302414263 | M10: 0.003219651759 | N10: 0.008819136795 | O10: 0.007302414263 | Q10: 0.003219651759 | R10: 0.008819136795 | S10: 0.007302414263 | U10: 0.0013 | V10: 0.0013 | W10: 0.0013 | Y10: 0 | Z10: 0 | AA10: 0 | AC10: 0 | AD10: 0 | AE10: 0
E11: 5 | F11: DUMMY
E12: 6 | F12: DUMMY
E13: 7 | F13: DUMMY
E14: 8 | F14: DUMMY
E15: 9 | F15: DUMMY
E16: 10 | F16: DUMMY
H17: =+H19/G19-1 -> 0.007862728247 | I17: =+I19/H19-1 -> 0.003219651759 | J17: 0.008819136795 | K17: 0.007302414263
E18: Summary Data | F18: Year | G18: =G6 -> 2014/15 | H18: =H6 -> 2015/16 | I18: =I6 -> 2016/17 | J18: =J6 -> 2017/18 | K18: =K6 -> 2018/19
F19: Total Volume | G19: =SUM(D28:F121) -> 21587463.26 | H19: =SUM(J28:L121) -> 21757199.62 | I19: =SUM(P28:R121) -> 21827250.23 | J19: =SUM(V28:X121) -> 22019747.73 | K19: =SUM(AB28:AD121) -> 22180545.05
F20: No. of MPANs | G20: =SUM(G28:G121) -> 2381215.208 | H20: =SUM(M28:M121) -> 2388135.208 | I20: =SUM(S28:S121) -> 2391239.784 | J20: =SUM(Y28:Y121) -> 2394348.396 | K20: =SUM(AE28:AE121) -> 2397461.049
F21: Total Import Capacity | G21: =SUM(H28:H121) -> 3373421.241 | H21: =SUM(N28:N121) -> 3461267.535 | I21: =SUM(T28:T121) -> 3461267.535 | J21: =SUM(Z28:Z121) -> 3461267.535 | K21: =SUM(AF28:AF121) -> 3461267.535
F22: Total Reactive | G22: =SUM(I28:I121) -> 596904.5729 | H22: =SUM(O28:O121) -> 578825.5163 | I22: =SUM(U28:U121) -> 578825.5163 | J22: =SUM(AA28:AA121) -> 578825.5163 | K22: =SUM(AG28:AG121) -> 578825.5163
C25: 1053. Volume forecasts for the charging year: | D25: =G6& " - ("&G5&")" -> 2014/15 - (Y) | J25: =H6& " - ("&H5&")" -> 2015/16 - (Y + 1) | P25: =I6& " - ("&I5&")" -> 2016/17 - (Y + 2) | V25: =J6& " - ("&J5&")" -> 2017/18 - (Y + 3) | AB25: =K6& " - ("&K5&")" -> 2018/19 - (Y + 4)
B26: Customer Category | C26: Tariff | D26: Rate 1 units (MWh) | E26: Rate 2 units (MWh) | F26: Rate 3 units (MWh) | G26: MPANs | H26: Import capacity (kVA) | I26: Reactive power units (MVArh) | J26: Rate 1 units (MWh) | K26: Rate 2 units (MWh) | L26: Rate 3 units (MWh) | M26: MPANs | N26: Import capacity (kVA) | O26: Reactive power units (MVArh) | P26: Rate 1 units (MWh) | Q26: Rate 2 units (MWh) | R26: Rate 3 units (MWh) | S26: MPANs | T26: Import capacity (kVA) | U26: Reactive power units (MVArh) | V26: Rate 1 units (MWh) | W26: Rate 2 units (MWh) | X26: Rate 3 units (MWh) | Y26: MPANs | Z26: Import capacity (kVA) | AA26: Reactive power units (MVArh) | AB26: Rate 1 units (MWh) | AC26: Rate 2 units (MWh) | AD26: Rate 3 units (MWh) | AE26: MPANs | AF26: Import capacity (kVA) | AG26: Reactive power units (MVArh)
A27: 1 | C27: > Domestic Unrestricted
A28: =+A27+1 -> 2 | B28: 1 | C28: Domestic Unrestricted | D28: 7310848.614 | G28: 1982660.667 | J28: 7329379.551 | M28: 1987686.667 | P28: =IF(D28,((VLOOKUP($B28,$E$7:$AE$16,5)+1)*J28),) -> 7352977.601 | Q28: =IF(E28,((VLOOKUP($B28,$E$7:$AE$16,5+4)+1)*K28),) -> 0 | R28: =IF(F28,((VLOOKUP($B28,$E$7:$AE$16,5+8)+1)*L28),) -> 0 | S28: =IF(G28,((VLOOKUP($B28,$E$7:$AE$16,5+12)+1)*M28),) -> 1990270.659 | T28: =IF(H28,((VLOOKUP($B28,$E$7:$AE$16,5+16)+1)*N28),) -> 0 | U28: =IF(I28,((VLOOKUP($B28,$E$7:$AE$16,5+20)+1)*O28),) -> 0 | V28: =IF(D28,((VLOOKUP($B28,$E$7:$AE$16,6)+1)*P28),) -> 7417824.516 | W28: =IF(E28,((VLOOKUP($B28,$E$7:$AE$16,6+4)+1)*Q28),) -> 0 | X28: =IF(F28,((VLOOKUP($B28,$E$7:$AE$16,6+8)+1)*R28),) -> 0 | Y28: =IF(G28,((VLOOKUP($B28,$E$7:$AE$16,6+12)+1)*S28),) -> 1992858.011 | Z28: =IF(H28,((VLOOKUP($B28,$E$7:$AE$16,6+16)+1)*T28),) -> 0 | AA28: =IF(I28,((VLOOKUP($B28,$E$7:$AE$16,6+20)+1)*U28),) -> 0 | AB28: =IF(D28,((VLOOKUP($B28,$E$7:$AE$16,7)+1)*V28),) -> 7471992.544 | AC28: =IF(E28,((VLOOKUP($B28,$E$7:$AE$16,7+4)+1)*W28),) -> 0 | AD28: =IF(F28,((VLOOKUP($B28,$E$7:$AE$16,7+8)+1)*X28),) -> 0 | AE28: =IF(G28,((VLOOKUP($B28,$E$7:$AE$16,7+12)+1)*Y28),) -> 1995448.727 | AF28: =IF(H28,((VLOOKUP($B28,$E$7:$AE$16,7+16)+1)*Z28),) -> 0 | AG28: =IF(I28,((VLOOKUP($B28,$E$7:$AE$16,7+20)+1)*AA28),) -> 0
A29: =+A28+1 -> 3 | B29: 1 | C29: LDNO LV: Domestic Unrestricted | D29: 42441.48149 | G29: 13534.75 | J29: 52497.43846 | M29: 16768.75 | P29: =IF(D29,((VLOOKUP($B29,$E$7:$AE$16,5)+1)*J29),) -> 52666.46193 | Q29: 0 | R29: 0 | S29: 16790.54938 | T29: 0 | U29: 0 | V29: 53130.93466 | W29: 0 | X29: 0 | Y29: 16812.37709 | Z29: 0 | AA29: 0 | AB29: 53518.91876 | AC29: 0 | AD29: 0 | AE29: 16834.23318 | AF29: 0 | AG29: 0
A30: 4 | B30: 1 | C30: LDNO HV: Domestic Unrestricted | D30: 21927.41737 | G30: 6401.333333 | J30: 26117.65683 | M30: 7633.333333 | P30: 26201.74659 | Q30: 0 | R30: 0 | S30: 7643.256667 | T30: 0 | U30: 0 | V30: 26432.82338 | W30: 0 | X30: 0 | Y30: 7653.1929 | Z30: 0 | AA30: 0 | AB30: 26625.84681 | AC30: 0 | AD30: 0 | AE30: 7663.142051 | AF30: 0 | AG30: 0
A31: 5 | C31: > Domestic Two Rate
A32: 6 | B32: 1 | C32: Domestic Two Rate | D32: 666975.3308 | E32: 559774.7831 | G32: 189883.6667 | J32: 651680.0811 | K32: 546915.8318 | M32: 185533.6667 | P32: 653778.264 | Q32: 548676.7103 | R32: 0 | S32: 185774.8604 | T32: 0 | U32: 0 | V32: 659544.024 | W32: 553515.5653 | X32: 0 | Y32: 186016.3678 | Z32: 0 | AA32: 0 | AB32: 664360.2877 | AC32: 557557.5652 | AD32: 0 | AE32: 186258.189 | AF32: 0 | AG32: 0
A33: 7 | B33: 1 | C33: LDNO LV: Domestic Two Rate | D33: 497.8711283 | E33: 294.7756701 | G33: 228.125 | J33: 658.7410187 | K33: 388.281498 | M33: 303.125 | P33: 660.8619354 | Q33: 389.5316292 | R33: 0 | S33: 303.5190625 | T33: 0 | U33: 0 | V33: 666.6901672 | W33: 392.966962 | X33: 0 | Y33: 303.9136373 | Z33: 0 | AA33: 0 | AB33: 671.558615 | AC33: 395.8365695 | AD33: 0 | AE33: 304.308725 | AF33: 0 | AG33: 0
A34: 8 | B34: 1 | C34: LDNO HV: Domestic Two Rate | D34: 2931.741403 | E34: 2733.709809 | G34: 988.75 | J34: 3616.958814 | K34: 3363.506876 | M34: 1222.75 | P34: 3628.604161 | Q34: 3374.336197 | R34: 0 | S34: 1224.339575 | T34: 0 | U34: 0 | V34: 3660.605318 | W34: 3404.09493 | X34: 0 | Y34: 1225.931216 | Z34: 0 | AA34: 0 | AB34: 3687.336574 | AC34: 3428.953041 | AD34: 0 | AE34: 1227.524927 | AF34: 0 | AG34: 0
A35: 9 | C35: > Domestic Off Peak (related MPAN)
A36: 10 | B36: 1 | C36: Domestic Off Peak (related MPAN) | D36: 29439.1463 | G36: 7040.916667 | J36: 26261.97741 | M36: 6290.916667 | P36: 26346.53184 | Q36: 0 | R36: 0 | S36: 6299.094858 | T36: 0 | U36: 0 | V36: 26578.88551 | W36: 0 | X36: 0 | Y36: 6307.283682 | Z36: 0 | AA36: 0 | AB36: 26772.97554 | AC36: 0 | AD36: 0 | AE36: 6315.48315 | AF36: 0 | AG36: 0
A37: 11 | B37: 1 | C37: LDNO LV: Domestic Off Peak (related MPAN) | D37: 0 | G37: 0 | J37: 0 | M37: 0 | P37: 0 | Q37: 0 | R37: 0 | S37: 0 | T37: 0 | U37: 0 | V37: 0 | W37: 0 | X37: 0 | Y37: 0 | Z37: 0 | AA37: 0 | AB37: 0 | AC37: 0 | AD37: 0 | AE37: 0 | AF37: 0 | AG37: 0
A38: 12 | B38: 1 | C38: LDNO HV: Domestic Off Peak (related MPAN) | D38: 0 | G38: 0 | J38: 0 | M38: 0 | P38: 0 | Q38: 0 | R38: 0 | S38: 0 | T38: 0 | U38: 0 | V38: 0 | W38: 0 | X38: 0 | Y38: 0 | Z38: 0 | AA38: 0 | AB38: 0 | AC38: 0 | AD38: 0 | AE38: 0 | AF38: 0 | AG38: 0
A39: 13 | C39: > Small Non Domestic Unrestricted
A40: 14 | B40: 1 | C40: Small Non Domestic Unrestricted | D40: 1792202.595 | G40: 122538.8333 | J40: 1820609.267 | M40: 124481.8333 | P40: 1826470.995 | Q40: 0 | R40: 0 | S40: 124643.6597 | T40: 0 | U40: 0 | V40: 1842578.892 | W40: 0 | X40: 0 | Y40: 124805.6965 | Z40: 0 | AA40: 0 | AB40: 1856034.167 | AC40: 0 | AD40: 0 | AE40: 124967.9439 | AF40: 0 | AG40: 0
A41: 15 | B41: 1 | C41: LDNO LV: Small Non Domestic Unrestricted | D41: 3130.561409 | G41: 292.75 | J41: 3577.010631 | M41: 334.75 | P41: 3588.527359 | Q41: 0 | R41: 0 | S41: 335.185175 | T41: 0 | U41: 0 | V41: 3620.175073 | W41: 0 | X41: 0 | Y41: 335.6209157 | Z41: 0 | AA41: 0 | AB41: 3646.611091 | AC41: 0 | AD41: 0 | AE41: 336.0572229 | AF41: 0 | AG41: 0
A42: 16 | B42: 1 | C42: LDNO HV: Small Non Domestic Unrestricted | D42: 3062.85678 | G42: 258.7916667 | J42: 3568.130116 | M42: 301.7916667 | P42: 3579.618252 | Q42: 0 | R42: 0 | S42: 302.1839958 | T42: 0 | U42: 0 | V42: 3611.187395 | W42: 0 | X42: 0 | Y42: 302.576835 | Z42: 0 | AA42: 0 | AB42: 3637.557782 | AC42: 0 | AD42: 0 | AE42: 302.9701849 | AF42: 0 | AG42: 0
A43: 17 | C43: > Small Non Domestic Two Rate
A44: 18 | B44: 1 | C44: Small Non Domestic Two Rate | D44: 579744.714 | E44: 220078.7443 | G44: 31513.58333 | J44: 585704.4964 | K44: 222340.2683 | M44: 31837.58333 | P44: 587590.2609 | Q44: 223056.1265 | R44: 0 | S44: 31878.97219 | T44: 0 | U44: 0 | V44: 592772.2998 | W44: 225023.289 | X44: 0 | Y44: 31920.41486 | Z44: 0 | AA44: 0 | AB44: 597100.9687 | AC44: 226666.5023 | AD44: 0 | AE44: 31961.91139 | AF44: 0 | AG44: 0
A45: 19 | B45: 1 | C45: LDNO LV: Small Non Domestic Two Rate | D45: 12.22665689 | E45: 6.504895281 | G45: 5.041666667 | J45: 14.65203262 | K45: 7.766767189 | M45: 6.041666667 | P45: 14.69920706 | Q45: 7.791773475 | R45: 0 | S45: 6.049520833 | T45: 0 | U45: 0 | V45: 14.82884138 | W45: 7.860490191 | X45: 0 | Y45: 6.05738521 | Z45: 0 | AA45: 0 | AB45: 14.93712772 | AC45: 7.917890747 | AD45: 0 | AE45: 6.065259811 | AF45: 0 | AG45: 0
A46: 20 | B46: 1 | C46: LDNO HV: Small Non Domestic Two Rate | D46: 441.3333353 | E46: 184.0111858 | G46: 10.04166667 | J46: 485.093939 | K46: 202.2070846 | M46: 11.04166667 | P46: 486.6557726 | Q46: 202.858121 | R46: 0 | S46: 11.05602083 | T46: 0 | U46: 0 | V46: 490.9476564 | W46: 204.6471545 | X46: 0 | Y46: 11.07039366 | Z46: 0 | AA46: 0 | AB46: 494.5327596 | AC46: 206.1415728 | AD46: 0 | AE46: 11.08478517 | AF46: 0 | AG46: 0
A47: 21 | C47: > Small Non Domestic Off Peak (related MPAN) | P47: 0 | Q47: 0 | R47: 0 | S47: 0 | T47: 0 | U47: 0 | V47: 0 | W47: 0 | X47: 0 | Y47: 0 | Z47: 0 | AA47: 0 | AB47: 0 | AC47: 0 | AD47: 0 | AE47: 0 | AF47: 0 | AG47: 0
A48: 22 | B48: 1 | C48: Small Non Domestic Off Peak (related MPAN) | D48: 28000.72981 | G48: 4216.416667 | J48: 25496.40584 | M48: 3842.416667 | P48: 25578.49539 | Q48: 0 | R48: 0 | S48: 3847.411808 | T48: 0 | U48: 0 | V48: 25804.07564 | W48: 0 | X48: 0 | Y48: 3852.413444 | Z48: 0 | AA48: 0 | AB48: 25992.50769 | AC48: 0 | AD48: 0 | AE48: 3857.421581 | AF48: 0 | AG48: 0
A49: 23 | B49: 1 | C49: LDNO LV: Small Non Domestic Off Peak (related MPAN) | D49: 0 | G49: 0 | J49: 0 | M49: 0 | P49: 0 | Q49: 0 | R49: 0 | S49: 0 | T49: 0 | U49: 0 | V49: 0 | W49: 0 | X49: 0 | Y49: 0 | Z49: 0 | AA49: 0 | AB49: 0 | AC49: 0 | AD49: 0 | AE49: 0 | AF49: 0 | AG49: 0
A50: 24 | B50: 1 | C50: LDNO HV: Small Non Domestic Off Peak (related MPAN) | D50: 0 | G50: 0 | J50: 0 | M50: 0 | P50: 0 | Q50: 0 | R50: 0 | S50: 0 | T50: 0 | U50: 0 | V50: 0 | W50: 0 | X50: 0 | Y50: 0 | Z50: 0 | AA50: 0 | AB50: 0 | AC50: 0 | AD50: 0 | AE50: 0 | AF50: 0 | AG50: 0
A51: 25 | C51: > LV Medium Non-Domestic | P51: 0 | Q51: 0 | R51: 0 | S51: 0 | T51: 0 | U51: 0 | V51: 0 | W51: 0 | X51: 0 | Y51: 0 | Z51: 0 | AA51: 0 | AB51: 0 | AC51: 0 | AD51: 0 | AE51: 0 | AF51: 0 | AG51: 0
A52: 26 | B52: 1 | C52: LV Medium Non-Domestic | D52: 1006480.758 | E52: 244119.688 | G52: 11375.16667 | J52: 1012585.576 | K52: 245600.4074 | M52: 11444.16667 | P52: 1015845.749 | Q52: 246391.1552 | R52: 0 | S52: 11459.04408 | T52: 0 | U52: 0 | V52: 1024804.631 | W52: 248564.1125 | X52: 0 | Y52: 11473.94084 | Z52: 0 | AA52: 0 | AB52: 1032288.179 | AC52: 250379.2306 | AD52: 0 | AE52: 11488.85696 | AF52: 0 | AG52: 0
A53: 27 | B53: 1 | C53: LDNO LV: LV Medium Non-Domestic | D53: 380.751 | E53: 138.564 | G53: 1 | J53: 380.751 | K53: 138.564 | M53: 1 | P53: 381.9768856 | Q53: 139.0101278 | R53: 0 | S53: 1.0013 | T53: 0 | U53: 0 | V53: 385.345592 | W53: 140.2360772 | X53: 0 | Y53: 1.00260169 | Z53: 0 | AA53: 0 | AB53: 388.1595452 | AC53: 141.2601391 | AD53: 0 | AE53: 1.003905072 | AF53: 0 | AG53: 0
A54: 28 | B54: 1 | C54: LDNO HV: LV Medium Non-Domestic | D54: 285.5460665 | E54: 67.96435429 | G54: 4.916666667 | J54: 170.5463249 | K54: 40.6025457 | M54: 2.916666667 | P54: 171.0954247 | Q54: 40.73327176 | R54: 0 | S54: 2.920458333 | T54: 0 | U54: 0 | V54: 172.6043387 | W54: 41.09250406 | X54: 0 | Y54: 2.924254929 | Z54: 0 | AA54: 0 | AB54: 173.864767 | AC54: 41.39257854 | AD54: 0 | AE54: 2.928056461 | AF54: 0 | AG54: 0
A55: 29 | C55: > LV Sub Medium Non-Domestic | P55: 0 | Q55: 0 | R55: 0 | S55: 0 | T55: 0 | U55: 0 | V55: 0 | W55: 0 | X55: 0 | Y55: 0 | Z55: 0 | AA55: 0 | AB55: 0 | AC55: 0 | AD55: 0 | AE55: 0 | AF55: 0 | AG55: 0
A56: 30 | B56: 1 | C56: LV Sub Medium Non-Domestic | D56: 34752.97721 | E56: 9437.524467 | G56: 349.75 | J56: 33858.00223 | K56: 9194.387278 | M56: 340.75 | P56: 33967.01321 | Q56: 9223.990003 | R56: 0 | S56: 341.192975 | T56: 0 | U56: 0 | V56: 34266.57294 | W56: 9305.337633 | X56: 0 | Y56: 341.6365259 | Z56: 0 | AA56: 0 | AB56: 34516.80165 | AC56: 9373.289063 | AD56: 0 | AE56: 342.0806534 | AF56: 0 | AG56: 0
A57: 31 | C57: > HV Medium Non-Domestic | P57: 0 | Q57: 0 | R57: 0 | S57: 0 | T57: 0 | U57: 0 | V57: 0 | W57: 0 | X57: 0 | Y57: 0 | Z57: 0 | AA57: 0 | AB57: 0 | AC57: 0 | AD57: 0 | AE57: 0 | AF57: 0 | AG57: 0
A58: 32 | B58: 1 | C58: HV Medium Non-Domestic | D58: 8128.150366 | E58: 2466.670026 | G58: 59.66666667 | J58: 7309.445882 | K58: 2218.060427 | M58: 53.66666667 | P58: 7332.979752 | Q58: 2225.201809 | R58: 0 | S58: 53.73643333 | T58: 0 | U58: 0 | V58: 7397.650304 | W58: 2244.826169 | X58: 0 | Y58: 53.8062907 | Z58: 0 | AA58: 0 | AB58: 7451.671011 | AC58: 2261.218819 | AD58: 0 | AE58: 53.87623887 | AF58: 0 | AG58: 0
A59: 33 | C59: > LV HH Metered | P59: 0 | Q59: 0 | R59: 0 | S59: 0 | T59: 0 | U59: 0 | V59: 0 | W59: 0 | X59: 0 | Y59: 0 | Z59: 0 | AA59: 0 | AB59: 0 | AC59: 0 | AD59: 0 | AE59: 0 | AF59: 0 | AG59: 0
A60: 34 | B60: 2 | C60: LV HH Metered | D60: 115258.6789 | E60: 659155.1153 | F60: 811403.0382 | G60: 5112.583333 | H60: 872923.868 | I60: 129514.4694 | J60: 177312.1196 | K60: 632634.5769 | L60: 812462.3703 | M60: 5230.583333 | N60: 934999.2089 | O60: 130808.537 | P60: 177883.0028 | Q60: 634671.4399 | R60: 815078.2162 | S60: 5237.383092 | T60: 934999.2089 | U60: 130808.537 | V60: 179451.7774 | W60: 640268.6941 | X60: 822266.5025 | Y60: 5244.19169 | Z60: 934999.2089 | AA60: 130808.537 | AB60: 180762.2086 | AC60: 644944.2014 | AD60: 828271.0331 | AE60: 5251.009139 | AF60: 934999.2089 | AG60: 130808.537
A61: 35 | B61: 2 | C61: LDNO LV: LV HH Metered | D61: 0 | E61: 0 | F61: 0 | G61: 0 | H61: 0 | I61: 0 | J61: 0 | K61: 0 | L61: 0 | M61: 0 | N61: 0 | O61: 0 | P61: 0 | Q61: 0 | R61: 0 | S61: 0 | T61: 0 | U61: 0 | V61: 0 | W61: 0 | X61: 0 | Y61: 0 | Z61: 0 | AA61: 0 | AB61: 0 | AC61: 0 | AD61: 0 | AE61: 0 | AF61: 0 | AG61: 0
A62: 36 | B62: 2 | C62: LDNO HV: LV HH Metered | D62: 0 | E62: 0 | F62: 0 | G62: 0 | H62: 0 | I62: 0 | J62: 0 | K62: 0 | L62: 0 | M62: 0 | N62: 0 | O62: 0 | P62: 0 | Q62: 0 | R62: 0 | S62: 0 | T62: 0 | U62: 0 | V62: 0 | W62: 0 | X62: 0 | Y62: 0 | Z62: 0 | AA62: 0 | AB62: 0 | AC62: 0 | AD62: 0 | AE62: 0 | AF62: 0 | AG62: 0
A63: 37 | C63: > LV Sub HH Metered | P63: 0 | Q63: 0 | R63: 0 | S63: 0 | T63: 0 | U63: 0 | V63: 0 | W63: 0 | X63: 0 | Y63: 0 | Z63: 0 | AA63: 0 | AB63: 0 | AC63: 0 | AD63: 0 | AE63: 0 | AF63: 0 | AG63: 0
A64: 38 | B64: 2 | C64: LV Sub HH Metered | D64: 91725.84632 | E64: 539168.885 | F64: 683989.5085 | G64: 1832 | H64: 641914.1736 | I64: 91483.06762 | J64: 138736.8271 | K64: 505580.3872 | L64: 672002.5077 | M64: 1834 | N64: 644485.0524 | O64: 86101.58715 | P64: 139183.5114 | Q64: 507208.18 | R64: 674166.1218 | S64: 1836.3842 | T64: 644485.0524 | U64: 86101.58715 | V64: 140410.9898 | W64: 511681.3183 | X64: 680111.685 | Y64: 1838.771499 | Z64: 644485.0524 | AA64: 86101.58715 | AB64: 141436.329 | AC64: 515417.8273 | AD64: 685078.1423 | AE64: 1841.161902 | AF64: 644485.0524 | AG64: 86101.58715
A65: 39 | B65: 2 | C65: LDNO HV: LV Sub HH Metered | D65: 0 | E65: 0 | F65: 0 | G65: 0 | H65: 0 | I65: 0 | J65: 0 | K65: 0 | L65: 0 | M65: 0 | N65: 0 | O65: 0 | P65: 0 | Q65: 0 | R65: 0 | S65: 0 | T65: 0 | U65: 0 | V65: 0 | W65: 0 | X65: 0 | Y65: 0 | Z65: 0 | AA65: 0 | AB65: 0 | AC65: 0 | AD65: 0 | AE65: 0 | AF65: 0 | AG65: 0
A66: 40 | C66: > HV HH Metered | P66: 0 | Q66: 0 | R66: 0 | S66: 0 | T66: 0 | U66: 0 | V66: 0 | W66: 0 | X66: 0 | Y66: 0 | Z66: 0 | AA66: 0 | AB66: 0 | AC66: 0 | AD66: 0 | AE66: 0 | AF66: 0 | AG66: 0
A67: 41 | B67: 2 | C67: HV HH Metered | D67: 339310.2281 | E67: 1863729.991 | F67: 2910206.279 | G67: 1979 | H67: 1858583.199 | I67: 356232.7907 | J67: 513227.0151 | K67: 1750370.988 | L67: 2872901.716 | M67: 1988 | N67: 1881783.274 | O67: 341658.9213 | P67: 514879.4274 | Q67: 1756006.573 | R67: 2882151.459 | S67: 1990.5844 | T67: 1881783.274 | U67: 341658.9213 | V67: 519420.2195 | W67: 1771493.035 | X67: 2907569.547 | Y67: 1993.17216 | Z67: 1881783.274 | AA67: 341658.9213 | AB67: 523213.2411 | AC67: 1784429.211 | AD67: 2928801.825 | AE67: 1995.763284 | AF67: 1881783.274 | AG67: 341658.9213
A68: 42 | B68: 2 | C68: LDNO HV: HV HH Metered | D68: 0 | E68: 0 | F68: 0 | G68: 0 | H68: 0 | I68: 0 | J68: 0 | K68: 0 | L68: 0 | M68: 0 | N68: 0 | O68: 0 | P68: 0 | Q68: 0 | R68: 0 | S68: 0 | T68: 0 | U68: 0 | V68: 0 | W68: 0 | X68: 0 | Y68: 0 | Z68: 0 | AA68: 0 | AB68: 0 | AC68: 0 | AD68: 0 | AE68: 0 | AF68: 0 | AG68: 0
A69: 43 | C69: > HV Sub HH Metered | P69: 0 | Q69: 0 | R69: 0 | S69: 0 | T69: 0 | U69: 0 | V69: 0 | W69: 0 | X69: 0 | Y69: 0 | Z69: 0 | AA69: 0 | AB69: 0 | AC69: 0 | AD69: 0 | AE69: 0 | AF69: 0 | AG69: 0
A70: 44 | B70: 2 | C70: HV Sub HH Metered | D70: 0 | E70: 0 | F70: 0 | G70: 0 | H70: 0 | I70: 0 | J70: 0 | K70: 0 | L70: 0 | M70: 0 | N70: 0 | O70: 0 | P70: 0 | Q70: 0 | R70: 0 | S70: 0 | T70: 0 | U70: 0 | V70: 0 | W70: 0 | X70: 0 | Y70: 0 | Z70: 0 | AA70: 0 | AB70: 0 | AC70: 0 | AD70: 0 | AE70: 0 | AF70: 0 | AG70: 0
A71: 45 | C71: > NHH UMS category A | P71: 0 | Q71: 0 | R71: 0 | S71: 0 | T71: 0 | U71: 0 | V71: 0 | W71: 0 | X71: 0 | Y71: 0 | Z71: 0 | AA71: 0 | AB71: 0 | AC71: 0 | AD71: 0 | AE71: 0 | AF71: 0 | AG71: 0
A72: 46 | B72: 1 | C72: NHH UMS category A | D72: 32810.2781 | G72: 246 | J72: 27984.74651 | M72: 246 | P72: 28074.84765 | Q72: 0 | R72: 0 | S72: 246.3198 | T72: 0 | U72: 0 | V72: 28322.44357 | W72: 0 | X72: 0 | Y72: 246.6400157 | Z72: 0 | AA72: 0 | AB72: 28529.26578 | AC72: 0 | AD72: 0 | AE72: 246.9606478 | AF72: 0 | AG72: 0
A73: 47 | B73: 1 | C73: LDNO LV: NHH UMS category A | P73: 0 | Q73: 0 | R73: 0 | S73: 0 | T73: 0 | U73: 0 | V73: 0 | W73: 0 | X73: 0 | Y73: 0 | Z73: 0 | AA73: 0 | AB73: 0 | AC73: 0 | AD73: 0 | AE73: 0 | AF73: 0 | AG73: 0
A74: 48 | B74: 1 | C74: LDNO HV: NHH UMS category A | P74: 0 | Q74: 0 | R74: 0 | S74: 0 | T74: 0 | U74: 0 | V74: 0 | W74: 0 | X74: 0 | Y74: 0 | Z74: 0 | AA74: 0 | AB74: 0 | AC74: 0 | AD74: 0 | AE74: 0 | AF74: 0 | AG74: 0
A75: 49 | C75: > NHH UMS category B | P75: 0 | Q75: 0 | R75: 0 | S75: 0 | T75: 0 | U75: 0 | V75: 0 | W75: 0 | X75: 0 | Y75: 0 | Z75: 0 | AA75: 0 | AB75: 0 | AC75: 0 | AD75: 0 | AE75: 0 | AF75: 0 | AG75: 0
A76: 50 | B76: 1 | C76: NHH UMS category B | D76: 10179.26841 | G76: 303 | J76: 8682.164935 | M76: 303 | P76: 8710.118482 | Q76: 0 | R76: 0 | S76: 303.3939 | T76: 0 | U76: 0 | V76: 8786.934209 | W76: 0 | X76: 0 | Y76: 303.7883121 | Z76: 0 | AA76: 0 | AB76: 8851.100042 | AC76: 0 | AD76: 0 | AE76: 304.1832369 | AF76: 0 | AG76: 0
A77: 51 | B77: 1 | C77: LDNO LV: NHH UMS category B | D77: 182.0823984 | G77: 52.54166667 | J77: 226.7141991 | M77: 65.54166667 | P77: 227.4441399 | Q77: 0 | R77: 0 | S77: 65.62687083 | T77: 0 | U77: 0 | V77: 229.4500009 | W77: 0 | X77: 0 | Y77: 65.71218577 | Z77: 0 | AA77: 0 | AB77: 231.1255398 | AC77: 0 | AD77: 0 | AE77: 65.79761161 | AF77: 0 | AG77: 0
A78: 52 | B78: 1 | C78: LDNO HV: NHH UMS category B | D78: 91.981 | G78: 12 | J78: 91.981 | M78: 12 | P78: 92.27714679 | Q78: 0 | R78: 0 | S78: 12.0156 | T78: 0 | U78: 0 | V78: 93.09095157 | W78: 0 | X78: 0 | Y78: 12.03122028 | Z78: 0 | AA78: 0 | AB78: 93.77074026 | AC78: 0 | AD78: 0 | AE78: 12.04686087 | AF78: 0 | AG78: 0
A79: 53 | C79: > NHH UMS category C | P79: 0 | Q79: 0 | R79: 0 | S79: 0 | T79: 0 | U79: 0 | V79: 0 | W79: 0 | X79: 0 | Y79: 0 | Z79: 0 | AA79: 0 | AB79: 0 | AC79: 0 | AD79: 0 | AE79: 0 | AF79: 0 | AG79: 0
A80: 54 | B80: 1 | C80: NHH UMS category C | D80: 0.8598081262 | G80: 1 | J80: 0.7333528959 | M80: 1 | P80: 0.7357140369 | Q80: 0 | R80: 0 | S80: 1.0013 | T80: 0 | U80: 0 | V80: 0.7422023996 | W80: 0 | X80: 0 | Y80: 1.00260169 | Z80: 0 | AA80: 0 | AB80: 0.747622269 | AC80: 0 | AD80: 0 | AE80: 1.003905072 | AF80: 0 | AG80: 0
A81: 55 | B81: 1 | C81: LDNO LV: NHH UMS category C | P81: 0 | Q81: 0 | R81: 0 | S81: 0 | T81: 0 | U81: 0 | V81: 0 | W81: 0 | X81: 0 | Y81: 0 | Z81: 0 | AA81: 0 | AB81: 0 | AC81: 0 | AD81: 0 | AE81: 0 | AF81: 0 | AG81: 0
A82: 56 | B82: 1 | C82: LDNO HV: NHH UMS category C | P82: 0 | Q82: 0 | R82: 0 | S82: 0 | T82: 0 | U82: 0 | V82: 0 | W82: 0 | X82: 0 | Y82: 0 | Z82: 0 | AA82: 0 | AB82: 0 | AC82: 0 | AD82: 0 | AE82: 0 | AF82: 0 | AG82: 0
A83: 57 | C83: > NHH UMS category D | P83: =IF(D83,((VLOOKUP($B83,$E$7:$AE$16,5)+1)*J83),) -> 0 | Q83: =IF(E83,((VLOOKUP($B83,$E$7:$AE$16,5+4)+1)*K83),) -> 0 | R83: =IF(F83,((VLOOKUP($B83,$E$7:$AE$16,5+8)+1)*L83),) -> 0 | S83: =IF(G83,((VLOOKUP($B83,$E$7:$AE$16,5+12)+1)*M83),) -> 0 | T83: =IF(H83,((VLOOKUP($B83,$E$7:$AE$16,5+16)+1)*N83),) -> 0 | U83: =IF(I83,((VLOOKUP($B83,$E$7:$AE$16,5+20)+1)*O83),) -> 0 | V83: =IF(D83,((VLOOKUP($B83,$E$7:$AE$16,6)+1)*P83),) -> 0 | W83: =IF(E83,((VLOOKUP($B83,$E$7:$AE$16,6+4)+1)*Q83),) -> 0 | X83: =IF(F83,((VLOOKUP($B83,$E$7:$AE$16,6+8)+1)*R83),) -> 0 | Y83: =IF(G83,((VLOOKUP($B83,$E$7:$AE$16,6+12)+1)*S83),) -> 0 | Z83: =IF(H83,((VLOOKUP($B83,$E$7:$AE$16,6+16)+1)*T83),) -> 0 | AA83: =IF(I83,((VLOOKUP($B83,$E$7:$AE$16,6+20)+1)*U83),) -> 0 | AB83: =IF(D83,((VLOOKUP($B83,$E$7:$AE$16,7)+1)*V83),) -> 0 | AC83: =IF(E83,((VLOOKUP($B83,$E$7:$AE$16,7+4)+1)*W83),) -> 0 | AD83: =IF(F83,((VLOOKUP($B83,$E$7:$AE$16,7+8)+1)*X83),) -> 0 | AE83: =IF(G83,((VLOOKUP($B83,$E$7:$AE$16,7+12)+1)*Y83),) -> 0 | AF83: =IF(H83,((VLOOKUP($B83,$E$7:$AE$16,7+16)+1)*Z83),) -> 0 | AG83: =IF(I83,((VLOOKUP($B83,$E$7:$AE$16,7+20)+1)*AA83),) -> 0
A84: 58 | B84: 1 | C84: NHH UMS category D | G84: 0 | M84: 0 | P84: =IF(D84,((VLOOKUP($B84,$E$7:$AE$16,5)+1)*J84),) -> 0 | Q84: =IF(E84,((VLOOKUP($B84,$E$7:$AE$16,5+4)+1)*K84),) -> 0 | R84: =IF(F84,((VLOOKUP($B84,$E$7:$AE$16,5+8)+1)*L84),) -> 0 | S84: =IF(G84,((VLOOKUP($B84,$E$7:$AE$16,5+12)+1)*M84),) -> 0 | T84: =IF(H84,((VLOOKUP($B84,$E$7:$AE$16,5+16)+1)*N84),) -> 0 | U84: =IF(I84,((VLOOKUP($B84,$E$7:$AE$16,5+20)+1)*O84),) -> 0 | V84: =IF(D84,((VLOOKUP($B84,$E$7:$AE$16,6)+1)*P84),) -> 0 | W84: =IF(E84,((VLOOKUP($B84,$E$7:$AE$16,6+4)+1)*Q84),) -> 0 | X84: =IF(F84,((VLOOKUP($B84,$E$7:$AE$16,6+8)+1)*R84),) -> 0 | Y84: =IF(G84,((VLOOKUP($B84,$E$7:$AE$16,6+12)+1)*S84),) -> 0 | Z84: =IF(H84,((VLOOKUP($B84,$E$7:$AE$16,6+16)+1)*T84),) -> 0 | AA84: =IF(I84,((VLOOKUP($B84,$E$7:$AE$16,6+20)+1)*U84),) -> 0 | AB84: =IF(D84,((VLOOKUP($B84,$E$7:$AE$16,7)+1)*V84),) -> 0 | AC84: =IF(E84,((VLOOKUP($B84,$E$7:$AE$16,7+4)+1)*W84),) -> 0 | AD84: =IF(F84,((VLOOKUP($B84,$E$7:$AE$16,7+8)+1)*X84),) -> 0 | AE84: =IF(G84,((VLOOKUP($B84,$E$7:$AE$16,7+12)+1)*Y84),) -> 0 | AF84: =IF(H84,((VLOOKUP($B84,$E$7:$AE$16,7+16)+1)*Z84),) -> 0 | AG84: =IF(I84,((VLOOKUP($B84,$E$7:$AE$16,7+20)+1)*AA84),) -> 0
A85: 59 | B85: 1 | C85: LDNO LV: NHH UMS category D | P85: =IF(D85,((VLOOKUP($B85,$E$7:$AE$16,5)+1)*J85),) -> 0 | Q85: =IF(E85,((VLOOKUP($B85,$E$7:$AE$16,5+4)+1)*K85),) -> 0 | R85: =IF(F85,((VLOOKUP($B85,$E$7:$AE$16,5+8)+1)*L85),) -> 0 | S85: =IF(G85,((VLOOKUP($B85,$E$7:$AE$16,5+12)+1)*M85),) -> 0 | T85: =IF(H85,((VLOOKUP($B85,$E$7:$AE$16,5+16)+1)*N85),) -> 0 | U85: =IF(I85,((VLOOKUP($B85,$E$7:$AE$16,5+20)+1)*O85),) -> 0 | V85: =IF(D85,((VLOOKUP($B85,$E$7:$AE$16,6)+1)*P85),) -> 0 | W85: =IF(E85,((VLOOKUP($B85,$E$7:$AE$16,6+4)+1)*Q85),) -> 0 | X85: =IF(F85,((VLOOKUP($B85,$E$7:$AE$16,6+8)+1)*R85),) -> 0 | Y85: =IF(G85,((VLOOKUP($B85,$E$7:$AE$16,6+12)+1)*S85),) -> 0 | Z85: =IF(H85,((VLOOKUP($B85,$E$7:$AE$16,6+16)+1)*T85),) -> 0 | AA85: =IF(I85,((VLOOKUP($B85,$E$7:$AE$16,6+20)+1)*U85),) -> 0 | AB85: =IF(D85,((VLOOKUP($B85,$E$7:$AE$16,7)+1)*V85),) -> 0 | AC85: =IF(E85,((VLOOKUP($B85,$E$7:$AE$16,7+4)+1)*W85),) -> 0 | AD85: =IF(F85,((VLOOKUP($B85,$E$7:$AE$16,7+8)+1)*X85),) -> 0 | AE85: =IF(G85,((VLOOKUP($B85,$E$7:$AE$16,7+12)+1)*Y85),) -> 0 | AF85: =IF(H85,((VLOOKUP($B85,$E$7:$AE$16,7+16)+1)*Z85),) -> 0 | AG85: =IF(I85,((VLOOKUP($B85,$E$7:$AE$16,7+20)+1)*AA85),) -> 0
A86: 60 | B86: 1 | C86: LDNO HV: NHH UMS category D | P86: =IF(D86,((VLOOKUP($B86,$E$7:$AE$16,5)+1)*J86),) -> 0 | Q86: =IF(E86,((VLOOKUP($B86,$E$7:$AE$16,5+4)+1)*K86),) -> 0 | R86: =IF(F86,((VLOOKUP($B86,$E$7:$AE$16,5+8)+1)*L86),) -> 0 | S86: =IF(G86,((VLOOKUP($B86,$E$7:$AE$16,5+12)+1)*M86),) -> 0 | T86: =IF(H86,((VLOOKUP($B86,$E$7:$AE$16,5+16)+1)*N86),) -> 0 | U86: =IF(I86,((VLOOKUP($B86,$E$7:$AE$16,5+20)+1)*O86),) -> 0 | V86: =IF(D86,((VLOOKUP($B86,$E$7:$AE$16,6)+1)*P86),) -> 0 | W86: =IF(E86,((VLOOKUP($B86,$E$7:$AE$16,6+4)+1)*Q86),) -> 0 | X86: =IF(F86,((VLOOKUP($B86,$E$7:$AE$16,6+8)+1)*R86),) -> 0 | Y86: =IF(G86,((VLOOKUP($B86,$E$7:$AE$16,6+12)+1)*S86),) -> 0 | Z86: =IF(H86,((VLOOKUP($B86,$E$7:$AE$16,6+16)+1)*T86),) -> 0 | AA86: =IF(I86,((VLOOKUP($B86,$E$7:$AE$16,6+20)+1)*U86),) -> 0 | AB86: =IF(D86,((VLOOKUP($B86,$E$7:$AE$16,7)+1)*V86),) -> 0 | AC86: =IF(E86,((VLOOKUP($B86,$E$7:$AE$16,7+4)+1)*W86),) -> 0 | AD86: =IF(F86,((VLOOKUP($B86,$E$7:$AE$16,7+8)+1)*X86),) -> 0 | AE86: =IF(G86,((VLOOKUP($B86,$E$7:$AE$16,7+12)+1)*Y86),) -> 0 | AF86: =IF(H86,((VLOOKUP($B86,$E$7:$AE$16,7+16)+1)*Z86),) -> 0 | AG86: =IF(I86,((VLOOKUP($B86,$E$7:$AE$16,7+20)+1)*AA86),) -> 0
A87: 61 | C87: > LV UMS (Pseudo HH Metered) | P87: 0 | Q87: 0 | R87: 0 | S87: 0 | T87: 0 | U87: 0 | V87: 0 | W87: 0 | X87: 0 | Y87: 0 | Z87: 0 | AA87: 0 | AB87: 0 | AC87: 0 | AD87: 0 | AE87: 0 | AF87: 0 | AG87: 0
A88: 62 | B88: 2 | C88: LV UMS (Pseudo HH Metered) | D88: 9985.427362 | E88: 34521.04888 | F88: 240791.4484 | G88: 23 | J88: 13979.59831 | K88: 32809.26133 | L88: 238509.065 | M88: 23 | P88: 14024.60775 | Q88: 32914.89573 | R88: 239276.9811 | S88: 23.0299 | T88: 0 | U88: 0 | V88: 14148.29268 | W88: 33205.1767 | X88: 241387.1976 | Y88: 23.05983887 | Z88: 0 | AA88: 0 | AB88: 14251.60937 | AC88: 33447.65465 | AD88: 243149.9069 | AE88: 23.08981666 | AF88: 0 | AG88: 0
A89: 63 | B89: 2 | C89: LDNO LV: LV UMS (Pseudo HH Metered) | D89: 0 | E89: 0 | F89: 0 | G89: 0 | J89: 0 | K89: 0 | L89: 0 | M89: 0 | P89: 0 | Q89: 0 | R89: 0 | S89: 0 | T89: 0 | U89: 0 | V89: 0 | W89: 0 | X89: 0 | Y89: 0 | Z89: 0 | AA89: 0 | AB89: 0 | AC89: 0 | AD89: 0 | AE89: 0 | AF89: 0 | AG89: 0
A90: 64 | B90: 2 | C90: LDNO HV: LV UMS (Pseudo HH Metered) | D90: 0 | E90: 0 | F90: 0 | G90: 0 | J90: 0 | K90: 0 | L90: 0 | M90: 0 | P90: 0 | Q90: 0 | R90: 0 | S90: 0 | T90: 0 | U90: 0 | V90: 0 | W90: 0 | X90: 0 | Y90: 0 | Z90: 0 | AA90: 0 | AB90: 0 | AC90: 0 | AD90: 0 | AE90: 0 | AF90: 0 | AG90: 0
A91: 65 | C91: > LV Generation NHH | P91: 0 | Q91: 0 | R91: 0 | S91: 0 | T91: 0 | U91: 0 | V91: 0 | W91: 0 | X91: 0 | Y91: 0 | Z91: 0 | AA91: 0 | AB91: 0 | AC91: 0 | AD91: 0 | AE91: 0 | AF91: 0 | AG91: 0
A92: 66 | B92: 4 | C92: LV Generation NHH | D92: 751.3679941 | G92: 53.5 | J92: 793.4564293 | M92: 56.5 | P92: 796.0110826 | Q92: =IF(E92,((VLOOKUP($B92,$E$7:$AE$16,5+4)+1)*K92),) -> 0 | R92: =IF(F92,((VLOOKUP($B92,$E$7:$AE$16,5+8)+1)*L92),) -> 0 | S92: =IF(G92,((VLOOKUP($B92,$E$7:$AE$16,5+12)+1)*M92),) -> 56.57345 | T92: =IF(H92,((VLOOKUP($B92,$E$7:$AE$16,5+16)+1)*N92),) -> 0 | U92: =IF(I92,((VLOOKUP($B92,$E$7:$AE$16,5+20)+1)*O92),) -> 0 | V92: =IF(D92,((VLOOKUP($B92,$E$7:$AE$16,6)+1)*P92),) -> 803.0312133 | W92: =IF(E92,((VLOOKUP($B92,$E$7:$AE$16,6+4)+1)*Q92),) -> 0 | X92: =IF(F92,((VLOOKUP($B92,$E$7:$AE$16,6+8)+1)*R92),) -> 0 | Y92: =IF(G92,((VLOOKUP($B92,$E$7:$AE$16,6+12)+1)*S92),) -> 56.64699549 | Z92: =IF(H92,((VLOOKUP($B92,$E$7:$AE$16,6+16)+1)*T92),) -> 0 | AA92: =IF(I92,((VLOOKUP($B92,$E$7:$AE$16,6+20)+1)*U92),) -> 0 | AB92: =IF(D92,((VLOOKUP($B92,$E$7:$AE$16,7)+1)*V92),) -> 808.8952799 | AC92: =IF(E92,((VLOOKUP($B92,$E$7:$AE$16,7+4)+1)*W92),) -> 0 | AD92: =IF(F92,((VLOOKUP($B92,$E$7:$AE$16,7+8)+1)*X92),) -> 0 | AE92: =IF(G92,((VLOOKUP($B92,$E$7:$AE$16,7+12)+1)*Y92),) -> 56.72063658 | AF92: =IF(H92,((VLOOKUP($B92,$E$7:$AE$16,7+16)+1)*Z92),) -> 0 | AG92: =IF(I92,((VLOOKUP($B92,$E$7:$AE$16,7+20)+1)*AA92),) -> 0
A93: =+A92+1 -> 67 | B93: 4 | C93: LDNO LV: LV Generation NHH | D93: 0 | G93: 0 | J93: 0 | M93: 0 | P93: =IF(D93,((VLOOKUP($B93,$E$7:$AE$16,5)+1)*J93),) -> 0 | Q93: 0 | R93: 0 | S93: 0 | T93: 0 | U93: 0 | V93: 0 | W93: 0 | X93: 0 | Y93: 0 | Z93: 0 | AA93: 0 | AB93: 0 | AC93: 0 | AD93: 0 | AE93: 0 | AF93: 0 | AG93: 0
A94: 68 | B94: 4 | C94: LDNO HV: LV Generation NHH | D94: 0 | G94: 0 | J94: 0 | M94: 0 | P94: 0 | Q94: 0 | R94: 0 | S94: 0 | T94: 0 | U94: 0 | V94: 0 | W94: 0 | X94: 0 | Y94: 0 | Z94: 0 | AA94: 0 | AB94: 0 | AC94: 0 | AD94: 0 | AE94: 0 | AF94: 0 | AG94: 0
A95: 69 | C95: > LV Sub Generation NHH | P95: 0 | Q95: 0 | R95: 0 | S95: 0 | T95: 0 | U95: 0 | V95: 0 | W95: 0 | X95: 0 | Y95: 0 | Z95: 0 | AA95: 0 | AB95: 0 | AC95: 0 | AD95: 0 | AE95: 0 | AF95: 0 | AG95: 0
A96: 70 | B96: 4 | C96: LV Sub Generation NHH | D96: 0 | G96: 0 | J96: 0 | M96: 0 | P96: 0 | Q96: 0 | R96: 0 | S96: 0 | T96: 0 | U96: 0 | V96: 0 | W96: 0 | X96: 0 | Y96: 0 | Z96: 0 | AA96: 0 | AB96: 0 | AC96: 0 | AD96: 0 | AE96: 0 | AF96: 0 | AG96: 0
A97: 71 | B97: 4 | C97: LDNO HV: LV Sub Generation NHH | D97: 0 | G97: 0 | J97: 0 | M97: 0 | P97: 0 | Q97: 0 | R97: 0 | S97: 0 | T97: 0 | U97: 0 | V97: 0 | W97: 0 | X97: 0 | Y97: 0 | Z97: 0 | AA97: 0 | AB97: 0 | AC97: 0 | AD97: 0 | AE97: 0 | AF97: 0 | AG97: 0
A98: 72 | C98: > LV Generation Intermittent | P98: 0 | Q98: 0 | R98: 0 | S98: 0 | T98: 0 | U98: 0 | V98: 0 | W98: 0 | X98: 0 | Y98: 0 | Z98: 0 | AA98: 0 | AB98: 0 | AC98: 0 | AD98: 0 | AE98: 0 | AF98: 0 | AG98: 0
A99: 73 | B99: 4 | C99: LV Generation Intermittent | D99: 6354.467832 | G99: 66.33333333 | I99: 338.3854762 | J99: 8539.97123 | M99: 89.33333333 | O99: 353.0982633 | P99: 8567.466964 | Q99: 0 | R99: 0 | S99: 89.44946667 | T99: 0 | U99: 353.0982633 | V99: 8643.024627 | W99: 0 | X99: 0 | Y99: 89.56575097 | Z99: 0 | AA99: 353.0982633 | AB99: 8706.139573 | AC99: 0 | AD99: 0 | AE99: 89.68218645 | AF99: 0 | AG99: 353.0982633
A100: 74 | B100: 4 | C100: LDNO LV: LV Generation Intermittent | D100: 0 | G100: 0 | I100: 0 | J100: 0 | M100: 0 | O100: 0 | P100: 0 | Q100: 0 | R100: 0 | S100: 0 | T100: 0 | U100: 0 | V100: 0 | W100: 0 | X100: 0 | Y100: 0 | Z100: 0 | AA100: 0 | AB100: 0 | AC100: 0 | AD100: 0 | AE100: 0 | AF100: 0 | AG100: 0
A101: 75 | B101: 4 | C101: LDNO HV: LV Generation Intermittent | D101: 0 | G101: 0 | I101: 0 | J101: 0 | M101: 0 | O101: 0 | P101: 0 | Q101: 0 | R101: 0 | S101: 0 | T101: 0 | U101: 0 | V101: 0 | W101: 0 | X101: 0 | Y101: 0 | Z101: 0 | AA101: 0 | AB101: 0 | AC101: 0 | AD101: 0 | AE101: 0 | AF101: 0 | AG101: 0
A102: 76 | C102: > LV Generation Non-Intermittent | P102: 0 | Q102: 0 | R102: 0 | S102: 0 | T102: 0 | U102: 0 | V102: 0 | W102: 0 | X102: 0 | Y102: 0 | Z102: 0 | AA102: 0 | AB102: 0 | AC102: 0 | AD102: 0 | AE102: 0 | AF102: 0 | AG102: 0
A103: 77 | B103: 4 | C103: LV Generation Non-Intermittent | D103: 50.21722857 | E103: 163.6877 | F103: 342.4324286 | G103: 8.333333333 | I103: 4.88844243 | J103: 56.3009 | K103: 183.7238357 | L103: 384.2584143 | M103: 9.333333333 | O103: 1.257721347 | P103: 56.48216929 | Q103: 184.3153625 | R103: 385.4955926 | S103: 9.345466667 | T103: 0 | U103: 1.257721347 | V103: 56.98029327 | W103: 185.9408649 | X103: 388.8953309 | Y103: 9.357615773 | Z103: 0 | AA103: 1.257721347 | AB103: 57.39638698 | AC103: 187.2986821 | AD103: 391.7352057 | AE103: 9.369780674 | AF103: 0 | AG103: 1.257721347
A104: 78 | B104: 4 | C104: LDNO LV: LV Generation Non-Intermittent | D104: 0 | E104: 0 | F104: 0 | G104: 0 | I104: 0 | J104: 0 | K104: 0 | L104: 0 | M104: 0 | O104: 0 | P104: 0 | Q104: 0 | R104: 0 | S104: 0 | T104: 0 | U104: 0 | V104: 0 | W104: 0 | X104: 0 | Y104: 0 | Z104: 0 | AA104: 0 | AB104: 0 | AC104: 0 | AD104: 0 | AE104: 0 | AF104: 0 | AG104: 0
A105: 79 | B105: 4 | C105: LDNO HV: LV Generation Non-Intermittent | D105: 0 | E105: 0 | F105: 0 | G105: 0 | I105: 0 | J105: 0 | K105: 0 | L105: 0 | M105: 0 | O105: 0 | P105: 0 | Q105: 0 | R105: 0 | S105: 0 | T105: 0 | U105: 0 | V105: 0 | W105: 0 | X105: 0 | Y105: 0 | Z105: 0 | AA105: 0 | AB105: 0 | AC105: 0 | AD105: 0 | AE105: 0 | AF105: 0 | AG105: 0
A106: 80 | C106: > LV Sub Generation Intermittent | P106: 0 | Q106: 0 | R106: 0 | S106: 0 | T106: 0 | U106: 0 | V106: 0 | W106: 0 | X106: 0 | Y106: 0 | Z106: 0 | AA106: 0 | AB106: 0 | AC106: 0 | AD106: 0 | AE106: 0 | AF106: 0 | AG106: 0
A107: 81 | B107: 4 | C107: LV Sub Generation Intermittent | D107: 140.3316567 | G107: 7.5 | I107: 2.07053948 | J107: 198.0686167 | M107: 10.5 | O107: 1.147545259 | P107: 198.7063286 | Q107: 0 | R107: 0 | S107: 10.51365 | T107: 0 | U107: 1.147545259 | V107: 200.4587469 | W107: 0 | X107: 0 | Y107: 10.52731775 | Z107: 0 | AA107: 1.147545259 | AB107: 201.9225797 | AC107: 0 | AD107: 0 | AE107: 10.54100326 | AF107: 0 | AG107: 1.147545259
A108: 82 | B108: 4 | C108: LDNO HV: LV Sub Generation Intermittent | D108: 0 | G108: 0 | I108: 0 | J108: 0 | M108: 0 | O108: 0 | P108: 0 | Q108: 0 | R108: 0 | S108: 0 | T108: 0 | U108: 0 | V108: 0 | W108: 0 | X108: 0 | Y108: 0 | Z108: 0 | AA108: 0 | AB108: 0 | AC108: 0 | AD108: 0 | AE108: 0 | AF108: 0 | AG108: 0
A109: 83 | C109: > LV Sub Generation Non-Intermittent | P109: 0 | Q109: 0 | R109: 0 | S109: 0 | T109: 0 | U109: 0 | V109: 0 | W109: 0 | X109: 0 | Y109: 0 | Z109: 0 | AA109: 0 | AB109: 0 | AC109: 0 | AD109: 0 | AE109: 0 | AF109: 0 | AG109: 0
A110: 84 | B110: 4 | C110: LV Sub Generation Non-Intermittent | D110: 42.8082 | E110: 95.5942 | F110: 304.5552 | G110: 9 | I110: 19.69714151 | J110: 43.01 | K110: 95.631 | L110: 304.7 | M110: 9 | O110: 3.802690121 | P110: 43.14847722 | Q110: 95.93889852 | R110: 305.6810279 | S110: 9.0117 | T110: 0 | U110: 3.802690121 | V110: 43.52900955 | W110: 96.78499679 | X110: 308.3768707 | Y110: 9.02341521 | Z110: 0 | AA110: 3.802690121 | AB110: 43.84687641 | AC110: 97.49176093 | AD110: 310.6287664 | AE110: 9.03514565 | AF110: 0 | AG110: 3.802690121
A111: 85 | B111: 4 | C111: LDNO HV: LV Sub Generation Non-Intermittent | D111: 0 | E111: 0 | F111: 0 | G111: 0 | H111: 0 | I111: 0 | J111: 0 | K111: 0 | L111: 0 | M111: 0 | N111: 0 | O111: 0 | P111: 0 | Q111: 0 | R111: 0 | S111: 0 | T111: 0 | U111: 0 | V111: 0 | W111: 0 | X111: 0 | Y111: 0 | Z111: 0 | AA111: 0 | AB111: 0 | AC111: 0 | AD111: 0 | AE111: 0 | AF111: 0 | AG111: 0
A112: 86 | C112: > HV Generation Intermittent | P112: 0 | Q112: 0 | R112: 0 | S112: 0 | T112: 0 | U112: 0 | V112: 0 | W112: 0 | X112: 0 | Y112: 0 | Z112: 0 | AA112: 0 | AB112: 0 | AC112: 0 | AD112: 0 | AE112: 0 | AF112: 0 | AG112: 0
A113: 87 | B113: 4 | C113: HV Generation Intermittent | D113: 132424.371 | G113: 40.41666667 | I113: 5014.603905 | J113: 145533.7139 | M113: 44.41666667 | O113: 4072.641033 | P113: 146002.2817 | Q113: 0 | R113: 0 | S113: 44.47440833 | T113: 0 | U113: 4072.641033 | V113: 147289.8958 | W113: 0 | X113: 0 | Y113: 44.53222506 | Z113: 0 | AA113: 4072.641033 | AB113: 148365.4677 | AC113: 0 | AD113: 0 | AE113: 44.59011696 | AF113: 0 | AG113: 4072.641033
A114: 88 | B114: 4 | C114: LDNO HV: HV Generation Intermittent | D114: 0 | G114: 0 | I114: 0 | J114: 0 | M114: 0 | O114: 0 | P114: 0 | Q114: 0 | R114: 0 | S114: 0 | T114: 0 | U114: 0 | V114: 0 | W114: 0 | X114: 0 | Y114: 0 | Z114: 0 | AA114: 0 | AB114: 0 | AC114: 0 | AD114: 0 | AE114: 0 | AF114: 0 | AG114: 0
A115: 89 | C115: > HV Generation Non-Intermittent | P115: 0 | Q115: 0 | R115: 0 | S115: 0 | T115: 0 | U115: 0 | V115: 0 | W115: 0 | X115: 0 | Y115: 0 | Z115: 0 | AA115: 0 | AB115: 0 | AC115: 0 | AD115: 0 | AE115: 0 | AF115: 0 | AG115: 0
A116: 90 | B116: 4 | C116: HV Generation Non-Intermittent | D116: 33598.48805 | E116: 160608.5791 | F116: 339088.6578 | G116: 104.8333333 | I116: 14294.59971 | J116: 37112.89205 | K116: 177435.984 | L116: 374623.4728 | M116: 115.8333333 | O116: 15824.52355 | P116: 37232.38264 | Q116: 178007.266 | R116: 375829.6299 | S116: 115.9839167 | T116: 0 | U116: 15824.52355 | V116: 37560.74012 | W116: 179577.1365 | X116: 379144.1229 | Y116: 116.1346958 | Z116: 0 | AA116: 15824.52355 | AB116: 37835.0242 | AC116: 180888.4831 | AD116: 381912.7903 | AE116: 116.2856709 | AF116: 0 | AG116: 15824.52355
A117: 91 | B117: 4 | C117: LDNO HV: HV Generation Non-Intermittent | D117: 0 | E117: 0 | F117: 0 | G117: 0 | I117: 0 | J117: 0 | K117: 0 | L117: 0 | M117: 0 | O117: 0 | P117: 0 | Q117: 0 | R117: 0 | S117: 0 | T117: 0 | U117: 0 | V117: 0 | W117: 0 | X117: 0 | Y117: 0 | Z117: 0 | AA117: 0 | AB117: 0 | AC117: 0 | AD117: 0 | AE117: 0 | AF117: 0 | AG117: 0
A118: 92 | C118: > HV Sub Generation Non-Intermittent | P118: 0 | Q118: 0 | R118: 0 | S118: 0 | T118: 0 | U118: 0 | V118: 0 | W118: 0 | X118: 0 | Y118: 0 | Z118: 0 | AA118: 0 | AB118: 0 | AC118: 0 | AD118: 0 | AE118: 0 | AF118: 0 | AG118: 0
A119: 93 | B119: 4 | C119: HV Sub Generation Non-Intermittent | D119: 0 | G119: 0 | I119: 0 | J119: 0 | M119: 0 | O119: 0 | P119: 0 | Q119: 0 | R119: 0 | S119: 0 | T119: 0 | U119: 0 | V119: 0 | W119: 0 | X119: 0 | Y119: 0 | Z119: 0 | AA119: 0 | AB119: 0 | AC119: 0 | AD119: 0 | AE119: 0 | AF119: 0 | AG119: 0
A120: 94 | C120: > HV Sub Generation Intermittent | P120: 0 | Q120: 0 | R120: 0 | S120: 0 | T120: 0 | U120: 0 | V120: 0 | W120: 0 | X120: 0 | Y120: 0 | Z120: 0 | AA120: 0 | AB120: 0 | AC120: 0 | AD120: 0 | AE120: 0 | AF120: 0 | AG120: 0
A121: 95 | B121: 4 | C121: HV Sub Generation Intermittent | D121: 0 | E121: 0 | F121: 0 | G121: 0 | I121: 0 | J121: 0 | K121: 0 | L121: 0 | M121: 0 | O121: 0 | P121: 0 | Q121: 0 | R121: 0 | S121: 0 | T121: 0 | U121: 0 | V121: 0 | W121: 0 | X121: 0 | Y121: 0 | Z121: 0 | AA121: 0 | AB121: 0 | AC121: 0 | AD121: 0 | AE121: 0 | AF121: 0 | AG121: 0

Sheet CDCM Timebands
B2: CDCM Timebands
C4: 2014/15 | E4: 2015/16
C5: WD (incl. bank holidays) | D5: WE | E5: WD (incl. bank holidays) | F5: WE | G5: 2016/17 | H5: 2017/18 | I5: 2018/19
B6: Red | C6: 16:30 to 18:30 | E6: 16:00 to 19:00 | G6: No change from 2015/16 | H6: No change from 2015/16 | I6: No change from 2015/16
B8: Amber | C8: 09:00 to 16:30 | D8: 16:30 to 18:30 | E8: 09:00 to 16:00 | F8: 16:00 to 19:00
C9: 18:30 to 20:30 | E9: 19:00 to 20:30
B11: Green | C11: 00:00 to 09:00 | D11: 00:00 to 16:30 | E11: 00:00 to 09:00 | F11: 00:00 to 16:00
C12: 20:30 to 24:00 | D12: 18:30 to 24:00 | E12: 20:30 to 24:00 | F12: 19:00 to 24:00
C15: 2014/15 Nov to Feb | E15: 2014/15 Mar to Oct | G15: 2015/16 Nov to Feb | I15: 2015/16 Mar to Oct
C16: WD (incl. bank holidays) | D16: WE | E16: WD (incl. bank holidays) | F16: WE | G16: WD (incl. bank holidays) | H16: WE | I16: WD (incl. bank holidays) | J16: WE | K16: 2016/17 | L16: 2017/18 | M16: 2018/19
B17: Black | C17: 16:30 to 18:30 | G17: 16:00 to 19:00 | K17: No change from 2015/16 | L17: No change from 2015/16 | M17: No change from 2015/16
B19: Yellow | C19: 09:00 to 16:30 | D19: 16:30 to 18:30 | E19: 09:00 to 20:30 | F19: 16:30 to 18:30 | G19: 09:00 to 16:00 | H19: 16:00 to 19:00 | I19: 09:00 to 20:30 | J19: 16:00 to 19:00
C20: 18:30 to 20:30 | G20: 19:00 to 20:30
B23: Green | C23: 00:00 to 09:00 | D23: 00:00 to 16:30 | E23: 00:00 to 09:00 | F23: 00:00 to 16:30 | G23: 00:00 to 09:00 | H23: 00:00 to 16:00 | I23: 00:00 to 09:00 | J23: 00:00 to 16:00
C24: 20:30 to 24:00 | D24: 18:30 to 24:00 | E24: 20:30 to 24:00 | F24: 18:30 to 24:00 | G24: 20:30 to 24:00 | H24: 19:00 to 24:00 | I24: 20:30 to 24:00 | J24: 19:00 to 24:00

Sheet Vlookup (hidden)
A1: CDCM model 100: Input data | C1: =B8 -> 2 | E1: =C8 -> 3 | G1: =D8 -> 4
A2: This sheet contains all the input data (except LLFCs which can be entered directly into the Tariff sheet).
A5: 1000. Company, charging year, data version
B7: Company | C7: Year | D7: Version
A8: Company, charging year, data version | B8: 2 | C8: 3 | D8: 4
A10: 1010. Financial and general assumptions
A12: Sources: financial assumptions; calendar; network model.
A13: These financial assumptions determine the annuity rate applied to convert the asset values of the network model into an annual charge.
B14: Rate of return | C14: Annualisation period (years) | D14: Annuity proportion for customer-contributed assets | E14: Power factor | F14: Days in the charging period
A15: Financial and general assumptions | B15: 6 | C15: 7 | E15: 8 | F15: 9
A17: 1017. Diversity allowance between top and bottom of network level
A19: Source: operational data analysis and/or network model.
A20: The diversity figure against GSP is the diversity between GSP Group (the whole system) and individual GSPs.
A21: The diversity figure against 132kV is the diversity between GSPs (the top of the 132kV network) and 132kV/EHV bulk supply points (the bottom of the 132kV network).
A22: The diversity figure against EHV is the diversity between 132kV/EHV bulk supply points (the top of the EHV network) and EHV/HV primary substations (the bottom of the EHV network).
A23: The diversity figure against HV is the diversity between EHV/HV primary substations (the top of the HV network) and HV/LV substations (the bottom of the HV network).
B24: Diversity allowance between top and bottom of network level
A25: GSPs | B25: 11
A26: 132kV | B26: 12
A27: 132kV/EHV
A28: EHV | B28: 13
A29: EHV/HV
A30: HV | B30: 14
A31: HV/LV
A32: LV circuits
A34: 1018. Proportion of relevant load going through 132kV/HV direct transformation
B36: 132kV/HV
A37: EHV/HV | B37: 15
A39: 1019. Network model GSP peak demand (MW)
B41: Network model GSP peak demand (MW)
A42: Network model GSP peak demand (MW) | B42: 16
A44: 1020. Gross asset cost by network level (£)
B46: Gross assets £
A47: 132kV | B47: 18
A48: 132kV/EHV | B48: 19
A49: EHV | B49: 20
A50: EHV/HV | B50: 21
A51: 132kV/HV | B51: 22
A52: HV | B52: 23
A53: HV/LV | B53: 24
A54: LV circuits | B54: 25
A56: 1022. LV service model asset cost (£)
B58: LV service model 1 | C58: LV service model 2 | D58: LV service model 3 | E58: LV service model 4 | F58: LV service model 5 | G58: LV service model 6 | H58: LV service model 7 | I58: LV service model 8
A59: LV service model asset cost (£) | B59: 27 | C59: 28 | D59: 29 | E59: 30 | F59: 31 | G59: 32 | H59: 33 | I59: 34
A61: 1023. HV service model asset cost (£)
B63: HV service model 1 | C63: HV service model 2 | D63: HV service model 3 | E63: HV service model 4 | F63: HV service model 5
A64: HV service model asset cost (£) | B64: 36 | C64: 37 | D64: 38 | E64: 39 | F64: 40
A66: 1025. Matrix of applicability of LV service models to tariffs with fixed charges
B68: LV service model 1 | C68: LV service model 2 | D68: LV service model 3 | E68: LV service model 4 | F68: LV service model 5 | G68: LV service model 6 | H68: LV service model 7 | I68: LV service model 8
A69: Domestic Unrestricted | B69: 0.05 | C69: 0 | D69: 0 | E69: 0 | H69: 0 | I69: 0
A70: Domestic Two Rate | B70: 0.05 | C70: 0 | D70: 0 | E70: 0 | H70: 0 | I70: 0
A71: Small Non Domestic Unrestricted | B71: 0 | C71: 1 | D71: 0 | E71: 0 | H71: 0 | I71: 0
A72: Small Non Domestic Two Rate | B72: 0 | C72: 1 | D72: 0 | E72: 0 | H72: 0 | I72: 0
A73: LV Medium Non-Domestic | B73: 0.1 | C73: 0.9 | E73: 0 | H73: 0 | I73: 0
A74: LV Sub Medium Non-Domestic | B74: 0 | E74: 1 | H74: 0 | I74: 0
A75: LV HH Metered | B75: 0 | D75: 1 | E75: 0 | H75: 0 | I75: 0
A76: LV Sub HH Metered | B76: 0 | E76: 1 | H76: 0 | I76: 0
A77: LV Generation NHH | B77: 0 | C77: 0 | D77: 0 | H77: 0 | I77: 0
A78: LV Sub Generation NHH | B78: 0 | C78: 0 | D78: 0 | H78: 0 | I78: 0
A79: LV Generation Intermittent | B79: 0 | C79: 0 | D79: 0 | H79: 0 | I79: 0
A80: LV Generation Non-Intermittent
A81: LV Sub Generation Intermittent
A82: LV Sub Generation Non-Intermittent | B82: 0 | C82: 0 | D82: 0 | E82: 0 | F82: 0 | G82: 0 | H82: 0 | I82: 0
A84: 1026. Matrix of applicability of LV service models to unmetered tariffs
A86: Source: service models
A87: Proportion of service model involved in connecting load of 1 MWh/year
B88: LV service model 1 | C88: LV service model 2 | D88: LV service model 3 | E88: LV service model 4 | F88: LV service model 5 | G88: LV service model 6 | H88: LV service model 7 | I88: LV service model 8
A89: All LV unmetered tariffs | B89: 0 | C89: 0 | D89: 0 | E89: 0 | F89: 3.914 | G89: 0 | H89: 0 | I89: 0
A91: 1028. Matrix of applicability of HV service models to tariffs with fixed charges
B93: HV service model 1 | C93: HV service model 2 | D93: HV service model 3 | E93: HV service model 4 | F93: HV service model 5
A94: HV Medium Non-Domestic | C94: 1 | D94: 0 | E94: 0 | F94: 0
A95: HV HH Metered | C95: 1 | D95: 0 | E95: 0 | F95: 0
A96: HV Sub HH Metered | B96: 1 | D96: 0 | E96: 0 | F96: 0
A97: HV Generation Intermittent | B97: 0 | C97: 0 | D97: 1 | E97: 0 | F97: 0
A98: HV Generation Non-Intermittent | B98: 0 | C98: 0 | D98: 1 | E98: 0 | F98: 0
A99: HV Sub Generation Non-Intermittent | D99: 1
A100: HV Sub Generation Intermittent | D100: 1
A102: 1032. Loss adjustment factors to transmission
A104: Source: losses model or loss adjustment factors at time of system peak.
B105: 132kV | C105: 132kV/EHV | D105: EHV | E105: EHV/HV | F105: HV | G105: HV/LV | H105: LV circuits
A106: Loss adjustment factor | B106: 45 | C106: 46 | D106: 47 | E106: 48 | F106: 49 | G106: 50 | H106: 51
A108: 1037. Embedded network (LDNO) discounts
A110: Source: separate price control disaggregation model.
B111: No discount | C111: LDNO LV: LV user | D111: LDNO HV: LV user | E111: LDNO HV: LV sub user | F111: LDNO HV: HV user
A112: LDNO discount | C112: 53 | D112: 54 | E112: 55 | F112: 56
A114: 1041. Load profile data for demand users
A116: Source: load data analysis.
B117: Coincidence factor | C117: Load factor
A118: Domestic Unrestricted | B118: ='CDCM Forecast Data'!B71 -> 58 | C118: ='CDCM Forecast Data'!B90 -> 77
A119: Domestic Two Rate | B119: ='CDCM Forecast Data'!B72 -> 59 | C119: ='CDCM Forecast Data'!B91 -> 78
A120: Domestic Off Peak (related MPAN) | B120: ='CDCM Forecast Data'!B73 -> 60 | C120: ='CDCM Forecast Data'!B92 -> 79
A121: Small Non Domestic Unrestricted | B121: ='CDCM Forecast Data'!B74 -> 61 | C121: ='CDCM Forecast Data'!B93 -> 80
A122: Small Non Domestic Two Rate | B122: ='CDCM Forecast Data'!B75 -> 62 | C122: ='CDCM Forecast Data'!B94 -> 81
A123: Small Non Domestic Off Peak (related MPAN) | B123: ='CDCM Forecast Data'!B76 -> 63 | C123: ='CDCM Forecast Data'!B95 -> 82
A124: LV Medium Non-Domestic | B124: ='CDCM Forecast Data'!B77 -> 64 | C124: ='CDCM Forecast Data'!B96 -> 83
A125: LV Sub Medium Non-Domestic | B125: ='CDCM Forecast Data'!B78 -> 65 | C125: ='CDCM Forecast Data'!B97 -> 84
A126: HV Medium Non-Domestic | B126: ='CDCM Forecast Data'!B79 -> 66 | C126: ='CDCM Forecast Data'!B98 -> 85
A127: LV HH Metered | B127: ='CDCM Forecast Data'!B80 -> 67 | C127: ='CDCM Forecast Data'!B99 -> 86
A128: LV Sub HH Metered | B128: ='CDCM Forecast Data'!B81 -> 68 | C128: ='CDCM Forecast Data'!B100 -> 87
A129: HV HH Metered | B129: ='CDCM Forecast Data'!B82 -> 69 | C129: ='CDCM Forecast Data'!B101 -> 88
A130: HV Sub HH Metered | B130: ='CDCM Forecast Data'!B83 -> 70 | C130: ='CDCM Forecast Data'!B102 -> 89
A131: NHH UMS category A | B131: ='CDCM Forecast Data'!B84 -> 71 | C131: ='CDCM Forecast Data'!B103 -> 90
A132: NHH UMS category B | B132: ='CDCM Forecast Data'!B85 -> 72 | C132: ='CDCM Forecast Data'!B104 -> 91
A133: NHH UMS category C | B133: ='CDCM Forecast Data'!B86 -> 73 | C133: ='CDCM Forecast Data'!B105 -> 92
A134: NHH UMS category D | B134: ='CDCM Forecast Data'!B87 -> 74 | C134: ='CDCM Forecast Data'!B106 -> 93
A135: LV UMS (Pseudo HH Metered) | B135: ='CDCM Forecast Data'!B88 -> 75 | C135: ='CDCM Forecast Data'!B107 -> 94
A137: 1053. Volume forecasts for the charging year
A139: Source: forecast.
A140: Please include MPAN counts for tariffs with no fixed charge (e.g. off-peak tariffs),
A141: but exclude MPANs on tariffs with a fixed charge that are not subject to a fixed charge due to a site grouping arrangement.
B142: Rate 1 units (MWh) | C142: Rate 2 units (MWh) | D142: Rate 3 units (MWh) | E142: MPANs | F142: Import capacity (kVA) | G142: Reactive power units (MVArh)
A143: > Domestic Unrestricted
A144: Domestic Unrestricted | B144: 2 | E144: 2
A145: LDNO LV: Domestic Unrestricted | B145: 3 | E145: 3
A146: LDNO HV: Domestic Unrestricted | B146: 4 | E146: 4
A147: > Domestic Two Rate
A148: Domestic Two Rate | B148: 6 | C148: 6 | E148: 6
A149: LDNO LV: Domestic Two Rate | B149: 7 | C149: 7 | E149: 7
A150: LDNO HV: Domestic Two Rate | B150: 8 | C150: 8 | E150: 8
A151: > Domestic Off Peak (related MPAN)
A152: Domestic Off Peak (related MPAN) | B152: 10 | E152: 10
A153: LDNO LV: Domestic Off Peak (related MPAN) | B153: 11 | E153: 11
A154: LDNO HV: Domestic Off Peak (related MPAN) | B154: 12 | E154: 12
A155: > Small Non Domestic Unrestricted
A156: Small Non Domestic Unrestricted | B156: 14 | E156: 14
A157: LDNO LV: Small Non Domestic Unrestricted | B157: 15 | E157: 15
A158: LDNO HV: Small Non Domestic Unrestricted | B158: 16 | E158: 16
A159: > Small Non Domestic Two Rate
A160: Small Non Domestic Two Rate | B160: 18 | C160: 18 | E160: 18
A161: LDNO LV: Small Non Domestic Two Rate | B161: 19 | C161: 19 | E161: 19
A162: LDNO HV: Small Non Domestic Two Rate | B162: 20 | C162: 20 | E162: 20
A163: > Small Non Domestic Off Peak (related MPAN)
A164: Small Non Domestic Off Peak (related MPAN) | B164: 22 | E164: 22
A165: LDNO LV: Small Non Domestic Off Peak (related MPAN) | B165: 23 | E165: 23
A166: LDNO HV: Small Non Domestic Off Peak (related MPAN) | B166: 24 | E166: 24
A167: > LV Medium Non-Domestic
A168: LV Medium Non-Domestic | B168: 26 | C168: 26 | E168: 26
A169: LDNO LV: LV Medium Non-Domestic | B169: 27 | C169: 27 | E169: 27
A170: LDNO HV: LV Medium Non-Domestic | B170: 28 | C170: 28 | E170: 28
A171: > LV Sub Medium Non-Domestic
A172: LV Sub Medium Non-Domestic | B172: 30 | C172: 30 | E172: 30
A173: > HV Medium Non-Domestic
A174: HV Medium Non-Domestic | B174: 32 | C174: 32 | E174: 32
A175: > LV HH Metered
A176: LV HH Metered | B176: 34 | C176: 34 | D176: 34 | E176: 34 | F176: 34 | G176: 34
A177: LDNO LV: LV HH Metered | B177: 35 | C177: 35 | D177: 35 | E177: 35 | F177: 35 | G177: 35
A178: LDNO HV: LV HH Metered | B178: 36 | C178: 36 | D178: 36 | E178: 36 | F178: 36 | G178: 36
A179: > LV Sub HH Metered
A180: LV Sub HH Metered | B180: 38 | C180: 38 | D180: 38 | E180: 38 | F180: 38 | G180: 38
A181: LDNO HV: LV Sub HH Metered | B181: 39 | C181: 39 | D181: 39 | E181: 39 | F181: 39 | G181: 39
A182: > HV HH Metered
A183: HV HH Metered | B183: 41 | C183: 41 | D183: 41 | E183: 41 | F183: 41 | G183: 41
A184: LDNO HV: HV HH Metered | B184: 42 | C184: 42 | D184: 42 | E184: 42 | F184: 42 | G184: 42
A185: > HV Sub HH Metered
A186: HV Sub HH Metered | B186: 44 | C186: 44 | D186: 44 | E186: 44 | F186: 44 | G186: 44
A187: > NHH UMS category A
A188: NHH UMS category A | B188: 46 | E188: 46
A189: LDNO LV: NHH UMS category A | B189: 47 | E189: 47
A190: LDNO HV: NHH UMS category A | B190: 48 | E190: 48
A191: > NHH UMS category B
A192: NHH UMS category B | B192: 50 | E192: 50
A193: LDNO LV: NHH UMS category B | B193: 51 | E193: 51
A194: LDNO HV: NHH UMS category B | B194: 52 | E194: 52
A195: > NHH UMS category C
A196: NHH UMS category C | B196: 54 | E196: 54
A197: LDNO LV: NHH UMS category C | B197: 55 | E197: 55
A198: LDNO HV: NHH UMS category C | B198: 56 | E198: 56
A199: > NHH UMS category D
A200: NHH UMS category D | B200: 58 | E200: 58
A201: LDNO LV: NHH UMS category D | B201: 59 | E201: 59
A202: LDNO HV: NHH UMS category D | B202: 60 | E202: 60
A203: > LV UMS (Pseudo HH Metered)
A204: LV UMS (Pseudo HH Metered) | B204: 62 | C204: 62 | D204: 62 | E204: 62
A205: LDNO LV: LV UMS (Pseudo HH Metered) | B205: 63 | C205: 63 | D205: 63 | E205: 63
A206: LDNO HV: LV UMS (Pseudo HH Metered) | B206: 64 | C206: 64 | D206: 64 | E206: 64
A207: > LV Generation NHH
A208: LV Generation NHH | B208: 66 | E208: 66
A209: LDNO LV: LV Generation NHH | B209: 67 | E209: 67
A210: LDNO HV: LV Generation NHH | B210: 68 | E210: 68
A211: > LV Sub Generation NHH
A212: LV Sub Generation NHH | B212: 70 | E212: 70
A213: LDNO HV: LV Sub Generation NHH | B213: 71 | E213: 71
A214: > LV Generation Intermittent
A215: LV Generation Intermittent | B215: 73 | E215: 73 | G215: 73
A216: LDNO LV: LV Generation Intermittent | B216: 74 | E216: 74 | G216: 74
A217: LDNO HV: LV Generation Intermittent | B217: 75 | E217: 75 | G217: 75
A218: > LV Generation Non-Intermittent
A219: LV Generation Non-Intermittent | B219: 77 | C219: 77 | D219: 77 | E219: 77 | G219: 77
A220: LDNO LV: LV Generation Non-Intermittent | B220: 78 | C220: 78 | D220: 78 | E220: 78 | G220: 78
A221: LDNO HV: LV Generation Non-Intermittent | B221: 79 | C221: 79 | D221: 79 | E221: 79 | G221: 79
A222: > LV Sub Generation Intermittent
A223: LV Sub Generation Intermittent | B223: 81 | E223: 81 | G223: 81
A224: LDNO HV: LV Sub Generation Intermittent | B224: 82 | E224: 82 | G224: 82
A225: > LV Sub Generation Non-Intermittent
A226: LV Sub Generation Non-Intermittent | B226: 84 | C226: 84 | D226: 84 | E226: 84 | G226: 84
A227: LDNO HV: LV Sub Generation Non-Intermittent | B227: 85 | C227: 85 | D227: 85 | E227: 85 | G227: 85
A228: > HV Generation Intermittent
A229: HV Generation Intermittent | B229: 87 | E229: 87 | G229: 87
A230: LDNO HV: HV Generation Intermittent | B230: 88 | E230: 88 | G230: 88
A231: > HV Generation Non-Intermittent
... 103 more rows

Sheet (Y)
A5: 1000. Company, charging year, data version
B7: Company | C7: Year | D7: Version
A8: Company, charging year, data version | B8: =VLOOKUP(Vlookup!B8,Forcast_Data,5,FALSE) -> ENWL | C8: =VLOOKUP(Vlookup!C8,Forcast_Data,5,FALSE) -> 2014/15 | D8: =VLOOKUP(Vlookup!D8,Forcast_Data,5,FALSE) -> v1
A10: 1010. Financial and general assumptions
A12: Sources: financial assumptions; calendar; network model.
A13: These financial assumptions determine the annuity rate applied to convert the asset values of the network model into an annual charge.
B14: Rate of return | C14: Annualisation period (years) | D14: Annuity proportion for customer-contributed assets | E14: Power factor | F14: Days in the charging period
A15: Financial and general assumptions | B15: =VLOOKUP(Vlookup!B15,Forcast_Data,5,FALSE) -> 0.056 | C15: =VLOOKUP(Vlookup!C15,Forcast_Data,5,FALSE) -> 40 | E15: =VLOOKUP(Vlookup!E15,Forcast_Data,5,FALSE) -> 0.95 | F15: =VLOOKUP(Vlookup!F15,Forcast_Data,5,FALSE) -> 365
A17: 1017. Diversity allowance between top and bottom of network level
A19: Source: operational data analysis and/or network model.
A20: The diversity figure against GSP is the diversity between GSP Group (the whole system) and individual GSPs.
A21: The diversity figure against 132kV is the diversity between GSPs (the top of the 132kV network) and 132kV/EHV bulk supply points (the bottom of the 132kV network).
A22: The diversity figure against EHV is the diversity between 132kV/EHV bulk supply points (the top of the EHV network) and EHV/HV primary substations (the bottom of the EHV network).
A23: The diversity figure against HV is the diversity between EHV/HV primary substations (the top of the HV network) and HV/LV substations (the bottom of the HV network).
B24: Diversity allowance between top and bottom of network level
A25: GSPs | B25: =VLOOKUP(Vlookup!B25,Forcast_Data,5,FALSE) -> 0.08478373473
A26: 132kV | B26: =VLOOKUP(Vlookup!B26,Forcast_Data,5,FALSE) -> 0.0430819956
A27: 132kV/EHV
A28: EHV | B28: =VLOOKUP(Vlookup!B28,Forcast_Data,5,FALSE) -> 0.0850110413
A29: EHV/HV
A30: HV | B30: =VLOOKUP(Vlookup!B30,Forcast_Data,5,FALSE) -> 0.33411
A31: HV/LV
A32: LV circuits
A34: 1018. Proportion of relevant load going through 132kV/HV direct transformation
B36: 132kV/HV
A37: EHV/HV | B37: =VLOOKUP(Vlookup!B37,Forcast_Data,5,FALSE) -> 0
A39: 1019. Network model GSP peak demand (MW)
B41: Network model GSP peak demand (MW)
A42: Network model GSP peak demand (MW) | B42: =VLOOKUP(Vlookup!B42,Forcast_Data,5,FALSE) -> 500
A44: 1020. Gross asset cost by network level (£)
B46: Gross assets £
A47: 132kV | B47: =VLOOKUP(Vlookup!B47,Forcast_Data,5,FALSE) -> 69440518.35
A48: 132kV/EHV | B48: =VLOOKUP(Vlookup!B48,Forcast_Data,5,FALSE) -> 36438519.6
A49: EHV | B49: =VLOOKUP(Vlookup!B49,Forcast_Data,5,FALSE) -> 79532172.72
A50: EHV/HV | B50: =VLOOKUP(Vlookup!B50,Forcast_Data,5,FALSE) -> 64113474.6
A51: 132kV/HV | B51: =VLOOKUP(Vlookup!B51,Forcast_Data,5,FALSE) -> 0
A52: HV | B52: =VLOOKUP(Vlookup!B52,Forcast_Data,5,FALSE) -> 117354063.5
A53: HV/LV | B53: =VLOOKUP(Vlookup!B53,Forcast_Data,5,FALSE) -> 94490955.36
A54: LV circuits | B54: =VLOOKUP(Vlookup!B54,Forcast_Data,5,FALSE) -> 62237013
A56: 1022. LV service model asset cost (£)
B58: LV service model 1 | C58: LV service model 2 | D58: LV service model 3 | E58: LV service model 4 | F58: LV service model 5 | G58: LV service model 6 | H58: LV service model 7 | I58: LV service model 8
A59: LV service model asset cost (£) | B59: =VLOOKUP(Vlookup!B59,Forcast_Data,5,FALSE) -> 9806.134028 | C59: =VLOOKUP(Vlookup!C59,Forcast_Data,5,FALSE) -> 490.3067014 | D59: =VLOOKUP(Vlookup!D59,Forcast_Data,5,FALSE) -> 2233.887586 | E59: =VLOOKUP(Vlookup!E59,Forcast_Data,5,FALSE) -> 9238.858043 | F59: =VLOOKUP(Vlookup!F59,Forcast_Data,5,FALSE) -> 261.9511657 | G59: =VLOOKUP(Vlookup!G59,Forcast_Data,5,FALSE) -> 0 | H59: =VLOOKUP(Vlookup!H59,Forcast_Data,5,FALSE) -> 0 | I59: =VLOOKUP(Vlookup!I59,Forcast_Data,5,FALSE) -> 0
A61: 1023. HV service model asset cost (£)
B63: HV service model 1 | C63: HV service model 2 | D63: HV service model 3 | E63: HV service model 4 | F63: HV service model 5
A64: HV service model asset cost (£) | B64: =VLOOKUP(Vlookup!B64,Forcast_Data,5,FALSE) -> 17978.17449 | C64: =VLOOKUP(Vlookup!C64,Forcast_Data,5,FALSE) -> 18750.53678 | D64: =VLOOKUP(Vlookup!D64,Forcast_Data,5,FALSE) -> 1143.9666 | E64: =VLOOKUP(Vlookup!E64,Forcast_Data,5,FALSE) -> - | F64: =VLOOKUP(Vlookup!F64,Forcast_Data,5,FALSE) -> -
A66: 1025. Matrix of applicability of LV service models to tariffs with fixed charges
B68: LV service model 1 | C68: LV service model 2 | D68: LV service model 3 | E68: LV service model 4 | F68: LV service model 5 | G68: LV service model 6 | H68: LV service model 7 | I68: LV service model 8
A69: Domestic Unrestricted | B69: ='Mat of App'!C7 -> 0.05 | C69: ='Mat of App'!D7 -> 0 | D69: ='Mat of App'!E7 -> 0 | E69: ='Mat of App'!F7 -> 0 | F69: ='Mat of App'!G7 -> 0 | G69: ='Mat of App'!H7 -> 0 | H69: ='Mat of App'!I7 -> 0 | I69: ='Mat of App'!J7 -> 0
A70: Domestic Two Rate | B70: ='Mat of App'!C8 -> 0.05 | C70: ='Mat of App'!D8 -> 0 | D70: ='Mat of App'!E8 -> 0 | E70: ='Mat of App'!F8 -> 0 | F70: ='Mat of App'!G8 -> 0 | G70: ='Mat of App'!H8 -> 0 | H70: ='Mat of App'!I8 -> 0 | I70: ='Mat of App'!J8 -> 0
A71: Small Non Domestic Unrestricted | B71: ='Mat of App'!C9 -> 0 | C71: ='Mat of App'!D9 -> 1 | D71: ='Mat of App'!E9 -> 0 | E71: ='Mat of App'!F9 -> 0 | F71: ='Mat of App'!G9 -> 0 | G71: ='Mat of App'!H9 -> 0 | H71: ='Mat of App'!I9 -> 0 | I71: ='Mat of App'!J9 -> 0
A72: Small Non Domestic Two Rate | B72: ='Mat of App'!C10 -> 0 | C72: ='Mat of App'!D10 -> 1 | D72: ='Mat of App'!E10 -> 0 | E72: ='Mat of App'!F10 -> 0 | F72: ='Mat of App'!G10 -> 0 | G72: ='Mat of App'!H10 -> 0 | H72: ='Mat of App'!I10 -> 0 | I72: ='Mat of App'!J10 -> 0
A73: LV Medium Non-Domestic | B73: ='Mat of App'!C11 -> 0 | C73: ='Mat of App'!D11 -> 0.1413350728 | D73: ='Mat of App'!E11 -> 0.8586649272 | E73: ='Mat of App'!F11 -> 0 | F73: ='Mat of App'!G11 -> 0 | G73: ='Mat of App'!H11 -> 0 | H73: ='Mat of App'!I11 -> 0 | I73: ='Mat of App'!J11 -> 0
A74: LV Sub Medium Non-Domestic | B74: ='Mat of App'!C12 -> 0 | C74: ='Mat of App'!D12 -> 0 | D74: ='Mat of App'!E12 -> 0 | E74: ='Mat of App'!F12 -> 1 | F74: ='Mat of App'!G12 -> 0 | G74: ='Mat of App'!H12 -> 0 | H74: ='Mat of App'!I12 -> 0 | I74: ='Mat of App'!J12 -> 0
A75: LV HH Metered | B75: ='Mat of App'!C13 -> 0 | C75: ='Mat of App'!D13 -> 0 | D75: ='Mat of App'!E13 -> 1 | E75: ='Mat of App'!F13 -> 0 | F75: ='Mat of App'!G13 -> 0 | G75: ='Mat of App'!H13 -> 0 | H75: ='Mat of App'!I13 -> 0 | I75: ='Mat of App'!J13 -> 0
A76: LV Sub HH Metered | B76: ='Mat of App'!C14 -> 0 | C76: ='Mat of App'!D14 -> 0 | D76: ='Mat of App'!E14 -> 0 | E76: ='Mat of App'!F14 -> 1 | F76: ='Mat of App'!G14 -> 0 | G76: ='Mat of App'!H14 -> 0 | H76: ='Mat of App'!I14 -> 0 | I76: ='Mat of App'!J14 -> 0
A77: LV Generation NHH | B77: ='Mat of App'!C15 -> 0 | C77: ='Mat of App'!D15 -> 0 | D77: ='Mat of App'!E15 -> 0 | E77: ='Mat of App'!F15 -> 0 | F77: ='Mat of App'!G15 -> 0 | G77: ='Mat of App'!H15 -> 0 | H77: ='Mat of App'!I15 -> 0 | I77: ='Mat of App'!J15 -> 0
A78: LV Sub Generation NHH | B78: ='Mat of App'!C16 -> 0 | C78: ='Mat of App'!D16 -> 0 | D78: ='Mat of App'!E16 -> 0 | E78: ='Mat of App'!F16 -> 0 | F78: ='Mat of App'!G16 -> 0 | G78: ='Mat of App'!H16 -> 0 | H78: ='Mat of App'!I16 -> 0 | I78: ='Mat of App'!J16 -> 0
A79: LV Generation Intermittent | B79: ='Mat of App'!C17 -> 0 | C79: ='Mat of App'!D17 -> 0 | D79: ='Mat of App'!E17 -> 0 | E79: ='Mat of App'!F17 -> 0 | F79: ='Mat of App'!G17 -> 0 | G79: ='Mat of App'!H17 -> 0 | H79: ='Mat of App'!I17 -> 0 | I79: ='Mat of App'!J17 -> 0
A80: LV Generation Non-Intermittent | B80: ='Mat of App'!C18 -> 0 | C80: ='Mat of App'!D18 -> 0 | D80: ='Mat of App'!E18 -> 0 | E80: ='Mat of App'!F18 -> 0 | F80: ='Mat of App'!G18 -> 0 | G80: ='Mat of App'!H18 -> 0 | H80: ='Mat of App'!I18 -> 0 | I80: ='Mat of App'!J18 -> 0
A81: LV Sub Generation Intermittent | B81: ='Mat of App'!C19 -> 0 | C81: ='Mat of App'!D19 -> 0 | D81: ='Mat of App'!E19 -> 0 | E81: ='Mat of App'!F19 -> 0 | F81: ='Mat of App'!G19 -> 0 | G81: ='Mat of App'!H19 -> 0 | H81: ='Mat of App'!I19 -> 0 | I81: ='Mat of App'!J19 -> 0
A82: LV Sub Generation Non-Intermittent | B82: ='Mat of App'!C20 -> 0 | C82: ='Mat of App'!D20 -> 0 | D82: ='Mat of App'!E20 -> 0 | E82: ='Mat of App'!F20 -> 0 | F82: ='Mat of App'!G20 -> 0 | G82: ='Mat of App'!H20 -> 0 | H82: ='Mat of App'!I20 -> 0 | I82: ='Mat of App'!J20 -> 0
A84: 1026. Matrix of applicability of LV service models to unmetered tariffs
A86: Source: service models
A87: Proportion of service model involved in connecting load of 1 MWh/year
B88: LV service model 1 | C88: LV service model 2 | D88: LV service model 3 | E88: LV service model 4 | F88: LV service model 5 | G88: LV service model 6 | H88: LV service model 7 | I88: LV service model 8
A89: All LV unmetered tariffs | B89: ='Mat of App'!C27 -> 0 | C89: ='Mat of App'!D27 -> 0 | D89: ='Mat of App'!E27 -> 0 | E89: ='Mat of App'!F27 -> 0 | F89: ='Mat of App'!G27 -> 2.874 | G89: ='Mat of App'!H27 -> 0 | H89: ='Mat of App'!I27 -> 0 | I89: ='Mat of App'!J27 -> 0
A91: 1028. Matrix of applicability of HV service models to tariffs with fixed charges
B93: HV service model 1 | C93: HV service model 2 | D93: HV service model 3 | E93: HV service model 4 | F93: HV service model 5
A94: HV Medium Non-Domestic | B94: ='Mat of App'!C32 -> 0 | C94: ='Mat of App'!D32 -> 1 | D94: ='Mat of App'!E32 -> 0 | E94: ='Mat of App'!F32 -> 0 | F94: ='Mat of App'!G32 -> 0
A95: HV HH Metered | B95: ='Mat of App'!C33 -> 0 | C95: ='Mat of App'!D33 -> 1 | D95: ='Mat of App'!E33 -> 0 | E95: ='Mat of App'!F33 -> 0 | F95: ='Mat of App'!G33 -> 0
A96: HV Sub HH Metered | B96: ='Mat of App'!C34 -> 1 | C96: ='Mat of App'!D34 -> 0 | D96: ='Mat of App'!E34 -> 0 | E96: ='Mat of App'!F34 -> 0 | F96: ='Mat of App'!G34 -> 0
A97: HV Generation Intermittent | B97: ='Mat of App'!C35 -> 0 | C97: ='Mat of App'!D35 -> 0 | D97: ='Mat of App'!E35 -> 1 | E97: ='Mat of App'!F35 -> 0 | F97: ='Mat of App'!G35 -> 0
A98: HV Generation Non-Intermittent | B98: ='Mat of App'!C36 -> 0 | C98: ='Mat of App'!D36 -> 0 | D98: ='Mat of App'!E36 -> 1 | E98: ='Mat of App'!F36 -> 0 | F98: ='Mat of App'!G36 -> 0
A99: HV Sub Generation Non-Intermittent | B99: ='Mat of App'!C37 -> 0 | C99: ='Mat of App'!D37 -> 0 | D99: ='Mat of App'!E37 -> 1 | E99: ='Mat of App'!F37 -> 0 | F99: ='Mat of App'!G37 -> 0
A100: HV Sub Generation Intermittent | B100: ='Mat of App'!C38 -> 0 | C100: ='Mat of App'!D38 -> 0 | D100: ='Mat of App'!E38 -> 1 | E100: ='Mat of App'!F38 -> 0 | F100: ='Mat of App'!G38 -> 0
A102: 1032. Loss adjustment factors to transmission
A104: Source: losses model or loss adjustment factors at time of system peak.
B105: 132kV | C105: 132kV/EHV | D105: EHV | E105: EHV/HV | F105: HV | G105: HV/LV | H105: LV circuits
A106: Loss adjustment factor | B106: =VLOOKUP(Vlookup!B106,Forcast_Data,5,FALSE) -> 1.01 | C106: =VLOOKUP(Vlookup!C106,Forcast_Data,5,FALSE) -> 1.015 | D106: =VLOOKUP(Vlookup!D106,Forcast_Data,5,FALSE) -> 1.021 | E106: =VLOOKUP(Vlookup!E106,Forcast_Data,5,FALSE) -> 1.027 | F106: =VLOOKUP(Vlookup!F106,Forcast_Data,5,FALSE) -> 1.039 | G106: =VLOOKUP(Vlookup!G106,Forcast_Data,5,FALSE) -> 1.052 | H106: =VLOOKUP(Vlookup!H106,Forcast_Data,5,FALSE) -> 1.102
A108: 1037. Embedded network (LDNO) discounts
A110: Source: separate price control disaggregation model.
B111: No discount | C111: LDNO LV: LV user | D111: LDNO HV: LV user | E111: LDNO HV: LV sub user | F111: LDNO HV: HV user
A112: LDNO discount | C112: =VLOOKUP(Vlookup!C112,Forcast_Data,5,FALSE) -> 0.3341290619 | D112: =VLOOKUP(Vlookup!D112,Forcast_Data,5,FALSE) -> 0.5844116687 | E112: =VLOOKUP(Vlookup!E112,Forcast_Data,5,FALSE) -> 0.3566533208 | F112: =VLOOKUP(Vlookup!F112,Forcast_Data,5,FALSE) -> 0.2429095212
A114: 1041. Load profile data for demand users
A116: Source: load data analysis.
B117: Coincidence factor | C117: Load factor
A118: Domestic Unrestricted | B118: =VLOOKUP(Vlookup!B118,Forcast_Data,5,FALSE) -> 0.8894527476 | C118: =VLOOKUP(Vlookup!C118,Forcast_Data,5,FALSE) -> 0.425096632
A119: Domestic Two Rate | B119: =VLOOKUP(Vlookup!B119,Forcast_Data,5,FALSE) -> 0.2923961216 | C119: =VLOOKUP(Vlookup!C119,Forcast_Data,5,FALSE) -> 0.2241627496
A120: Domestic Off Peak (related MPAN) | C120: =VLOOKUP(Vlookup!C120,Forcast_Data,5,FALSE) -> 0.1536521176
A121: Small Non Domestic Unrestricted | B121: =VLOOKUP(Vlookup!B121,Forcast_Data,5,FALSE) -> 0.6810846655 | C121: =VLOOKUP(Vlookup!C121,Forcast_Data,5,FALSE) -> 0.3702747492
A122: Small Non Domestic Two Rate | B122: =VLOOKUP(Vlookup!B122,Forcast_Data,5,FALSE) -> 0.6898873841 | C122: =VLOOKUP(Vlookup!C122,Forcast_Data,5,FALSE) -> 0.4968878577
A123: Small Non Domestic Off Peak (related MPAN) | C123: =VLOOKUP(Vlookup!C123,Forcast_Data,5,FALSE) -> 0.1545401669
A124: LV Medium Non-Domestic | B124: =VLOOKUP(Vlookup!B124,Forcast_Data,5,FALSE) -> 0.8329407611 | C124: =VLOOKUP(Vlookup!C124,Forcast_Data,5,FALSE) -> 0.5456237824
A125: LV Sub Medium Non-Domestic | B125: =VLOOKUP(Vlookup!B125,Forcast_Data,5,FALSE) -> 0.8126048746 | C125: =VLOOKUP(Vlookup!C125,Forcast_Data,5,FALSE) -> 0.5454104986
A126: HV Medium Non-Domestic | B126: =VLOOKUP(Vlookup!B126,Forcast_Data,5,FALSE) -> 0.7136785066 | C126: =VLOOKUP(Vlookup!C126,Forcast_Data,5,FALSE) -> 0.4626342321
A127: LV HH Metered | B127: =VLOOKUP(Vlookup!B127,Forcast_Data,5,FALSE) -> 0.6832247724 | C127: =VLOOKUP(Vlookup!C127,Forcast_Data,5,FALSE) -> 0.5410071103
A128: LV Sub HH Metered | B128: =VLOOKUP(Vlookup!B128,Forcast_Data,5,FALSE) -> 0.7627675285 | C128: =VLOOKUP(Vlookup!C128,Forcast_Data,5,FALSE) -> 0.5418394901
A129: HV HH Metered | B129: =VLOOKUP(Vlookup!B129,Forcast_Data,5,FALSE) -> 0.8478213281 | C129: =VLOOKUP(Vlookup!C129,Forcast_Data,5,FALSE) -> 0.6967159082
A130: HV Sub HH Metered | B130: =VLOOKUP(Vlookup!B130,Forcast_Data,5,FALSE) -> 0.8478213281 | C130: =VLOOKUP(Vlookup!C130,Forcast_Data,5,FALSE) -> 0.6967159082
A131: NHH UMS category A | B131: =VLOOKUP(Vlookup!B131,Forcast_Data,5,FALSE) -> 1 | C131: =VLOOKUP(Vlookup!C131,Forcast_Data,5,FALSE) -> 1
A132: NHH UMS category B | B132: =VLOOKUP(Vlookup!B132,Forcast_Data,5,FALSE) -> 1 | C132: =VLOOKUP(Vlookup!C132,Forcast_Data,5,FALSE) -> 0.4743366324
A133: NHH UMS category C | B133: =VLOOKUP(Vlookup!B133,Forcast_Data,5,FALSE) -> 1 | C133: =VLOOKUP(Vlookup!C133,Forcast_Data,5,FALSE) -> 0.2580201598
A134: NHH UMS category D | B134: =VLOOKUP(Vlookup!B134,Forcast_Data,5,FALSE) -> 0 | C134: =VLOOKUP(Vlookup!C134,Forcast_Data,5,FALSE) -> 0.5537948744
A135: LV UMS (Pseudo HH Metered) | B135: =VLOOKUP(Vlookup!B135,Forcast_Data,5,FALSE) -> 0.9077193592 | C135: =VLOOKUP(Vlookup!C135,Forcast_Data,5,FALSE) -> 0.4793103092
A137: 1053. Volume forecasts for the charging year
B138: 4 | C138: 5 | D138: 6 | E138: 7 | F138: 8 | G138: 9
A139: Source: forecast.
A140: Please include MPAN counts for tariffs with no fixed charge (e.g. off-peak tariffs),
A141: but exclude MPANs on tariffs with a fixed charge that are not subject to a fixed charge due to a site grouping arrangement.
B142: Rate 1 units (MWh) | C142: Rate 2 units (MWh) | D142: Rate 3 units (MWh) | E142: MPANs | F142: Import capacity (kVA) | G142: Reactive power units (MVArh)
A143: > Domestic Unrestricted
A144: Domestic Unrestricted | B144: =VLOOKUP(Vlookup!B144,Volume_Forecast_Data,B$138,FALSE) -> 7310848.614 | E144: =VLOOKUP(Vlookup!E144,Volume_Forecast_Data,E$138,FALSE) -> 1982660.667
A145: LDNO LV: Domestic Unrestricted | B145: =VLOOKUP(Vlookup!B145,Volume_Forecast_Data,B$138,FALSE) -> 42441.48149 | E145: =VLOOKUP(Vlookup!E145,Volume_Forecast_Data,E$138,FALSE) -> 13534.75
A146: LDNO HV: Domestic Unrestricted | B146: =VLOOKUP(Vlookup!B146,Volume_Forecast_Data,B$138,FALSE) -> 21927.41737 | E146: =VLOOKUP(Vlookup!E146,Volume_Forecast_Data,E$138,FALSE) -> 6401.333333
A147: > Domestic Two Rate
A148: Domestic Two Rate | B148: =VLOOKUP(Vlookup!B148,Volume_Forecast_Data,B$138,FALSE) -> 666975.3308 | C148: =VLOOKUP(Vlookup!C148,Volume_Forecast_Data,C$138,FALSE) -> 559774.7831 | E148: =VLOOKUP(Vlookup!E148,Volume_Forecast_Data,E$138,FALSE) -> 189883.6667
A149: LDNO LV: Domestic Two Rate | B149: =VLOOKUP(Vlookup!B149,Volume_Forecast_Data,B$138,FALSE) -> 497.8711283 | C149: =VLOOKUP(Vlookup!C149,Volume_Forecast_Data,C$138,FALSE) -> 294.7756701 | E149: =VLOOKUP(Vlookup!E149,Volume_Forecast_Data,E$138,FALSE) -> 228.125
A150: LDNO HV: Domestic Two Rate | B150: =VLOOKUP(Vlookup!B150,Volume_Forecast_Data,B$138,FALSE) -> 2931.741403 | C150: =VLOOKUP(Vlookup!C150,Volume_Forecast_Data,C$138,FALSE) -> 2733.709809 | E150: =VLOOKUP(Vlookup!E150,Volume_Forecast_Data,E$138,FALSE) -> 988.75
A151: > Domestic Off Peak (related MPAN)
A152: Domestic Off Peak (related MPAN) | B152: =VLOOKUP(Vlookup!B152,Volume_Forecast_Data,B$138,FALSE) -> 29439.1463 | E152: =VLOOKUP(Vlookup!E152,Volume_Forecast_Data,E$138,FALSE) -> 7040.916667
A153: LDNO LV: Domestic Off Peak (related MPAN) | B153: =VLOOKUP(Vlookup!B153,Volume_Forecast_Data,B$138,FALSE) -> 0 | E153: =VLOOKUP(Vlookup!E153,Volume_Forecast_Data,E$138,FALSE) -> 0
A154: LDNO HV: Domestic Off Peak (related MPAN) | B154: =VLOOKUP(Vlookup!B154,Volume_Forecast_Data,B$138,FALSE) -> 0 | E154: =VLOOKUP(Vlookup!E154,Volume_Forecast_Data,E$138,FALSE) -> 0
A155: > Small Non Domestic Unrestricted
A156: Small Non Domestic Unrestricted | B156: =VLOOKUP(Vlookup!B156,Volume_Forecast_Data,B$138,FALSE) -> 1792202.595 | E156: =VLOOKUP(Vlookup!E156,Volume_Forecast_Data,E$138,FALSE) -> 122538.8333
A157: LDNO LV: Small Non Domestic Unrestricted | B157: =VLOOKUP(Vlookup!B157,Volume_Forecast_Data,B$138,FALSE) -> 3130.561409 | E157: =VLOOKUP(Vlookup!E157,Volume_Forecast_Data,E$138,FALSE) -> 292.75
A158: LDNO HV: Small Non Domestic Unrestricted | B158: =VLOOKUP(Vlookup!B158,Volume_Forecast_Data,B$138,FALSE) -> 3062.85678 | E158: =VLOOKUP(Vlookup!E158,Volume_Forecast_Data,E$138,FALSE) -> 258.7916667
A159: > Small Non Domestic Two Rate
A160: Small Non Domestic Two Rate | B160: =VLOOKUP(Vlookup!B160,Volume_Forecast_Data,B$138,FALSE) -> 579744.714 | C160: =VLOOKUP(Vlookup!C160,Volume_Forecast_Data,C$138,FALSE) -> 220078.7443 | E160: =VLOOKUP(Vlookup!E160,Volume_Forecast_Data,E$138,FALSE) -> 31513.58333
A161: LDNO LV: Small Non Domestic Two Rate | B161: =VLOOKUP(Vlookup!B161,Volume_Forecast_Data,B$138,FALSE) -> 12.22665689 | C161: =VLOOKUP(Vlookup!C161,Volume_Forecast_Data,C$138,FALSE) -> 6.504895281 | E161: =VLOOKUP(Vlookup!E161,Volume_Forecast_Data,E$138,FALSE) -> 5.041666667
A162: LDNO HV: Small Non Domestic Two Rate | B162: =VLOOKUP(Vlookup!B162,Volume_Forecast_Data,B$138,FALSE) -> 441.3333353 | C162: =VLOOKUP(Vlookup!C162,Volume_Forecast_Data,C$138,FALSE) -> 184.0111858 | E162: =VLOOKUP(Vlookup!E162,Volume_Forecast_Data,E$138,FALSE) -> 10.04166667
A163: > Small Non Domestic Off Peak (related MPAN)
A164: Small Non Domestic Off Peak (related MPAN) | B164: =VLOOKUP(Vlookup!B164,Volume_Forecast_Data,B$138,FALSE) -> 28000.72981 | E164: =VLOOKUP(Vlookup!E164,Volume_Forecast_Data,E$138,FALSE) -> 4216.416667
A165: LDNO LV: Small Non Domestic Off Peak (related MPAN) | B165: =VLOOKUP(Vlookup!B165,Volume_Forecast_Data,B$138,FALSE) -> 0 | E165: =VLOOKUP(Vlookup!E165,Volume_Forecast_Data,E$138,FALSE) -> 0
A166: LDNO HV: Small Non Domestic Off Peak (related MPAN) | B166: =VLOOKUP(Vlookup!B166,Volume_Forecast_Data,B$138,FALSE) -> 0 | E166: =VLOOKUP(Vlookup!E166,Volume_Forecast_Data,E$138,FALSE) -> 0
A167: > LV Medium Non-Domestic
A168: LV Medium Non-Domestic | B168: =VLOOKUP(Vlookup!B168,Volume_Forecast_Data,B$138,FALSE) -> 1006480.758 | C168: =VLOOKUP(Vlookup!C168,Volume_Forecast_Data,C$138,FALSE) -> 244119.688 | E168: =VLOOKUP(Vlookup!E168,Volume_Forecast_Data,E$138,FALSE) -> 11375.16667
A169: LDNO LV: LV Medium Non-Domestic | B169: =VLOOKUP(Vlookup!B169,Volume_Forecast_Data,B$138,FALSE) -> 380.751 | C169: =VLOOKUP(Vlookup!C169,Volume_Forecast_Data,C$138,FALSE) -> 138.564 | E169: =VLOOKUP(Vlookup!E169,Volume_Forecast_Data,E$138,FALSE) -> 1
A170: LDNO HV: LV Medium Non-Domestic | B170: =VLOOKUP(Vlookup!B170,Volume_Forecast_Data,B$138,FALSE) -> 285.5460665 | C170: =VLOOKUP(Vlookup!C170,Volume_Forecast_Data,C$138,FALSE) -> 67.96435429 | E170: =VLOOKUP(Vlookup!E170,Volume_Forecast_Data,E$138,FALSE) -> 4.916666667
A171: > LV Sub Medium Non-Domestic
A172: LV Sub Medium Non-Domestic | B172: =VLOOKUP(Vlookup!B172,Volume_Forecast_Data,B$138,FALSE) -> 34752.97721 | C172: =VLOOKUP(Vlookup!C172,Volume_Forecast_Data,C$138,FALSE) -> 9437.524467 | E172: =VLOOKUP(Vlookup!E172,Volume_Forecast_Data,E$138,FALSE) -> 349.75
A173: > HV Medium Non-Domestic
A174: HV Medium Non-Domestic | B174: =VLOOKUP(Vlookup!B174,Volume_Forecast_Data,B$138,FALSE) -> 8128.150366 | C174: =VLOOKUP(Vlookup!C174,Volume_Forecast_Data,C$138,FALSE) -> 2466.670026 | E174: =VLOOKUP(Vlookup!E174,Volume_Forecast_Data,E$138,FALSE) -> 59.66666667
A175: > LV HH Metered
A176: LV HH Metered | B176: =VLOOKUP(Vlookup!B176,Volume_Forecast_Data,B$138,FALSE) -> 115258.6789 | C176: =VLOOKUP(Vlookup!C176,Volume_Forecast_Data,C$138,FALSE) -> 659155.1153 | D176: =VLOOKUP(Vlookup!D176,Volume_Forecast_Data,D$138,FALSE) -> 811403.0382 | E176: =VLOOKUP(Vlookup!E176,Volume_Forecast_Data,E$138,FALSE) -> 5112.583333 | F176: =VLOOKUP(Vlookup!F176,Volume_Forecast_Data,F$138,FALSE) -> 872923.868 | G176: =VLOOKUP(Vlookup!G176,Volume_Forecast_Data,G$138,FALSE) -> 129514.4694
A177: LDNO LV: LV HH Metered | B177: =VLOOKUP(Vlookup!B177,Volume_Forecast_Data,B$138,FALSE) -> 0 | C177: =VLOOKUP(Vlookup!C177,Volume_Forecast_Data,C$138,FALSE) -> 0 | D177: =VLOOKUP(Vlookup!D177,Volume_Forecast_Data,D$138,FALSE) -> 0 | E177: =VLOOKUP(Vlookup!E177,Volume_Forecast_Data,E$138,FALSE) -> 0 | F177: =VLOOKUP(Vlookup!F177,Volume_Forecast_Data,F$138,FALSE) -> 0 | G177: =VLOOKUP(Vlookup!G177,Volume_Forecast_Data,G$138,FALSE) -> 0
A178: LDNO HV: LV HH Metered | B178: =VLOOKUP(Vlookup!B178,Volume_Forecast_Data,B$138,FALSE) -> 0 | C178: =VLOOKUP(Vlookup!C178,Volume_Forecast_Data,C$138,FALSE) -> 0 | D178: =VLOOKUP(Vlookup!D178,Volume_Forecast_Data,D$138,FALSE) -> 0 | E178: =VLOOKUP(Vlookup!E178,Volume_Forecast_Data,E$138,FALSE) -> 0 | F178: =VLOOKUP(Vlookup!F178,Volume_Forecast_Data,F$138,FALSE) -> 0 | G178: =VLOOKUP(Vlookup!G178,Volume_Forecast_Data,G$138,FALSE) -> 0
A179: > LV Sub HH Metered
A180: LV Sub HH Metered | B180: =VLOOKUP(Vlookup!B180,Volume_Forecast_Data,B$138,FALSE) -> 91725.84632 | C180: =VLOOKUP(Vlookup!C180,Volume_Forecast_Data,C$138,FALSE) -> 539168.885 | D180: =VLOOKUP(Vlookup!D180,Volume_Forecast_Data,D$138,FALSE) -> 683989.5085 | E180: =VLOOKUP(Vlookup!E180,Volume_Forecast_Data,E$138,FALSE) -> 1832 | F180: =VLOOKUP(Vlookup!F180,Volume_Forecast_Data,F$138,FALSE) -> 641914.1736 | G180: =VLOOKUP(Vlookup!G180,Volume_Forecast_Data,G$138,FALSE) -> 91483.06762
A181: LDNO HV: LV Sub HH Metered | B181: =VLOOKUP(Vlookup!B181,Volume_Forecast_Data,B$138,FALSE) -> 0 | C181: =VLOOKUP(Vlookup!C181,Volume_Forecast_Data,C$138,FALSE) -> 0 | D181: =VLOOKUP(Vlookup!D181,Volume_Forecast_Data,D$138,FALSE) -> 0 | E181: =VLOOKUP(Vlookup!E181,Volume_Forecast_Data,E$138,FALSE) -> 0 | F181: =VLOOKUP(Vlookup!F181,Volume_Forecast_Data,F$138,FALSE) -> 0 | G181: =VLOOKUP(Vlookup!G181,Volume_Forecast_Data,G$138,FALSE) -> 0
A182: > HV HH Metered
A183: HV HH Metered | B183: =VLOOKUP(Vlookup!B183,Volume_Forecast_Data,B$138,FALSE) -> 339310.2281 | C183: =VLOOKUP(Vlookup!C183,Volume_Forecast_Data,C$138,FALSE) -> 1863729.991 | D183: =VLOOKUP(Vlookup!D183,Volume_Forecast_Data,D$138,FALSE) -> 2910206.279 | E183: =VLOOKUP(Vlookup!E183,Volume_Forecast_Data,E$138,FALSE) -> 1979 | F183: =VLOOKUP(Vlookup!F183,Volume_Forecast_Data,F$138,FALSE) -> 1858583.199 | G183: =VLOOKUP(Vlookup!G183,Volume_Forecast_Data,G$138,FALSE) -> 356232.7907
A184: LDNO HV: HV HH Metered | B184: =VLOOKUP(Vlookup!B184,Volume_Forecast_Data,B$138,FALSE) -> 0 | C184: =VLOOKUP(Vlookup!C184,Volume_Forecast_Data,C$138,FALSE) -> 0 | D184: =VLOOKUP(Vlookup!D184,Volume_Forecast_Data,D$138,FALSE) -> 0 | E184: =VLOOKUP(Vlookup!E184,Volume_Forecast_Data,E$138,FALSE) -> 0 | F184: =VLOOKUP(Vlookup!F184,Volume_Forecast_Data,F$138,FALSE) -> 0 | G184: =VLOOKUP(Vlookup!G184,Volume_Forecast_Data,G$138,FALSE) -> 0
A185: > HV Sub HH Metered
A186: HV Sub HH Metered | B186: =VLOOKUP(Vlookup!B186,Volume_Forecast_Data,B$138,FALSE) -> 0 | C186: =VLOOKUP(Vlookup!C186,Volume_Forecast_Data,C$138,FALSE) -> 0 | D186: =VLOOKUP(Vlookup!D186,Volume_Forecast_Data,D$138,FALSE) -> 0 | E186: =VLOOKUP(Vlookup!E186,Volume_Forecast_Data,E$138,FALSE) -> 0 | F186: =VLOOKUP(Vlookup!F186,Volume_Forecast_Data,F$138,FALSE) -> 0 | G186: =VLOOKUP(Vlookup!G186,Volume_Forecast_Data,G$138,FALSE) -> 0
A187: > NHH UMS category A
A188: NHH UMS category A | B188: =VLOOKUP(Vlookup!B188,Volume_Forecast_Data,B$138,FALSE) -> 32810.2781 | E188: =VLOOKUP(Vlookup!E188,Volume_Forecast_Data,E$138,FALSE) -> 246
A189: LDNO LV: NHH UMS category A | B189: =VLOOKUP(Vlookup!B189,Volume_Forecast_Data,B$138,FALSE) -> 0 | E189: =VLOOKUP(Vlookup!E189,Volume_Forecast_Data,E$138,FALSE) -> 0
A190: LDNO HV: NHH UMS category A | B190: =VLOOKUP(Vlookup!B190,Volume_Forecast_Data,B$138,FALSE) -> 0 | E190: =VLOOKUP(Vlookup!E190,Volume_Forecast_Data,E$138,FALSE) -> 0
A191: > NHH UMS category B
A192: NHH UMS category B | B192: =VLOOKUP(Vlookup!B192,Volume_Forecast_Data,B$138,FALSE) -> 10179.26841 | E192: =VLOOKUP(Vlookup!E192,Volume_Forecast_Data,E$138,FALSE) -> 303
A193: LDNO LV: NHH UMS category B | B193: =VLOOKUP(Vlookup!B193,Volume_Forecast_Data,B$138,FALSE) -> 182.0823984 | E193: =VLOOKUP(Vlookup!E193,Volume_Forecast_Data,E$138,FALSE) -> 52.54166667
A194: LDNO HV: NHH UMS category B | B194: =VLOOKUP(Vlookup!B194,Volume_Forecast_Data,B$138,FALSE) -> 91.981 | E194: =VLOOKUP(Vlookup!E194,Volume_Forecast_Data,E$138,FALSE) -> 12
A195: > NHH UMS category C
A196: NHH UMS category C | B196: =VLOOKUP(Vlookup!B196,Volume_Forecast_Data,B$138,FALSE) -> 0.8598081262 | E196: =VLOOKUP(Vlookup!E196,Volume_Forecast_Data,E$138,FALSE) -> 1
A197: LDNO LV: NHH UMS category C | B197: =VLOOKUP(Vlookup!B197,Volume_Forecast_Data,B$138,FALSE) -> 0 | E197: =VLOOKUP(Vlookup!E197,Volume_Forecast_Data,E$138,FALSE) -> 0
A198: LDNO HV: NHH UMS category C | B198: =VLOOKUP(Vlookup!B198,Volume_Forecast_Data,B$138,FALSE) -> 0 | E198: =VLOOKUP(Vlookup!E198,Volume_Forecast_Data,E$138,FALSE) -> 0
A199: > NHH UMS category D
A200: NHH UMS category D | B200: =VLOOKUP(Vlookup!B200,Volume_Forecast_Data,B$138,FALSE) -> 0 | E200: =VLOOKUP(Vlookup!E200,Volume_Forecast_Data,E$138,FALSE) -> 0
A201: LDNO LV: NHH UMS category D | B201: =VLOOKUP(Vlookup!B201,Volume_Forecast_Data,B$138,FALSE) -> 0 | E201: =VLOOKUP(Vlookup!E201,Volume_Forecast_Data,E$138,FALSE) -> 0
A202: LDNO HV: NHH UMS category D | B202: =VLOOKUP(Vlookup!B202,Volume_Forecast_Data,B$138,FALSE) -> 0 | E202: =VLOOKUP(Vlookup!E202,Volume_Forecast_Data,E$138,FALSE) -> 0
A203: > LV UMS (Pseudo HH Metered)
A204: LV UMS (Pseudo HH Metered) | B204: =VLOOKUP(Vlookup!B204,Volume_Forecast_Data,B$138,FALSE) -> 9985.427362 | C204: =VLOOKUP(Vlookup!C204,Volume_Forecast_Data,C$138,FALSE) -> 34521.04888 | D204: =VLOOKUP(Vlookup!D204,Volume_Forecast_Data,D$138,FALSE) -> 240791.4484 | E204: =VLOOKUP(Vlookup!E204,Volume_Forecast_Data,E$138,FALSE) -> 23
A205: LDNO LV: LV UMS (Pseudo HH Metered) | B205: =VLOOKUP(Vlookup!B205,Volume_Forecast_Data,B$138,FALSE) -> 0 | C205: =VLOOKUP(Vlookup!C205,Volume_Forecast_Data,C$138,FALSE) -> 0 | D205: =VLOOKUP(Vlookup!D205,Volume_Forecast_Data,D$138,FALSE) -> 0 | E205: =VLOOKUP(Vlookup!E205,Volume_Forecast_Data,E$138,FALSE) -> 0
A206: LDNO HV: LV UMS (Pseudo HH Metered) | B206: =VLOOKUP(Vlookup!B206,Volume_Forecast_Data,B$138,FALSE) -> 0 | C206: =VLOOKUP(Vlookup!C206,Volume_Forecast_Data,C$138,FALSE) -> 0 | D206: =VLOOKUP(Vlookup!D206,Volume_Forecast_Data,D$138,FALSE) -> 0 | E206: =VLOOKUP(Vlookup!E206,Volume_Forecast_Data,E$138,FALSE) -> 0
A207: > LV Generation NHH
A208: LV Generation NHH | B208: =VLOOKUP(Vlookup!B208,Volume_Forecast_Data,B$138,FALSE) -> 751.3679941 | E208: =VLOOKUP(Vlookup!E208,Volume_Forecast_Data,E$138,FALSE) -> 53.5
A209: LDNO LV: LV Generation NHH | B209: =VLOOKUP(Vlookup!B209,Volume_Forecast_Data,B$138,FALSE) -> 0 | E209: =VLOOKUP(Vlookup!E209,Volume_Forecast_Data,E$138,FALSE) -> 0
A210: LDNO HV: LV Generation NHH | B210: =VLOOKUP(Vlookup!B210,Volume_Forecast_Data,B$138,FALSE) -> 0 | E210: =VLOOKUP(Vlookup!E210,Volume_Forecast_Data,E$138,FALSE) -> 0
A211: > LV Sub Generation NHH
A212: LV Sub Generation NHH | B212: =VLOOKUP(Vlookup!B212,Volume_Forecast_Data,B$138,FALSE) -> 0 | E212: =VLOOKUP(Vlookup!E212,Volume_Forecast_Data,E$138,FALSE) -> 0
A213: LDNO HV: LV Sub Generation NHH | B213: =VLOOKUP(Vlookup!B213,Volume_Forecast_Data,B$138,FALSE) -> 0 | E213: =VLOOKUP(Vlookup!E213,Volume_Forecast_Data,E$138,FALSE) -> 0
A214: > LV Generation Intermittent
A215: LV Generation Intermittent | B215: =VLOOKUP(Vlookup!B215,Volume_Forecast_Data,B$138,FALSE) -> 6354.467832 | E215: =VLOOKUP(Vlookup!E215,Volume_Forecast_Data,E$138,FALSE) -> 66.33333333 | G215: =VLOOKUP(Vlookup!G215,Volume_Forecast_Data,G$138,FALSE) -> 338.3854762
A216: LDNO LV: LV Generation Intermittent | B216: =VLOOKUP(Vlookup!B216,Volume_Forecast_Data,B$138,FALSE) -> 0 | E216: =VLOOKUP(Vlookup!E216,Volume_Forecast_Data,E$138,FALSE) -> 0 | G216: =VLOOKUP(Vlookup!G216,Volume_Forecast_Data,G$138,FALSE) -> 0
A217: LDNO HV: LV Generation Intermittent | B217: =VLOOKUP(Vlookup!B217,Volume_Forecast_Data,B$138,FALSE) -> 0 | E217: =VLOOKUP(Vlookup!E217,Volume_Forecast_Data,E$138,FALSE) -> 0 | G217: =VLOOKUP(Vlookup!G217,Volume_Forecast_Data,G$138,FALSE) -> 0
A218: > LV Generation Non-Intermittent
A219: LV Generation Non-Intermittent | B219: =VLOOKUP(Vlookup!B219,Volume_Forecast_Data,B$138,FALSE) -> 50.21722857 | C219: =VLOOKUP(Vlookup!C219,Volume_Forecast_Data,C$138,FALSE) -> 163.6877 | D219: =VLOOKUP(Vlookup!D219,Volume_Forecast_Data,D$138,FALSE) -> 342.4324286 | E219: =VLOOKUP(Vlookup!E219,Volume_Forecast_Data,E$138,FALSE) -> 8.333333333 | G219: =VLOOKUP(Vlookup!G219,Volume_Forecast_Data,G$138,FALSE) -> 4.88844243
A220: LDNO LV: LV Generation Non-Intermittent | B220: =VLOOKUP(Vlookup!B220,Volume_Forecast_Data,B$138,FALSE) -> 0 | C220: =VLOOKUP(Vlookup!C220,Volume_Forecast_Data,C$138,FALSE) -> 0 | D220: =VLOOKUP(Vlookup!D220,Volume_Forecast_Data,D$138,FALSE) -> 0 | E220: =VLOOKUP(Vlookup!E220,Volume_Forecast_Data,E$138,FALSE) -> 0 | G220: =VLOOKUP(Vlookup!G220,Volume_Forecast_Data,G$138,FALSE) -> 0
A221: LDNO HV: LV Generation Non-Intermittent | B221: =VLOOKUP(Vlookup!B221,Volume_Forecast_Data,B$138,FALSE) -> 0 | C221: =VLOOKUP(Vlookup!C221,Volume_Forecast_Data,C$138,FALSE) -> 0 | D221: =VLOOKUP(Vlookup!D221,Volume_Forecast_Data,D$138,FALSE) -> 0 | E221: =VLOOKUP(Vlookup!E221,Volume_Forecast_Data,E$138,FALSE) -> 0 | G221: =VLOOKUP(Vlookup!G221,Volume_Forecast_Data,G$138,FALSE) -> 0
A222: > LV Sub Generation Intermittent
A223: LV Sub Generation Intermittent | B223: =VLOOKUP(Vlookup!B223,Volume_Forecast_Data,B$138,FALSE) -> 140.3316567 | E223: =VLOOKUP(Vlookup!E223,Volume_Forecast_Data,E$138,FALSE) -> 7.5 | G223: =VLOOKUP(Vlookup!G223,Volume_Forecast_Data,G$138,FALSE) -> 2.07053948
A224: LDNO HV: LV Sub Generation Intermittent | B224: =VLOOKUP(Vlookup!B224,Volume_Forecast_Data,B$138,FALSE) -> 0 | E224: =VLOOKUP(Vlookup!E224,Volume_Forecast_Data,E$138,FALSE) -> 0 | G224: =VLOOKUP(Vlookup!G224,Volume_Forecast_Data,G$138,FALSE) -> 0
A225: > LV Sub Generation Non-Intermittent
A226: LV Sub Generation Non-Intermittent | B226: =VLOOKUP(Vlookup!B226,Volume_Forecast_Data,B$138,FALSE) -> 42.8082 | C226: =VLOOKUP(Vlookup!C226,Volume_Forecast_Data,C$138,FALSE) -> 95.5942 | D226: =VLOOKUP(Vlookup!D226,Volume_Forecast_Data,D$138,FALSE) -> 304.5552 | E226: =VLOOKUP(Vlookup!E226,Volume_Forecast_Data,E$138,FALSE) -> 9 | G226: =VLOOKUP(Vlookup!G226,Volume_Forecast_Data,G$138,FALSE) -> 19.69714151
A227: LDNO HV: LV Sub Generation Non-Intermittent | B227: =VLOOKUP(Vlookup!B227,Volume_Forecast_Data,B$138,FALSE) -> 0 | C227: =VLOOKUP(Vlookup!C227,Volume_Forecast_Data,C$138,FALSE) -> 0 | D227: =VLOOKUP(Vlookup!D227,Volume_Forecast_Data,D$138,FALSE) -> 0 | E227: =VLOOKUP(Vlookup!E227,Volume_Forecast_Data,E$138,FALSE) -> 0 | G227: =VLOOKUP(Vlookup!G227,Volume_Forecast_Data,G$138,FALSE) -> 0
A228: > HV Generation Intermittent
A229: HV Generation Intermittent | B229: =VLOOKUP(Vlookup!B229,Volume_Forecast_Data,B$138,FALSE) -> 132424.371 | E229: =VLOOKUP(Vlookup!E229,Volume_Forecast_Data,E$138,FALSE) -> 40.41666667 | G229: =VLOOKUP(Vlookup!G229,Volume_Forecast_Data,G$138,FALSE) -> 5014.603905
A230: LDNO HV: HV Generation Intermittent | B230: =VLOOKUP(Vlookup!B230,Volume_Forecast_Data,B$138,FALSE) -> 0 | E230: =VLOOKUP(Vlookup!E230,Volume_Forecast_Data,E$138,FALSE) -> 0 | G230: =VLOOKUP(Vlookup!G230,Volume_Forecast_Data,G$138,FALSE) -> 0
A231: > HV Generation Non-Intermittent
A232: HV Generation Non-Intermittent | B232: =VLOOKUP(Vlookup!B232,Volume_Forecast_Data,B$138,FALSE) -> 33598.48805 | C232: =VLOOKUP(Vlookup!C232,Volume_Forecast_Data,C$138,FALSE) -> 160608.5791 | D232: =VLOOKUP(Vlookup!D232,Volume_Forecast_Data,D$138,FALSE) -> 339088.6578 | E232: =VLOOKUP(Vlookup!E232,Volume_Forecast_Data,E$138,FALSE) -> 104.8333333 | G232: =VLOOKUP(Vlookup!G232,Volume_Forecast_Data,G$138,FALSE) -> 14294.59971
... 94 more rows

Sheet (Y+1)
A5: 1000. Company, charging year, data version
B7: Company | C7: Year | D7: Version
A8: Company, charging year, data version | B8: =VLOOKUP(Vlookup!B8,Forcast_Data,6,FALSE) -> ENWL | C8: =VLOOKUP(Vlookup!C8,Forcast_Data,6,FALSE) -> 2015/16 | D8: =VLOOKUP(Vlookup!D8,Forcast_Data,6,FALSE) -> v1
A10: 1010. Financial and general assumptions
A12: Sources: financial assumptions; calendar; network model.
A13: These financial assumptions determine the annuity rate applied to convert the asset values of the network model into an annual charge.
B14: Rate of return | C14: Annualisation period (years) | D14: Annuity proportion for customer-contributed assets | E14: Power factor | F14: Days in the charging period
A15: Financial and general assumptions | B15: =VLOOKUP(Vlookup!B15,Forcast_Data,6,FALSE) -> 0.056 | C15: =VLOOKUP(Vlookup!C15,Forcast_Data,6,FALSE) -> 40 | E15: =VLOOKUP(Vlookup!E15,Forcast_Data,6,FALSE) -> 0.95 | F15: =VLOOKUP(Vlookup!F15,Forcast_Data,6,FALSE) -> 366
A17: 1017. Diversity allowance between top and bottom of network level
A19: Source: operational data analysis and/or network model.
A20: The diversity figure against GSP is the diversity between GSP Group (the whole system) and individual GSPs.
A21: The diversity figure against 132kV is the diversity between GSPs (the top of the 132kV network) and 132kV/EHV bulk supply points (the bottom of the 132kV network).
A22: The diversity figure against EHV is the diversity between 132kV/EHV bulk supply points (the top of the EHV network) and EHV/HV primary substations (the bottom of the EHV network).
A23: The diversity figure against HV is the diversity between EHV/HV primary substations (the top of the HV network) and HV/LV substations (the bottom of the HV network).
B24: Diversity allowance between top and bottom of network level
A25: GSPs | B25: =VLOOKUP(Vlookup!B25,Forcast_Data,6,FALSE) -> 0.1143197131
A26: 132kV | B26: =VLOOKUP(Vlookup!B26,Forcast_Data,6,FALSE) -> 0.04852694908
A27: 132kV/EHV
A28: EHV | B28: =VLOOKUP(Vlookup!B28,Forcast_Data,6,FALSE) -> 0.06976086598
A29: EHV/HV
A30: HV | B30: =VLOOKUP(Vlookup!B30,Forcast_Data,6,FALSE) -> 0.33998
A31: HV/LV
A32: LV circuits
A34: 1018. Proportion of relevant load going through 132kV/HV direct transformation
B36: 132kV/HV
A37: EHV/HV | B37: =VLOOKUP(Vlookup!B37,Forcast_Data,6,FALSE) -> 0
A39: 1019. Network model GSP peak demand (MW)
B41: Network model GSP peak demand (MW)
A42: Network model GSP peak demand (MW) | B42: =VLOOKUP(Vlookup!B42,Forcast_Data,6,FALSE) -> 500
A44: 1020. Gross asset cost by network level (£)
B46: Gross assets £
A47: 132kV | B47: =VLOOKUP(Vlookup!B47,Forcast_Data,6,FALSE) -> 83368102.69
A48: 132kV/EHV | B48: =VLOOKUP(Vlookup!B48,Forcast_Data,6,FALSE) -> 34102423.29
A49: EHV | B49: =VLOOKUP(Vlookup!B49,Forcast_Data,6,FALSE) -> 84319183.47
A50: EHV/HV | B50: =VLOOKUP(Vlookup!B50,Forcast_Data,6,FALSE) -> 61366613.59
A51: 132kV/HV | B51: =VLOOKUP(Vlookup!B51,Forcast_Data,6,FALSE) -> 0
A52: HV | B52: =VLOOKUP(Vlookup!B52,Forcast_Data,6,FALSE) -> 107407524
A53: HV/LV | B53: =VLOOKUP(Vlookup!B53,Forcast_Data,6,FALSE) -> 88717503.72
A54: LV circuits | B54: =VLOOKUP(Vlookup!B54,Forcast_Data,6,FALSE) -> 56877258.37
A56: 1022. LV service model asset cost (£)
B58: LV service model 1 | C58: LV service model 2 | D58: LV service model 3 | E58: LV service model 4 | F58: LV service model 5 | G58: LV service model 6 | H58: LV service model 7 | I58: LV service model 8
A59: LV service model asset cost (£) | B59: =VLOOKUP(Vlookup!B59,Forcast_Data,6,FALSE) -> 9801.997385 | C59: =VLOOKUP(Vlookup!C59,Forcast_Data,6,FALSE) -> 490.0998692 | D59: =VLOOKUP(Vlookup!D59,Forcast_Data,6,FALSE) -> 2347.400002 | E59: =VLOOKUP(Vlookup!E59,Forcast_Data,6,FALSE) -> 7517.031302 | F59: =VLOOKUP(Vlookup!F59,Forcast_Data,6,FALSE) -> 271.9836973 | G59: =VLOOKUP(Vlookup!G59,Forcast_Data,6,FALSE) -> 0 | H59: =VLOOKUP(Vlookup!H59,Forcast_Data,6,FALSE) -> 0 | I59: =VLOOKUP(Vlookup!I59,Forcast_Data,6,FALSE) -> 0
A61: 1023. HV service model asset cost (£)
B63: HV service model 1 | C63: HV service model 2 | D63: HV service model 3 | E63: HV service model 4 | F63: HV service model 5
A64: HV service model asset cost (£) | B64: =VLOOKUP(Vlookup!B64,Forcast_Data,6,FALSE) -> 18868.15825 | C64: =VLOOKUP(Vlookup!C64,Forcast_Data,6,FALSE) -> 16696.82258 | D64: =VLOOKUP(Vlookup!D64,Forcast_Data,6,FALSE) -> 1187.91403 | E64: =VLOOKUP(Vlookup!E64,Forcast_Data,6,FALSE) -> 0 | F64: =VLOOKUP(Vlookup!F64,Forcast_Data,6,FALSE) -> 0
A66: 1025. Matrix of applicability of LV service models to tariffs with fixed charges
B67: 10 | C67: =B67+1 -> 11 | D67: =C67+1 -> 12 | E67: 13 | F67: 14 | G67: 15 | H67: 16 | I67: 17
B68: LV service model 1 | C68: LV service model 2 | D68: LV service model 3 | E68: LV service model 4 | F68: LV service model 5 | G68: LV service model 6 | H68: LV service model 7 | I68: LV service model 8
A69: Domestic Unrestricted | B69: =VLOOKUP($A69,'Mat of App'!$B$7:$AP$38,B$67,FALSE) -> 0.05 | C69: =VLOOKUP($A69,'Mat of App'!$B$7:$AP$38,C$67,FALSE) -> 0 | D69: =VLOOKUP($A69,'Mat of App'!$B$7:$AP$38,D$67,FALSE) -> 0 | E69: =VLOOKUP($A69,'Mat of App'!$B$7:$AP$38,E$67,FALSE) -> 0 | F69: =VLOOKUP($A69,'Mat of App'!$B$7:$AP$38,F$67,FALSE) -> 0 | G69: =VLOOKUP($A69,'Mat of App'!$B$7:$AP$38,G$67,FALSE) -> 0 | H69: =VLOOKUP($A69,'Mat of App'!$B$7:$AP$38,H$67,FALSE) -> 0 | I69: =VLOOKUP($A69,'Mat of App'!$B$7:$AP$38,I$67,FALSE) -> 0
A70: Domestic Two Rate | B70: =VLOOKUP($A70,'Mat of App'!$B$7:$AP$38,B$67,FALSE) -> 0.05 | C70: =VLOOKUP($A70,'Mat of App'!$B$7:$AP$38,C$67,FALSE) -> 0 | D70: =VLOOKUP($A70,'Mat of App'!$B$7:$AP$38,D$67,FALSE) -> 0 | E70: =VLOOKUP($A70,'Mat of App'!$B$7:$AP$38,E$67,FALSE) -> 0 | F70: =VLOOKUP($A70,'Mat of App'!$B$7:$AP$38,F$67,FALSE) -> 0 | G70: =VLOOKUP($A70,'Mat of App'!$B$7:$AP$38,G$67,FALSE) -> 0 | H70: =VLOOKUP($A70,'Mat of App'!$B$7:$AP$38,H$67,FALSE) -> 0 | I70: =VLOOKUP($A70,'Mat of App'!$B$7:$AP$38,I$67,FALSE) -> 0
A71: Small Non Domestic Unrestricted | B71: =VLOOKUP($A71,'Mat of App'!$B$7:$AP$38,B$67,FALSE) -> 0 | C71: =VLOOKUP($A71,'Mat of App'!$B$7:$AP$38,C$67,FALSE) -> 1 | D71: =VLOOKUP($A71,'Mat of App'!$B$7:$AP$38,D$67,FALSE) -> 0 | E71: =VLOOKUP($A71,'Mat of App'!$B$7:$AP$38,E$67,FALSE) -> 0 | F71: =VLOOKUP($A71,'Mat of App'!$B$7:$AP$38,F$67,FALSE) -> 0 | G71: =VLOOKUP($A71,'Mat of App'!$B$7:$AP$38,G$67,FALSE) -> 0 | H71: =VLOOKUP($A71,'Mat of App'!$B$7:$AP$38,H$67,FALSE) -> 0 | I71: =VLOOKUP($A71,'Mat of App'!$B$7:$AP$38,I$67,FALSE) -> 0
A72: Small Non Domestic Two Rate | B72: =VLOOKUP($A72,'Mat of App'!$B$7:$AP$38,B$67,FALSE) -> 0 | C72: =VLOOKUP($A72,'Mat of App'!$B$7:$AP$38,C$67,FALSE) -> 1 | D72: =VLOOKUP($A72,'Mat of App'!$B$7:$AP$38,D$67,FALSE) -> 0 | E72: =VLOOKUP($A72,'Mat of App'!$B$7:$AP$38,E$67,FALSE) -> 0 | F72: =VLOOKUP($A72,'Mat of App'!$B$7:$AP$38,F$67,FALSE) -> 0 | G72: =VLOOKUP($A72,'Mat of App'!$B$7:$AP$38,G$67,FALSE) -> 0 | H72: =VLOOKUP($A72,'Mat of App'!$B$7:$AP$38,H$67,FALSE) -> 0 | I72: =VLOOKUP($A72,'Mat of App'!$B$7:$AP$38,I$67,FALSE) -> 0
A73: LV Medium Non-Domestic | B73: =VLOOKUP($A73,'Mat of App'!$B$7:$AP$38,B$67,FALSE) -> 0 | C73: =VLOOKUP($A73,'Mat of App'!$B$7:$AP$38,C$67,FALSE) -> 0.1652421652 | D73: =VLOOKUP($A73,'Mat of App'!$B$7:$AP$38,D$67,FALSE) -> 0.8347578348 | E73: =VLOOKUP($A73,'Mat of App'!$B$7:$AP$38,E$67,FALSE) -> 0 | F73: =VLOOKUP($A73,'Mat of App'!$B$7:$AP$38,F$67,FALSE) -> 0 | G73: =VLOOKUP($A73,'Mat of App'!$B$7:$AP$38,G$67,FALSE) -> 0 | H73: =VLOOKUP($A73,'Mat of App'!$B$7:$AP$38,H$67,FALSE) -> 0 | I73: =VLOOKUP($A73,'Mat of App'!$B$7:$AP$38,I$67,FALSE) -> 0
A74: LV Sub Medium Non-Domestic | B74: =VLOOKUP($A74,'Mat of App'!$B$7:$AP$38,B$67,FALSE) -> 0 | C74: =VLOOKUP($A74,'Mat of App'!$B$7:$AP$38,C$67,FALSE) -> 0 | D74: =VLOOKUP($A74,'Mat of App'!$B$7:$AP$38,D$67,FALSE) -> 0 | E74: =VLOOKUP($A74,'Mat of App'!$B$7:$AP$38,E$67,FALSE) -> 1 | F74: =VLOOKUP($A74,'Mat of App'!$B$7:$AP$38,F$67,FALSE) -> 0 | G74: =VLOOKUP($A74,'Mat of App'!$B$7:$AP$38,G$67,FALSE) -> 0 | H74: =VLOOKUP($A74,'Mat of App'!$B$7:$AP$38,H$67,FALSE) -> 0 | I74: =VLOOKUP($A74,'Mat of App'!$B$7:$AP$38,I$67,FALSE) -> 0
A75: LV HH Metered | B75: =VLOOKUP($A75,'Mat of App'!$B$7:$AP$38,B$67,FALSE) -> 0 | C75: =VLOOKUP($A75,'Mat of App'!$B$7:$AP$38,C$67,FALSE) -> 0 | D75: =VLOOKUP($A75,'Mat of App'!$B$7:$AP$38,D$67,FALSE) -> 1 | E75: =VLOOKUP($A75,'Mat of App'!$B$7:$AP$38,E$67,FALSE) -> 0 | F75: =VLOOKUP($A75,'Mat of App'!$B$7:$AP$38,F$67,FALSE) -> 0 | G75: =VLOOKUP($A75,'Mat of App'!$B$7:$AP$38,G$67,FALSE) -> 0 | H75: =VLOOKUP($A75,'Mat of App'!$B$7:$AP$38,H$67,FALSE) -> 0 | I75: =VLOOKUP($A75,'Mat of App'!$B$7:$AP$38,I$67,FALSE) -> 0
A76: LV Sub HH Metered | B76: =VLOOKUP($A76,'Mat of App'!$B$7:$AP$38,B$67,FALSE) -> 0 | C76: =VLOOKUP($A76,'Mat of App'!$B$7:$AP$38,C$67,FALSE) -> 0 | D76: =VLOOKUP($A76,'Mat of App'!$B$7:$AP$38,D$67,FALSE) -> 0 | E76: =VLOOKUP($A76,'Mat of App'!$B$7:$AP$38,E$67,FALSE) -> 1 | F76: =VLOOKUP($A76,'Mat of App'!$B$7:$AP$38,F$67,FALSE) -> 0 | G76: =VLOOKUP($A76,'Mat of App'!$B$7:$AP$38,G$67,FALSE) -> 0 | H76: =VLOOKUP($A76,'Mat of App'!$B$7:$AP$38,H$67,FALSE) -> 0 | I76: =VLOOKUP($A76,'Mat of App'!$B$7:$AP$38,I$67,FALSE) -> 0
A77: LV Generation NHH | B77: =VLOOKUP($A77,'Mat of App'!$B$7:$AP$38,B$67,FALSE) -> 0 | C77: =VLOOKUP($A77,'Mat of App'!$B$7:$AP$38,C$67,FALSE) -> 0 | D77: =VLOOKUP($A77,'Mat of App'!$B$7:$AP$38,D$67,FALSE) -> 0 | E77: =VLOOKUP($A77,'Mat of App'!$B$7:$AP$38,E$67,FALSE) -> 0 | F77: =VLOOKUP($A77,'Mat of App'!$B$7:$AP$38,F$67,FALSE) -> 0 | G77: =VLOOKUP($A77,'Mat of App'!$B$7:$AP$38,G$67,FALSE) -> 0 | H77: =VLOOKUP($A77,'Mat of App'!$B$7:$AP$38,H$67,FALSE) -> 0 | I77: =VLOOKUP($A77,'Mat of App'!$B$7:$AP$38,I$67,FALSE) -> 0
A78: LV Sub Generation NHH | B78: =VLOOKUP($A78,'Mat of App'!$B$7:$AP$38,B$67,FALSE) -> 0 | C78: =VLOOKUP($A78,'Mat of App'!$B$7:$AP$38,C$67,FALSE) -> 0 | D78: =VLOOKUP($A78,'Mat of App'!$B$7:$AP$38,D$67,FALSE) -> 0 | E78: =VLOOKUP($A78,'Mat of App'!$B$7:$AP$38,E$67,FALSE) -> 0 | F78: =VLOOKUP($A78,'Mat of App'!$B$7:$AP$38,F$67,FALSE) -> 0 | G78: =VLOOKUP($A78,'Mat of App'!$B$7:$AP$38,G$67,FALSE) -> 0 | H78: =VLOOKUP($A78,'Mat of App'!$B$7:$AP$38,H$67,FALSE) -> 0 | I78: =VLOOKUP($A78,'Mat of App'!$B$7:$AP$38,I$67,FALSE) -> 0
A79: LV Generation Intermittent | B79: =VLOOKUP($A79,'Mat of App'!$B$7:$AP$38,B$67,FALSE) -> 0 | C79: =VLOOKUP($A79,'Mat of App'!$B$7:$AP$38,C$67,FALSE) -> 0 | D79: =VLOOKUP($A79,'Mat of App'!$B$7:$AP$38,D$67,FALSE) -> 0 | E79: =VLOOKUP($A79,'Mat of App'!$B$7:$AP$38,E$67,FALSE) -> 0 | F79: =VLOOKUP($A79,'Mat of App'!$B$7:$AP$38,F$67,FALSE) -> 0 | G79: =VLOOKUP($A79,'Mat of App'!$B$7:$AP$38,G$67,FALSE) -> 0 | H79: =VLOOKUP($A79,'Mat of App'!$B$7:$AP$38,H$67,FALSE) -> 0 | I79: =VLOOKUP($A79,'Mat of App'!$B$7:$AP$38,I$67,FALSE) -> 0
A80: LV Generation Non-Intermittent | B80: =VLOOKUP($A80,'Mat of App'!$B$7:$AP$38,B$67,FALSE) -> 0 | C80: =VLOOKUP($A80,'Mat of App'!$B$7:$AP$38,C$67,FALSE) -> 0 | D80: =VLOOKUP($A80,'Mat of App'!$B$7:$AP$38,D$67,FALSE) -> 0 | E80: =VLOOKUP($A80,'Mat of App'!$B$7:$AP$38,E$67,FALSE) -> 0 | F80: =VLOOKUP($A80,'Mat of App'!$B$7:$AP$38,F$67,FALSE) -> 0 | G80: =VLOOKUP($A80,'Mat of App'!$B$7:$AP$38,G$67,FALSE) -> 0 | H80: =VLOOKUP($A80,'Mat of App'!$B$7:$AP$38,H$67,FALSE) -> 0 | I80: =VLOOKUP($A80,'Mat of App'!$B$7:$AP$38,I$67,FALSE) -> 0
A81: LV Sub Generation Intermittent | B81: =VLOOKUP($A81,'Mat of App'!$B$7:$AP$38,B$67,FALSE) -> 0 | C81: =VLOOKUP($A81,'Mat of App'!$B$7:$AP$38,C$67,FALSE) -> 0 | D81: =VLOOKUP($A81,'Mat of App'!$B$7:$AP$38,D$67,FALSE) -> 0 | E81: =VLOOKUP($A81,'Mat of App'!$B$7:$AP$38,E$67,FALSE) -> 0 | F81: =VLOOKUP($A81,'Mat of App'!$B$7:$AP$38,F$67,FALSE) -> 0 | G81: =VLOOKUP($A81,'Mat of App'!$B$7:$AP$38,G$67,FALSE) -> 0 | H81: =VLOOKUP($A81,'Mat of App'!$B$7:$AP$38,H$67,FALSE) -> 0 | I81: =VLOOKUP($A81,'Mat of App'!$B$7:$AP$38,I$67,FALSE) -> 0
A82: LV Sub Generation Non-Intermittent | B82: =VLOOKUP($A82,'Mat of App'!$B$7:$AP$38,B$67,FALSE) -> 0 | C82: =VLOOKUP($A82,'Mat of App'!$B$7:$AP$38,C$67,FALSE) -> 0 | D82: =VLOOKUP($A82,'Mat of App'!$B$7:$AP$38,D$67,FALSE) -> 0 | E82: =VLOOKUP($A82,'Mat of App'!$B$7:$AP$38,E$67,FALSE) -> 0 | F82: =VLOOKUP($A82,'Mat of App'!$B$7:$AP$38,F$67,FALSE) -> 0 | G82: =VLOOKUP($A82,'Mat of App'!$B$7:$AP$38,G$67,FALSE) -> 0 | H82: =VLOOKUP($A82,'Mat of App'!$B$7:$AP$38,H$67,FALSE) -> 0 | I82: =VLOOKUP($A82,'Mat of App'!$B$7:$AP$38,I$67,FALSE) -> 0
A84: 1026. Matrix of applicability of LV service models to unmetered tariffs
A86: Source: service models
A87: Proportion of service model involved in connecting load of 1 MWh/year
B88: LV service model 1 | C88: LV service model 2 | D88: LV service model 3 | E88: LV service model 4 | F88: LV service model 5 | G88: LV service model 6 | H88: LV service model 7 | I88: LV service model 8
A89: All LV unmetered tariffs | B89: =VLOOKUP($A89,'Mat of App'!$B$7:$AP$38,B$67,FALSE) -> 0 | C89: =VLOOKUP($A89,'Mat of App'!$B$7:$AP$38,C$67,FALSE) -> 0 | D89: =VLOOKUP($A89,'Mat of App'!$B$7:$AP$38,D$67,FALSE) -> 0 | E89: =VLOOKUP($A89,'Mat of App'!$B$7:$AP$38,E$67,FALSE) -> 0 | F89: =VLOOKUP($A89,'Mat of App'!$B$7:$AP$38,F$67,FALSE) -> 2.874359556 | G89: =VLOOKUP($A89,'Mat of App'!$B$7:$AP$38,G$67,FALSE) -> 0 | H89: =VLOOKUP($A89,'Mat of App'!$B$7:$AP$38,H$67,FALSE) -> 0 | I89: =VLOOKUP($A89,'Mat of App'!$B$7:$AP$38,I$67,FALSE) -> 0
A91: 1028. Matrix of applicability of HV service models to tariffs with fixed charges
B92: 7 | C92: =B92+1 -> 8 | D92: =C92+1 -> 9 | E92: 10 | F92: 11
B93: HV service model 1 | C93: HV service model 2 | D93: HV service model 3 | E93: HV service model 4 | F93: HV service model 5
A94: HV Medium Non-Domestic | B94: =VLOOKUP($A94,'Mat of App'!$B$7:$AP$38,B$92,FALSE) -> 0 | C94: =VLOOKUP($A94,'Mat of App'!$B$7:$AP$38,C$92,FALSE) -> 1 | D94: =VLOOKUP($A94,'Mat of App'!$B$7:$AP$38,D$92,FALSE) -> 0 | E94: =VLOOKUP($A94,'Mat of App'!$B$7:$AP$38,E$92,FALSE) -> 0 | F94: =VLOOKUP($A94,'Mat of App'!$B$7:$AP$38,F$92,FALSE) -> 0
A95: HV HH Metered | B95: =VLOOKUP($A95,'Mat of App'!$B$7:$AP$38,B$92,FALSE) -> 0 | C95: =VLOOKUP($A95,'Mat of App'!$B$7:$AP$38,C$92,FALSE) -> 1 | D95: =VLOOKUP($A95,'Mat of App'!$B$7:$AP$38,D$92,FALSE) -> 0 | E95: =VLOOKUP($A95,'Mat of App'!$B$7:$AP$38,E$92,FALSE) -> 0 | F95: =VLOOKUP($A95,'Mat of App'!$B$7:$AP$38,F$92,FALSE) -> 0
A96: HV Sub HH Metered | B96: =VLOOKUP($A96,'Mat of App'!$B$7:$AP$38,B$92,FALSE) -> 1 | C96: =VLOOKUP($A96,'Mat of App'!$B$7:$AP$38,C$92,FALSE) -> 0 | D96: =VLOOKUP($A96,'Mat of App'!$B$7:$AP$38,D$92,FALSE) -> 0 | E96: =VLOOKUP($A96,'Mat of App'!$B$7:$AP$38,E$92,FALSE) -> 0 | F96: =VLOOKUP($A96,'Mat of App'!$B$7:$AP$38,F$92,FALSE) -> 0
A97: HV Generation Intermittent | B97: =VLOOKUP($A97,'Mat of App'!$B$7:$AP$38,B$92,FALSE) -> 0 | C97: =VLOOKUP($A97,'Mat of App'!$B$7:$AP$38,C$92,FALSE) -> 0 | D97: =VLOOKUP($A97,'Mat of App'!$B$7:$AP$38,D$92,FALSE) -> 1 | E97: =VLOOKUP($A97,'Mat of App'!$B$7:$AP$38,E$92,FALSE) -> 0 | F97: =VLOOKUP($A97,'Mat of App'!$B$7:$AP$38,F$92,FALSE) -> 0
A98: HV Generation Non-Intermittent | B98: =VLOOKUP($A98,'Mat of App'!$B$7:$AP$38,B$92,FALSE) -> 0 | C98: =VLOOKUP($A98,'Mat of App'!$B$7:$AP$38,C$92,FALSE) -> 0 | D98: =VLOOKUP($A98,'Mat of App'!$B$7:$AP$38,D$92,FALSE) -> 1 | E98: =VLOOKUP($A98,'Mat of App'!$B$7:$AP$38,E$92,FALSE) -> 0 | F98: =VLOOKUP($A98,'Mat of App'!$B$7:$AP$38,F$92,FALSE) -> 0
A99: HV Sub Generation Non-Intermittent | B99: =VLOOKUP($A99,'Mat of App'!$B$7:$AP$38,B$92,FALSE) -> 0 | C99: =VLOOKUP($A99,'Mat of App'!$B$7:$AP$38,C$92,FALSE) -> 0 | D99: =VLOOKUP($A99,'Mat of App'!$B$7:$AP$38,D$92,FALSE) -> 1 | E99: =VLOOKUP($A99,'Mat of App'!$B$7:$AP$38,E$92,FALSE) -> 0 | F99: =VLOOKUP($A99,'Mat of App'!$B$7:$AP$38,F$92,FALSE) -> 0
A100: HV Sub Generation Intermittent | B100: =VLOOKUP($A100,'Mat of App'!$B$7:$AP$38,B$92,FALSE) -> 0 | C100: =VLOOKUP($A100,'Mat of App'!$B$7:$AP$38,C$92,FALSE) -> 0 | D100: =VLOOKUP($A100,'Mat of App'!$B$7:$AP$38,D$92,FALSE) -> 1 | E100: =VLOOKUP($A100,'Mat of App'!$B$7:$AP$38,E$92,FALSE) -> 0 | F100: =VLOOKUP($A100,'Mat of App'!$B$7:$AP$38,F$92,FALSE) -> 0
A102: 1032. Loss adjustment factors to transmission
A104: Source: losses model or loss adjustment factors at time of system peak.
B105: 132kV | C105: 132kV/EHV | D105: EHV | E105: EHV/HV | F105: HV | G105: HV/LV | H105: LV circuits
A106: Loss adjustment factor | B106: =VLOOKUP(Vlookup!B106,Forcast_Data,6,FALSE) -> 1.01 | C106: =VLOOKUP(Vlookup!C106,Forcast_Data,6,FALSE) -> 1.015 | D106: =VLOOKUP(Vlookup!D106,Forcast_Data,6,FALSE) -> 1.021 | E106: =VLOOKUP(Vlookup!E106,Forcast_Data,6,FALSE) -> 1.027 | F106: =VLOOKUP(Vlookup!F106,Forcast_Data,6,FALSE) -> 1.039 | G106: =VLOOKUP(Vlookup!G106,Forcast_Data,6,FALSE) -> 1.052 | H106: =VLOOKUP(Vlookup!H106,Forcast_Data,6,FALSE) -> 1.102
A108: 1037. Embedded network (LDNO) discounts
A110: Source: separate price control disaggregation model.
B111: No discount | C111: LDNO LV: LV user | D111: LDNO HV: LV user | E111: LDNO HV: LV sub user | F111: LDNO HV: HV user
A112: LDNO discount | C112: =VLOOKUP(Vlookup!C112,Forcast_Data,6,FALSE) -> 0.3341290619 | D112: =VLOOKUP(Vlookup!D112,Forcast_Data,6,FALSE) -> 0.5844116687 | E112: =VLOOKUP(Vlookup!E112,Forcast_Data,6,FALSE) -> 0.3566533208 | F112: =VLOOKUP(Vlookup!F112,Forcast_Data,6,FALSE) -> 0.2429095212
A114: 1041. Load profile data for demand users
A116: Source: load data analysis.
B117: Coincidence factor | C117: Load factor
A118: Domestic Unrestricted | B118: =VLOOKUP(Vlookup!B118,Forcast_Data,6,FALSE) -> 0.8894527476 | C118: =VLOOKUP(Vlookup!C118,Forcast_Data,6,FALSE) -> 0.425096632
A119: Domestic Two Rate | B119: =VLOOKUP(Vlookup!B119,Forcast_Data,6,FALSE) -> 0.2923961216 | C119: =VLOOKUP(Vlookup!C119,Forcast_Data,6,FALSE) -> 0.2241627496
A120: Domestic Off Peak (related MPAN) | C120: =VLOOKUP(Vlookup!C120,Forcast_Data,6,FALSE) -> 0.1536521176
A121: Small Non Domestic Unrestricted | B121: =VLOOKUP(Vlookup!B121,Forcast_Data,6,FALSE) -> 0.6810846655 | C121: =VLOOKUP(Vlookup!C121,Forcast_Data,6,FALSE) -> 0.3702747492
A122: Small Non Domestic Two Rate | B122: =VLOOKUP(Vlookup!B122,Forcast_Data,6,FALSE) -> 0.6898873841 | C122: =VLOOKUP(Vlookup!C122,Forcast_Data,6,FALSE) -> 0.4968878577
A123: Small Non Domestic Off Peak (related MPAN) | C123: =VLOOKUP(Vlookup!C123,Forcast_Data,6,FALSE) -> 0.1545401669
A124: LV Medium Non-Domestic | B124: =VLOOKUP(Vlookup!B124,Forcast_Data,6,FALSE) -> 0.8329407611 | C124: =VLOOKUP(Vlookup!C124,Forcast_Data,6,FALSE) -> 0.5456237824
A125: LV Sub Medium Non-Domestic | B125: =VLOOKUP(Vlookup!B125,Forcast_Data,6,FALSE) -> 0.8126048746 | C125: =VLOOKUP(Vlookup!C125,Forcast_Data,6,FALSE) -> 0.5454104986
A126: HV Medium Non-Domestic | B126: =VLOOKUP(Vlookup!B126,Forcast_Data,6,FALSE) -> 0.7136785066 | C126: =VLOOKUP(Vlookup!C126,Forcast_Data,6,FALSE) -> 0.4626342321
A127: LV HH Metered | B127: =VLOOKUP(Vlookup!B127,Forcast_Data,6,FALSE) -> 0.6832247724 | C127: =VLOOKUP(Vlookup!C127,Forcast_Data,6,FALSE) -> 0.5410071103
A128: LV Sub HH Metered | B128: =VLOOKUP(Vlookup!B128,Forcast_Data,6,FALSE) -> 0.7627675285 | C128: =VLOOKUP(Vlookup!C128,Forcast_Data,6,FALSE) -> 0.5418394901
A129: HV HH Metered | B129: =VLOOKUP(Vlookup!B129,Forcast_Data,6,FALSE) -> 0.8478213281 | C129: =VLOOKUP(Vlookup!C129,Forcast_Data,6,FALSE) -> 0.6967159082
A130: HV Sub HH Metered | B130: =VLOOKUP(Vlookup!B130,Forcast_Data,6,FALSE) -> 0.8478213281 | C130: =VLOOKUP(Vlookup!C130,Forcast_Data,6,FALSE) -> 0.6967159082
A131: NHH UMS category A | B131: =VLOOKUP(Vlookup!B131,Forcast_Data,6,FALSE) -> 1 | C131: =VLOOKUP(Vlookup!C131,Forcast_Data,6,FALSE) -> 1
A132: NHH UMS category B | B132: =VLOOKUP(Vlookup!B132,Forcast_Data,6,FALSE) -> 1 | C132: =VLOOKUP(Vlookup!C132,Forcast_Data,6,FALSE) -> 0.4743366324
A133: NHH UMS category C | B133: =VLOOKUP(Vlookup!B133,Forcast_Data,6,FALSE) -> 1 | C133: =VLOOKUP(Vlookup!C133,Forcast_Data,6,FALSE) -> 0.2580201598
A134: NHH UMS category D | B134: =VLOOKUP(Vlookup!B134,Forcast_Data,6,FALSE) -> 0 | C134: =VLOOKUP(Vlookup!C134,Forcast_Data,6,FALSE) -> 0.5537948744
A135: LV UMS (Pseudo HH Metered) | B135: =VLOOKUP(Vlookup!B135,Forcast_Data,6,FALSE) -> 0.9077193592 | C135: =VLOOKUP(Vlookup!C135,Forcast_Data,6,FALSE) -> 0.4793103092
A137: 1053. Volume forecasts for the charging year
B138: 10 | C138: 11 | D138: 12 | E138: 13 | F138: 14 | G138: 15
A139: Source: forecast.
A140: Please include MPAN counts for tariffs with no fixed charge (e.g. off-peak tariffs),
A141: but exclude MPANs on tariffs with a fixed charge that are not subject to a fixed charge due to a site grouping arrangement.
B142: Rate 1 units (MWh) | C142: Rate 2 units (MWh) | D142: Rate 3 units (MWh) | E142: MPANs | F142: Import capacity (kVA) | G142: Reactive power units (MVArh)
A143: > Domestic Unrestricted
A144: Domestic Unrestricted | B144: =VLOOKUP(Vlookup!B144,Volume_Forecast_Data,B$138,FALSE) -> 7329379.551 | E144: =VLOOKUP(Vlookup!E144,Volume_Forecast_Data,E$138,FALSE) -> 1987686.667
A145: LDNO LV: Domestic Unrestricted | B145: =VLOOKUP(Vlookup!B145,Volume_Forecast_Data,B$138,FALSE) -> 52497.43846 | E145: =VLOOKUP(Vlookup!E145,Volume_Forecast_Data,E$138,FALSE) -> 16768.75
A146: LDNO HV: Domestic Unrestricted | B146: =VLOOKUP(Vlookup!B146,Volume_Forecast_Data,B$138,FALSE) -> 26117.65683 | E146: =VLOOKUP(Vlookup!E146,Volume_Forecast_Data,E$138,FALSE) -> 7633.333333
A147: > Domestic Two Rate
A148: Domestic Two Rate | B148: =VLOOKUP(Vlookup!B148,Volume_Forecast_Data,B$138,FALSE) -> 651680.0811 | C148: =VLOOKUP(Vlookup!C148,Volume_Forecast_Data,C$138,FALSE) -> 546915.8318 | E148: =VLOOKUP(Vlookup!E148,Volume_Forecast_Data,E$138,FALSE) -> 185533.6667
A149: LDNO LV: Domestic Two Rate | B149: =VLOOKUP(Vlookup!B149,Volume_Forecast_Data,B$138,FALSE) -> 658.7410187 | C149: =VLOOKUP(Vlookup!C149,Volume_Forecast_Data,C$138,FALSE) -> 388.281498 | E149: =VLOOKUP(Vlookup!E149,Volume_Forecast_Data,E$138,FALSE) -> 303.125
A150: LDNO HV: Domestic Two Rate | B150: =VLOOKUP(Vlookup!B150,Volume_Forecast_Data,B$138,FALSE) -> 3616.958814 | C150: =VLOOKUP(Vlookup!C150,Volume_Forecast_Data,C$138,FALSE) -> 3363.506876 | E150: =VLOOKUP(Vlookup!E150,Volume_Forecast_Data,E$138,FALSE) -> 1222.75
A151: > Domestic Off Peak (related MPAN)
A152: Domestic Off Peak (related MPAN) | B152: =VLOOKUP(Vlookup!B152,Volume_Forecast_Data,B$138,FALSE) -> 26261.97741 | E152: =VLOOKUP(Vlookup!E152,Volume_Forecast_Data,E$138,FALSE) -> 6290.916667
A153: LDNO LV: Domestic Off Peak (related MPAN) | B153: =VLOOKUP(Vlookup!B153,Volume_Forecast_Data,B$138,FALSE) -> 0 | E153: =VLOOKUP(Vlookup!E153,Volume_Forecast_Data,E$138,FALSE) -> 0
A154: LDNO HV: Domestic Off Peak (related MPAN) | B154: =VLOOKUP(Vlookup!B154,Volume_Forecast_Data,B$138,FALSE) -> 0 | E154: =VLOOKUP(Vlookup!E154,Volume_Forecast_Data,E$138,FALSE) -> 0
A155: > Small Non Domestic Unrestricted
A156: Small Non Domestic Unrestricted | B156: =VLOOKUP(Vlookup!B156,Volume_Forecast_Data,B$138,FALSE) -> 1820609.267 | E156: =VLOOKUP(Vlookup!E156,Volume_Forecast_Data,E$138,FALSE) -> 124481.8333
A157: LDNO LV: Small Non Domestic Unrestricted | B157: =VLOOKUP(Vlookup!B157,Volume_Forecast_Data,B$138,FALSE) -> 3577.010631 | E157: =VLOOKUP(Vlookup!E157,Volume_Forecast_Data,E$138,FALSE) -> 334.75
A158: LDNO HV: Small Non Domestic Unrestricted | B158: =VLOOKUP(Vlookup!B158,Volume_Forecast_Data,B$138,FALSE) -> 3568.130116 | E158: =VLOOKUP(Vlookup!E158,Volume_Forecast_Data,E$138,FALSE) -> 301.7916667
A159: > Small Non Domestic Two Rate
A160: Small Non Domestic Two Rate | B160: =VLOOKUP(Vlookup!B160,Volume_Forecast_Data,B$138,FALSE) -> 585704.4964 | C160: =VLOOKUP(Vlookup!C160,Volume_Forecast_Data,C$138,FALSE) -> 222340.2683 | E160: =VLOOKUP(Vlookup!E160,Volume_Forecast_Data,E$138,FALSE) -> 31837.58333
A161: LDNO LV: Small Non Domestic Two Rate | B161: =VLOOKUP(Vlookup!B161,Volume_Forecast_Data,B$138,FALSE) -> 14.65203262 | C161: =VLOOKUP(Vlookup!C161,Volume_Forecast_Data,C$138,FALSE) -> 7.766767189 | E161: =VLOOKUP(Vlookup!E161,Volume_Forecast_Data,E$138,FALSE) -> 6.041666667
A162: LDNO HV: Small Non Domestic Two Rate | B162: =VLOOKUP(Vlookup!B162,Volume_Forecast_Data,B$138,FALSE) -> 485.093939 | C162: =VLOOKUP(Vlookup!C162,Volume_Forecast_Data,C$138,FALSE) -> 202.2070846 | E162: =VLOOKUP(Vlookup!E162,Volume_Forecast_Data,E$138,FALSE) -> 11.04166667
A163: > Small Non Domestic Off Peak (related MPAN)
A164: Small Non Domestic Off Peak (related MPAN) | B164: =VLOOKUP(Vlookup!B164,Volume_Forecast_Data,B$138,FALSE) -> 25496.40584 | E164: =VLOOKUP(Vlookup!E164,Volume_Forecast_Data,E$138,FALSE) -> 3842.416667
A165: LDNO LV: Small Non Domestic Off Peak (related MPAN) | B165: =VLOOKUP(Vlookup!B165,Volume_Forecast_Data,B$138,FALSE) -> 0 | E165: =VLOOKUP(Vlookup!E165,Volume_Forecast_Data,E$138,FALSE) -> 0
A166: LDNO HV: Small Non Domestic Off Peak (related MPAN) | B166: =VLOOKUP(Vlookup!B166,Volume_Forecast_Data,B$138,FALSE) -> 0 | E166: =VLOOKUP(Vlookup!E166,Volume_Forecast_Data,E$138,FALSE) -> 0
A167: > LV Medium Non-Domestic
A168: LV Medium Non-Domestic | B168: =VLOOKUP(Vlookup!B168,Volume_Forecast_Data,B$138,FALSE) -> 1012585.576 | C168: =VLOOKUP(Vlookup!C168,Volume_Forecast_Data,C$138,FALSE) -> 245600.4074 | E168: =VLOOKUP(Vlookup!E168,Volume_Forecast_Data,E$138,FALSE) -> 11444.16667
A169: LDNO LV: LV Medium Non-Domestic | B169: =VLOOKUP(Vlookup!B169,Volume_Forecast_Data,B$138,FALSE) -> 380.751 | C169: =VLOOKUP(Vlookup!C169,Volume_Forecast_Data,C$138,FALSE) -> 138.564 | E169: =VLOOKUP(Vlookup!E169,Volume_Forecast_Data,E$138,FALSE) -> 1
A170: LDNO HV: LV Medium Non-Domestic | B170: =VLOOKUP(Vlookup!B170,Volume_Forecast_Data,B$138,FALSE) -> 170.5463249 | C170: =VLOOKUP(Vlookup!C170,Volume_Forecast_Data,C$138,FALSE) -> 40.6025457 | E170: =VLOOKUP(Vlookup!E170,Volume_Forecast_Data,E$138,FALSE) -> 2.916666667
A171: > LV Sub Medium Non-Domestic
A172: LV Sub Medium Non-Domestic | B172: =VLOOKUP(Vlookup!B172,Volume_Forecast_Data,B$138,FALSE) -> 33858.00223 | C172: =VLOOKUP(Vlookup!C172,Volume_Forecast_Data,C$138,FALSE) -> 9194.387278 | E172: =VLOOKUP(Vlookup!E172,Volume_Forecast_Data,E$138,FALSE) -> 340.75
A173: > HV Medium Non-Domestic
A174: HV Medium Non-Domestic | B174: =VLOOKUP(Vlookup!B174,Volume_Forecast_Data,B$138,FALSE) -> 7309.445882 | C174: =VLOOKUP(Vlookup!C174,Volume_Forecast_Data,C$138,FALSE) -> 2218.060427 | E174: =VLOOKUP(Vlookup!E174,Volume_Forecast_Data,E$138,FALSE) -> 53.66666667
A175: > LV HH Metered
A176: LV HH Metered | B176: =VLOOKUP(Vlookup!B176,Volume_Forecast_Data,B$138,FALSE) -> 177312.1196 | C176: =VLOOKUP(Vlookup!C176,Volume_Forecast_Data,C$138,FALSE) -> 632634.5769 | D176: =VLOOKUP(Vlookup!D176,Volume_Forecast_Data,D$138,FALSE) -> 812462.3703 | E176: =VLOOKUP(Vlookup!E176,Volume_Forecast_Data,E$138,FALSE) -> 5230.583333 | F176: =VLOOKUP(Vlookup!F176,Volume_Forecast_Data,F$138,FALSE) -> 934999.2089 | G176: =VLOOKUP(Vlookup!G176,Volume_Forecast_Data,G$138,FALSE) -> 130808.537
A177: LDNO LV: LV HH Metered | B177: =VLOOKUP(Vlookup!B177,Volume_Forecast_Data,B$138,FALSE) -> 0 | C177: =VLOOKUP(Vlookup!C177,Volume_Forecast_Data,C$138,FALSE) -> 0 | D177: =VLOOKUP(Vlookup!D177,Volume_Forecast_Data,D$138,FALSE) -> 0 | E177: =VLOOKUP(Vlookup!E177,Volume_Forecast_Data,E$138,FALSE) -> 0 | F177: =VLOOKUP(Vlookup!F177,Volume_Forecast_Data,F$138,FALSE) -> 0 | G177: =VLOOKUP(Vlookup!G177,Volume_Forecast_Data,G$138,FALSE) -> 0
A178: LDNO HV: LV HH Metered | B178: =VLOOKUP(Vlookup!B178,Volume_Forecast_Data,B$138,FALSE) -> 0 | C178: =VLOOKUP(Vlookup!C178,Volume_Forecast_Data,C$138,FALSE) -> 0 | D178: =VLOOKUP(Vlookup!D178,Volume_Forecast_Data,D$138,FALSE) -> 0 | E178: =VLOOKUP(Vlookup!E178,Volume_Forecast_Data,E$138,FALSE) -> 0 | F178: =VLOOKUP(Vlookup!F178,Volume_Forecast_Data,F$138,FALSE) -> 0 | G178: =VLOOKUP(Vlookup!G178,Volume_Forecast_Data,G$138,FALSE) -> 0
A179: > LV Sub HH Metered
A180: LV Sub HH Metered | B180: =VLOOKUP(Vlookup!B180,Volume_Forecast_Data,B$138,FALSE) -> 138736.8271 | C180: =VLOOKUP(Vlookup!C180,Volume_Forecast_Data,C$138,FALSE) -> 505580.3872 | D180: =VLOOKUP(Vlookup!D180,Volume_Forecast_Data,D$138,FALSE) -> 672002.5077 | E180: =VLOOKUP(Vlookup!E180,Volume_Forecast_Data,E$138,FALSE) -> 1834 | F180: =VLOOKUP(Vlookup!F180,Volume_Forecast_Data,F$138,FALSE) -> 644485.0524 | G180: =VLOOKUP(Vlookup!G180,Volume_Forecast_Data,G$138,FALSE) -> 86101.58715
A181: LDNO HV: LV Sub HH Metered | B181: =VLOOKUP(Vlookup!B181,Volume_Forecast_Data,B$138,FALSE) -> 0 | C181: =VLOOKUP(Vlookup!C181,Volume_Forecast_Data,C$138,FALSE) -> 0 | D181: =VLOOKUP(Vlookup!D181,Volume_Forecast_Data,D$138,FALSE) -> 0 | E181: =VLOOKUP(Vlookup!E181,Volume_Forecast_Data,E$138,FALSE) -> 0 | F181: =VLOOKUP(Vlookup!F181,Volume_Forecast_Data,F$138,FALSE) -> 0 | G181: =VLOOKUP(Vlookup!G181,Volume_Forecast_Data,G$138,FALSE) -> 0
A182: > HV HH Metered
A183: HV HH Metered | B183: =VLOOKUP(Vlookup!B183,Volume_Forecast_Data,B$138,FALSE) -> 513227.0151 | C183: =VLOOKUP(Vlookup!C183,Volume_Forecast_Data,C$138,FALSE) -> 1750370.988 | D183: =VLOOKUP(Vlookup!D183,Volume_Forecast_Data,D$138,FALSE) -> 2872901.716 | E183: =VLOOKUP(Vlookup!E183,Volume_Forecast_Data,E$138,FALSE) -> 1988 | F183: =VLOOKUP(Vlookup!F183,Volume_Forecast_Data,F$138,FALSE) -> 1881783.274 | G183: =VLOOKUP(Vlookup!G183,Volume_Forecast_Data,G$138,FALSE) -> 341658.9213
A184: LDNO HV: HV HH Metered | B184: =VLOOKUP(Vlookup!B184,Volume_Forecast_Data,B$138,FALSE) -> 0 | C184: =VLOOKUP(Vlookup!C184,Volume_Forecast_Data,C$138,FALSE) -> 0 | D184: =VLOOKUP(Vlookup!D184,Volume_Forecast_Data,D$138,FALSE) -> 0 | E184: =VLOOKUP(Vlookup!E184,Volume_Forecast_Data,E$138,FALSE) -> 0 | F184: =VLOOKUP(Vlookup!F184,Volume_Forecast_Data,F$138,FALSE) -> 0 | G184: =VLOOKUP(Vlookup!G184,Volume_Forecast_Data,G$138,FALSE) -> 0
A185: > HV Sub HH Metered
A186: HV Sub HH Metered | B186: =VLOOKUP(Vlookup!B186,Volume_Forecast_Data,B$138,FALSE) -> 0 | C186: =VLOOKUP(Vlookup!C186,Volume_Forecast_Data,C$138,FALSE) -> 0 | D186: =VLOOKUP(Vlookup!D186,Volume_Forecast_Data,D$138,FALSE) -> 0 | E186: =VLOOKUP(Vlookup!E186,Volume_Forecast_Data,E$138,FALSE) -> 0 | F186: =VLOOKUP(Vlookup!F186,Volume_Forecast_Data,F$138,FALSE) -> 0 | G186: =VLOOKUP(Vlookup!G186,Volume_Forecast_Data,G$138,FALSE) -> 0
A187: > NHH UMS category A
A188: NHH UMS category A | B188: =VLOOKUP(Vlookup!B188,Volume_Forecast_Data,B$138,FALSE) -> 27984.74651 | E188: =VLOOKUP(Vlookup!E188,Volume_Forecast_Data,E$138,FALSE) -> 246
A189: LDNO LV: NHH UMS category A | B189: =VLOOKUP(Vlookup!B189,Volume_Forecast_Data,B$138,FALSE) -> 0 | E189: =VLOOKUP(Vlookup!E189,Volume_Forecast_Data,E$138,FALSE) -> 0
A190: LDNO HV: NHH UMS category A | B190: =VLOOKUP(Vlookup!B190,Volume_Forecast_Data,B$138,FALSE) -> 0 | E190: =VLOOKUP(Vlookup!E190,Volume_Forecast_Data,E$138,FALSE) -> 0
A191: > NHH UMS category B
A192: NHH UMS category B | B192: =VLOOKUP(Vlookup!B192,Volume_Forecast_Data,B$138,FALSE) -> 8682.164935 | E192: =VLOOKUP(Vlookup!E192,Volume_Forecast_Data,E$138,FALSE) -> 303
A193: LDNO LV: NHH UMS category B | B193: =VLOOKUP(Vlookup!B193,Volume_Forecast_Data,B$138,FALSE) -> 226.7141991 | E193: =VLOOKUP(Vlookup!E193,Volume_Forecast_Data,E$138,FALSE) -> 65.54166667
A194: LDNO HV: NHH UMS category B | B194: =VLOOKUP(Vlookup!B194,Volume_Forecast_Data,B$138,FALSE) -> 91.981 | E194: =VLOOKUP(Vlookup!E194,Volume_Forecast_Data,E$138,FALSE) -> 12
A195: > NHH UMS category C
A196: NHH UMS category C | B196: =VLOOKUP(Vlookup!B196,Volume_Forecast_Data,B$138,FALSE) -> 0.7333528959 | E196: =VLOOKUP(Vlookup!E196,Volume_Forecast_Data,E$138,FALSE) -> 1
A197: LDNO LV: NHH UMS category C | B197: =VLOOKUP(Vlookup!B197,Volume_Forecast_Data,B$138,FALSE) -> 0 | E197: =VLOOKUP(Vlookup!E197,Volume_Forecast_Data,E$138,FALSE) -> 0
A198: LDNO HV: NHH UMS category C | B198: =VLOOKUP(Vlookup!B198,Volume_Forecast_Data,B$138,FALSE) -> 0 | E198: =VLOOKUP(Vlookup!E198,Volume_Forecast_Data,E$138,FALSE) -> 0
A199: > NHH UMS category D
A200: NHH UMS category D | B200: =VLOOKUP(Vlookup!B200,Volume_Forecast_Data,B$138,FALSE) -> 0 | E200: =VLOOKUP(Vlookup!E200,Volume_Forecast_Data,E$138,FALSE) -> 0
A201: LDNO LV: NHH UMS category D | B201: =VLOOKUP(Vlookup!B201,Volume_Forecast_Data,B$138,FALSE) -> 0 | E201: =VLOOKUP(Vlookup!E201,Volume_Forecast_Data,E$138,FALSE) -> 0
A202: LDNO HV: NHH UMS category D | B202: =VLOOKUP(Vlookup!B202,Volume_Forecast_Data,B$138,FALSE) -> 0 | E202: =VLOOKUP(Vlookup!E202,Volume_Forecast_Data,E$138,FALSE) -> 0
A203: > LV UMS (Pseudo HH Metered)
A204: LV UMS (Pseudo HH Metered) | B204: =VLOOKUP(Vlookup!B204,Volume_Forecast_Data,B$138,FALSE) -> 13979.59831 | C204: =VLOOKUP(Vlookup!C204,Volume_Forecast_Data,C$138,FALSE) -> 32809.26133 | D204: =VLOOKUP(Vlookup!D204,Volume_Forecast_Data,D$138,FALSE) -> 238509.065 | E204: =VLOOKUP(Vlookup!E204,Volume_Forecast_Data,E$138,FALSE) -> 23
A205: LDNO LV: LV UMS (Pseudo HH Metered) | B205: =VLOOKUP(Vlookup!B205,Volume_Forecast_Data,B$138,FALSE) -> 0 | C205: =VLOOKUP(Vlookup!C205,Volume_Forecast_Data,C$138,FALSE) -> 0 | D205: =VLOOKUP(Vlookup!D205,Volume_Forecast_Data,D$138,FALSE) -> 0 | E205: =VLOOKUP(Vlookup!E205,Volume_Forecast_Data,E$138,FALSE) -> 0
A206: LDNO HV: LV UMS (Pseudo HH Metered) | B206: =VLOOKUP(Vlookup!B206,Volume_Forecast_Data,B$138,FALSE) -> 0 | C206: =VLOOKUP(Vlookup!C206,Volume_Forecast_Data,C$138,FALSE) -> 0 | D206: =VLOOKUP(Vlookup!D206,Volume_Forecast_Data,D$138,FALSE) -> 0 | E206: =VLOOKUP(Vlookup!E206,Volume_Forecast_Data,E$138,FALSE) -> 0
A207: > LV Generation NHH
A208: LV Generation NHH | B208: =VLOOKUP(Vlookup!B208,Volume_Forecast_Data,B$138,FALSE) -> 793.4564293 | E208: =VLOOKUP(Vlookup!E208,Volume_Forecast_Data,E$138,FALSE) -> 56.5
A209: LDNO LV: LV Generation NHH | B209: =VLOOKUP(Vlookup!B209,Volume_Forecast_Data,B$138,FALSE) -> 0 | E209: =VLOOKUP(Vlookup!E209,Volume_Forecast_Data,E$138,FALSE) -> 0
A210: LDNO HV: LV Generation NHH | B210: =VLOOKUP(Vlookup!B210,Volume_Forecast_Data,B$138,FALSE) -> 0 | E210: =VLOOKUP(Vlookup!E210,Volume_Forecast_Data,E$138,FALSE) -> 0
A211: > LV Sub Generation NHH
A212: LV Sub Generation NHH | B212: =VLOOKUP(Vlookup!B212,Volume_Forecast_Data,B$138,FALSE) -> 0 | E212: =VLOOKUP(Vlookup!E212,Volume_Forecast_Data,E$138,FALSE) -> 0
A213: LDNO HV: LV Sub Generation NHH | B213: =VLOOKUP(Vlookup!B213,Volume_Forecast_Data,B$138,FALSE) -> 0 | E213: =VLOOKUP(Vlookup!E213,Volume_Forecast_Data,E$138,FALSE) -> 0
A214: > LV Generation Intermittent
A215: LV Generation Intermittent | B215: =VLOOKUP(Vlookup!B215,Volume_Forecast_Data,B$138,FALSE) -> 8539.97123 | E215: =VLOOKUP(Vlookup!E215,Volume_Forecast_Data,E$138,FALSE) -> 89.33333333 | G215: =VLOOKUP(Vlookup!G215,Volume_Forecast_Data,G$138,FALSE) -> 353.0982633
A216: LDNO LV: LV Generation Intermittent | B216: =VLOOKUP(Vlookup!B216,Volume_Forecast_Data,B$138,FALSE) -> 0 | E216: =VLOOKUP(Vlookup!E216,Volume_Forecast_Data,E$138,FALSE) -> 0 | G216: =VLOOKUP(Vlookup!G216,Volume_Forecast_Data,G$138,FALSE) -> 0
A217: LDNO HV: LV Generation Intermittent | B217: =VLOOKUP(Vlookup!B217,Volume_Forecast_Data,B$138,FALSE) -> 0 | E217: =VLOOKUP(Vlookup!E217,Volume_Forecast_Data,E$138,FALSE) -> 0 | G217: =VLOOKUP(Vlookup!G217,Volume_Forecast_Data,G$138,FALSE) -> 0
A218: > LV Generation Non-Intermittent
A219: LV Generation Non-Intermittent | B219: =VLOOKUP(Vlookup!B219,Volume_Forecast_Data,B$138,FALSE) -> 56.3009 | C219: =VLOOKUP(Vlookup!C219,Volume_Forecast_Data,C$138,FALSE) -> 183.7238357 | D219: =VLOOKUP(Vlookup!D219,Volume_Forecast_Data,D$138,FALSE) -> 384.2584143 | E219: =VLOOKUP(Vlookup!E219,Volume_Forecast_Data,E$138,FALSE) -> 9.333333333 | G219: =VLOOKUP(Vlookup!G219,Volume_Forecast_Data,G$138,FALSE) -> 1.257721347
A220: LDNO LV: LV Generation Non-Intermittent | B220: =VLOOKUP(Vlookup!B220,Volume_Forecast_Data,B$138,FALSE) -> 0 | C220: =VLOOKUP(Vlookup!C220,Volume_Forecast_Data,C$138,FALSE) -> 0 | D220: =VLOOKUP(Vlookup!D220,Volume_Forecast_Data,D$138,FALSE) -> 0 | E220: =VLOOKUP(Vlookup!E220,Volume_Forecast_Data,E$138,FALSE) -> 0 | G220: =VLOOKUP(Vlookup!G220,Volume_Forecast_Data,G$138,FALSE) -> 0
A221: LDNO HV: LV Generation Non-Intermittent | B221: =VLOOKUP(Vlookup!B221,Volume_Forecast_Data,B$138,FALSE) -> 0 | C221: =VLOOKUP(Vlookup!C221,Volume_Forecast_Data,C$138,FALSE) -> 0 | D221: =VLOOKUP(Vlookup!D221,Volume_Forecast_Data,D$138,FALSE) -> 0 | E221: =VLOOKUP(Vlookup!E221,Volume_Forecast_Data,E$138,FALSE) -> 0 | G221: =VLOOKUP(Vlookup!G221,Volume_Forecast_Data,G$138,FALSE) -> 0
A222: > LV Sub Generation Intermittent
A223: LV Sub Generation Intermittent | B223: =VLOOKUP(Vlookup!B223,Volume_Forecast_Data,B$138,FALSE) -> 198.0686167 | E223: =VLOOKUP(Vlookup!E223,Volume_Forecast_Data,E$138,FALSE) -> 10.5 | G223: =VLOOKUP(Vlookup!G223,Volume_Forecast_Data,G$138,FALSE) -> 1.147545259
A224: LDNO HV: LV Sub Generation Intermittent | B224: =VLOOKUP(Vlookup!B224,Volume_Forecast_Data,B$138,FALSE) -> 0 | E224: =VLOOKUP(Vlookup!E224,Volume_Forecast_Data,E$138,FALSE) -> 0 | G224: =VLOOKUP(Vlookup!G224,Volume_Forecast_Data,G$138,FALSE) -> 0
A225: > LV Sub Generation Non-Intermittent
A226: LV Sub Generation Non-Intermittent | B226: =VLOOKUP(Vlookup!B226,Volume_Forecast_Data,B$138,FALSE) -> 43.01 | C226: =VLOOKUP(Vlookup!C226,Volume_Forecast_Data,C$138,FALSE) -> 95.631 | D226: =VLOOKUP(Vlookup!D226,Volume_Forecast_Data,D$138,FALSE) -> 304.7 | E226: =VLOOKUP(Vlookup!E226,Volume_Forecast_Data,E$138,FALSE) -> 9 | G226: =VLOOKUP(Vlookup!G226,Volume_Forecast_Data,G$138,FALSE) -> 3.802690121
A227: LDNO HV: LV Sub Generation Non-Intermittent | B227: =VLOOKUP(Vlookup!B227,Volume_Forecast_Data,B$138,FALSE) -> 0 | C227: =VLOOKUP(Vlookup!C227,Volume_Forecast_Data,C$138,FALSE) -> 0 | D227: =VLOOKUP(Vlookup!D227,Volume_Forecast_Data,D$138,FALSE) -> 0 | E227: =VLOOKUP(Vlookup!E227,Volume_Forecast_Data,E$138,FALSE) -> 0 | G227: =VLOOKUP(Vlookup!G227,Volume_Forecast_Data,G$138,FALSE) -> 0
A228: > HV Generation Intermittent
A229: HV Generation Intermittent | B229: =VLOOKUP(Vlookup!B229,Volume_Forecast_Data,B$138,FALSE) -> 145533.7139 | E229: =VLOOKUP(Vlookup!E229,Volume_Forecast_Data,E$138,FALSE) -> 44.41666667 | G229: =VLOOKUP(Vlookup!G229,Volume_Forecast_Data,G$138,FALSE) -> 4072.641033
A230: LDNO HV: HV Generation Intermittent | B230: =VLOOKUP(Vlookup!B230,Volume_Forecast_Data,B$138,FALSE) -> 0 | E230: =VLOOKUP(Vlookup!E230,Volume_Forecast_Data,E$138,FALSE) -> 0 | G230: =VLOOKUP(Vlookup!G230,Volume_Forecast_Data,G$138,FALSE) -> 0
... 96 more rows

Sheet (Y+2)
A5: 1000. Company, charging year, data version
B7: Company | C7: Year | D7: Version
A8: Company, charging year, data version | B8: =VLOOKUP(Vlookup!B8,Forcast_Data,7,FALSE) -> ENWL | C8: =VLOOKUP(Vlookup!C8,Forcast_Data,7,FALSE) -> 2016/17 | D8: =VLOOKUP(Vlookup!D8,Forcast_Data,7,FALSE) -> v1
A10: 1010. Financial and general assumptions
A12: Sources: financial assumptions; calendar; network model.
A13: These financial assumptions determine the annuity rate applied to convert the asset values of the network model into an annual charge.
B14: Rate of return | C14: Annualisation period (years) | D14: Annuity proportion for customer-contributed assets | E14: Power factor | F14: Days in the charging period
A15: Financial and general assumptions | B15: =VLOOKUP(Vlookup!B15,Forcast_Data,7,FALSE) -> 0.056 | C15: =VLOOKUP(Vlookup!C15,Forcast_Data,7,FALSE) -> 40 | E15: =VLOOKUP(Vlookup!E15,Forcast_Data,7,FALSE) -> 0.95 | F15: =VLOOKUP(Vlookup!F15,Forcast_Data,7,FALSE) -> 365
A17: 1017. Diversity allowance between top and bottom of network level
A19: Source: operational data analysis and/or network model.
A20: The diversity figure against GSP is the diversity between GSP Group (the whole system) and individual GSPs.
A21: The diversity figure against 132kV is the diversity between GSPs (the top of the 132kV network) and 132kV/EHV bulk supply points (the bottom of the 132kV network).
A22: The diversity figure against EHV is the diversity between 132kV/EHV bulk supply points (the top of the EHV network) and EHV/HV primary substations (the bottom of the EHV network).
A23: The diversity figure against HV is the diversity between EHV/HV primary substations (the top of the HV network) and HV/LV substations (the bottom of the HV network).
B24: Diversity allowance between top and bottom of network level
A25: GSPs | B25: =VLOOKUP(Vlookup!B25,Forcast_Data,7,FALSE) -> 0.1143197131
A26: 132kV | B26: =VLOOKUP(Vlookup!B26,Forcast_Data,7,FALSE) -> 0.04852694908
A27: 132kV/EHV
A28: EHV | B28: =VLOOKUP(Vlookup!B28,Forcast_Data,7,FALSE) -> 0.06976086598
A29: EHV/HV
A30: HV | B30: =VLOOKUP(Vlookup!B30,Forcast_Data,7,FALSE) -> 0.33998
A31: HV/LV
A32: LV circuits
A34: 1018. Proportion of relevant load going through 132kV/HV direct transformation
B36: 132kV/HV
A37: EHV/HV | B37: =VLOOKUP(Vlookup!B37,Forcast_Data,7,FALSE) -> 0
A39: 1019. Network model GSP peak demand (MW)
B41: Network model GSP peak demand (MW)
A42: Network model GSP peak demand (MW) | B42: =VLOOKUP(Vlookup!B42,Forcast_Data,7,FALSE) -> 500
A44: 1020. Gross asset cost by network level (£)
B46: Gross assets £
A47: 132kV | B47: =VLOOKUP(Vlookup!B47,Forcast_Data,7,FALSE) -> 85660725.52
A48: 132kV/EHV | B48: =VLOOKUP(Vlookup!B48,Forcast_Data,7,FALSE) -> 35040239.93
A49: EHV | B49: =VLOOKUP(Vlookup!B49,Forcast_Data,7,FALSE) -> 86637961.02
A50: EHV/HV | B50: =VLOOKUP(Vlookup!B50,Forcast_Data,7,FALSE) -> 63054195.46
A51: 132kV/HV | B51: =VLOOKUP(Vlookup!B51,Forcast_Data,7,FALSE) -> 0
A52: HV | B52: =VLOOKUP(Vlookup!B52,Forcast_Data,7,FALSE) -> 110361230.9
A53: HV/LV | B53: =VLOOKUP(Vlookup!B53,Forcast_Data,7,FALSE) -> 91157235.07
A54: LV circuits | B54: =VLOOKUP(Vlookup!B54,Forcast_Data,7,FALSE) -> 58441382.98
A56: 1022. LV service model asset cost (£)
B58: LV service model 1 | C58: LV service model 2 | D58: LV service model 3 | E58: LV service model 4 | F58: LV service model 5 | G58: LV service model 6 | H58: LV service model 7 | I58: LV service model 8
A59: LV service model asset cost (£) | B59: =VLOOKUP(Vlookup!B59,Forcast_Data,7,FALSE) -> 10071.55231 | C59: =VLOOKUP(Vlookup!C59,Forcast_Data,7,FALSE) -> 503.5776156 | D59: =VLOOKUP(Vlookup!D59,Forcast_Data,7,FALSE) -> 2411.953502 | E59: =VLOOKUP(Vlookup!E59,Forcast_Data,7,FALSE) -> 7723.749662 | F59: =VLOOKUP(Vlookup!F59,Forcast_Data,7,FALSE) -> 279.463249 | G59: =VLOOKUP(Vlookup!G59,Forcast_Data,7,FALSE) -> - | H59: =VLOOKUP(Vlookup!H59,Forcast_Data,7,FALSE) -> - | I59: =VLOOKUP(Vlookup!I59,Forcast_Data,7,FALSE) -> -
A61: 1023. HV service model asset cost (£)
B63: HV service model 1 | C63: HV service model 2 | D63: HV service model 3 | E63: HV service model 4 | F63: HV service model 5
A64: HV service model asset cost (£) | B64: =VLOOKUP(Vlookup!B64,Forcast_Data,7,FALSE) -> 19387.03261 | C64: =VLOOKUP(Vlookup!C64,Forcast_Data,7,FALSE) -> 17155.9852 | D64: =VLOOKUP(Vlookup!D64,Forcast_Data,7,FALSE) -> 1220.581666 | E64: =VLOOKUP(Vlookup!E64,Forcast_Data,7,FALSE) -> - | F64: =VLOOKUP(Vlookup!F64,Forcast_Data,7,FALSE) -> -
A66: 1025. Matrix of applicability of LV service models to tariffs with fixed charges
B67: 18 | C67: =B67+1 -> 19 | D67: =C67+1 -> 20 | E67: 21 | F67: 22 | G67: 23 | H67: 24 | I67: 25
B68: LV service model 1 | C68: LV service model 2 | D68: LV service model 3 | E68: LV service model 4 | F68: LV service model 5 | G68: LV service model 6 | H68: LV service model 7 | I68: LV service model 8
A69: Domestic Unrestricted | B69: =VLOOKUP($A69,'Mat of App'!$B$7:$AP$38,B$67,FALSE) -> 0.05 | C69: =VLOOKUP($A69,'Mat of App'!$B$7:$AP$38,C$67,FALSE) -> 0 | D69: =VLOOKUP($A69,'Mat of App'!$B$7:$AP$38,D$67,FALSE) -> 0 | E69: =VLOOKUP($A69,'Mat of App'!$B$7:$AP$38,E$67,FALSE) -> 0 | F69: =VLOOKUP($A69,'Mat of App'!$B$7:$AP$38,F$67,FALSE) -> 0 | G69: =VLOOKUP($A69,'Mat of App'!$B$7:$AP$38,G$67,FALSE) -> 0 | H69: =VLOOKUP($A69,'Mat of App'!$B$7:$AP$38,H$67,FALSE) -> 0 | I69: =VLOOKUP($A69,'Mat of App'!$B$7:$AP$38,I$67,FALSE) -> 0
A70: Domestic Two Rate | B70: =VLOOKUP($A70,'Mat of App'!$B$7:$AP$38,B$67,FALSE) -> 0.05 | C70: =VLOOKUP($A70,'Mat of App'!$B$7:$AP$38,C$67,FALSE) -> 0 | D70: =VLOOKUP($A70,'Mat of App'!$B$7:$AP$38,D$67,FALSE) -> 0 | E70: =VLOOKUP($A70,'Mat of App'!$B$7:$AP$38,E$67,FALSE) -> 0 | F70: =VLOOKUP($A70,'Mat of App'!$B$7:$AP$38,F$67,FALSE) -> 0 | G70: =VLOOKUP($A70,'Mat of App'!$B$7:$AP$38,G$67,FALSE) -> 0 | H70: =VLOOKUP($A70,'Mat of App'!$B$7:$AP$38,H$67,FALSE) -> 0 | I70: =VLOOKUP($A70,'Mat of App'!$B$7:$AP$38,I$67,FALSE) -> 0
A71: Small Non Domestic Unrestricted | B71: =VLOOKUP($A71,'Mat of App'!$B$7:$AP$38,B$67,FALSE) -> 0 | C71: =VLOOKUP($A71,'Mat of App'!$B$7:$AP$38,C$67,FALSE) -> 1 | D71: =VLOOKUP($A71,'Mat of App'!$B$7:$AP$38,D$67,FALSE) -> 0 | E71: =VLOOKUP($A71,'Mat of App'!$B$7:$AP$38,E$67,FALSE) -> 0 | F71: =VLOOKUP($A71,'Mat of App'!$B$7:$AP$38,F$67,FALSE) -> 0 | G71: =VLOOKUP($A71,'Mat of App'!$B$7:$AP$38,G$67,FALSE) -> 0 | H71: =VLOOKUP($A71,'Mat of App'!$B$7:$AP$38,H$67,FALSE) -> 0 | I71: =VLOOKUP($A71,'Mat of App'!$B$7:$AP$38,I$67,FALSE) -> 0
A72: Small Non Domestic Two Rate | B72: =VLOOKUP($A72,'Mat of App'!$B$7:$AP$38,B$67,FALSE) -> 0 | C72: =VLOOKUP($A72,'Mat of App'!$B$7:$AP$38,C$67,FALSE) -> 1 | D72: =VLOOKUP($A72,'Mat of App'!$B$7:$AP$38,D$67,FALSE) -> 0 | E72: =VLOOKUP($A72,'Mat of App'!$B$7:$AP$38,E$67,FALSE) -> 0 | F72: =VLOOKUP($A72,'Mat of App'!$B$7:$AP$38,F$67,FALSE) -> 0 | G72: =VLOOKUP($A72,'Mat of App'!$B$7:$AP$38,G$67,FALSE) -> 0 | H72: =VLOOKUP($A72,'Mat of App'!$B$7:$AP$38,H$67,FALSE) -> 0 | I72: =VLOOKUP($A72,'Mat of App'!$B$7:$AP$38,I$67,FALSE) -> 0
A73: LV Medium Non-Domestic | B73: =VLOOKUP($A73,'Mat of App'!$B$7:$AP$38,B$67,FALSE) -> 0 | C73: =VLOOKUP($A73,'Mat of App'!$B$7:$AP$38,C$67,FALSE) -> 0.1652421652 | D73: =VLOOKUP($A73,'Mat of App'!$B$7:$AP$38,D$67,FALSE) -> 0.8347578348 | E73: =VLOOKUP($A73,'Mat of App'!$B$7:$AP$38,E$67,FALSE) -> 0 | F73: =VLOOKUP($A73,'Mat of App'!$B$7:$AP$38,F$67,FALSE) -> 0 | G73: =VLOOKUP($A73,'Mat of App'!$B$7:$AP$38,G$67,FALSE) -> 0 | H73: =VLOOKUP($A73,'Mat of App'!$B$7:$AP$38,H$67,FALSE) -> 0 | I73: =VLOOKUP($A73,'Mat of App'!$B$7:$AP$38,I$67,FALSE) -> 0
A74: LV Sub Medium Non-Domestic | B74: =VLOOKUP($A74,'Mat of App'!$B$7:$AP$38,B$67,FALSE) -> 0 | C74: =VLOOKUP($A74,'Mat of App'!$B$7:$AP$38,C$67,FALSE) -> 0 | D74: =VLOOKUP($A74,'Mat of App'!$B$7:$AP$38,D$67,FALSE) -> 0 | E74: =VLOOKUP($A74,'Mat of App'!$B$7:$AP$38,E$67,FALSE) -> 1 | F74: =VLOOKUP($A74,'Mat of App'!$B$7:$AP$38,F$67,FALSE) -> 0 | G74: =VLOOKUP($A74,'Mat of App'!$B$7:$AP$38,G$67,FALSE) -> 0 | H74: =VLOOKUP($A74,'Mat of App'!$B$7:$AP$38,H$67,FALSE) -> 0 | I74: =VLOOKUP($A74,'Mat of App'!$B$7:$AP$38,I$67,FALSE) -> 0
A75: LV HH Metered | B75: =VLOOKUP($A75,'Mat of App'!$B$7:$AP$38,B$67,FALSE) -> 0 | C75: =VLOOKUP($A75,'Mat of App'!$B$7:$AP$38,C$67,FALSE) -> 0 | D75: =VLOOKUP($A75,'Mat of App'!$B$7:$AP$38,D$67,FALSE) -> 1 | E75: =VLOOKUP($A75,'Mat of App'!$B$7:$AP$38,E$67,FALSE) -> 0 | F75: =VLOOKUP($A75,'Mat of App'!$B$7:$AP$38,F$67,FALSE) -> 0 | G75: =VLOOKUP($A75,'Mat of App'!$B$7:$AP$38,G$67,FALSE) -> 0 | H75: =VLOOKUP($A75,'Mat of App'!$B$7:$AP$38,H$67,FALSE) -> 0 | I75: =VLOOKUP($A75,'Mat of App'!$B$7:$AP$38,I$67,FALSE) -> 0
A76: LV Sub HH Metered | B76: =VLOOKUP($A76,'Mat of App'!$B$7:$AP$38,B$67,FALSE) -> 0 | C76: =VLOOKUP($A76,'Mat of App'!$B$7:$AP$38,C$67,FALSE) -> 0 | D76: =VLOOKUP($A76,'Mat of App'!$B$7:$AP$38,D$67,FALSE) -> 0 | E76: =VLOOKUP($A76,'Mat of App'!$B$7:$AP$38,E$67,FALSE) -> 1 | F76: =VLOOKUP($A76,'Mat of App'!$B$7:$AP$38,F$67,FALSE) -> 0 | G76: =VLOOKUP($A76,'Mat of App'!$B$7:$AP$38,G$67,FALSE) -> 0 | H76: =VLOOKUP($A76,'Mat of App'!$B$7:$AP$38,H$67,FALSE) -> 0 | I76: =VLOOKUP($A76,'Mat of App'!$B$7:$AP$38,I$67,FALSE) -> 0
A77: LV Generation NHH | B77: =VLOOKUP($A77,'Mat of App'!$B$7:$AP$38,B$67,FALSE) -> 0 | C77: =VLOOKUP($A77,'Mat of App'!$B$7:$AP$38,C$67,FALSE) -> 0 | D77: =VLOOKUP($A77,'Mat of App'!$B$7:$AP$38,D$67,FALSE) -> 0 | E77: =VLOOKUP($A77,'Mat of App'!$B$7:$AP$38,E$67,FALSE) -> 0 | F77: =VLOOKUP($A77,'Mat of App'!$B$7:$AP$38,F$67,FALSE) -> 0 | G77: =VLOOKUP($A77,'Mat of App'!$B$7:$AP$38,G$67,FALSE) -> 0 | H77: =VLOOKUP($A77,'Mat of App'!$B$7:$AP$38,H$67,FALSE) -> 0 | I77: =VLOOKUP($A77,'Mat of App'!$B$7:$AP$38,I$67,FALSE) -> 0
A78: LV Sub Generation NHH | B78: =VLOOKUP($A78,'Mat of App'!$B$7:$AP$38,B$67,FALSE) -> 0 | C78: =VLOOKUP($A78,'Mat of App'!$B$7:$AP$38,C$67,FALSE) -> 0 | D78: =VLOOKUP($A78,'Mat of App'!$B$7:$AP$38,D$67,FALSE) -> 0 | E78: =VLOOKUP($A78,'Mat of App'!$B$7:$AP$38,E$67,FALSE) -> 0 | F78: =VLOOKUP($A78,'Mat of App'!$B$7:$AP$38,F$67,FALSE) -> 0 | G78: =VLOOKUP($A78,'Mat of App'!$B$7:$AP$38,G$67,FALSE) -> 0 | H78: =VLOOKUP($A78,'Mat of App'!$B$7:$AP$38,H$67,FALSE) -> 0 | I78: =VLOOKUP($A78,'Mat of App'!$B$7:$AP$38,I$67,FALSE) -> 0
A79: LV Generation Intermittent | B79: =VLOOKUP($A79,'Mat of App'!$B$7:$AP$38,B$67,FALSE) -> 0 | C79: =VLOOKUP($A79,'Mat of App'!$B$7:$AP$38,C$67,FALSE) -> 0 | D79: =VLOOKUP($A79,'Mat of App'!$B$7:$AP$38,D$67,FALSE) -> 0 | E79: =VLOOKUP($A79,'Mat of App'!$B$7:$AP$38,E$67,FALSE) -> 0 | F79: =VLOOKUP($A79,'Mat of App'!$B$7:$AP$38,F$67,FALSE) -> 0 | G79: =VLOOKUP($A79,'Mat of App'!$B$7:$AP$38,G$67,FALSE) -> 0 | H79: =VLOOKUP($A79,'Mat of App'!$B$7:$AP$38,H$67,FALSE) -> 0 | I79: =VLOOKUP($A79,'Mat of App'!$B$7:$AP$38,I$67,FALSE) -> 0
A80: LV Generation Non-Intermittent | B80: =VLOOKUP($A80,'Mat of App'!$B$7:$AP$38,B$67,FALSE) -> 0 | C80: =VLOOKUP($A80,'Mat of App'!$B$7:$AP$38,C$67,FALSE) -> 0 | D80: =VLOOKUP($A80,'Mat of App'!$B$7:$AP$38,D$67,FALSE) -> 0 | E80: =VLOOKUP($A80,'Mat of App'!$B$7:$AP$38,E$67,FALSE) -> 0 | F80: =VLOOKUP($A80,'Mat of App'!$B$7:$AP$38,F$67,FALSE) -> 0 | G80: =VLOOKUP($A80,'Mat of App'!$B$7:$AP$38,G$67,FALSE) -> 0 | H80: =VLOOKUP($A80,'Mat of App'!$B$7:$AP$38,H$67,FALSE) -> 0 | I80: =VLOOKUP($A80,'Mat of App'!$B$7:$AP$38,I$67,FALSE) -> 0
A81: LV Sub Generation Intermittent | B81: =VLOOKUP($A81,'Mat of App'!$B$7:$AP$38,B$67,FALSE) -> 0 | C81: =VLOOKUP($A81,'Mat of App'!$B$7:$AP$38,C$67,FALSE) -> 0 | D81: =VLOOKUP($A81,'Mat of App'!$B$7:$AP$38,D$67,FALSE) -> 0 | E81: =VLOOKUP($A81,'Mat of App'!$B$7:$AP$38,E$67,FALSE) -> 0 | F81: =VLOOKUP($A81,'Mat of App'!$B$7:$AP$38,F$67,FALSE) -> 0 | G81: =VLOOKUP($A81,'Mat of App'!$B$7:$AP$38,G$67,FALSE) -> 0 | H81: =VLOOKUP($A81,'Mat of App'!$B$7:$AP$38,H$67,FALSE) -> 0 | I81: =VLOOKUP($A81,'Mat of App'!$B$7:$AP$38,I$67,FALSE) -> 0
A82: LV Sub Generation Non-Intermittent | B82: =VLOOKUP($A82,'Mat of App'!$B$7:$AP$38,B$67,FALSE) -> 0 | C82: =VLOOKUP($A82,'Mat of App'!$B$7:$AP$38,C$67,FALSE) -> 0 | D82: =VLOOKUP($A82,'Mat of App'!$B$7:$AP$38,D$67,FALSE) -> 0 | E82: =VLOOKUP($A82,'Mat of App'!$B$7:$AP$38,E$67,FALSE) -> 0 | F82: =VLOOKUP($A82,'Mat of App'!$B$7:$AP$38,F$67,FALSE) -> 0 | G82: =VLOOKUP($A82,'Mat of App'!$B$7:$AP$38,G$67,FALSE) -> 0 | H82: =VLOOKUP($A82,'Mat of App'!$B$7:$AP$38,H$67,FALSE) -> 0 | I82: =VLOOKUP($A82,'Mat of App'!$B$7:$AP$38,I$67,FALSE) -> 0
A84: 1026. Matrix of applicability of LV service models to unmetered tariffs
A86: Source: service models
A87: Proportion of service model involved in connecting load of 1 MWh/year
B88: LV service model 1 | C88: LV service model 2 | D88: LV service model 3 | E88: LV service model 4 | F88: LV service model 5 | G88: LV service model 6 | H88: LV service model 7 | I88: LV service model 8
A89: All LV unmetered tariffs | B89: =VLOOKUP($A89,'Mat of App'!$B$7:$AP$38,B$67,FALSE) -> 0 | C89: =VLOOKUP($A89,'Mat of App'!$B$7:$AP$38,C$67,FALSE) -> 0 | D89: =VLOOKUP($A89,'Mat of App'!$B$7:$AP$38,D$67,FALSE) -> 0 | E89: =VLOOKUP($A89,'Mat of App'!$B$7:$AP$38,E$67,FALSE) -> 0 | F89: =VLOOKUP($A89,'Mat of App'!$B$7:$AP$38,F$67,FALSE) -> 2.874359556 | G89: =VLOOKUP($A89,'Mat of App'!$B$7:$AP$38,G$67,FALSE) -> 0 | H89: =VLOOKUP($A89,'Mat of App'!$B$7:$AP$38,H$67,FALSE) -> 0 | I89: =VLOOKUP($A89,'Mat of App'!$B$7:$AP$38,I$67,FALSE) -> 0
A91: 1028. Matrix of applicability of HV service models to tariffs with fixed charges
B92: 12 | C92: =B92+1 -> 13 | D92: =C92+1 -> 14 | E92: 15 | F92: 16
B93: HV service model 1 | C93: HV service model 2 | D93: HV service model 3 | E93: HV service model 4 | F93: HV service model 5
A94: HV Medium Non-Domestic | B94: =VLOOKUP($A94,'Mat of App'!$B$7:$AP$38,B$92,FALSE) -> 0 | C94: =VLOOKUP($A94,'Mat of App'!$B$7:$AP$38,C$92,FALSE) -> 1 | D94: =VLOOKUP($A94,'Mat of App'!$B$7:$AP$38,D$92,FALSE) -> 0 | E94: =VLOOKUP($A94,'Mat of App'!$B$7:$AP$38,E$92,FALSE) -> 0 | F94: =VLOOKUP($A94,'Mat of App'!$B$7:$AP$38,F$92,FALSE) -> 0
A95: HV HH Metered | B95: =VLOOKUP($A95,'Mat of App'!$B$7:$AP$38,B$92,FALSE) -> 0 | C95: =VLOOKUP($A95,'Mat of App'!$B$7:$AP$38,C$92,FALSE) -> 1 | D95: =VLOOKUP($A95,'Mat of App'!$B$7:$AP$38,D$92,FALSE) -> 0 | E95: =VLOOKUP($A95,'Mat of App'!$B$7:$AP$38,E$92,FALSE) -> 0 | F95: =VLOOKUP($A95,'Mat of App'!$B$7:$AP$38,F$92,FALSE) -> 0
A96: HV Sub HH Metered | B96: =VLOOKUP($A96,'Mat of App'!$B$7:$AP$38,B$92,FALSE) -> 1 | C96: =VLOOKUP($A96,'Mat of App'!$B$7:$AP$38,C$92,FALSE) -> 0 | D96: =VLOOKUP($A96,'Mat of App'!$B$7:$AP$38,D$92,FALSE) -> 0 | E96: =VLOOKUP($A96,'Mat of App'!$B$7:$AP$38,E$92,FALSE) -> 0 | F96: =VLOOKUP($A96,'Mat of App'!$B$7:$AP$38,F$92,FALSE) -> 0
A97: HV Generation Intermittent | B97: =VLOOKUP($A97,'Mat of App'!$B$7:$AP$38,B$92,FALSE) -> 0 | C97: =VLOOKUP($A97,'Mat of App'!$B$7:$AP$38,C$92,FALSE) -> 0 | D97: =VLOOKUP($A97,'Mat of App'!$B$7:$AP$38,D$92,FALSE) -> 1 | E97: =VLOOKUP($A97,'Mat of App'!$B$7:$AP$38,E$92,FALSE) -> 0 | F97: =VLOOKUP($A97,'Mat of App'!$B$7:$AP$38,F$92,FALSE) -> 0
A98: HV Generation Non-Intermittent | B98: =VLOOKUP($A98,'Mat of App'!$B$7:$AP$38,B$92,FALSE) -> 0 | C98: =VLOOKUP($A98,'Mat of App'!$B$7:$AP$38,C$92,FALSE) -> 0 | D98: =VLOOKUP($A98,'Mat of App'!$B$7:$AP$38,D$92,FALSE) -> 1 | E98: =VLOOKUP($A98,'Mat of App'!$B$7:$AP$38,E$92,FALSE) -> 0 | F98: =VLOOKUP($A98,'Mat of App'!$B$7:$AP$38,F$92,FALSE) -> 0
A99: HV Sub Generation Non-Intermittent | B99: =VLOOKUP($A99,'Mat of App'!$B$7:$AP$38,B$92,FALSE) -> 0 | C99: =VLOOKUP($A99,'Mat of App'!$B$7:$AP$38,C$92,FALSE) -> 0 | D99: =VLOOKUP($A99,'Mat of App'!$B$7:$AP$38,D$92,FALSE) -> 1 | E99: =VLOOKUP($A99,'Mat of App'!$B$7:$AP$38,E$92,FALSE) -> 0 | F99: =VLOOKUP($A99,'Mat of App'!$B$7:$AP$38,F$92,FALSE) -> 0
A100: HV Sub Generation Intermittent | B100: =VLOOKUP($A100,'Mat of App'!$B$7:$AP$38,B$92,FALSE) -> 0 | C100: =VLOOKUP($A100,'Mat of App'!$B$7:$AP$38,C$92,FALSE) -> 0 | D100: =VLOOKUP($A100,'Mat of App'!$B$7:$AP$38,D$92,FALSE) -> 1 | E100: =VLOOKUP($A100,'Mat of App'!$B$7:$AP$38,E$92,FALSE) -> 0 | F100: =VLOOKUP($A100,'Mat of App'!$B$7:$AP$38,F$92,FALSE) -> 0
A102: 1032. Loss adjustment factors to transmission
A104: Source: losses model or loss adjustment factors at time of system peak.
B105: 132kV | C105: 132kV/EHV | D105: EHV | E105: EHV/HV | F105: HV | G105: HV/LV | H105: LV circuits
A106: Loss adjustment factor | B106: =VLOOKUP(Vlookup!B106,Forcast_Data,7,FALSE) -> 1.01 | C106: =VLOOKUP(Vlookup!C106,Forcast_Data,7,FALSE) -> 1.015 | D106: =VLOOKUP(Vlookup!D106,Forcast_Data,7,FALSE) -> 1.021 | E106: =VLOOKUP(Vlookup!E106,Forcast_Data,7,FALSE) -> 1.027 | F106: =VLOOKUP(Vlookup!F106,Forcast_Data,7,FALSE) -> 1.039 | G106: =VLOOKUP(Vlookup!G106,Forcast_Data,7,FALSE) -> 1.052 | H106: =VLOOKUP(Vlookup!H106,Forcast_Data,7,FALSE) -> 1.102
A108: 1037. Embedded network (LDNO) discounts
A110: Source: separate price control disaggregation model.
B111: No discount | C111: LDNO LV: LV user | D111: LDNO HV: LV user | E111: LDNO HV: LV sub user | F111: LDNO HV: HV user
A112: LDNO discount | C112: =VLOOKUP(Vlookup!C112,Forcast_Data,7,FALSE) -> 0.3341290619 | D112: =VLOOKUP(Vlookup!D112,Forcast_Data,7,FALSE) -> 0.5844116687 | E112: =VLOOKUP(Vlookup!E112,Forcast_Data,7,FALSE) -> 0.3566533208 | F112: =VLOOKUP(Vlookup!F112,Forcast_Data,7,FALSE) -> 0.2429095212
A114: 1041. Load profile data for demand users
A116: Source: load data analysis.
B117: Coincidence factor | C117: Load factor
A118: Domestic Unrestricted | B118: =VLOOKUP(Vlookup!B118,Forcast_Data,7,FALSE) -> 0.8894527476 | C118: =VLOOKUP(Vlookup!C118,Forcast_Data,7,FALSE) -> 0.425096632
A119: Domestic Two Rate | B119: =VLOOKUP(Vlookup!B119,Forcast_Data,7,FALSE) -> 0.2923961216 | C119: =VLOOKUP(Vlookup!C119,Forcast_Data,7,FALSE) -> 0.2241627496
A120: Domestic Off Peak (related MPAN) | C120: =VLOOKUP(Vlookup!C120,Forcast_Data,7,FALSE) -> 0.1536521176
A121: Small Non Domestic Unrestricted | B121: =VLOOKUP(Vlookup!B121,Forcast_Data,7,FALSE) -> 0.6810846655 | C121: =VLOOKUP(Vlookup!C121,Forcast_Data,7,FALSE) -> 0.3702747492
A122: Small Non Domestic Two Rate | B122: =VLOOKUP(Vlookup!B122,Forcast_Data,7,FALSE) -> 0.6898873841 | C122: =VLOOKUP(Vlookup!C122,Forcast_Data,7,FALSE) -> 0.4968878577
A123: Small Non Domestic Off Peak (related MPAN) | C123: =VLOOKUP(Vlookup!C123,Forcast_Data,7,FALSE) -> 0.1545401669
A124: LV Medium Non-Domestic | B124: =VLOOKUP(Vlookup!B124,Forcast_Data,7,FALSE) -> 0.8329407611 | C124: =VLOOKUP(Vlookup!C124,Forcast_Data,7,FALSE) -> 0.5456237824
A125: LV Sub Medium Non-Domestic | B125: =VLOOKUP(Vlookup!B125,Forcast_Data,7,FALSE) -> 0.8126048746 | C125: =VLOOKUP(Vlookup!C125,Forcast_Data,7,FALSE) -> 0.5454104986
A126: HV Medium Non-Domestic | B126: =VLOOKUP(Vlookup!B126,Forcast_Data,7,FALSE) -> 0.7136785066 | C126: =VLOOKUP(Vlookup!C126,Forcast_Data,7,FALSE) -> 0.4626342321
A127: LV HH Metered | B127: =VLOOKUP(Vlookup!B127,Forcast_Data,7,FALSE) -> 0.6832247724 | C127: =VLOOKUP(Vlookup!C127,Forcast_Data,7,FALSE) -> 0.5410071103
A128: LV Sub HH Metered | B128: =VLOOKUP(Vlookup!B128,Forcast_Data,7,FALSE) -> 0.7627675285 | C128: =VLOOKUP(Vlookup!C128,Forcast_Data,7,FALSE) -> 0.5418394901
A129: HV HH Metered | B129: =VLOOKUP(Vlookup!B129,Forcast_Data,7,FALSE) -> 0.8478213281 | C129: =VLOOKUP(Vlookup!C129,Forcast_Data,7,FALSE) -> 0.6967159082
A130: HV Sub HH Metered | B130: =VLOOKUP(Vlookup!B130,Forcast_Data,7,FALSE) -> 0.8478213281 | C130: =VLOOKUP(Vlookup!C130,Forcast_Data,7,FALSE) -> 0.6967159082
A131: NHH UMS category A | B131: =VLOOKUP(Vlookup!B131,Forcast_Data,7,FALSE) -> 1 | C131: =VLOOKUP(Vlookup!C131,Forcast_Data,7,FALSE) -> 1
A132: NHH UMS category B | B132: =VLOOKUP(Vlookup!B132,Forcast_Data,7,FALSE) -> 1 | C132: =VLOOKUP(Vlookup!C132,Forcast_Data,7,FALSE) -> 0.4743366324
A133: NHH UMS category C | B133: =VLOOKUP(Vlookup!B133,Forcast_Data,7,FALSE) -> 1 | C133: =VLOOKUP(Vlookup!C133,Forcast_Data,7,FALSE) -> 0.2580201598
A134: NHH UMS category D | B134: =VLOOKUP(Vlookup!B134,Forcast_Data,7,FALSE) -> 0 | C134: =VLOOKUP(Vlookup!C134,Forcast_Data,7,FALSE) -> 0.5537948744
A135: LV UMS (Pseudo HH Metered) | B135: =VLOOKUP(Vlookup!B135,Forcast_Data,7,FALSE) -> 0.9077193592 | C135: =VLOOKUP(Vlookup!C135,Forcast_Data,7,FALSE) -> 0.4793103092
A137: 1053. Volume forecasts for the charging year
B138: 16 | C138: 17 | D138: 18 | E138: 19 | F138: 20 | G138: 21
A139: Source: forecast.
A140: Please include MPAN counts for tariffs with no fixed charge (e.g. off-peak tariffs),
A141: but exclude MPANs on tariffs with a fixed charge that are not subject to a fixed charge due to a site grouping arrangement.
B142: Rate 1 units (MWh) | C142: Rate 2 units (MWh) | D142: Rate 3 units (MWh) | E142: MPANs | F142: Import capacity (kVA) | G142: Reactive power units (MVArh)
A143: > Domestic Unrestricted
A144: Domestic Unrestricted | B144: =VLOOKUP(Vlookup!B144,Volume_Forecast_Data,B$138,FALSE) -> 7352977.601 | E144: =VLOOKUP(Vlookup!E144,Volume_Forecast_Data,E$138,FALSE) -> 1990270.659
A145: LDNO LV: Domestic Unrestricted | B145: =VLOOKUP(Vlookup!B145,Volume_Forecast_Data,B$138,FALSE) -> 52666.46193 | E145: =VLOOKUP(Vlookup!E145,Volume_Forecast_Data,E$138,FALSE) -> 16790.54938
A146: LDNO HV: Domestic Unrestricted | B146: =VLOOKUP(Vlookup!B146,Volume_Forecast_Data,B$138,FALSE) -> 26201.74659 | E146: =VLOOKUP(Vlookup!E146,Volume_Forecast_Data,E$138,FALSE) -> 7643.256667
A147: > Domestic Two Rate
A148: Domestic Two Rate | B148: =VLOOKUP(Vlookup!B148,Volume_Forecast_Data,B$138,FALSE) -> 653778.264 | C148: =VLOOKUP(Vlookup!C148,Volume_Forecast_Data,C$138,FALSE) -> 548676.7103 | E148: =VLOOKUP(Vlookup!E148,Volume_Forecast_Data,E$138,FALSE) -> 185774.8604
A149: LDNO LV: Domestic Two Rate | B149: =VLOOKUP(Vlookup!B149,Volume_Forecast_Data,B$138,FALSE) -> 660.8619354 | C149: =VLOOKUP(Vlookup!C149,Volume_Forecast_Data,C$138,FALSE) -> 389.5316292 | E149: =VLOOKUP(Vlookup!E149,Volume_Forecast_Data,E$138,FALSE) -> 303.5190625
A150: LDNO HV: Domestic Two Rate | B150: =VLOOKUP(Vlookup!B150,Volume_Forecast_Data,B$138,FALSE) -> 3628.604161 | C150: =VLOOKUP(Vlookup!C150,Volume_Forecast_Data,C$138,FALSE) -> 3374.336197 | E150: =VLOOKUP(Vlookup!E150,Volume_Forecast_Data,E$138,FALSE) -> 1224.339575
A151: > Domestic Off Peak (related MPAN)
A152: Domestic Off Peak (related MPAN) | B152: =VLOOKUP(Vlookup!B152,Volume_Forecast_Data,B$138,FALSE) -> 26346.53184 | E152: =VLOOKUP(Vlookup!E152,Volume_Forecast_Data,E$138,FALSE) -> 6299.094858
A153: LDNO LV: Domestic Off Peak (related MPAN) | B153: =VLOOKUP(Vlookup!B153,Volume_Forecast_Data,B$138,FALSE) -> 0 | E153: =VLOOKUP(Vlookup!E153,Volume_Forecast_Data,E$138,FALSE) -> 0
A154: LDNO HV: Domestic Off Peak (related MPAN) | B154: =VLOOKUP(Vlookup!B154,Volume_Forecast_Data,B$138,FALSE) -> 0 | E154: =VLOOKUP(Vlookup!E154,Volume_Forecast_Data,E$138,FALSE) -> 0
A155: > Small Non Domestic Unrestricted
A156: Small Non Domestic Unrestricted | B156: =VLOOKUP(Vlookup!B156,Volume_Forecast_Data,B$138,FALSE) -> 1826470.995 | E156: =VLOOKUP(Vlookup!E156,Volume_Forecast_Data,E$138,FALSE) -> 124643.6597
A157: LDNO LV: Small Non Domestic Unrestricted | B157: =VLOOKUP(Vlookup!B157,Volume_Forecast_Data,B$138,FALSE) -> 3588.527359 | E157: =VLOOKUP(Vlookup!E157,Volume_Forecast_Data,E$138,FALSE) -> 335.185175
A158: LDNO HV: Small Non Domestic Unrestricted | B158: =VLOOKUP(Vlookup!B158,Volume_Forecast_Data,B$138,FALSE) -> 3579.618252 | E158: =VLOOKUP(Vlookup!E158,Volume_Forecast_Data,E$138,FALSE) -> 302.1839958
A159: > Small Non Domestic Two Rate
A160: Small Non Domestic Two Rate | B160: =VLOOKUP(Vlookup!B160,Volume_Forecast_Data,B$138,FALSE) -> 587590.2609 | C160: =VLOOKUP(Vlookup!C160,Volume_Forecast_Data,C$138,FALSE) -> 223056.1265 | E160: =VLOOKUP(Vlookup!E160,Volume_Forecast_Data,E$138,FALSE) -> 31878.97219
A161: LDNO LV: Small Non Domestic Two Rate | B161: =VLOOKUP(Vlookup!B161,Volume_Forecast_Data,B$138,FALSE) -> 14.69920706 | C161: =VLOOKUP(Vlookup!C161,Volume_Forecast_Data,C$138,FALSE) -> 7.791773475 | E161: =VLOOKUP(Vlookup!E161,Volume_Forecast_Data,E$138,FALSE) -> 6.049520833
A162: LDNO HV: Small Non Domestic Two Rate | B162: =VLOOKUP(Vlookup!B162,Volume_Forecast_Data,B$138,FALSE) -> 486.6557726 | C162: =VLOOKUP(Vlookup!C162,Volume_Forecast_Data,C$138,FALSE) -> 202.858121 | E162: =VLOOKUP(Vlookup!E162,Volume_Forecast_Data,E$138,FALSE) -> 11.05602083
A163: > Small Non Domestic Off Peak (related MPAN)
A164: Small Non Domestic Off Peak (related MPAN) | B164: =VLOOKUP(Vlookup!B164,Volume_Forecast_Data,B$138,FALSE) -> 25578.49539 | E164: =VLOOKUP(Vlookup!E164,Volume_Forecast_Data,E$138,FALSE) -> 3847.411808
A165: LDNO LV: Small Non Domestic Off Peak (related MPAN) | B165: =VLOOKUP(Vlookup!B165,Volume_Forecast_Data,B$138,FALSE) -> 0 | E165: =VLOOKUP(Vlookup!E165,Volume_Forecast_Data,E$138,FALSE) -> 0
A166: LDNO HV: Small Non Domestic Off Peak (related MPAN) | B166: =VLOOKUP(Vlookup!B166,Volume_Forecast_Data,B$138,FALSE) -> 0 | E166: =VLOOKUP(Vlookup!E166,Volume_Forecast_Data,E$138,FALSE) -> 0
A167: > LV Medium Non-Domestic
A168: LV Medium Non-Domestic | B168: =VLOOKUP(Vlookup!B168,Volume_Forecast_Data,B$138,FALSE) -> 1015845.749 | C168: =VLOOKUP(Vlookup!C168,Volume_Forecast_Data,C$138,FALSE) -> 246391.1552 | E168: =VLOOKUP(Vlookup!E168,Volume_Forecast_Data,E$138,FALSE) -> 11459.04408
A169: LDNO LV: LV Medium Non-Domestic | B169: =VLOOKUP(Vlookup!B169,Volume_Forecast_Data,B$138,FALSE) -> 381.9768856 | C169: =VLOOKUP(Vlookup!C169,Volume_Forecast_Data,C$138,FALSE) -> 139.0101278 | E169: =VLOOKUP(Vlookup!E169,Volume_Forecast_Data,E$138,FALSE) -> 1.0013
A170: LDNO HV: LV Medium Non-Domestic | B170: =VLOOKUP(Vlookup!B170,Volume_Forecast_Data,B$138,FALSE) -> 171.0954247 | C170: =VLOOKUP(Vlookup!C170,Volume_Forecast_Data,C$138,FALSE) -> 40.73327176 | E170: =VLOOKUP(Vlookup!E170,Volume_Forecast_Data,E$138,FALSE) -> 2.920458333
A171: > LV Sub Medium Non-Domestic
A172: LV Sub Medium Non-Domestic | B172: =VLOOKUP(Vlookup!B172,Volume_Forecast_Data,B$138,FALSE) -> 33967.01321 | C172: =VLOOKUP(Vlookup!C172,Volume_Forecast_Data,C$138,FALSE) -> 9223.990003 | E172: =VLOOKUP(Vlookup!E172,Volume_Forecast_Data,E$138,FALSE) -> 341.192975
A173: > HV Medium Non-Domestic
A174: HV Medium Non-Domestic | B174: =VLOOKUP(Vlookup!B174,Volume_Forecast_Data,B$138,FALSE) -> 7332.979752 | C174: =VLOOKUP(Vlookup!C174,Volume_Forecast_Data,C$138,FALSE) -> 2225.201809 | E174: =VLOOKUP(Vlookup!E174,Volume_Forecast_Data,E$138,FALSE) -> 53.73643333
A175: > LV HH Metered
A176: LV HH Metered | B176: =VLOOKUP(Vlookup!B176,Volume_Forecast_Data,B$138,FALSE) -> 177883.0028 | C176: =VLOOKUP(Vlookup!C176,Volume_Forecast_Data,C$138,FALSE) -> 634671.4399 | D176: =VLOOKUP(Vlookup!D176,Volume_Forecast_Data,D$138,FALSE) -> 815078.2162 | E176: =VLOOKUP(Vlookup!E176,Volume_Forecast_Data,E$138,FALSE) -> 5237.383092 | F176: =VLOOKUP(Vlookup!F176,Volume_Forecast_Data,F$138,FALSE) -> 934999.2089 | G176: =VLOOKUP(Vlookup!G176,Volume_Forecast_Data,G$138,FALSE) -> 130808.537
A177: LDNO LV: LV HH Metered | B177: =VLOOKUP(Vlookup!B177,Volume_Forecast_Data,B$138,FALSE) -> 0 | C177: =VLOOKUP(Vlookup!C177,Volume_Forecast_Data,C$138,FALSE) -> 0 | D177: =VLOOKUP(Vlookup!D177,Volume_Forecast_Data,D$138,FALSE) -> 0 | E177: =VLOOKUP(Vlookup!E177,Volume_Forecast_Data,E$138,FALSE) -> 0 | F177: =VLOOKUP(Vlookup!F177,Volume_Forecast_Data,F$138,FALSE) -> 0 | G177: =VLOOKUP(Vlookup!G177,Volume_Forecast_Data,G$138,FALSE) -> 0
A178: LDNO HV: LV HH Metered | B178: =VLOOKUP(Vlookup!B178,Volume_Forecast_Data,B$138,FALSE) -> 0 | C178: =VLOOKUP(Vlookup!C178,Volume_Forecast_Data,C$138,FALSE) -> 0 | D178: =VLOOKUP(Vlookup!D178,Volume_Forecast_Data,D$138,FALSE) -> 0 | E178: =VLOOKUP(Vlookup!E178,Volume_Forecast_Data,E$138,FALSE) -> 0 | F178: =VLOOKUP(Vlookup!F178,Volume_Forecast_Data,F$138,FALSE) -> 0 | G178: =VLOOKUP(Vlookup!G178,Volume_Forecast_Data,G$138,FALSE) -> 0
A179: > LV Sub HH Metered
A180: LV Sub HH Metered | B180: =VLOOKUP(Vlookup!B180,Volume_Forecast_Data,B$138,FALSE) -> 139183.5114 | C180: =VLOOKUP(Vlookup!C180,Volume_Forecast_Data,C$138,FALSE) -> 507208.18 | D180: =VLOOKUP(Vlookup!D180,Volume_Forecast_Data,D$138,FALSE) -> 674166.1218 | E180: =VLOOKUP(Vlookup!E180,Volume_Forecast_Data,E$138,FALSE) -> 1836.3842 | F180: =VLOOKUP(Vlookup!F180,Volume_Forecast_Data,F$138,FALSE) -> 644485.0524 | G180: =VLOOKUP(Vlookup!G180,Volume_Forecast_Data,G$138,FALSE) -> 86101.58715
A181: LDNO HV: LV Sub HH Metered | B181: =VLOOKUP(Vlookup!B181,Volume_Forecast_Data,B$138,FALSE) -> 0 | C181: =VLOOKUP(Vlookup!C181,Volume_Forecast_Data,C$138,FALSE) -> 0 | D181: =VLOOKUP(Vlookup!D181,Volume_Forecast_Data,D$138,FALSE) -> 0 | E181: =VLOOKUP(Vlookup!E181,Volume_Forecast_Data,E$138,FALSE) -> 0 | F181: =VLOOKUP(Vlookup!F181,Volume_Forecast_Data,F$138,FALSE) -> 0 | G181: =VLOOKUP(Vlookup!G181,Volume_Forecast_Data,G$138,FALSE) -> 0
A182: > HV HH Metered
A183: HV HH Metered | B183: =VLOOKUP(Vlookup!B183,Volume_Forecast_Data,B$138,FALSE) -> 514879.4274 | C183: =VLOOKUP(Vlookup!C183,Volume_Forecast_Data,C$138,FALSE) -> 1756006.573 | D183: =VLOOKUP(Vlookup!D183,Volume_Forecast_Data,D$138,FALSE) -> 2882151.459 | E183: =VLOOKUP(Vlookup!E183,Volume_Forecast_Data,E$138,FALSE) -> 1990.5844 | F183: =VLOOKUP(Vlookup!F183,Volume_Forecast_Data,F$138,FALSE) -> 1881783.274 | G183: =VLOOKUP(Vlookup!G183,Volume_Forecast_Data,G$138,FALSE) -> 341658.9213
A184: LDNO HV: HV HH Metered | B184: =VLOOKUP(Vlookup!B184,Volume_Forecast_Data,B$138,FALSE) -> 0 | C184: =VLOOKUP(Vlookup!C184,Volume_Forecast_Data,C$138,FALSE) -> 0 | D184: =VLOOKUP(Vlookup!D184,Volume_Forecast_Data,D$138,FALSE) -> 0 | E184: =VLOOKUP(Vlookup!E184,Volume_Forecast_Data,E$138,FALSE) -> 0 | F184: =VLOOKUP(Vlookup!F184,Volume_Forecast_Data,F$138,FALSE) -> 0 | G184: =VLOOKUP(Vlookup!G184,Volume_Forecast_Data,G$138,FALSE) -> 0
A185: > HV Sub HH Metered
A186: HV Sub HH Metered | B186: =VLOOKUP(Vlookup!B186,Volume_Forecast_Data,B$138,FALSE) -> 0 | C186: =VLOOKUP(Vlookup!C186,Volume_Forecast_Data,C$138,FALSE) -> 0 | D186: =VLOOKUP(Vlookup!D186,Volume_Forecast_Data,D$138,FALSE) -> 0 | E186: =VLOOKUP(Vlookup!E186,Volume_Forecast_Data,E$138,FALSE) -> 0 | F186: =VLOOKUP(Vlookup!F186,Volume_Forecast_Data,F$138,FALSE) -> 0 | G186: =VLOOKUP(Vlookup!G186,Volume_Forecast_Data,G$138,FALSE) -> 0
A187: > NHH UMS category A
A188: NHH UMS category A | B188: =VLOOKUP(Vlookup!B188,Volume_Forecast_Data,B$138,FALSE) -> 28074.84765 | E188: =VLOOKUP(Vlookup!E188,Volume_Forecast_Data,E$138,FALSE) -> 246.3198
A189: LDNO LV: NHH UMS category A | B189: =VLOOKUP(Vlookup!B189,Volume_Forecast_Data,B$138,FALSE) -> 0 | E189: =VLOOKUP(Vlookup!E189,Volume_Forecast_Data,E$138,FALSE) -> 0
A190: LDNO HV: NHH UMS category A | B190: =VLOOKUP(Vlookup!B190,Volume_Forecast_Data,B$138,FALSE) -> 0 | E190: =VLOOKUP(Vlookup!E190,Volume_Forecast_Data,E$138,FALSE) -> 0
A191: > NHH UMS category B
A192: NHH UMS category B | B192: =VLOOKUP(Vlookup!B192,Volume_Forecast_Data,B$138,FALSE) -> 8710.118482 | E192: =VLOOKUP(Vlookup!E192,Volume_Forecast_Data,E$138,FALSE) -> 303.3939
A193: LDNO LV: NHH UMS category B | B193: =VLOOKUP(Vlookup!B193,Volume_Forecast_Data,B$138,FALSE) -> 227.4441399 | E193: =VLOOKUP(Vlookup!E193,Volume_Forecast_Data,E$138,FALSE) -> 65.62687083
A194: LDNO HV: NHH UMS category B | B194: =VLOOKUP(Vlookup!B194,Volume_Forecast_Data,B$138,FALSE) -> 92.27714679 | E194: =VLOOKUP(Vlookup!E194,Volume_Forecast_Data,E$138,FALSE) -> 12.0156
A195: > NHH UMS category C
A196: NHH UMS category C | B196: =VLOOKUP(Vlookup!B196,Volume_Forecast_Data,B$138,FALSE) -> 0.7357140369 | E196: =VLOOKUP(Vlookup!E196,Volume_Forecast_Data,E$138,FALSE) -> 1.0013
A197: LDNO LV: NHH UMS category C | B197: =VLOOKUP(Vlookup!B197,Volume_Forecast_Data,B$138,FALSE) -> 0 | E197: =VLOOKUP(Vlookup!E197,Volume_Forecast_Data,E$138,FALSE) -> 0
A198: LDNO HV: NHH UMS category C | B198: =VLOOKUP(Vlookup!B198,Volume_Forecast_Data,B$138,FALSE) -> 0 | E198: =VLOOKUP(Vlookup!E198,Volume_Forecast_Data,E$138,FALSE) -> 0
A199: > NHH UMS category D
A200: NHH UMS category D | B200: =VLOOKUP(Vlookup!B200,Volume_Forecast_Data,B$138,FALSE) -> 0 | E200: =VLOOKUP(Vlookup!E200,Volume_Forecast_Data,E$138,FALSE) -> 0
A201: LDNO LV: NHH UMS category D | B201: =VLOOKUP(Vlookup!B201,Volume_Forecast_Data,B$138,FALSE) -> 0 | E201: =VLOOKUP(Vlookup!E201,Volume_Forecast_Data,E$138,FALSE) -> 0
A202: LDNO HV: NHH UMS category D | B202: =VLOOKUP(Vlookup!B202,Volume_Forecast_Data,B$138,FALSE) -> 0 | E202: =VLOOKUP(Vlookup!E202,Volume_Forecast_Data,E$138,FALSE) -> 0
A203: > LV UMS (Pseudo HH Metered)
A204: LV UMS (Pseudo HH Metered) | B204: =VLOOKUP(Vlookup!B204,Volume_Forecast_Data,B$138,FALSE) -> 14024.60775 | C204: =VLOOKUP(Vlookup!C204,Volume_Forecast_Data,C$138,FALSE) -> 32914.89573 | D204: =VLOOKUP(Vlookup!D204,Volume_Forecast_Data,D$138,FALSE) -> 239276.9811 | E204: =VLOOKUP(Vlookup!E204,Volume_Forecast_Data,E$138,FALSE) -> 23.0299
A205: LDNO LV: LV UMS (Pseudo HH Metered) | B205: =VLOOKUP(Vlookup!B205,Volume_Forecast_Data,B$138,FALSE) -> 0 | C205: =VLOOKUP(Vlookup!C205,Volume_Forecast_Data,C$138,FALSE) -> 0 | D205: =VLOOKUP(Vlookup!D205,Volume_Forecast_Data,D$138,FALSE) -> 0 | E205: =VLOOKUP(Vlookup!E205,Volume_Forecast_Data,E$138,FALSE) -> 0
A206: LDNO HV: LV UMS (Pseudo HH Metered) | B206: =VLOOKUP(Vlookup!B206,Volume_Forecast_Data,B$138,FALSE) -> 0 | C206: =VLOOKUP(Vlookup!C206,Volume_Forecast_Data,C$138,FALSE) -> 0 | D206: =VLOOKUP(Vlookup!D206,Volume_Forecast_Data,D$138,FALSE) -> 0 | E206: =VLOOKUP(Vlookup!E206,Volume_Forecast_Data,E$138,FALSE) -> 0
A207: > LV Generation NHH
A208: LV Generation NHH | B208: =VLOOKUP(Vlookup!B208,Volume_Forecast_Data,B$138,FALSE) -> 796.0110826 | E208: =VLOOKUP(Vlookup!E208,Volume_Forecast_Data,E$138,FALSE) -> 56.57345
A209: LDNO LV: LV Generation NHH | B209: =VLOOKUP(Vlookup!B209,Volume_Forecast_Data,B$138,FALSE) -> 0 | E209: =VLOOKUP(Vlookup!E209,Volume_Forecast_Data,E$138,FALSE) -> 0
A210: LDNO HV: LV Generation NHH | B210: =VLOOKUP(Vlookup!B210,Volume_Forecast_Data,B$138,FALSE) -> 0 | E210: =VLOOKUP(Vlookup!E210,Volume_Forecast_Data,E$138,FALSE) -> 0
A211: > LV Sub Generation NHH
A212: LV Sub Generation NHH | B212: =VLOOKUP(Vlookup!B212,Volume_Forecast_Data,B$138,FALSE) -> 0 | E212: =VLOOKUP(Vlookup!E212,Volume_Forecast_Data,E$138,FALSE) -> 0
A213: LDNO HV: LV Sub Generation NHH | B213: =VLOOKUP(Vlookup!B213,Volume_Forecast_Data,B$138,FALSE) -> 0 | E213: =VLOOKUP(Vlookup!E213,Volume_Forecast_Data,E$138,FALSE) -> 0
A214: > LV Generation Intermittent
A215: LV Generation Intermittent | B215: =VLOOKUP(Vlookup!B215,Volume_Forecast_Data,B$138,FALSE) -> 8567.466964 | E215: =VLOOKUP(Vlookup!E215,Volume_Forecast_Data,E$138,FALSE) -> 89.44946667 | G215: =VLOOKUP(Vlookup!G215,Volume_Forecast_Data,G$138,FALSE) -> 353.0982633
A216: LDNO LV: LV Generation Intermittent | B216: =VLOOKUP(Vlookup!B216,Volume_Forecast_Data,B$138,FALSE) -> 0 | E216: =VLOOKUP(Vlookup!E216,Volume_Forecast_Data,E$138,FALSE) -> 0 | G216: =VLOOKUP(Vlookup!G216,Volume_Forecast_Data,G$138,FALSE) -> 0
A217: LDNO HV: LV Generation Intermittent | B217: =VLOOKUP(Vlookup!B217,Volume_Forecast_Data,B$138,FALSE) -> 0 | E217: =VLOOKUP(Vlookup!E217,Volume_Forecast_Data,E$138,FALSE) -> 0 | G217: =VLOOKUP(Vlookup!G217,Volume_Forecast_Data,G$138,FALSE) -> 0
A218: > LV Generation Non-Intermittent
A219: LV Generation Non-Intermittent | B219: =VLOOKUP(Vlookup!B219,Volume_Forecast_Data,B$138,FALSE) -> 56.48216929 | C219: =VLOOKUP(Vlookup!C219,Volume_Forecast_Data,C$138,FALSE) -> 184.3153625 | D219: =VLOOKUP(Vlookup!D219,Volume_Forecast_Data,D$138,FALSE) -> 385.4955926 | E219: =VLOOKUP(Vlookup!E219,Volume_Forecast_Data,E$138,FALSE) -> 9.345466667 | G219: =VLOOKUP(Vlookup!G219,Volume_Forecast_Data,G$138,FALSE) -> 1.257721347
A220: LDNO LV: LV Generation Non-Intermittent | B220: =VLOOKUP(Vlookup!B220,Volume_Forecast_Data,B$138,FALSE) -> 0 | C220: =VLOOKUP(Vlookup!C220,Volume_Forecast_Data,C$138,FALSE) -> 0 | D220: =VLOOKUP(Vlookup!D220,Volume_Forecast_Data,D$138,FALSE) -> 0 | E220: =VLOOKUP(Vlookup!E220,Volume_Forecast_Data,E$138,FALSE) -> 0 | G220: =VLOOKUP(Vlookup!G220,Volume_Forecast_Data,G$138,FALSE) -> 0
A221: LDNO HV: LV Generation Non-Intermittent | B221: =VLOOKUP(Vlookup!B221,Volume_Forecast_Data,B$138,FALSE) -> 0 | C221: =VLOOKUP(Vlookup!C221,Volume_Forecast_Data,C$138,FALSE) -> 0 | D221: =VLOOKUP(Vlookup!D221,Volume_Forecast_Data,D$138,FALSE) -> 0 | E221: =VLOOKUP(Vlookup!E221,Volume_Forecast_Data,E$138,FALSE) -> 0 | G221: =VLOOKUP(Vlookup!G221,Volume_Forecast_Data,G$138,FALSE) -> 0
A222: > LV Sub Generation Intermittent
A223: LV Sub Generation Intermittent | B223: =VLOOKUP(Vlookup!B223,Volume_Forecast_Data,B$138,FALSE) -> 198.7063286 | E223: =VLOOKUP(Vlookup!E223,Volume_Forecast_Data,E$138,FALSE) -> 10.51365 | G223: =VLOOKUP(Vlookup!G223,Volume_Forecast_Data,G$138,FALSE) -> 1.147545259
A224: LDNO HV: LV Sub Generation Intermittent | B224: =VLOOKUP(Vlookup!B224,Volume_Forecast_Data,B$138,FALSE) -> 0 | E224: =VLOOKUP(Vlookup!E224,Volume_Forecast_Data,E$138,FALSE) -> 0 | G224: =VLOOKUP(Vlookup!G224,Volume_Forecast_Data,G$138,FALSE) -> 0
A225: > LV Sub Generation Non-Intermittent
A226: LV Sub Generation Non-Intermittent | B226: =VLOOKUP(Vlookup!B226,Volume_Forecast_Data,B$138,FALSE) -> 43.14847722 | C226: =VLOOKUP(Vlookup!C226,Volume_Forecast_Data,C$138,FALSE) -> 95.93889852 | D226: =VLOOKUP(Vlookup!D226,Volume_Forecast_Data,D$138,FALSE) -> 305.6810279 | E226: =VLOOKUP(Vlookup!E226,Volume_Forecast_Data,E$138,FALSE) -> 9.0117 | G226: =VLOOKUP(Vlookup!G226,Volume_Forecast_Data,G$138,FALSE) -> 3.802690121
A227: LDNO HV: LV Sub Generation Non-Intermittent | B227: =VLOOKUP(Vlookup!B227,Volume_Forecast_Data,B$138,FALSE) -> 0 | C227: =VLOOKUP(Vlookup!C227,Volume_Forecast_Data,C$138,FALSE) -> 0 | D227: =VLOOKUP(Vlookup!D227,Volume_Forecast_Data,D$138,FALSE) -> 0 | E227: =VLOOKUP(Vlookup!E227,Volume_Forecast_Data,E$138,FALSE) -> 0 | G227: =VLOOKUP(Vlookup!G227,Volume_Forecast_Data,G$138,FALSE) -> 0
A228: > HV Generation Intermittent
A229: HV Generation Intermittent | B229: =VLOOKUP(Vlookup!B229,Volume_Forecast_Data,B$138,FALSE) -> 146002.2817 | E229: =VLOOKUP(Vlookup!E229,Volume_Forecast_Data,E$138,FALSE) -> 44.47440833 | G229: =VLOOKUP(Vlookup!G229,Volume_Forecast_Data,G$138,FALSE) -> 4072.641033
A230: LDNO HV: HV Generation Intermittent | B230: =VLOOKUP(Vlookup!B230,Volume_Forecast_Data,B$138,FALSE) -> 0 | E230: =VLOOKUP(Vlookup!E230,Volume_Forecast_Data,E$138,FALSE) -> 0 | G230: =VLOOKUP(Vlookup!G230,Volume_Forecast_Data,G$138,FALSE) -> 0
... 96 more rows

Sheet (Y+3)
A5: 1000. Company, charging year, data version
B7: Company | C7: Year | D7: Version
A8: Company, charging year, data version | B8: =VLOOKUP(Vlookup!B8,Forcast_Data,8,FALSE) -> ENWL | C8: =VLOOKUP(Vlookup!C8,Forcast_Data,8,FALSE) -> 2017/18 | D8: =VLOOKUP(Vlookup!D8,Forcast_Data,8,FALSE) -> v1
A10: 1010. Financial and general assumptions
A12: Sources: financial assumptions; calendar; network model.
A13: These financial assumptions determine the annuity rate applied to convert the asset values of the network model into an annual charge.
B14: Rate of return | C14: Annualisation period (years) | D14: Annuity proportion for customer-contributed assets | E14: Power factor | F14: Days in the charging period
A15: Financial and general assumptions | B15: =VLOOKUP(Vlookup!B15,Forcast_Data,8,FALSE) -> 0.056 | C15: =VLOOKUP(Vlookup!C15,Forcast_Data,8,FALSE) -> 40 | E15: =VLOOKUP(Vlookup!E15,Forcast_Data,8,FALSE) -> 0.95 | F15: =VLOOKUP(Vlookup!F15,Forcast_Data,8,FALSE) -> 365
A17: 1017. Diversity allowance between top and bottom of network level
A19: Source: operational data analysis and/or network model.
A20: The diversity figure against GSP is the diversity between GSP Group (the whole system) and individual GSPs.
A21: The diversity figure against 132kV is the diversity between GSPs (the top of the 132kV network) and 132kV/EHV bulk supply points (the bottom of the 132kV network).
A22: The diversity figure against EHV is the diversity between 132kV/EHV bulk supply points (the top of the EHV network) and EHV/HV primary substations (the bottom of the EHV network).
A23: The diversity figure against HV is the diversity between EHV/HV primary substations (the top of the HV network) and HV/LV substations (the bottom of the HV network).
B24: Diversity allowance between top and bottom of network level
A25: GSPs | B25: =VLOOKUP(Vlookup!B25,Forcast_Data,8,FALSE) -> 0.1143197131
A26: 132kV | B26: =VLOOKUP(Vlookup!B26,Forcast_Data,8,FALSE) -> 0.04852694908
A27: 132kV/EHV
A28: EHV | B28: =VLOOKUP(Vlookup!B28,Forcast_Data,8,FALSE) -> 0.06976086598
A29: EHV/HV
A30: HV | B30: =VLOOKUP(Vlookup!B30,Forcast_Data,8,FALSE) -> 0.33998
A31: HV/LV
A32: LV circuits
A34: 1018. Proportion of relevant load going through 132kV/HV direct transformation
B36: 132kV/HV
A37: EHV/HV | B37: =VLOOKUP(Vlookup!B37,Forcast_Data,8,FALSE) -> 0
A39: 1019. Network model GSP peak demand (MW)
B41: Network model GSP peak demand (MW)
A42: Network model GSP peak demand (MW) | B42: =VLOOKUP(Vlookup!B42,Forcast_Data,8,FALSE) -> 500
A44: 1020. Gross asset cost by network level (£)
B46: Gross assets £
A47: 132kV | B47: =VLOOKUP(Vlookup!B47,Forcast_Data,8,FALSE) -> 88016395.47
A48: 132kV/EHV | B48: =VLOOKUP(Vlookup!B48,Forcast_Data,8,FALSE) -> 36003846.53
A49: EHV | B49: =VLOOKUP(Vlookup!B49,Forcast_Data,8,FALSE) -> 89020504.95
A50: EHV/HV | B50: =VLOOKUP(Vlookup!B50,Forcast_Data,8,FALSE) -> 64788185.84
A51: 132kV/HV | B51: =VLOOKUP(Vlookup!B51,Forcast_Data,8,FALSE) -> 0
A52: HV | B52: =VLOOKUP(Vlookup!B52,Forcast_Data,8,FALSE) -> 113396164.8
A53: HV/LV | B53: =VLOOKUP(Vlookup!B53,Forcast_Data,8,FALSE) -> 93664059.04
A54: LV circuits | B54: =VLOOKUP(Vlookup!B54,Forcast_Data,8,FALSE) -> 60048521.01
A56: 1022. LV service model asset cost (£)
B58: LV service model 1 | C58: LV service model 2 | D58: LV service model 3 | E58: LV service model 4 | F58: LV service model 5 | G58: LV service model 6 | H58: LV service model 7 | I58: LV service model 8
A59: LV service model asset cost (£) | B59: =VLOOKUP(Vlookup!B59,Forcast_Data,8,FALSE) -> 10348.52 | C59: =VLOOKUP(Vlookup!C59,Forcast_Data,8,FALSE) -> 517.4260001 | D59: =VLOOKUP(Vlookup!D59,Forcast_Data,8,FALSE) -> 2478.282223 | E59: =VLOOKUP(Vlookup!E59,Forcast_Data,8,FALSE) -> 7936.152778 | F59: =VLOOKUP(Vlookup!F59,Forcast_Data,8,FALSE) -> 287.1484884 | G59: =VLOOKUP(Vlookup!G59,Forcast_Data,8,FALSE) -> - | H59: =VLOOKUP(Vlookup!H59,Forcast_Data,8,FALSE) -> - | I59: =VLOOKUP(Vlookup!I59,Forcast_Data,8,FALSE) -> -
A61: 1023. HV service model asset cost (£)
B63: HV service model 1 | C63: HV service model 2 | D63: HV service model 3 | E63: HV service model 4 | F63: HV service model 5
A64: HV service model asset cost (£) | B64: =VLOOKUP(Vlookup!B64,Forcast_Data,8,FALSE) -> 19920.176 | C64: =VLOOKUP(Vlookup!C64,Forcast_Data,8,FALSE) -> 17627.7748 | D64: =VLOOKUP(Vlookup!D64,Forcast_Data,8,FALSE) -> 1254.147662 | E64: =VLOOKUP(Vlookup!E64,Forcast_Data,8,FALSE) -> - | F64: =VLOOKUP(Vlookup!F64,Forcast_Data,8,FALSE) -> -
A66: 1025. Matrix of applicability of LV service models to tariffs with fixed charges
B67: 26 | C67: =B67+1 -> 27 | D67: =C67+1 -> 28 | E67: 29 | F67: 30 | G67: 31 | H67: 32 | I67: 33
B68: LV service model 1 | C68: LV service model 2 | D68: LV service model 3 | E68: LV service model 4 | F68: LV service model 5 | G68: LV service model 6 | H68: LV service model 7 | I68: LV service model 8
A69: Domestic Unrestricted | B69: =VLOOKUP($A69,'Mat of App'!$B$7:$AP$38,B$67,FALSE) -> 0.05 | C69: =VLOOKUP($A69,'Mat of App'!$B$7:$AP$38,C$67,FALSE) -> 0 | D69: =VLOOKUP($A69,'Mat of App'!$B$7:$AP$38,D$67,FALSE) -> 0 | E69: =VLOOKUP($A69,'Mat of App'!$B$7:$AP$38,E$67,FALSE) -> 0 | F69: =VLOOKUP($A69,'Mat of App'!$B$7:$AP$38,F$67,FALSE) -> 0 | G69: =VLOOKUP($A69,'Mat of App'!$B$7:$AP$38,G$67,FALSE) -> 0 | H69: =VLOOKUP($A69,'Mat of App'!$B$7:$AP$38,H$67,FALSE) -> 0 | I69: =VLOOKUP($A69,'Mat of App'!$B$7:$AP$38,I$67,FALSE) -> 0
A70: Domestic Two Rate | B70: =VLOOKUP($A70,'Mat of App'!$B$7:$AP$38,B$67,FALSE) -> 0.05 | C70: =VLOOKUP($A70,'Mat of App'!$B$7:$AP$38,C$67,FALSE) -> 0 | D70: =VLOOKUP($A70,'Mat of App'!$B$7:$AP$38,D$67,FALSE) -> 0 | E70: =VLOOKUP($A70,'Mat of App'!$B$7:$AP$38,E$67,FALSE) -> 0 | F70: =VLOOKUP($A70,'Mat of App'!$B$7:$AP$38,F$67,FALSE) -> 0 | G70: =VLOOKUP($A70,'Mat of App'!$B$7:$AP$38,G$67,FALSE) -> 0 | H70: =VLOOKUP($A70,'Mat of App'!$B$7:$AP$38,H$67,FALSE) -> 0 | I70: =VLOOKUP($A70,'Mat of App'!$B$7:$AP$38,I$67,FALSE) -> 0
A71: Small Non Domestic Unrestricted | B71: =VLOOKUP($A71,'Mat of App'!$B$7:$AP$38,B$67,FALSE) -> 0 | C71: =VLOOKUP($A71,'Mat of App'!$B$7:$AP$38,C$67,FALSE) -> 1 | D71: =VLOOKUP($A71,'Mat of App'!$B$7:$AP$38,D$67,FALSE) -> 0 | E71: =VLOOKUP($A71,'Mat of App'!$B$7:$AP$38,E$67,FALSE) -> 0 | F71: =VLOOKUP($A71,'Mat of App'!$B$7:$AP$38,F$67,FALSE) -> 0 | G71: =VLOOKUP($A71,'Mat of App'!$B$7:$AP$38,G$67,FALSE) -> 0 | H71: =VLOOKUP($A71,'Mat of App'!$B$7:$AP$38,H$67,FALSE) -> 0 | I71: =VLOOKUP($A71,'Mat of App'!$B$7:$AP$38,I$67,FALSE) -> 0
A72: Small Non Domestic Two Rate | B72: =VLOOKUP($A72,'Mat of App'!$B$7:$AP$38,B$67,FALSE) -> 0 | C72: =VLOOKUP($A72,'Mat of App'!$B$7:$AP$38,C$67,FALSE) -> 1 | D72: =VLOOKUP($A72,'Mat of App'!$B$7:$AP$38,D$67,FALSE) -> 0 | E72: =VLOOKUP($A72,'Mat of App'!$B$7:$AP$38,E$67,FALSE) -> 0 | F72: =VLOOKUP($A72,'Mat of App'!$B$7:$AP$38,F$67,FALSE) -> 0 | G72: =VLOOKUP($A72,'Mat of App'!$B$7:$AP$38,G$67,FALSE) -> 0 | H72: =VLOOKUP($A72,'Mat of App'!$B$7:$AP$38,H$67,FALSE) -> 0 | I72: =VLOOKUP($A72,'Mat of App'!$B$7:$AP$38,I$67,FALSE) -> 0
A73: LV Medium Non-Domestic | B73: =VLOOKUP($A73,'Mat of App'!$B$7:$AP$38,B$67,FALSE) -> 0 | C73: =VLOOKUP($A73,'Mat of App'!$B$7:$AP$38,C$67,FALSE) -> 0.1652421652 | D73: =VLOOKUP($A73,'Mat of App'!$B$7:$AP$38,D$67,FALSE) -> 0.8347578348 | E73: =VLOOKUP($A73,'Mat of App'!$B$7:$AP$38,E$67,FALSE) -> 0 | F73: =VLOOKUP($A73,'Mat of App'!$B$7:$AP$38,F$67,FALSE) -> 0 | G73: =VLOOKUP($A73,'Mat of App'!$B$7:$AP$38,G$67,FALSE) -> 0 | H73: =VLOOKUP($A73,'Mat of App'!$B$7:$AP$38,H$67,FALSE) -> 0 | I73: =VLOOKUP($A73,'Mat of App'!$B$7:$AP$38,I$67,FALSE) -> 0
A74: LV Sub Medium Non-Domestic | B74: =VLOOKUP($A74,'Mat of App'!$B$7:$AP$38,B$67,FALSE) -> 0 | C74: =VLOOKUP($A74,'Mat of App'!$B$7:$AP$38,C$67,FALSE) -> 0 | D74: =VLOOKUP($A74,'Mat of App'!$B$7:$AP$38,D$67,FALSE) -> 0 | E74: =VLOOKUP($A74,'Mat of App'!$B$7:$AP$38,E$67,FALSE) -> 1 | F74: =VLOOKUP($A74,'Mat of App'!$B$7:$AP$38,F$67,FALSE) -> 0 | G74: =VLOOKUP($A74,'Mat of App'!$B$7:$AP$38,G$67,FALSE) -> 0 | H74: =VLOOKUP($A74,'Mat of App'!$B$7:$AP$38,H$67,FALSE) -> 0 | I74: =VLOOKUP($A74,'Mat of App'!$B$7:$AP$38,I$67,FALSE) -> 0
A75: LV HH Metered | B75: =VLOOKUP($A75,'Mat of App'!$B$7:$AP$38,B$67,FALSE) -> 0 | C75: =VLOOKUP($A75,'Mat of App'!$B$7:$AP$38,C$67,FALSE) -> 0 | D75: =VLOOKUP($A75,'Mat of App'!$B$7:$AP$38,D$67,FALSE) -> 1 | E75: =VLOOKUP($A75,'Mat of App'!$B$7:$AP$38,E$67,FALSE) -> 0 | F75: =VLOOKUP($A75,'Mat of App'!$B$7:$AP$38,F$67,FALSE) -> 0 | G75: =VLOOKUP($A75,'Mat of App'!$B$7:$AP$38,G$67,FALSE) -> 0 | H75: =VLOOKUP($A75,'Mat of App'!$B$7:$AP$38,H$67,FALSE) -> 0 | I75: =VLOOKUP($A75,'Mat of App'!$B$7:$AP$38,I$67,FALSE) -> 0
A76: LV Sub HH Metered | B76: =VLOOKUP($A76,'Mat of App'!$B$7:$AP$38,B$67,FALSE) -> 0 | C76: =VLOOKUP($A76,'Mat of App'!$B$7:$AP$38,C$67,FALSE) -> 0 | D76: =VLOOKUP($A76,'Mat of App'!$B$7:$AP$38,D$67,FALSE) -> 0 | E76: =VLOOKUP($A76,'Mat of App'!$B$7:$AP$38,E$67,FALSE) -> 1 | F76: =VLOOKUP($A76,'Mat of App'!$B$7:$AP$38,F$67,FALSE) -> 0 | G76: =VLOOKUP($A76,'Mat of App'!$B$7:$AP$38,G$67,FALSE) -> 0 | H76: =VLOOKUP($A76,'Mat of App'!$B$7:$AP$38,H$67,FALSE) -> 0 | I76: =VLOOKUP($A76,'Mat of App'!$B$7:$AP$38,I$67,FALSE) -> 0
A77: LV Generation NHH | B77: =VLOOKUP($A77,'Mat of App'!$B$7:$AP$38,B$67,FALSE) -> 0 | C77: =VLOOKUP($A77,'Mat of App'!$B$7:$AP$38,C$67,FALSE) -> 0 | D77: =VLOOKUP($A77,'Mat of App'!$B$7:$AP$38,D$67,FALSE) -> 0 | E77: =VLOOKUP($A77,'Mat of App'!$B$7:$AP$38,E$67,FALSE) -> 0 | F77: =VLOOKUP($A77,'Mat of App'!$B$7:$AP$38,F$67,FALSE) -> 0 | G77: =VLOOKUP($A77,'Mat of App'!$B$7:$AP$38,G$67,FALSE) -> 0 | H77: =VLOOKUP($A77,'Mat of App'!$B$7:$AP$38,H$67,FALSE) -> 0 | I77: =VLOOKUP($A77,'Mat of App'!$B$7:$AP$38,I$67,FALSE) -> 0
A78: LV Sub Generation NHH | B78: =VLOOKUP($A78,'Mat of App'!$B$7:$AP$38,B$67,FALSE) -> 0 | C78: =VLOOKUP($A78,'Mat of App'!$B$7:$AP$38,C$67,FALSE) -> 0 | D78: =VLOOKUP($A78,'Mat of App'!$B$7:$AP$38,D$67,FALSE) -> 0 | E78: =VLOOKUP($A78,'Mat of App'!$B$7:$AP$38,E$67,FALSE) -> 0 | F78: =VLOOKUP($A78,'Mat of App'!$B$7:$AP$38,F$67,FALSE) -> 0 | G78: =VLOOKUP($A78,'Mat of App'!$B$7:$AP$38,G$67,FALSE) -> 0 | H78: =VLOOKUP($A78,'Mat of App'!$B$7:$AP$38,H$67,FALSE) -> 0 | I78: =VLOOKUP($A78,'Mat of App'!$B$7:$AP$38,I$67,FALSE) -> 0
A79: LV Generation Intermittent | B79: =VLOOKUP($A79,'Mat of App'!$B$7:$AP$38,B$67,FALSE) -> 0 | C79: =VLOOKUP($A79,'Mat of App'!$B$7:$AP$38,C$67,FALSE) -> 0 | D79: =VLOOKUP($A79,'Mat of App'!$B$7:$AP$38,D$67,FALSE) -> 0 | E79: =VLOOKUP($A79,'Mat of App'!$B$7:$AP$38,E$67,FALSE) -> 0 | F79: =VLOOKUP($A79,'Mat of App'!$B$7:$AP$38,F$67,FALSE) -> 0 | G79: =VLOOKUP($A79,'Mat of App'!$B$7:$AP$38,G$67,FALSE) -> 0 | H79: =VLOOKUP($A79,'Mat of App'!$B$7:$AP$38,H$67,FALSE) -> 0 | I79: =VLOOKUP($A79,'Mat of App'!$B$7:$AP$38,I$67,FALSE) -> 0
A80: LV Generation Non-Intermittent | B80: =VLOOKUP($A80,'Mat of App'!$B$7:$AP$38,B$67,FALSE) -> 0 | C80: =VLOOKUP($A80,'Mat of App'!$B$7:$AP$38,C$67,FALSE) -> 0 | D80: =VLOOKUP($A80,'Mat of App'!$B$7:$AP$38,D$67,FALSE) -> 0 | E80: =VLOOKUP($A80,'Mat of App'!$B$7:$AP$38,E$67,FALSE) -> 0 | F80: =VLOOKUP($A80,'Mat of App'!$B$7:$AP$38,F$67,FALSE) -> 0 | G80: =VLOOKUP($A80,'Mat of App'!$B$7:$AP$38,G$67,FALSE) -> 0 | H80: =VLOOKUP($A80,'Mat of App'!$B$7:$AP$38,H$67,FALSE) -> 0 | I80: =VLOOKUP($A80,'Mat of App'!$B$7:$AP$38,I$67,FALSE) -> 0
A81: LV Sub Generation Intermittent | B81: =VLOOKUP($A81,'Mat of App'!$B$7:$AP$38,B$67,FALSE) -> 0 | C81: =VLOOKUP($A81,'Mat of App'!$B$7:$AP$38,C$67,FALSE) -> 0 | D81: =VLOOKUP($A81,'Mat of App'!$B$7:$AP$38,D$67,FALSE) -> 0 | E81: =VLOOKUP($A81,'Mat of App'!$B$7:$AP$38,E$67,FALSE) -> 0 | F81: =VLOOKUP($A81,'Mat of App'!$B$7:$AP$38,F$67,FALSE) -> 0 | G81: =VLOOKUP($A81,'Mat of App'!$B$7:$AP$38,G$67,FALSE) -> 0 | H81: =VLOOKUP($A81,'Mat of App'!$B$7:$AP$38,H$67,FALSE) -> 0 | I81: =VLOOKUP($A81,'Mat of App'!$B$7:$AP$38,I$67,FALSE) -> 0
A82: LV Sub Generation Non-Intermittent | B82: =VLOOKUP($A82,'Mat of App'!$B$7:$AP$38,B$67,FALSE) -> 0 | C82: =VLOOKUP($A82,'Mat of App'!$B$7:$AP$38,C$67,FALSE) -> 0 | D82: =VLOOKUP($A82,'Mat of App'!$B$7:$AP$38,D$67,FALSE) -> 0 | E82: =VLOOKUP($A82,'Mat of App'!$B$7:$AP$38,E$67,FALSE) -> 0 | F82: =VLOOKUP($A82,'Mat of App'!$B$7:$AP$38,F$67,FALSE) -> 0 | G82: =VLOOKUP($A82,'Mat of App'!$B$7:$AP$38,G$67,FALSE) -> 0 | H82: =VLOOKUP($A82,'Mat of App'!$B$7:$AP$38,H$67,FALSE) -> 0 | I82: =VLOOKUP($A82,'Mat of App'!$B$7:$AP$38,I$67,FALSE) -> 0
A84: 1026. Matrix of applicability of LV service models to unmetered tariffs
A86: Source: service models
A87: Proportion of service model involved in connecting load of 1 MWh/year
B88: LV service model 1 | C88: LV service model 2 | D88: LV service model 3 | E88: LV service model 4 | F88: LV service model 5 | G88: LV service model 6 | H88: LV service model 7 | I88: LV service model 8
A89: All LV unmetered tariffs | B89: =VLOOKUP($A89,'Mat of App'!$B$7:$AP$38,B$67,FALSE) -> 0 | C89: =VLOOKUP($A89,'Mat of App'!$B$7:$AP$38,C$67,FALSE) -> 0 | D89: =VLOOKUP($A89,'Mat of App'!$B$7:$AP$38,D$67,FALSE) -> 0 | E89: =VLOOKUP($A89,'Mat of App'!$B$7:$AP$38,E$67,FALSE) -> 0 | F89: =VLOOKUP($A89,'Mat of App'!$B$7:$AP$38,F$67,FALSE) -> 2.874359556 | G89: =VLOOKUP($A89,'Mat of App'!$B$7:$AP$38,G$67,FALSE) -> 0 | H89: =VLOOKUP($A89,'Mat of App'!$B$7:$AP$38,H$67,FALSE) -> 0 | I89: =VLOOKUP($A89,'Mat of App'!$B$7:$AP$38,I$67,FALSE) -> 0
A91: 1028. Matrix of applicability of HV service models to tariffs with fixed charges
B92: 17 | C92: =B92+1 -> 18 | D92: =C92+1 -> 19 | E92: 20 | F92: 21
B93: HV service model 1 | C93: HV service model 2 | D93: HV service model 3 | E93: HV service model 4 | F93: HV service model 5
A94: HV Medium Non-Domestic | B94: =VLOOKUP($A94,'Mat of App'!$B$7:$AP$38,B$92,FALSE) -> 0 | C94: =VLOOKUP($A94,'Mat of App'!$B$7:$AP$38,C$92,FALSE) -> 1 | D94: =VLOOKUP($A94,'Mat of App'!$B$7:$AP$38,D$92,FALSE) -> 0 | E94: =VLOOKUP($A94,'Mat of App'!$B$7:$AP$38,E$92,FALSE) -> 0 | F94: =VLOOKUP($A94,'Mat of App'!$B$7:$AP$38,F$92,FALSE) -> 0
A95: HV HH Metered | B95: =VLOOKUP($A95,'Mat of App'!$B$7:$AP$38,B$92,FALSE) -> 0 | C95: =VLOOKUP($A95,'Mat of App'!$B$7:$AP$38,C$92,FALSE) -> 1 | D95: =VLOOKUP($A95,'Mat of App'!$B$7:$AP$38,D$92,FALSE) -> 0 | E95: =VLOOKUP($A95,'Mat of App'!$B$7:$AP$38,E$92,FALSE) -> 0 | F95: =VLOOKUP($A95,'Mat of App'!$B$7:$AP$38,F$92,FALSE) -> 0
A96: HV Sub HH Metered | B96: =VLOOKUP($A96,'Mat of App'!$B$7:$AP$38,B$92,FALSE) -> 1 | C96: =VLOOKUP($A96,'Mat of App'!$B$7:$AP$38,C$92,FALSE) -> 0 | D96: =VLOOKUP($A96,'Mat of App'!$B$7:$AP$38,D$92,FALSE) -> 0 | E96: =VLOOKUP($A96,'Mat of App'!$B$7:$AP$38,E$92,FALSE) -> 0 | F96: =VLOOKUP($A96,'Mat of App'!$B$7:$AP$38,F$92,FALSE) -> 0
A97: HV Generation Intermittent | B97: =VLOOKUP($A97,'Mat of App'!$B$7:$AP$38,B$92,FALSE) -> 0 | C97: =VLOOKUP($A97,'Mat of App'!$B$7:$AP$38,C$92,FALSE) -> 0 | D97: =VLOOKUP($A97,'Mat of App'!$B$7:$AP$38,D$92,FALSE) -> 1 | E97: =VLOOKUP($A97,'Mat of App'!$B$7:$AP$38,E$92,FALSE) -> 0 | F97: =VLOOKUP($A97,'Mat of App'!$B$7:$AP$38,F$92,FALSE) -> 0
A98: HV Generation Non-Intermittent | B98: =VLOOKUP($A98,'Mat of App'!$B$7:$AP$38,B$92,FALSE) -> 0 | C98: =VLOOKUP($A98,'Mat of App'!$B$7:$AP$38,C$92,FALSE) -> 0 | D98: =VLOOKUP($A98,'Mat of App'!$B$7:$AP$38,D$92,FALSE) -> 1 | E98: =VLOOKUP($A98,'Mat of App'!$B$7:$AP$38,E$92,FALSE) -> 0 | F98: =VLOOKUP($A98,'Mat of App'!$B$7:$AP$38,F$92,FALSE) -> 0
A99: HV Sub Generation Non-Intermittent | B99: =VLOOKUP($A99,'Mat of App'!$B$7:$AP$38,B$92,FALSE) -> 0 | C99: =VLOOKUP($A99,'Mat of App'!$B$7:$AP$38,C$92,FALSE) -> 0 | D99: =VLOOKUP($A99,'Mat of App'!$B$7:$AP$38,D$92,FALSE) -> 1 | E99: =VLOOKUP($A99,'Mat of App'!$B$7:$AP$38,E$92,FALSE) -> 0 | F99: =VLOOKUP($A99,'Mat of App'!$B$7:$AP$38,F$92,FALSE) -> 0
A100: HV Sub Generation Intermittent | B100: =VLOOKUP($A100,'Mat of App'!$B$7:$AP$38,B$92,FALSE) -> 0 | C100: =VLOOKUP($A100,'Mat of App'!$B$7:$AP$38,C$92,FALSE) -> 0 | D100: =VLOOKUP($A100,'Mat of App'!$B$7:$AP$38,D$92,FALSE) -> 1 | E100: =VLOOKUP($A100,'Mat of App'!$B$7:$AP$38,E$92,FALSE) -> 0 | F100: =VLOOKUP($A100,'Mat of App'!$B$7:$AP$38,F$92,FALSE) -> 0
A102: 1032. Loss adjustment factors to transmission
A104: Source: losses model or loss adjustment factors at time of system peak.
B105: 132kV | C105: 132kV/EHV | D105: EHV | E105: EHV/HV | F105: HV | G105: HV/LV | H105: LV circuits
A106: Loss adjustment factor | B106: =VLOOKUP(Vlookup!B106,Forcast_Data,8,FALSE) -> 1.01 | C106: =VLOOKUP(Vlookup!C106,Forcast_Data,8,FALSE) -> 1.015 | D106: =VLOOKUP(Vlookup!D106,Forcast_Data,8,FALSE) -> 1.021 | E106: =VLOOKUP(Vlookup!E106,Forcast_Data,8,FALSE) -> 1.027 | F106: =VLOOKUP(Vlookup!F106,Forcast_Data,8,FALSE) -> 1.039 | G106: =VLOOKUP(Vlookup!G106,Forcast_Data,8,FALSE) -> 1.052 | H106: =VLOOKUP(Vlookup!H106,Forcast_Data,8,FALSE) -> 1.102
A108: 1037. Embedded network (LDNO) discounts
A110: Source: separate price control disaggregation model.
B111: No discount | C111: LDNO LV: LV user | D111: LDNO HV: LV user | E111: LDNO HV: LV sub user | F111: LDNO HV: HV user
A112: LDNO discount | C112: =VLOOKUP(Vlookup!C112,Forcast_Data,8,FALSE) -> 0.3341290619 | D112: =VLOOKUP(Vlookup!D112,Forcast_Data,8,FALSE) -> 0.5844116687 | E112: =VLOOKUP(Vlookup!E112,Forcast_Data,8,FALSE) -> 0.3566533208 | F112: =VLOOKUP(Vlookup!F112,Forcast_Data,8,FALSE) -> 0.2429095212
A114: 1041. Load profile data for demand users
A116: Source: load data analysis.
B117: Coincidence factor | C117: Load factor
A118: Domestic Unrestricted | B118: =VLOOKUP(Vlookup!B118,Forcast_Data,8,FALSE) -> 0.8894527476 | C118: =VLOOKUP(Vlookup!C118,Forcast_Data,8,FALSE) -> 0.425096632
A119: Domestic Two Rate | B119: =VLOOKUP(Vlookup!B119,Forcast_Data,8,FALSE) -> 0.2923961216 | C119: =VLOOKUP(Vlookup!C119,Forcast_Data,8,FALSE) -> 0.2241627496
A120: Domestic Off Peak (related MPAN) | C120: =VLOOKUP(Vlookup!C120,Forcast_Data,8,FALSE) -> 0.1536521176
A121: Small Non Domestic Unrestricted | B121: =VLOOKUP(Vlookup!B121,Forcast_Data,8,FALSE) -> 0.6810846655 | C121: =VLOOKUP(Vlookup!C121,Forcast_Data,8,FALSE) -> 0.3702747492
A122: Small Non Domestic Two Rate | B122: =VLOOKUP(Vlookup!B122,Forcast_Data,8,FALSE) -> 0.6898873841 | C122: =VLOOKUP(Vlookup!C122,Forcast_Data,8,FALSE) -> 0.4968878577
A123: Small Non Domestic Off Peak (related MPAN) | C123: =VLOOKUP(Vlookup!C123,Forcast_Data,8,FALSE) -> 0.1545401669
A124: LV Medium Non-Domestic | B124: =VLOOKUP(Vlookup!B124,Forcast_Data,8,FALSE) -> 0.8329407611 | C124: =VLOOKUP(Vlookup!C124,Forcast_Data,8,FALSE) -> 0.5456237824
A125: LV Sub Medium Non-Domestic | B125: =VLOOKUP(Vlookup!B125,Forcast_Data,8,FALSE) -> 0.8126048746 | C125: =VLOOKUP(Vlookup!C125,Forcast_Data,8,FALSE) -> 0.5454104986
A126: HV Medium Non-Domestic | B126: =VLOOKUP(Vlookup!B126,Forcast_Data,8,FALSE) -> 0.7136785066 | C126: =VLOOKUP(Vlookup!C126,Forcast_Data,8,FALSE) -> 0.4626342321
A127: LV HH Metered | B127: =VLOOKUP(Vlookup!B127,Forcast_Data,8,FALSE) -> 0.6832247724 | C127: =VLOOKUP(Vlookup!C127,Forcast_Data,8,FALSE) -> 0.5410071103
A128: LV Sub HH Metered | B128: =VLOOKUP(Vlookup!B128,Forcast_Data,8,FALSE) -> 0.7627675285 | C128: =VLOOKUP(Vlookup!C128,Forcast_Data,8,FALSE) -> 0.5418394901
A129: HV HH Metered | B129: =VLOOKUP(Vlookup!B129,Forcast_Data,8,FALSE) -> 0.8478213281 | C129: =VLOOKUP(Vlookup!C129,Forcast_Data,8,FALSE) -> 0.6967159082
A130: HV Sub HH Metered | B130: =VLOOKUP(Vlookup!B130,Forcast_Data,8,FALSE) -> 0.8478213281 | C130: =VLOOKUP(Vlookup!C130,Forcast_Data,8,FALSE) -> 0.6967159082
A131: NHH UMS category A | B131: =VLOOKUP(Vlookup!B131,Forcast_Data,8,FALSE) -> 1 | C131: =VLOOKUP(Vlookup!C131,Forcast_Data,8,FALSE) -> 1
A132: NHH UMS category B | B132: =VLOOKUP(Vlookup!B132,Forcast_Data,8,FALSE) -> 1 | C132: =VLOOKUP(Vlookup!C132,Forcast_Data,8,FALSE) -> 0.4743366324
A133: NHH UMS category C | B133: =VLOOKUP(Vlookup!B133,Forcast_Data,8,FALSE) -> 1 | C133: =VLOOKUP(Vlookup!C133,Forcast_Data,8,FALSE) -> 0.2580201598
A134: NHH UMS category D | B134: =VLOOKUP(Vlookup!B134,Forcast_Data,8,FALSE) -> 0 | C134: =VLOOKUP(Vlookup!C134,Forcast_Data,8,FALSE) -> 0.5537948744
A135: LV UMS (Pseudo HH Metered) | B135: =VLOOKUP(Vlookup!B135,Forcast_Data,8,FALSE) -> 0.9077193592 | C135: =VLOOKUP(Vlookup!C135,Forcast_Data,8,FALSE) -> 0.4793103092
A137: 1053. Volume forecasts for the charging year
B138: 22 | C138: 23 | D138: 24 | E138: 25 | F138: 26 | G138: 27
A139: Source: forecast.
A140: Please include MPAN counts for tariffs with no fixed charge (e.g. off-peak tariffs),
A141: but exclude MPANs on tariffs with a fixed charge that are not subject to a fixed charge due to a site grouping arrangement.
B142: Rate 1 units (MWh) | C142: Rate 2 units (MWh) | D142: Rate 3 units (MWh) | E142: MPANs | F142: Import capacity (kVA) | G142: Reactive power units (MVArh)
A143: > Domestic Unrestricted
A144: Domestic Unrestricted | B144: =VLOOKUP(Vlookup!B144,Volume_Forecast_Data,B$138,FALSE) -> 7417824.516 | E144: =VLOOKUP(Vlookup!E144,Volume_Forecast_Data,E$138,FALSE) -> 1992858.011
A145: LDNO LV: Domestic Unrestricted | B145: =VLOOKUP(Vlookup!B145,Volume_Forecast_Data,B$138,FALSE) -> 53130.93466 | E145: =VLOOKUP(Vlookup!E145,Volume_Forecast_Data,E$138,FALSE) -> 16812.37709
A146: LDNO HV: Domestic Unrestricted | B146: =VLOOKUP(Vlookup!B146,Volume_Forecast_Data,B$138,FALSE) -> 26432.82338 | E146: =VLOOKUP(Vlookup!E146,Volume_Forecast_Data,E$138,FALSE) -> 7653.1929
A147: > Domestic Two Rate
A148: Domestic Two Rate | B148: =VLOOKUP(Vlookup!B148,Volume_Forecast_Data,B$138,FALSE) -> 659544.024 | C148: =VLOOKUP(Vlookup!C148,Volume_Forecast_Data,C$138,FALSE) -> 553515.5653 | E148: =VLOOKUP(Vlookup!E148,Volume_Forecast_Data,E$138,FALSE) -> 186016.3678
A149: LDNO LV: Domestic Two Rate | B149: =VLOOKUP(Vlookup!B149,Volume_Forecast_Data,B$138,FALSE) -> 666.6901672 | C149: =VLOOKUP(Vlookup!C149,Volume_Forecast_Data,C$138,FALSE) -> 392.966962 | E149: =VLOOKUP(Vlookup!E149,Volume_Forecast_Data,E$138,FALSE) -> 303.9136373
A150: LDNO HV: Domestic Two Rate | B150: =VLOOKUP(Vlookup!B150,Volume_Forecast_Data,B$138,FALSE) -> 3660.605318 | C150: =VLOOKUP(Vlookup!C150,Volume_Forecast_Data,C$138,FALSE) -> 3404.09493 | E150: =VLOOKUP(Vlookup!E150,Volume_Forecast_Data,E$138,FALSE) -> 1225.931216
A151: > Domestic Off Peak (related MPAN)
A152: Domestic Off Peak (related MPAN) | B152: =VLOOKUP(Vlookup!B152,Volume_Forecast_Data,B$138,FALSE) -> 26578.88551 | E152: =VLOOKUP(Vlookup!E152,Volume_Forecast_Data,E$138,FALSE) -> 6307.283682
A153: LDNO LV: Domestic Off Peak (related MPAN) | B153: =VLOOKUP(Vlookup!B153,Volume_Forecast_Data,B$138,FALSE) -> 0 | E153: =VLOOKUP(Vlookup!E153,Volume_Forecast_Data,E$138,FALSE) -> 0
A154: LDNO HV: Domestic Off Peak (related MPAN) | B154: =VLOOKUP(Vlookup!B154,Volume_Forecast_Data,B$138,FALSE) -> 0 | E154: =VLOOKUP(Vlookup!E154,Volume_Forecast_Data,E$138,FALSE) -> 0
A155: > Small Non Domestic Unrestricted
A156: Small Non Domestic Unrestricted | B156: =VLOOKUP(Vlookup!B156,Volume_Forecast_Data,B$138,FALSE) -> 1842578.892 | E156: =VLOOKUP(Vlookup!E156,Volume_Forecast_Data,E$138,FALSE) -> 124805.6965
A157: LDNO LV: Small Non Domestic Unrestricted | B157: =VLOOKUP(Vlookup!B157,Volume_Forecast_Data,B$138,FALSE) -> 3620.175073 | E157: =VLOOKUP(Vlookup!E157,Volume_Forecast_Data,E$138,FALSE) -> 335.6209157
A158: LDNO HV: Small Non Domestic Unrestricted | B158: =VLOOKUP(Vlookup!B158,Volume_Forecast_Data,B$138,FALSE) -> 3611.187395 | E158: =VLOOKUP(Vlookup!E158,Volume_Forecast_Data,E$138,FALSE) -> 302.576835
A159: > Small Non Domestic Two Rate
A160: Small Non Domestic Two Rate | B160: =VLOOKUP(Vlookup!B160,Volume_Forecast_Data,B$138,FALSE) -> 592772.2998 | C160: =VLOOKUP(Vlookup!C160,Volume_Forecast_Data,C$138,FALSE) -> 225023.289 | E160: =VLOOKUP(Vlookup!E160,Volume_Forecast_Data,E$138,FALSE) -> 31920.41486
A161: LDNO LV: Small Non Domestic Two Rate | B161: =VLOOKUP(Vlookup!B161,Volume_Forecast_Data,B$138,FALSE) -> 14.82884138 | C161: =VLOOKUP(Vlookup!C161,Volume_Forecast_Data,C$138,FALSE) -> 7.860490191 | E161: =VLOOKUP(Vlookup!E161,Volume_Forecast_Data,E$138,FALSE) -> 6.05738521
A162: LDNO HV: Small Non Domestic Two Rate | B162: =VLOOKUP(Vlookup!B162,Volume_Forecast_Data,B$138,FALSE) -> 490.9476564 | C162: =VLOOKUP(Vlookup!C162,Volume_Forecast_Data,C$138,FALSE) -> 204.6471545 | E162: =VLOOKUP(Vlookup!E162,Volume_Forecast_Data,E$138,FALSE) -> 11.07039366
A163: > Small Non Domestic Off Peak (related MPAN)
A164: Small Non Domestic Off Peak (related MPAN) | B164: =VLOOKUP(Vlookup!B164,Volume_Forecast_Data,B$138,FALSE) -> 25804.07564 | E164: =VLOOKUP(Vlookup!E164,Volume_Forecast_Data,E$138,FALSE) -> 3852.413444
A165: LDNO LV: Small Non Domestic Off Peak (related MPAN) | B165: =VLOOKUP(Vlookup!B165,Volume_Forecast_Data,B$138,FALSE) -> 0 | E165: =VLOOKUP(Vlookup!E165,Volume_Forecast_Data,E$138,FALSE) -> 0
A166: LDNO HV: Small Non Domestic Off Peak (related MPAN) | B166: =VLOOKUP(Vlookup!B166,Volume_Forecast_Data,B$138,FALSE) -> 0 | E166: =VLOOKUP(Vlookup!E166,Volume_Forecast_Data,E$138,FALSE) -> 0
A167: > LV Medium Non-Domestic
A168: LV Medium Non-Domestic | B168: =VLOOKUP(Vlookup!B168,Volume_Forecast_Data,B$138,FALSE) -> 1024804.631 | C168: =VLOOKUP(Vlookup!C168,Volume_Forecast_Data,C$138,FALSE) -> 248564.1125 | E168: =VLOOKUP(Vlookup!E168,Volume_Forecast_Data,E$138,FALSE) -> 11473.94084
A169: LDNO LV: LV Medium Non-Domestic | B169: =VLOOKUP(Vlookup!B169,Volume_Forecast_Data,B$138,FALSE) -> 385.345592 | C169: =VLOOKUP(Vlookup!C169,Volume_Forecast_Data,C$138,FALSE) -> 140.2360772 | E169: =VLOOKUP(Vlookup!E169,Volume_Forecast_Data,E$138,FALSE) -> 1.00260169
A170: LDNO HV: LV Medium Non-Domestic | B170: =VLOOKUP(Vlookup!B170,Volume_Forecast_Data,B$138,FALSE) -> 172.6043387 | C170: =VLOOKUP(Vlookup!C170,Volume_Forecast_Data,C$138,FALSE) -> 41.09250406 | E170: =VLOOKUP(Vlookup!E170,Volume_Forecast_Data,E$138,FALSE) -> 2.924254929
A171: > LV Sub Medium Non-Domestic
A172: LV Sub Medium Non-Domestic | B172: =VLOOKUP(Vlookup!B172,Volume_Forecast_Data,B$138,FALSE) -> 34266.57294 | C172: =VLOOKUP(Vlookup!C172,Volume_Forecast_Data,C$138,FALSE) -> 9305.337633 | E172: =VLOOKUP(Vlookup!E172,Volume_Forecast_Data,E$138,FALSE) -> 341.6365259
A173: > HV Medium Non-Domestic
A174: HV Medium Non-Domestic | B174: =VLOOKUP(Vlookup!B174,Volume_Forecast_Data,B$138,FALSE) -> 7397.650304 | C174: =VLOOKUP(Vlookup!C174,Volume_Forecast_Data,C$138,FALSE) -> 2244.826169 | E174: =VLOOKUP(Vlookup!E174,Volume_Forecast_Data,E$138,FALSE) -> 53.8062907
A175: > LV HH Metered
A176: LV HH Metered | B176: =VLOOKUP(Vlookup!B176,Volume_Forecast_Data,B$138,FALSE) -> 179451.7774 | C176: =VLOOKUP(Vlookup!C176,Volume_Forecast_Data,C$138,FALSE) -> 640268.6941 | D176: =VLOOKUP(Vlookup!D176,Volume_Forecast_Data,D$138,FALSE) -> 822266.5025 | E176: =VLOOKUP(Vlookup!E176,Volume_Forecast_Data,E$138,FALSE) -> 5244.19169 | F176: =VLOOKUP(Vlookup!F176,Volume_Forecast_Data,F$138,FALSE) -> 934999.2089 | G176: =VLOOKUP(Vlookup!G176,Volume_Forecast_Data,G$138,FALSE) -> 130808.537
A177: LDNO LV: LV HH Metered | B177: =VLOOKUP(Vlookup!B177,Volume_Forecast_Data,B$138,FALSE) -> 0 | C177: =VLOOKUP(Vlookup!C177,Volume_Forecast_Data,C$138,FALSE) -> 0 | D177: =VLOOKUP(Vlookup!D177,Volume_Forecast_Data,D$138,FALSE) -> 0 | E177: =VLOOKUP(Vlookup!E177,Volume_Forecast_Data,E$138,FALSE) -> 0 | F177: =VLOOKUP(Vlookup!F177,Volume_Forecast_Data,F$138,FALSE) -> 0 | G177: =VLOOKUP(Vlookup!G177,Volume_Forecast_Data,G$138,FALSE) -> 0
A178: LDNO HV: LV HH Metered | B178: =VLOOKUP(Vlookup!B178,Volume_Forecast_Data,B$138,FALSE) -> 0 | C178: =VLOOKUP(Vlookup!C178,Volume_Forecast_Data,C$138,FALSE) -> 0 | D178: =VLOOKUP(Vlookup!D178,Volume_Forecast_Data,D$138,FALSE) -> 0 | E178: =VLOOKUP(Vlookup!E178,Volume_Forecast_Data,E$138,FALSE) -> 0 | F178: =VLOOKUP(Vlookup!F178,Volume_Forecast_Data,F$138,FALSE) -> 0 | G178: =VLOOKUP(Vlookup!G178,Volume_Forecast_Data,G$138,FALSE) -> 0
A179: > LV Sub HH Metered
A180: LV Sub HH Metered | B180: =VLOOKUP(Vlookup!B180,Volume_Forecast_Data,B$138,FALSE) -> 140410.9898 | C180: =VLOOKUP(Vlookup!C180,Volume_Forecast_Data,C$138,FALSE) -> 511681.3183 | D180: =VLOOKUP(Vlookup!D180,Volume_Forecast_Data,D$138,FALSE) -> 680111.685 | E180: =VLOOKUP(Vlookup!E180,Volume_Forecast_Data,E$138,FALSE) -> 1838.771499 | F180: =VLOOKUP(Vlookup!F180,Volume_Forecast_Data,F$138,FALSE) -> 644485.0524 | G180: =VLOOKUP(Vlookup!G180,Volume_Forecast_Data,G$138,FALSE) -> 86101.58715
A181: LDNO HV: LV Sub HH Metered | B181: =VLOOKUP(Vlookup!B181,Volume_Forecast_Data,B$138,FALSE) -> 0 | C181: =VLOOKUP(Vlookup!C181,Volume_Forecast_Data,C$138,FALSE) -> 0 | D181: =VLOOKUP(Vlookup!D181,Volume_Forecast_Data,D$138,FALSE) -> 0 | E181: =VLOOKUP(Vlookup!E181,Volume_Forecast_Data,E$138,FALSE) -> 0 | F181: =VLOOKUP(Vlookup!F181,Volume_Forecast_Data,F$138,FALSE) -> 0 | G181: =VLOOKUP(Vlookup!G181,Volume_Forecast_Data,G$138,FALSE) -> 0
A182: > HV HH Metered
A183: HV HH Metered | B183: =VLOOKUP(Vlookup!B183,Volume_Forecast_Data,B$138,FALSE) -> 519420.2195 | C183: =VLOOKUP(Vlookup!C183,Volume_Forecast_Data,C$138,FALSE) -> 1771493.035 | D183: =VLOOKUP(Vlookup!D183,Volume_Forecast_Data,D$138,FALSE) -> 2907569.547 | E183: =VLOOKUP(Vlookup!E183,Volume_Forecast_Data,E$138,FALSE) -> 1993.17216 | F183: =VLOOKUP(Vlookup!F183,Volume_Forecast_Data,F$138,FALSE) -> 1881783.274 | G183: =VLOOKUP(Vlookup!G183,Volume_Forecast_Data,G$138,FALSE) -> 341658.9213
A184: LDNO HV: HV HH Metered | B184: =VLOOKUP(Vlookup!B184,Volume_Forecast_Data,B$138,FALSE) -> 0 | C184: =VLOOKUP(Vlookup!C184,Volume_Forecast_Data,C$138,FALSE) -> 0 | D184: =VLOOKUP(Vlookup!D184,Volume_Forecast_Data,D$138,FALSE) -> 0 | E184: =VLOOKUP(Vlookup!E184,Volume_Forecast_Data,E$138,FALSE) -> 0 | F184: =VLOOKUP(Vlookup!F184,Volume_Forecast_Data,F$138,FALSE) -> 0 | G184: =VLOOKUP(Vlookup!G184,Volume_Forecast_Data,G$138,FALSE) -> 0
A185: > HV Sub HH Metered
A186: HV Sub HH Metered | B186: =VLOOKUP(Vlookup!B186,Volume_Forecast_Data,B$138,FALSE) -> 0 | C186: =VLOOKUP(Vlookup!C186,Volume_Forecast_Data,C$138,FALSE) -> 0 | D186: =VLOOKUP(Vlookup!D186,Volume_Forecast_Data,D$138,FALSE) -> 0 | E186: =VLOOKUP(Vlookup!E186,Volume_Forecast_Data,E$138,FALSE) -> 0 | F186: =VLOOKUP(Vlookup!F186,Volume_Forecast_Data,F$138,FALSE) -> 0 | G186: =VLOOKUP(Vlookup!G186,Volume_Forecast_Data,G$138,FALSE) -> 0
A187: > NHH UMS category A
A188: NHH UMS category A | B188: =VLOOKUP(Vlookup!B188,Volume_Forecast_Data,B$138,FALSE) -> 28322.44357 | E188: =VLOOKUP(Vlookup!E188,Volume_Forecast_Data,E$138,FALSE) -> 246.6400157
A189: LDNO LV: NHH UMS category A | B189: =VLOOKUP(Vlookup!B189,Volume_Forecast_Data,B$138,FALSE) -> 0 | E189: =VLOOKUP(Vlookup!E189,Volume_Forecast_Data,E$138,FALSE) -> 0
A190: LDNO HV: NHH UMS category A | B190: =VLOOKUP(Vlookup!B190,Volume_Forecast_Data,B$138,FALSE) -> 0 | E190: =VLOOKUP(Vlookup!E190,Volume_Forecast_Data,E$138,FALSE) -> 0
A191: > NHH UMS category B
A192: NHH UMS category B | B192: =VLOOKUP(Vlookup!B192,Volume_Forecast_Data,B$138,FALSE) -> 8786.934209 | E192: =VLOOKUP(Vlookup!E192,Volume_Forecast_Data,E$138,FALSE) -> 303.7883121
A193: LDNO LV: NHH UMS category B | B193: =VLOOKUP(Vlookup!B193,Volume_Forecast_Data,B$138,FALSE) -> 229.4500009 | E193: =VLOOKUP(Vlookup!E193,Volume_Forecast_Data,E$138,FALSE) -> 65.71218577
A194: LDNO HV: NHH UMS category B | B194: =VLOOKUP(Vlookup!B194,Volume_Forecast_Data,B$138,FALSE) -> 93.09095157 | E194: =VLOOKUP(Vlookup!E194,Volume_Forecast_Data,E$138,FALSE) -> 12.03122028
A195: > NHH UMS category C
A196: NHH UMS category C | B196: =VLOOKUP(Vlookup!B196,Volume_Forecast_Data,B$138,FALSE) -> 0.7422023996 | E196: =VLOOKUP(Vlookup!E196,Volume_Forecast_Data,E$138,FALSE) -> 1.00260169
A197: LDNO LV: NHH UMS category C | B197: =VLOOKUP(Vlookup!B197,Volume_Forecast_Data,B$138,FALSE) -> 0 | E197: =VLOOKUP(Vlookup!E197,Volume_Forecast_Data,E$138,FALSE) -> 0
A198: LDNO HV: NHH UMS category C | B198: =VLOOKUP(Vlookup!B198,Volume_Forecast_Data,B$138,FALSE) -> 0 | E198: =VLOOKUP(Vlookup!E198,Volume_Forecast_Data,E$138,FALSE) -> 0
A199: > NHH UMS category D
A200: NHH UMS category D | B200: =VLOOKUP(Vlookup!B200,Volume_Forecast_Data,B$138,FALSE) -> 0 | E200: =VLOOKUP(Vlookup!E200,Volume_Forecast_Data,E$138,FALSE) -> 0
A201: LDNO LV: NHH UMS category D | B201: =VLOOKUP(Vlookup!B201,Volume_Forecast_Data,B$138,FALSE) -> 0 | E201: =VLOOKUP(Vlookup!E201,Volume_Forecast_Data,E$138,FALSE) -> 0
A202: LDNO HV: NHH UMS category D | B202: =VLOOKUP(Vlookup!B202,Volume_Forecast_Data,B$138,FALSE) -> 0 | E202: =VLOOKUP(Vlookup!E202,Volume_Forecast_Data,E$138,FALSE) -> 0
A203: > LV UMS (Pseudo HH Metered)
A204: LV UMS (Pseudo HH Metered) | B204: =VLOOKUP(Vlookup!B204,Volume_Forecast_Data,B$138,FALSE) -> 14148.29268 | C204: =VLOOKUP(Vlookup!C204,Volume_Forecast_Data,C$138,FALSE) -> 33205.1767 | D204: =VLOOKUP(Vlookup!D204,Volume_Forecast_Data,D$138,FALSE) -> 241387.1976 | E204: =VLOOKUP(Vlookup!E204,Volume_Forecast_Data,E$138,FALSE) -> 23.05983887
A205: LDNO LV: LV UMS (Pseudo HH Metered) | B205: =VLOOKUP(Vlookup!B205,Volume_Forecast_Data,B$138,FALSE) -> 0 | C205: =VLOOKUP(Vlookup!C205,Volume_Forecast_Data,C$138,FALSE) -> 0 | D205: =VLOOKUP(Vlookup!D205,Volume_Forecast_Data,D$138,FALSE) -> 0 | E205: =VLOOKUP(Vlookup!E205,Volume_Forecast_Data,E$138,FALSE) -> 0
A206: LDNO HV: LV UMS (Pseudo HH Metered) | B206: =VLOOKUP(Vlookup!B206,Volume_Forecast_Data,B$138,FALSE) -> 0 | C206: =VLOOKUP(Vlookup!C206,Volume_Forecast_Data,C$138,FALSE) -> 0 | D206: =VLOOKUP(Vlookup!D206,Volume_Forecast_Data,D$138,FALSE) -> 0 | E206: =VLOOKUP(Vlookup!E206,Volume_Forecast_Data,E$138,FALSE) -> 0
A207: > LV Generation NHH
A208: LV Generation NHH | B208: =VLOOKUP(Vlookup!B208,Volume_Forecast_Data,B$138,FALSE) -> 803.0312133 | E208: =VLOOKUP(Vlookup!E208,Volume_Forecast_Data,E$138,FALSE) -> 56.64699549
A209: LDNO LV: LV Generation NHH | B209: =VLOOKUP(Vlookup!B209,Volume_Forecast_Data,B$138,FALSE) -> 0 | E209: =VLOOKUP(Vlookup!E209,Volume_Forecast_Data,E$138,FALSE) -> 0
A210: LDNO HV: LV Generation NHH | B210: =VLOOKUP(Vlookup!B210,Volume_Forecast_Data,B$138,FALSE) -> 0 | E210: =VLOOKUP(Vlookup!E210,Volume_Forecast_Data,E$138,FALSE) -> 0
A211: > LV Sub Generation NHH
A212: LV Sub Generation NHH | B212: =VLOOKUP(Vlookup!B212,Volume_Forecast_Data,B$138,FALSE) -> 0 | E212: =VLOOKUP(Vlookup!E212,Volume_Forecast_Data,E$138,FALSE) -> 0
A213: LDNO HV: LV Sub Generation NHH | B213: =VLOOKUP(Vlookup!B213,Volume_Forecast_Data,B$138,FALSE) -> 0 | E213: =VLOOKUP(Vlookup!E213,Volume_Forecast_Data,E$138,FALSE) -> 0
A214: > LV Generation Intermittent
A215: LV Generation Intermittent | B215: =VLOOKUP(Vlookup!B215,Volume_Forecast_Data,B$138,FALSE) -> 8643.024627 | E215: =VLOOKUP(Vlookup!E215,Volume_Forecast_Data,E$138,FALSE) -> 89.56575097 | G215: =VLOOKUP(Vlookup!G215,Volume_Forecast_Data,G$138,FALSE) -> 353.0982633
A216: LDNO LV: LV Generation Intermittent | B216: =VLOOKUP(Vlookup!B216,Volume_Forecast_Data,B$138,FALSE) -> 0 | E216: =VLOOKUP(Vlookup!E216,Volume_Forecast_Data,E$138,FALSE) -> 0 | G216: =VLOOKUP(Vlookup!G216,Volume_Forecast_Data,G$138,FALSE) -> 0
A217: LDNO HV: LV Generation Intermittent | B217: =VLOOKUP(Vlookup!B217,Volume_Forecast_Data,B$138,FALSE) -> 0 | E217: =VLOOKUP(Vlookup!E217,Volume_Forecast_Data,E$138,FALSE) -> 0 | G217: =VLOOKUP(Vlookup!G217,Volume_Forecast_Data,G$138,FALSE) -> 0
A218: > LV Generation Non-Intermittent
A219: LV Generation Non-Intermittent | B219: =VLOOKUP(Vlookup!B219,Volume_Forecast_Data,B$138,FALSE) -> 56.98029327 | C219: =VLOOKUP(Vlookup!C219,Volume_Forecast_Data,C$138,FALSE) -> 185.9408649 | D219: =VLOOKUP(Vlookup!D219,Volume_Forecast_Data,D$138,FALSE) -> 388.8953309 | E219: =VLOOKUP(Vlookup!E219,Volume_Forecast_Data,E$138,FALSE) -> 9.357615773 | G219: =VLOOKUP(Vlookup!G219,Volume_Forecast_Data,G$138,FALSE) -> 1.257721347
A220: LDNO LV: LV Generation Non-Intermittent | B220: =VLOOKUP(Vlookup!B220,Volume_Forecast_Data,B$138,FALSE) -> 0 | C220: =VLOOKUP(Vlookup!C220,Volume_Forecast_Data,C$138,FALSE) -> 0 | D220: =VLOOKUP(Vlookup!D220,Volume_Forecast_Data,D$138,FALSE) -> 0 | E220: =VLOOKUP(Vlookup!E220,Volume_Forecast_Data,E$138,FALSE) -> 0 | G220: =VLOOKUP(Vlookup!G220,Volume_Forecast_Data,G$138,FALSE) -> 0
A221: LDNO HV: LV Generation Non-Intermittent | B221: =VLOOKUP(Vlookup!B221,Volume_Forecast_Data,B$138,FALSE) -> 0 | C221: =VLOOKUP(Vlookup!C221,Volume_Forecast_Data,C$138,FALSE) -> 0 | D221: =VLOOKUP(Vlookup!D221,Volume_Forecast_Data,D$138,FALSE) -> 0 | E221: =VLOOKUP(Vlookup!E221,Volume_Forecast_Data,E$138,FALSE) -> 0 | G221: =VLOOKUP(Vlookup!G221,Volume_Forecast_Data,G$138,FALSE) -> 0
A222: > LV Sub Generation Intermittent
A223: LV Sub Generation Intermittent | B223: =VLOOKUP(Vlookup!B223,Volume_Forecast_Data,B$138,FALSE) -> 200.4587469 | E223: =VLOOKUP(Vlookup!E223,Volume_Forecast_Data,E$138,FALSE) -> 10.52731775 | G223: =VLOOKUP(Vlookup!G223,Volume_Forecast_Data,G$138,FALSE) -> 1.147545259
A224: LDNO HV: LV Sub Generation Intermittent | B224: =VLOOKUP(Vlookup!B224,Volume_Forecast_Data,B$138,FALSE) -> 0 | E224: =VLOOKUP(Vlookup!E224,Volume_Forecast_Data,E$138,FALSE) -> 0 | G224: =VLOOKUP(Vlookup!G224,Volume_Forecast_Data,G$138,FALSE) -> 0
A225: > LV Sub Generation Non-Intermittent
A226: LV Sub Generation Non-Intermittent | B226: =VLOOKUP(Vlookup!B226,Volume_Forecast_Data,B$138,FALSE) -> 43.52900955 | C226: =VLOOKUP(Vlookup!C226,Volume_Forecast_Data,C$138,FALSE) -> 96.78499679 | D226: =VLOOKUP(Vlookup!D226,Volume_Forecast_Data,D$138,FALSE) -> 308.3768707 | E226: =VLOOKUP(Vlookup!E226,Volume_Forecast_Data,E$138,FALSE) -> 9.02341521 | G226: =VLOOKUP(Vlookup!G226,Volume_Forecast_Data,G$138,FALSE) -> 3.802690121
A227: LDNO HV: LV Sub Generation Non-Intermittent | B227: =VLOOKUP(Vlookup!B227,Volume_Forecast_Data,B$138,FALSE) -> 0 | C227: =VLOOKUP(Vlookup!C227,Volume_Forecast_Data,C$138,FALSE) -> 0 | D227: =VLOOKUP(Vlookup!D227,Volume_Forecast_Data,D$138,FALSE) -> 0 | E227: =VLOOKUP(Vlookup!E227,Volume_Forecast_Data,E$138,FALSE) -> 0 | G227: =VLOOKUP(Vlookup!G227,Volume_Forecast_Data,G$138,FALSE) -> 0
A228: > HV Generation Intermittent
A229: HV Generation Intermittent | B229: =VLOOKUP(Vlookup!B229,Volume_Forecast_Data,B$138,FALSE) -> 147289.8958 | E229: =VLOOKUP(Vlookup!E229,Volume_Forecast_Data,E$138,FALSE) -> 44.53222506 | G229: =VLOOKUP(Vlookup!G229,Volume_Forecast_Data,G$138,FALSE) -> 4072.641033
A230: LDNO HV: HV Generation Intermittent | B230: =VLOOKUP(Vlookup!B230,Volume_Forecast_Data,B$138,FALSE) -> 0 | E230: =VLOOKUP(Vlookup!E230,Volume_Forecast_Data,E$138,FALSE) -> 0 | G230: =VLOOKUP(Vlookup!G230,Volume_Forecast_Data,G$138,FALSE) -> 0
... 96 more rows

Sheet (Y+4)
A5: 1000. Company, charging year, data version
B7: Company | C7: Year | D7: Version
A8: Company, charging year, data version | B8: =VLOOKUP(Vlookup!B8,Forcast_Data,9,FALSE) -> ENWL | C8: =VLOOKUP(Vlookup!C8,Forcast_Data,9,FALSE) -> 2018/19 | D8: =VLOOKUP(Vlookup!D8,Forcast_Data,9,FALSE) -> v1
A10: 1010. Financial and general assumptions
A12: Sources: financial assumptions; calendar; network model.
A13: These financial assumptions determine the annuity rate applied to convert the asset values of the network model into an annual charge.
B14: Rate of return | C14: Annualisation period (years) | D14: Annuity proportion for customer-contributed assets | E14: Power factor | F14: Days in the charging period
A15: Financial and general assumptions | B15: =VLOOKUP(Vlookup!B15,Forcast_Data,9,FALSE) -> 0.056 | C15: =VLOOKUP(Vlookup!C15,Forcast_Data,9,FALSE) -> 40 | E15: =VLOOKUP(Vlookup!E15,Forcast_Data,9,FALSE) -> 0.95 | F15: =VLOOKUP(Vlookup!F15,Forcast_Data,9,FALSE) -> 365
A17: 1017. Diversity allowance between top and bottom of network level
A19: Source: operational data analysis and/or network model.
A20: The diversity figure against GSP is the diversity between GSP Group (the whole system) and individual GSPs.
A21: The diversity figure against 132kV is the diversity between GSPs (the top of the 132kV network) and 132kV/EHV bulk supply points (the bottom of the 132kV network).
A22: The diversity figure against EHV is the diversity between 132kV/EHV bulk supply points (the top of the EHV network) and EHV/HV primary substations (the bottom of the EHV network).
A23: The diversity figure against HV is the diversity between EHV/HV primary substations (the top of the HV network) and HV/LV substations (the bottom of the HV network).
B24: Diversity allowance between top and bottom of network level
A25: GSPs | B25: =VLOOKUP(Vlookup!B25,Forcast_Data,9,FALSE) -> 0.1143197131
A26: 132kV | B26: =VLOOKUP(Vlookup!B26,Forcast_Data,9,FALSE) -> 0.04852694908
A27: 132kV/EHV
A28: EHV | B28: =VLOOKUP(Vlookup!B28,Forcast_Data,9,FALSE) -> 0.06976086598
A29: EHV/HV
A30: HV | B30: =VLOOKUP(Vlookup!B30,Forcast_Data,9,FALSE) -> 0.33998
A31: HV/LV
A32: LV circuits
A34: 1018. Proportion of relevant load going through 132kV/HV direct transformation
B36: 132kV/HV
A37: EHV/HV | B37: =VLOOKUP(Vlookup!B37,Forcast_Data,9,FALSE) -> 0
A39: 1019. Network model GSP peak demand (MW)
B41: Network model GSP peak demand (MW)
A42: Network model GSP peak demand (MW) | B42: =VLOOKUP(Vlookup!B42,Forcast_Data,9,FALSE) -> 500
A44: 1020. Gross asset cost by network level (£)
B46: Gross assets £
A47: 132kV | B47: =VLOOKUP(Vlookup!B47,Forcast_Data,9,FALSE) -> 90436846.35
A48: 132kV/EHV | B48: =VLOOKUP(Vlookup!B48,Forcast_Data,9,FALSE) -> 36993952.31
A49: EHV | B49: =VLOOKUP(Vlookup!B49,Forcast_Data,9,FALSE) -> 91468568.83
A50: EHV/HV | B50: =VLOOKUP(Vlookup!B50,Forcast_Data,9,FALSE) -> 66569860.95
A51: 132kV/HV | B51: =VLOOKUP(Vlookup!B51,Forcast_Data,9,FALSE) -> 0
A52: HV | B52: =VLOOKUP(Vlookup!B52,Forcast_Data,9,FALSE) -> 116514559.3
A53: HV/LV | B53: =VLOOKUP(Vlookup!B53,Forcast_Data,9,FALSE) -> 96239820.66
A54: LV circuits | B54: =VLOOKUP(Vlookup!B54,Forcast_Data,9,FALSE) -> 61699855.34
A56: 1022. LV service model asset cost (£)
B58: LV service model 1 | C58: LV service model 2 | D58: LV service model 3 | E58: LV service model 4 | F58: LV service model 5 | G58: LV service model 6 | H58: LV service model 7 | I58: LV service model 8
A59: LV service model asset cost (£) | B59: =VLOOKUP(Vlookup!B59,Forcast_Data,9,FALSE) -> 10633.1043 | C59: =VLOOKUP(Vlookup!C59,Forcast_Data,9,FALSE) -> 531.6552151 | D59: =VLOOKUP(Vlookup!D59,Forcast_Data,9,FALSE) -> 2546.434984 | E59: =VLOOKUP(Vlookup!E59,Forcast_Data,9,FALSE) -> 8154.39698 | F59: =VLOOKUP(Vlookup!F59,Forcast_Data,9,FALSE) -> 295.0450718 | G59: =VLOOKUP(Vlookup!G59,Forcast_Data,9,FALSE) -> - | H59: =VLOOKUP(Vlookup!H59,Forcast_Data,9,FALSE) -> - | I59: =VLOOKUP(Vlookup!I59,Forcast_Data,9,FALSE) -> -
A61: 1023. HV service model asset cost (£)
B63: HV service model 1 | C63: HV service model 2 | D63: HV service model 3 | E63: HV service model 4 | F63: HV service model 5
A64: HV service model asset cost (£) | B64: =VLOOKUP(Vlookup!B64,Forcast_Data,9,FALSE) -> 20467.98084 | C64: =VLOOKUP(Vlookup!C64,Forcast_Data,9,FALSE) -> 18112.5386 | D64: =VLOOKUP(Vlookup!D64,Forcast_Data,9,FALSE) -> 1288.636722 | E64: =VLOOKUP(Vlookup!E64,Forcast_Data,9,FALSE) -> - | F64: =VLOOKUP(Vlookup!F64,Forcast_Data,9,FALSE) -> -
A66: 1025. Matrix of applicability of LV service models to tariffs with fixed charges
B67: 34 | C67: =B67+1 -> 35 | D67: =C67+1 -> 36 | E67: 37 | F67: 38 | G67: 39 | H67: 40 | I67: 41
B68: LV service model 1 | C68: LV service model 2 | D68: LV service model 3 | E68: LV service model 4 | F68: LV service model 5 | G68: LV service model 6 | H68: LV service model 7 | I68: LV service model 8
A69: Domestic Unrestricted | B69: =VLOOKUP($A69,'Mat of App'!$B$7:$AP$38,B$67,FALSE) -> 0.05 | C69: =VLOOKUP($A69,'Mat of App'!$B$7:$AP$38,C$67,FALSE) -> 0 | D69: =VLOOKUP($A69,'Mat of App'!$B$7:$AP$38,D$67,FALSE) -> 0 | E69: =VLOOKUP($A69,'Mat of App'!$B$7:$AP$38,E$67,FALSE) -> 0 | F69: =VLOOKUP($A69,'Mat of App'!$B$7:$AP$38,F$67,FALSE) -> 0 | G69: =VLOOKUP($A69,'Mat of App'!$B$7:$AP$38,G$67,FALSE) -> 0 | H69: =VLOOKUP($A69,'Mat of App'!$B$7:$AP$38,H$67,FALSE) -> 0 | I69: =VLOOKUP($A69,'Mat of App'!$B$7:$AP$38,I$67,FALSE) -> 0
A70: Domestic Two Rate | B70: =VLOOKUP($A70,'Mat of App'!$B$7:$AP$38,B$67,FALSE) -> 0.05 | C70: =VLOOKUP($A70,'Mat of App'!$B$7:$AP$38,C$67,FALSE) -> 0 | D70: =VLOOKUP($A70,'Mat of App'!$B$7:$AP$38,D$67,FALSE) -> 0 | E70: =VLOOKUP($A70,'Mat of App'!$B$7:$AP$38,E$67,FALSE) -> 0 | F70: =VLOOKUP($A70,'Mat of App'!$B$7:$AP$38,F$67,FALSE) -> 0 | G70: =VLOOKUP($A70,'Mat of App'!$B$7:$AP$38,G$67,FALSE) -> 0 | H70: =VLOOKUP($A70,'Mat of App'!$B$7:$AP$38,H$67,FALSE) -> 0 | I70: =VLOOKUP($A70,'Mat of App'!$B$7:$AP$38,I$67,FALSE) -> 0
A71: Small Non Domestic Unrestricted | B71: =VLOOKUP($A71,'Mat of App'!$B$7:$AP$38,B$67,FALSE) -> 0 | C71: =VLOOKUP($A71,'Mat of App'!$B$7:$AP$38,C$67,FALSE) -> 1 | D71: =VLOOKUP($A71,'Mat of App'!$B$7:$AP$38,D$67,FALSE) -> 0 | E71: =VLOOKUP($A71,'Mat of App'!$B$7:$AP$38,E$67,FALSE) -> 0 | F71: =VLOOKUP($A71,'Mat of App'!$B$7:$AP$38,F$67,FALSE) -> 0 | G71: =VLOOKUP($A71,'Mat of App'!$B$7:$AP$38,G$67,FALSE) -> 0 | H71: =VLOOKUP($A71,'Mat of App'!$B$7:$AP$38,H$67,FALSE) -> 0 | I71: =VLOOKUP($A71,'Mat of App'!$B$7:$AP$38,I$67,FALSE) -> 0
A72: Small Non Domestic Two Rate | B72: =VLOOKUP($A72,'Mat of App'!$B$7:$AP$38,B$67,FALSE) -> 0 | C72: =VLOOKUP($A72,'Mat of App'!$B$7:$AP$38,C$67,FALSE) -> 1 | D72: =VLOOKUP($A72,'Mat of App'!$B$7:$AP$38,D$67,FALSE) -> 0 | E72: =VLOOKUP($A72,'Mat of App'!$B$7:$AP$38,E$67,FALSE) -> 0 | F72: =VLOOKUP($A72,'Mat of App'!$B$7:$AP$38,F$67,FALSE) -> 0 | G72: =VLOOKUP($A72,'Mat of App'!$B$7:$AP$38,G$67,FALSE) -> 0 | H72: =VLOOKUP($A72,'Mat of App'!$B$7:$AP$38,H$67,FALSE) -> 0 | I72: =VLOOKUP($A72,'Mat of App'!$B$7:$AP$38,I$67,FALSE) -> 0
A73: LV Medium Non-Domestic | B73: =VLOOKUP($A73,'Mat of App'!$B$7:$AP$38,B$67,FALSE) -> 0 | C73: =VLOOKUP($A73,'Mat of App'!$B$7:$AP$38,C$67,FALSE) -> 0.1652421652 | D73: =VLOOKUP($A73,'Mat of App'!$B$7:$AP$38,D$67,FALSE) -> 0.8347578348 | E73: =VLOOKUP($A73,'Mat of App'!$B$7:$AP$38,E$67,FALSE) -> 0 | F73: =VLOOKUP($A73,'Mat of App'!$B$7:$AP$38,F$67,FALSE) -> 0 | G73: =VLOOKUP($A73,'Mat of App'!$B$7:$AP$38,G$67,FALSE) -> 0 | H73: =VLOOKUP($A73,'Mat of App'!$B$7:$AP$38,H$67,FALSE) -> 0 | I73: =VLOOKUP($A73,'Mat of App'!$B$7:$AP$38,I$67,FALSE) -> 0
A74: LV Sub Medium Non-Domestic | B74: =VLOOKUP($A74,'Mat of App'!$B$7:$AP$38,B$67,FALSE) -> 0 | C74: =VLOOKUP($A74,'Mat of App'!$B$7:$AP$38,C$67,FALSE) -> 0 | D74: =VLOOKUP($A74,'Mat of App'!$B$7:$AP$38,D$67,FALSE) -> 0 | E74: =VLOOKUP($A74,'Mat of App'!$B$7:$AP$38,E$67,FALSE) -> 1 | F74: =VLOOKUP($A74,'Mat of App'!$B$7:$AP$38,F$67,FALSE) -> 0 | G74: =VLOOKUP($A74,'Mat of App'!$B$7:$AP$38,G$67,FALSE) -> 0 | H74: =VLOOKUP($A74,'Mat of App'!$B$7:$AP$38,H$67,FALSE) -> 0 | I74: =VLOOKUP($A74,'Mat of App'!$B$7:$AP$38,I$67,FALSE) -> 0
A75: LV HH Metered | B75: =VLOOKUP($A75,'Mat of App'!$B$7:$AP$38,B$67,FALSE) -> 0 | C75: =VLOOKUP($A75,'Mat of App'!$B$7:$AP$38,C$67,FALSE) -> 0 | D75: =VLOOKUP($A75,'Mat of App'!$B$7:$AP$38,D$67,FALSE) -> 1 | E75: =VLOOKUP($A75,'Mat of App'!$B$7:$AP$38,E$67,FALSE) -> 0 | F75: =VLOOKUP($A75,'Mat of App'!$B$7:$AP$38,F$67,FALSE) -> 0 | G75: =VLOOKUP($A75,'Mat of App'!$B$7:$AP$38,G$67,FALSE) -> 0 | H75: =VLOOKUP($A75,'Mat of App'!$B$7:$AP$38,H$67,FALSE) -> 0 | I75: =VLOOKUP($A75,'Mat of App'!$B$7:$AP$38,I$67,FALSE) -> 0
A76: LV Sub HH Metered | B76: =VLOOKUP($A76,'Mat of App'!$B$7:$AP$38,B$67,FALSE) -> 0 | C76: =VLOOKUP($A76,'Mat of App'!$B$7:$AP$38,C$67,FALSE) -> 0 | D76: =VLOOKUP($A76,'Mat of App'!$B$7:$AP$38,D$67,FALSE) -> 0 | E76: =VLOOKUP($A76,'Mat of App'!$B$7:$AP$38,E$67,FALSE) -> 1 | F76: =VLOOKUP($A76,'Mat of App'!$B$7:$AP$38,F$67,FALSE) -> 0 | G76: =VLOOKUP($A76,'Mat of App'!$B$7:$AP$38,G$67,FALSE) -> 0 | H76: =VLOOKUP($A76,'Mat of App'!$B$7:$AP$38,H$67,FALSE) -> 0 | I76: =VLOOKUP($A76,'Mat of App'!$B$7:$AP$38,I$67,FALSE) -> 0
A77: LV Generation NHH | B77: =VLOOKUP($A77,'Mat of App'!$B$7:$AP$38,B$67,FALSE) -> 0 | C77: =VLOOKUP($A77,'Mat of App'!$B$7:$AP$38,C$67,FALSE) -> 0 | D77: =VLOOKUP($A77,'Mat of App'!$B$7:$AP$38,D$67,FALSE) -> 0 | E77: =VLOOKUP($A77,'Mat of App'!$B$7:$AP$38,E$67,FALSE) -> 0 | F77: =VLOOKUP($A77,'Mat of App'!$B$7:$AP$38,F$67,FALSE) -> 0 | G77: =VLOOKUP($A77,'Mat of App'!$B$7:$AP$38,G$67,FALSE) -> 0 | H77: =VLOOKUP($A77,'Mat of App'!$B$7:$AP$38,H$67,FALSE) -> 0 | I77: =VLOOKUP($A77,'Mat of App'!$B$7:$AP$38,I$67,FALSE) -> 0
A78: LV Sub Generation NHH | B78: =VLOOKUP($A78,'Mat of App'!$B$7:$AP$38,B$67,FALSE) -> 0 | C78: =VLOOKUP($A78,'Mat of App'!$B$7:$AP$38,C$67,FALSE) -> 0 | D78: =VLOOKUP($A78,'Mat of App'!$B$7:$AP$38,D$67,FALSE) -> 0 | E78: =VLOOKUP($A78,'Mat of App'!$B$7:$AP$38,E$67,FALSE) -> 0 | F78: =VLOOKUP($A78,'Mat of App'!$B$7:$AP$38,F$67,FALSE) -> 0 | G78: =VLOOKUP($A78,'Mat of App'!$B$7:$AP$38,G$67,FALSE) -> 0 | H78: =VLOOKUP($A78,'Mat of App'!$B$7:$AP$38,H$67,FALSE) -> 0 | I78: =VLOOKUP($A78,'Mat of App'!$B$7:$AP$38,I$67,FALSE) -> 0
A79: LV Generation Intermittent | B79: =VLOOKUP($A79,'Mat of App'!$B$7:$AP$38,B$67,FALSE) -> 0 | C79: =VLOOKUP($A79,'Mat of App'!$B$7:$AP$38,C$67,FALSE) -> 0 | D79: =VLOOKUP($A79,'Mat of App'!$B$7:$AP$38,D$67,FALSE) -> 0 | E79: =VLOOKUP($A79,'Mat of App'!$B$7:$AP$38,E$67,FALSE) -> 0 | F79: =VLOOKUP($A79,'Mat of App'!$B$7:$AP$38,F$67,FALSE) -> 0 | G79: =VLOOKUP($A79,'Mat of App'!$B$7:$AP$38,G$67,FALSE) -> 0 | H79: =VLOOKUP($A79,'Mat of App'!$B$7:$AP$38,H$67,FALSE) -> 0 | I79: =VLOOKUP($A79,'Mat of App'!$B$7:$AP$38,I$67,FALSE) -> 0
A80: LV Generation Non-Intermittent | B80: =VLOOKUP($A80,'Mat of App'!$B$7:$AP$38,B$67,FALSE) -> 0 | C80: =VLOOKUP($A80,'Mat of App'!$B$7:$AP$38,C$67,FALSE) -> 0 | D80: =VLOOKUP($A80,'Mat of App'!$B$7:$AP$38,D$67,FALSE) -> 0 | E80: =VLOOKUP($A80,'Mat of App'!$B$7:$AP$38,E$67,FALSE) -> 0 | F80: =VLOOKUP($A80,'Mat of App'!$B$7:$AP$38,F$67,FALSE) -> 0 | G80: =VLOOKUP($A80,'Mat of App'!$B$7:$AP$38,G$67,FALSE) -> 0 | H80: =VLOOKUP($A80,'Mat of App'!$B$7:$AP$38,H$67,FALSE) -> 0 | I80: =VLOOKUP($A80,'Mat of App'!$B$7:$AP$38,I$67,FALSE) -> 0
A81: LV Sub Generation Intermittent | B81: =VLOOKUP($A81,'Mat of App'!$B$7:$AP$38,B$67,FALSE) -> 0 | C81: =VLOOKUP($A81,'Mat of App'!$B$7:$AP$38,C$67,FALSE) -> 0 | D81: =VLOOKUP($A81,'Mat of App'!$B$7:$AP$38,D$67,FALSE) -> 0 | E81: =VLOOKUP($A81,'Mat of App'!$B$7:$AP$38,E$67,FALSE) -> 0 | F81: =VLOOKUP($A81,'Mat of App'!$B$7:$AP$38,F$67,FALSE) -> 0 | G81: =VLOOKUP($A81,'Mat of App'!$B$7:$AP$38,G$67,FALSE) -> 0 | H81: =VLOOKUP($A81,'Mat of App'!$B$7:$AP$38,H$67,FALSE) -> 0 | I81: =VLOOKUP($A81,'Mat of App'!$B$7:$AP$38,I$67,FALSE) -> 0
A82: LV Sub Generation Non-Intermittent | B82: =VLOOKUP($A82,'Mat of App'!$B$7:$AP$38,B$67,FALSE) -> 0 | C82: =VLOOKUP($A82,'Mat of App'!$B$7:$AP$38,C$67,FALSE) -> 0 | D82: =VLOOKUP($A82,'Mat of App'!$B$7:$AP$38,D$67,FALSE) -> 0 | E82: =VLOOKUP($A82,'Mat of App'!$B$7:$AP$38,E$67,FALSE) -> 0 | F82: =VLOOKUP($A82,'Mat of App'!$B$7:$AP$38,F$67,FALSE) -> 0 | G82: =VLOOKUP($A82,'Mat of App'!$B$7:$AP$38,G$67,FALSE) -> 0 | H82: =VLOOKUP($A82,'Mat of App'!$B$7:$AP$38,H$67,FALSE) -> 0 | I82: =VLOOKUP($A82,'Mat of App'!$B$7:$AP$38,I$67,FALSE) -> 0
A84: 1026. Matrix of applicability of LV service models to unmetered tariffs
A86: Source: service models
A87: Proportion of service model involved in connecting load of 1 MWh/year
B88: LV service model 1 | C88: LV service model 2 | D88: LV service model 3 | E88: LV service model 4 | F88: LV service model 5 | G88: LV service model 6 | H88: LV service model 7 | I88: LV service model 8
A89: All LV unmetered tariffs | B89: =VLOOKUP($A89,'Mat of App'!$B$7:$AP$38,B$67,FALSE) -> 0 | C89: =VLOOKUP($A89,'Mat of App'!$B$7:$AP$38,C$67,FALSE) -> 0 | D89: =VLOOKUP($A89,'Mat of App'!$B$7:$AP$38,D$67,FALSE) -> 0 | E89: =VLOOKUP($A89,'Mat of App'!$B$7:$AP$38,E$67,FALSE) -> 0 | F89: =VLOOKUP($A89,'Mat of App'!$B$7:$AP$38,F$67,FALSE) -> 2.874359556 | G89: =VLOOKUP($A89,'Mat of App'!$B$7:$AP$38,G$67,FALSE) -> 0 | H89: =VLOOKUP($A89,'Mat of App'!$B$7:$AP$38,H$67,FALSE) -> 0 | I89: =VLOOKUP($A89,'Mat of App'!$B$7:$AP$38,I$67,FALSE) -> 0
A91: 1028. Matrix of applicability of HV service models to tariffs with fixed charges
B92: 22 | C92: =B92+1 -> 23 | D92: =C92+1 -> 24 | E92: 25 | F92: 26
B93: HV service model 1 | C93: HV service model 2 | D93: HV service model 3 | E93: HV service model 4 | F93: HV service model 5
A94: HV Medium Non-Domestic | B94: =VLOOKUP($A94,'Mat of App'!$B$7:$AP$38,B$92,FALSE) -> 0 | C94: =VLOOKUP($A94,'Mat of App'!$B$7:$AP$38,C$92,FALSE) -> 1 | D94: =VLOOKUP($A94,'Mat of App'!$B$7:$AP$38,D$92,FALSE) -> 0 | E94: =VLOOKUP($A94,'Mat of App'!$B$7:$AP$38,E$92,FALSE) -> 0 | F94: =VLOOKUP($A94,'Mat of App'!$B$7:$AP$38,F$92,FALSE) -> 0
A95: HV HH Metered | B95: =VLOOKUP($A95,'Mat of App'!$B$7:$AP$38,B$92,FALSE) -> 0 | C95: =VLOOKUP($A95,'Mat of App'!$B$7:$AP$38,C$92,FALSE) -> 1 | D95: =VLOOKUP($A95,'Mat of App'!$B$7:$AP$38,D$92,FALSE) -> 0 | E95: =VLOOKUP($A95,'Mat of App'!$B$7:$AP$38,E$92,FALSE) -> 0 | F95: =VLOOKUP($A95,'Mat of App'!$B$7:$AP$38,F$92,FALSE) -> 0
A96: HV Sub HH Metered | B96: =VLOOKUP($A96,'Mat of App'!$B$7:$AP$38,B$92,FALSE) -> 1 | C96: =VLOOKUP($A96,'Mat of App'!$B$7:$AP$38,C$92,FALSE) -> 0 | D96: =VLOOKUP($A96,'Mat of App'!$B$7:$AP$38,D$92,FALSE) -> 0 | E96: =VLOOKUP($A96,'Mat of App'!$B$7:$AP$38,E$92,FALSE) -> 0 | F96: =VLOOKUP($A96,'Mat of App'!$B$7:$AP$38,F$92,FALSE) -> 0
A97: HV Generation Intermittent | B97: =VLOOKUP($A97,'Mat of App'!$B$7:$AP$38,B$92,FALSE) -> 0 | C97: =VLOOKUP($A97,'Mat of App'!$B$7:$AP$38,C$92,FALSE) -> 0 | D97: =VLOOKUP($A97,'Mat of App'!$B$7:$AP$38,D$92,FALSE) -> 1 | E97: =VLOOKUP($A97,'Mat of App'!$B$7:$AP$38,E$92,FALSE) -> 0 | F97: =VLOOKUP($A97,'Mat of App'!$B$7:$AP$38,F$92,FALSE) -> 0
A98: HV Generation Non-Intermittent | B98: =VLOOKUP($A98,'Mat of App'!$B$7:$AP$38,B$92,FALSE) -> 0 | C98: =VLOOKUP($A98,'Mat of App'!$B$7:$AP$38,C$92,FALSE) -> 0 | D98: =VLOOKUP($A98,'Mat of App'!$B$7:$AP$38,D$92,FALSE) -> 1 | E98: =VLOOKUP($A98,'Mat of App'!$B$7:$AP$38,E$92,FALSE) -> 0 | F98: =VLOOKUP($A98,'Mat of App'!$B$7:$AP$38,F$92,FALSE) -> 0
A99: HV Sub Generation Non-Intermittent | B99: =VLOOKUP($A99,'Mat of App'!$B$7:$AP$38,B$92,FALSE) -> 0 | C99: =VLOOKUP($A99,'Mat of App'!$B$7:$AP$38,C$92,FALSE) -> 0 | D99: =VLOOKUP($A99,'Mat of App'!$B$7:$AP$38,D$92,FALSE) -> 1 | E99: =VLOOKUP($A99,'Mat of App'!$B$7:$AP$38,E$92,FALSE) -> 0 | F99: =VLOOKUP($A99,'Mat of App'!$B$7:$AP$38,F$92,FALSE) -> 0
A100: HV Sub Generation Intermittent | B100: =VLOOKUP($A100,'Mat of App'!$B$7:$AP$38,B$92,FALSE) -> 0 | C100: =VLOOKUP($A100,'Mat of App'!$B$7:$AP$38,C$92,FALSE) -> 0 | D100: =VLOOKUP($A100,'Mat of App'!$B$7:$AP$38,D$92,FALSE) -> 1 | E100: =VLOOKUP($A100,'Mat of App'!$B$7:$AP$38,E$92,FALSE) -> 0 | F100: =VLOOKUP($A100,'Mat of App'!$B$7:$AP$38,F$92,FALSE) -> 0
A102: 1032. Loss adjustment factors to transmission
A104: Source: losses model or loss adjustment factors at time of system peak.
B105: 132kV | C105: 132kV/EHV | D105: EHV | E105: EHV/HV | F105: HV | G105: HV/LV | H105: LV circuits
A106: Loss adjustment factor | B106: =VLOOKUP(Vlookup!B106,Forcast_Data,9,FALSE) -> 1.01 | C106: =VLOOKUP(Vlookup!C106,Forcast_Data,9,FALSE) -> 1.015 | D106: =VLOOKUP(Vlookup!D106,Forcast_Data,9,FALSE) -> 1.021 | E106: =VLOOKUP(Vlookup!E106,Forcast_Data,9,FALSE) -> 1.027 | F106: =VLOOKUP(Vlookup!F106,Forcast_Data,9,FALSE) -> 1.039 | G106: =VLOOKUP(Vlookup!G106,Forcast_Data,9,FALSE) -> 1.052 | H106: =VLOOKUP(Vlookup!H106,Forcast_Data,9,FALSE) -> 1.102
A108: 1037. Embedded network (LDNO) discounts
A110: Source: separate price control disaggregation model.
B111: No discount | C111: LDNO LV: LV user | D111: LDNO HV: LV user | E111: LDNO HV: LV sub user | F111: LDNO HV: HV user
A112: LDNO discount | C112: =VLOOKUP(Vlookup!C112,Forcast_Data,9,FALSE) -> 0.3341290619 | D112: =VLOOKUP(Vlookup!D112,Forcast_Data,9,FALSE) -> 0.5844116687 | E112: =VLOOKUP(Vlookup!E112,Forcast_Data,9,FALSE) -> 0.3566533208 | F112: =VLOOKUP(Vlookup!F112,Forcast_Data,9,FALSE) -> 0.2429095212
A114: 1041. Load profile data for demand users
A116: Source: load data analysis.
B117: Coincidence factor | C117: Load factor
A118: Domestic Unrestricted | B118: =VLOOKUP(Vlookup!B118,Forcast_Data,9,FALSE) -> 0.8894527476 | C118: =VLOOKUP(Vlookup!C118,Forcast_Data,9,FALSE) -> 0.425096632
A119: Domestic Two Rate | B119: =VLOOKUP(Vlookup!B119,Forcast_Data,9,FALSE) -> 0.2923961216 | C119: =VLOOKUP(Vlookup!C119,Forcast_Data,9,FALSE) -> 0.2241627496
A120: Domestic Off Peak (related MPAN) | C120: =VLOOKUP(Vlookup!C120,Forcast_Data,9,FALSE) -> 0.1536521176
A121: Small Non Domestic Unrestricted | B121: =VLOOKUP(Vlookup!B121,Forcast_Data,9,FALSE) -> 0.6810846655 | C121: =VLOOKUP(Vlookup!C121,Forcast_Data,9,FALSE) -> 0.3702747492
A122: Small Non Domestic Two Rate | B122: =VLOOKUP(Vlookup!B122,Forcast_Data,9,FALSE) -> 0.6898873841 | C122: =VLOOKUP(Vlookup!C122,Forcast_Data,9,FALSE) -> 0.4968878577
A123: Small Non Domestic Off Peak (related MPAN) | C123: =VLOOKUP(Vlookup!C123,Forcast_Data,9,FALSE) -> 0.1545401669
A124: LV Medium Non-Domestic | B124: =VLOOKUP(Vlookup!B124,Forcast_Data,9,FALSE) -> 0.8329407611 | C124: =VLOOKUP(Vlookup!C124,Forcast_Data,9,FALSE) -> 0.5456237824
A125: LV Sub Medium Non-Domestic | B125: =VLOOKUP(Vlookup!B125,Forcast_Data,9,FALSE) -> 0.8126048746 | C125: =VLOOKUP(Vlookup!C125,Forcast_Data,9,FALSE) -> 0.5454104986
A126: HV Medium Non-Domestic | B126: =VLOOKUP(Vlookup!B126,Forcast_Data,9,FALSE) -> 0.7136785066 | C126: =VLOOKUP(Vlookup!C126,Forcast_Data,9,FALSE) -> 0.4626342321
A127: LV HH Metered | B127: =VLOOKUP(Vlookup!B127,Forcast_Data,9,FALSE) -> 0.6832247724 | C127: =VLOOKUP(Vlookup!C127,Forcast_Data,9,FALSE) -> 0.5410071103
A128: LV Sub HH Metered | B128: =VLOOKUP(Vlookup!B128,Forcast_Data,9,FALSE) -> 0.7627675285 | C128: =VLOOKUP(Vlookup!C128,Forcast_Data,9,FALSE) -> 0.5418394901
A129: HV HH Metered | B129: =VLOOKUP(Vlookup!B129,Forcast_Data,9,FALSE) -> 0.8478213281 | C129: =VLOOKUP(Vlookup!C129,Forcast_Data,9,FALSE) -> 0.6967159082
A130: HV Sub HH Metered | B130: =VLOOKUP(Vlookup!B130,Forcast_Data,9,FALSE) -> 0.8478213281 | C130: =VLOOKUP(Vlookup!C130,Forcast_Data,9,FALSE) -> 0.6967159082
A131: NHH UMS category A | B131: =VLOOKUP(Vlookup!B131,Forcast_Data,9,FALSE) -> 1 | C131: =VLOOKUP(Vlookup!C131,Forcast_Data,9,FALSE) -> 1
A132: NHH UMS category B | B132: =VLOOKUP(Vlookup!B132,Forcast_Data,9,FALSE) -> 1 | C132: =VLOOKUP(Vlookup!C132,Forcast_Data,9,FALSE) -> 0.4743366324
A133: NHH UMS category C | B133: =VLOOKUP(Vlookup!B133,Forcast_Data,9,FALSE) -> 1 | C133: =VLOOKUP(Vlookup!C133,Forcast_Data,9,FALSE) -> 0.2580201598
A134: NHH UMS category D | B134: =VLOOKUP(Vlookup!B134,Forcast_Data,9,FALSE) -> 0 | C134: =VLOOKUP(Vlookup!C134,Forcast_Data,9,FALSE) -> 0.5537948744
A135: LV UMS (Pseudo HH Metered) | B135: =VLOOKUP(Vlookup!B135,Forcast_Data,9,FALSE) -> 0.9077193592 | C135: =VLOOKUP(Vlookup!C135,Forcast_Data,9,FALSE) -> 0.4793103092
A137: 1053. Volume forecasts for the charging year
B138: 28 | C138: 29 | D138: 30 | E138: 31 | F138: 32 | G138: 33
A139: Source: forecast.
A140: Please include MPAN counts for tariffs with no fixed charge (e.g. off-peak tariffs),
A141: but exclude MPANs on tariffs with a fixed charge that are not subject to a fixed charge due to a site grouping arrangement.
B142: Rate 1 units (MWh) | C142: Rate 2 units (MWh) | D142: Rate 3 units (MWh) | E142: MPANs | F142: Import capacity (kVA) | G142: Reactive power units (MVArh)
A143: > Domestic Unrestricted
A144: Domestic Unrestricted | B144: =VLOOKUP(Vlookup!B144,Volume_Forecast_Data,B$138,FALSE) -> 7471992.544 | E144: =VLOOKUP(Vlookup!E144,Volume_Forecast_Data,E$138,FALSE) -> 1995448.727
A145: LDNO LV: Domestic Unrestricted | B145: =VLOOKUP(Vlookup!B145,Volume_Forecast_Data,B$138,FALSE) -> 53518.91876 | E145: =VLOOKUP(Vlookup!E145,Volume_Forecast_Data,E$138,FALSE) -> 16834.23318
A146: LDNO HV: Domestic Unrestricted | B146: =VLOOKUP(Vlookup!B146,Volume_Forecast_Data,B$138,FALSE) -> 26625.84681 | E146: =VLOOKUP(Vlookup!E146,Volume_Forecast_Data,E$138,FALSE) -> 7663.142051
A147: > Domestic Two Rate
A148: Domestic Two Rate | B148: =VLOOKUP(Vlookup!B148,Volume_Forecast_Data,B$138,FALSE) -> 664360.2877 | C148: =VLOOKUP(Vlookup!C148,Volume_Forecast_Data,C$138,FALSE) -> 557557.5652 | E148: =VLOOKUP(Vlookup!E148,Volume_Forecast_Data,E$138,FALSE) -> 186258.189
A149: LDNO LV: Domestic Two Rate | B149: =VLOOKUP(Vlookup!B149,Volume_Forecast_Data,B$138,FALSE) -> 671.558615 | C149: =VLOOKUP(Vlookup!C149,Volume_Forecast_Data,C$138,FALSE) -> 395.8365695 | E149: =VLOOKUP(Vlookup!E149,Volume_Forecast_Data,E$138,FALSE) -> 304.308725
A150: LDNO HV: Domestic Two Rate | B150: =VLOOKUP(Vlookup!B150,Volume_Forecast_Data,B$138,FALSE) -> 3687.336574 | C150: =VLOOKUP(Vlookup!C150,Volume_Forecast_Data,C$138,FALSE) -> 3428.953041 | E150: =VLOOKUP(Vlookup!E150,Volume_Forecast_Data,E$138,FALSE) -> 1227.524927
A151: > Domestic Off Peak (related MPAN)
A152: Domestic Off Peak (related MPAN) | B152: =VLOOKUP(Vlookup!B152,Volume_Forecast_Data,B$138,FALSE) -> 26772.97554 | E152: =VLOOKUP(Vlookup!E152,Volume_Forecast_Data,E$138,FALSE) -> 6315.48315
A153: LDNO LV: Domestic Off Peak (related MPAN) | B153: =VLOOKUP(Vlookup!B153,Volume_Forecast_Data,B$138,FALSE) -> 0 | E153: =VLOOKUP(Vlookup!E153,Volume_Forecast_Data,E$138,FALSE) -> 0
A154: LDNO HV: Domestic Off Peak (related MPAN) | B154: =VLOOKUP(Vlookup!B154,Volume_Forecast_Data,B$138,FALSE) -> 0 | E154: =VLOOKUP(Vlookup!E154,Volume_Forecast_Data,E$138,FALSE) -> 0
A155: > Small Non Domestic Unrestricted
A156: Small Non Domestic Unrestricted | B156: =VLOOKUP(Vlookup!B156,Volume_Forecast_Data,B$138,FALSE) -> 1856034.167 | E156: =VLOOKUP(Vlookup!E156,Volume_Forecast_Data,E$138,FALSE) -> 124967.9439
A157: LDNO LV: Small Non Domestic Unrestricted | B157: =VLOOKUP(Vlookup!B157,Volume_Forecast_Data,B$138,FALSE) -> 3646.611091 | E157: =VLOOKUP(Vlookup!E157,Volume_Forecast_Data,E$138,FALSE) -> 336.0572229
A158: LDNO HV: Small Non Domestic Unrestricted | B158: =VLOOKUP(Vlookup!B158,Volume_Forecast_Data,B$138,FALSE) -> 3637.557782 | E158: =VLOOKUP(Vlookup!E158,Volume_Forecast_Data,E$138,FALSE) -> 302.9701849
A159: > Small Non Domestic Two Rate
A160: Small Non Domestic Two Rate | B160: =VLOOKUP(Vlookup!B160,Volume_Forecast_Data,B$138,FALSE) -> 597100.9687 | C160: =VLOOKUP(Vlookup!C160,Volume_Forecast_Data,C$138,FALSE) -> 226666.5023 | E160: =VLOOKUP(Vlookup!E160,Volume_Forecast_Data,E$138,FALSE) -> 31961.91139
A161: LDNO LV: Small Non Domestic Two Rate | B161: =VLOOKUP(Vlookup!B161,Volume_Forecast_Data,B$138,FALSE) -> 14.93712772 | C161: =VLOOKUP(Vlookup!C161,Volume_Forecast_Data,C$138,FALSE) -> 7.917890747 | E161: =VLOOKUP(Vlookup!E161,Volume_Forecast_Data,E$138,FALSE) -> 6.065259811
A162: LDNO HV: Small Non Domestic Two Rate | B162: =VLOOKUP(Vlookup!B162,Volume_Forecast_Data,B$138,FALSE) -> 494.5327596 | C162: =VLOOKUP(Vlookup!C162,Volume_Forecast_Data,C$138,FALSE) -> 206.1415728 | E162: =VLOOKUP(Vlookup!E162,Volume_Forecast_Data,E$138,FALSE) -> 11.08478517
A163: > Small Non Domestic Off Peak (related MPAN)
A164: Small Non Domestic Off Peak (related MPAN) | B164: =VLOOKUP(Vlookup!B164,Volume_Forecast_Data,B$138,FALSE) -> 25992.50769 | E164: =VLOOKUP(Vlookup!E164,Volume_Forecast_Data,E$138,FALSE) -> 3857.421581
A165: LDNO LV: Small Non Domestic Off Peak (related MPAN) | B165: =VLOOKUP(Vlookup!B165,Volume_Forecast_Data,B$138,FALSE) -> 0 | E165: =VLOOKUP(Vlookup!E165,Volume_Forecast_Data,E$138,FALSE) -> 0
A166: LDNO HV: Small Non Domestic Off Peak (related MPAN) | B166: =VLOOKUP(Vlookup!B166,Volume_Forecast_Data,B$138,FALSE) -> 0 | E166: =VLOOKUP(Vlookup!E166,Volume_Forecast_Data,E$138,FALSE) -> 0
A167: > LV Medium Non-Domestic
A168: LV Medium Non-Domestic | B168: =VLOOKUP(Vlookup!B168,Volume_Forecast_Data,B$138,FALSE) -> 1032288.179 | C168: =VLOOKUP(Vlookup!C168,Volume_Forecast_Data,C$138,FALSE) -> 250379.2306 | E168: =VLOOKUP(Vlookup!E168,Volume_Forecast_Data,E$138,FALSE) -> 11488.85696
A169: LDNO LV: LV Medium Non-Domestic | B169: =VLOOKUP(Vlookup!B169,Volume_Forecast_Data,B$138,FALSE) -> 388.1595452 | C169: =VLOOKUP(Vlookup!C169,Volume_Forecast_Data,C$138,FALSE) -> 141.2601391 | E169: =VLOOKUP(Vlookup!E169,Volume_Forecast_Data,E$138,FALSE) -> 1.003905072
A170: LDNO HV: LV Medium Non-Domestic | B170: =VLOOKUP(Vlookup!B170,Volume_Forecast_Data,B$138,FALSE) -> 173.864767 | C170: =VLOOKUP(Vlookup!C170,Volume_Forecast_Data,C$138,FALSE) -> 41.39257854 | E170: =VLOOKUP(Vlookup!E170,Volume_Forecast_Data,E$138,FALSE) -> 2.928056461
A171: > LV Sub Medium Non-Domestic
A172: LV Sub Medium Non-Domestic | B172: =VLOOKUP(Vlookup!B172,Volume_Forecast_Data,B$138,FALSE) -> 34516.80165 | C172: =VLOOKUP(Vlookup!C172,Volume_Forecast_Data,C$138,FALSE) -> 9373.289063 | E172: =VLOOKUP(Vlookup!E172,Volume_Forecast_Data,E$138,FALSE) -> 342.0806534
A173: > HV Medium Non-Domestic
A174: HV Medium Non-Domestic | B174: =VLOOKUP(Vlookup!B174,Volume_Forecast_Data,B$138,FALSE) -> 7451.671011 | C174: =VLOOKUP(Vlookup!C174,Volume_Forecast_Data,C$138,FALSE) -> 2261.218819 | E174: =VLOOKUP(Vlookup!E174,Volume_Forecast_Data,E$138,FALSE) -> 53.87623887
A175: > LV HH Metered
A176: LV HH Metered | B176: =VLOOKUP(Vlookup!B176,Volume_Forecast_Data,B$138,FALSE) -> 180762.2086 | C176: =VLOOKUP(Vlookup!C176,Volume_Forecast_Data,C$138,FALSE) -> 644944.2014 | D176: =VLOOKUP(Vlookup!D176,Volume_Forecast_Data,D$138,FALSE) -> 828271.0331 | E176: =VLOOKUP(Vlookup!E176,Volume_Forecast_Data,E$138,FALSE) -> 5251.009139 | F176: =VLOOKUP(Vlookup!F176,Volume_Forecast_Data,F$138,FALSE) -> 934999.2089 | G176: =VLOOKUP(Vlookup!G176,Volume_Forecast_Data,G$138,FALSE) -> 130808.537
A177: LDNO LV: LV HH Metered | B177: =VLOOKUP(Vlookup!B177,Volume_Forecast_Data,B$138,FALSE) -> 0 | C177: =VLOOKUP(Vlookup!C177,Volume_Forecast_Data,C$138,FALSE) -> 0 | D177: =VLOOKUP(Vlookup!D177,Volume_Forecast_Data,D$138,FALSE) -> 0 | E177: =VLOOKUP(Vlookup!E177,Volume_Forecast_Data,E$138,FALSE) -> 0 | F177: =VLOOKUP(Vlookup!F177,Volume_Forecast_Data,F$138,FALSE) -> 0 | G177: =VLOOKUP(Vlookup!G177,Volume_Forecast_Data,G$138,FALSE) -> 0
A178: LDNO HV: LV HH Metered | B178: =VLOOKUP(Vlookup!B178,Volume_Forecast_Data,B$138,FALSE) -> 0 | C178: =VLOOKUP(Vlookup!C178,Volume_Forecast_Data,C$138,FALSE) -> 0 | D178: =VLOOKUP(Vlookup!D178,Volume_Forecast_Data,D$138,FALSE) -> 0 | E178: =VLOOKUP(Vlookup!E178,Volume_Forecast_Data,E$138,FALSE) -> 0 | F178: =VLOOKUP(Vlookup!F178,Volume_Forecast_Data,F$138,FALSE) -> 0 | G178: =VLOOKUP(Vlookup!G178,Volume_Forecast_Data,G$138,FALSE) -> 0
A179: > LV Sub HH Metered
A180: LV Sub HH Metered | B180: =VLOOKUP(Vlookup!B180,Volume_Forecast_Data,B$138,FALSE) -> 141436.329 | C180: =VLOOKUP(Vlookup!C180,Volume_Forecast_Data,C$138,FALSE) -> 515417.8273 | D180: =VLOOKUP(Vlookup!D180,Volume_Forecast_Data,D$138,FALSE) -> 685078.1423 | E180: =VLOOKUP(Vlookup!E180,Volume_Forecast_Data,E$138,FALSE) -> 1841.161902 | F180: =VLOOKUP(Vlookup!F180,Volume_Forecast_Data,F$138,FALSE) -> 644485.0524 | G180: =VLOOKUP(Vlookup!G180,Volume_Forecast_Data,G$138,FALSE) -> 86101.58715
A181: LDNO HV: LV Sub HH Metered | B181: =VLOOKUP(Vlookup!B181,Volume_Forecast_Data,B$138,FALSE) -> 0 | C181: =VLOOKUP(Vlookup!C181,Volume_Forecast_Data,C$138,FALSE) -> 0 | D181: =VLOOKUP(Vlookup!D181,Volume_Forecast_Data,D$138,FALSE) -> 0 | E181: =VLOOKUP(Vlookup!E181,Volume_Forecast_Data,E$138,FALSE) -> 0 | F181: =VLOOKUP(Vlookup!F181,Volume_Forecast_Data,F$138,FALSE) -> 0 | G181: =VLOOKUP(Vlookup!G181,Volume_Forecast_Data,G$138,FALSE) -> 0
A182: > HV HH Metered
A183: HV HH Metered | B183: =VLOOKUP(Vlookup!B183,Volume_Forecast_Data,B$138,FALSE) -> 523213.2411 | C183: =VLOOKUP(Vlookup!C183,Volume_Forecast_Data,C$138,FALSE) -> 1784429.211 | D183: =VLOOKUP(Vlookup!D183,Volume_Forecast_Data,D$138,FALSE) -> 2928801.825 | E183: =VLOOKUP(Vlookup!E183,Volume_Forecast_Data,E$138,FALSE) -> 1995.763284 | F183: =VLOOKUP(Vlookup!F183,Volume_Forecast_Data,F$138,FALSE) -> 1881783.274 | G183: =VLOOKUP(Vlookup!G183,Volume_Forecast_Data,G$138,FALSE) -> 341658.9213
A184: LDNO HV: HV HH Metered | B184: =VLOOKUP(Vlookup!B184,Volume_Forecast_Data,B$138,FALSE) -> 0 | C184: =VLOOKUP(Vlookup!C184,Volume_Forecast_Data,C$138,FALSE) -> 0 | D184: =VLOOKUP(Vlookup!D184,Volume_Forecast_Data,D$138,FALSE) -> 0 | E184: =VLOOKUP(Vlookup!E184,Volume_Forecast_Data,E$138,FALSE) -> 0 | F184: =VLOOKUP(Vlookup!F184,Volume_Forecast_Data,F$138,FALSE) -> 0 | G184: =VLOOKUP(Vlookup!G184,Volume_Forecast_Data,G$138,FALSE) -> 0
A185: > HV Sub HH Metered
A186: HV Sub HH Metered | B186: =VLOOKUP(Vlookup!B186,Volume_Forecast_Data,B$138,FALSE) -> 0 | C186: =VLOOKUP(Vlookup!C186,Volume_Forecast_Data,C$138,FALSE) -> 0 | D186: =VLOOKUP(Vlookup!D186,Volume_Forecast_Data,D$138,FALSE) -> 0 | E186: =VLOOKUP(Vlookup!E186,Volume_Forecast_Data,E$138,FALSE) -> 0 | F186: =VLOOKUP(Vlookup!F186,Volume_Forecast_Data,F$138,FALSE) -> 0 | G186: =VLOOKUP(Vlookup!G186,Volume_Forecast_Data,G$138,FALSE) -> 0
A187: > NHH UMS category A
A188: NHH UMS category A | B188: =VLOOKUP(Vlookup!B188,Volume_Forecast_Data,B$138,FALSE) -> 28529.26578 | E188: =VLOOKUP(Vlookup!E188,Volume_Forecast_Data,E$138,FALSE) -> 246.9606478
A189: LDNO LV: NHH UMS category A | B189: =VLOOKUP(Vlookup!B189,Volume_Forecast_Data,B$138,FALSE) -> 0 | E189: =VLOOKUP(Vlookup!E189,Volume_Forecast_Data,E$138,FALSE) -> 0
A190: LDNO HV: NHH UMS category A | B190: =VLOOKUP(Vlookup!B190,Volume_Forecast_Data,B$138,FALSE) -> 0 | E190: =VLOOKUP(Vlookup!E190,Volume_Forecast_Data,E$138,FALSE) -> 0
A191: > NHH UMS category B
A192: NHH UMS category B | B192: =VLOOKUP(Vlookup!B192,Volume_Forecast_Data,B$138,FALSE) -> 8851.100042 | E192: =VLOOKUP(Vlookup!E192,Volume_Forecast_Data,E$138,FALSE) -> 304.1832369
A193: LDNO LV: NHH UMS category B | B193: =VLOOKUP(Vlookup!B193,Volume_Forecast_Data,B$138,FALSE) -> 231.1255398 | E193: =VLOOKUP(Vlookup!E193,Volume_Forecast_Data,E$138,FALSE) -> 65.79761161
A194: LDNO HV: NHH UMS category B | B194: =VLOOKUP(Vlookup!B194,Volume_Forecast_Data,B$138,FALSE) -> 93.77074026 | E194: =VLOOKUP(Vlookup!E194,Volume_Forecast_Data,E$138,FALSE) -> 12.04686087
A195: > NHH UMS category C
A196: NHH UMS category C | B196: =VLOOKUP(Vlookup!B196,Volume_Forecast_Data,B$138,FALSE) -> 0.747622269 | E196: =VLOOKUP(Vlookup!E196,Volume_Forecast_Data,E$138,FALSE) -> 1.003905072
A197: LDNO LV: NHH UMS category C | B197: =VLOOKUP(Vlookup!B197,Volume_Forecast_Data,B$138,FALSE) -> 0 | E197: =VLOOKUP(Vlookup!E197,Volume_Forecast_Data,E$138,FALSE) -> 0
A198: LDNO HV: NHH UMS category C | B198: =VLOOKUP(Vlookup!B198,Volume_Forecast_Data,B$138,FALSE) -> 0 | E198: =VLOOKUP(Vlookup!E198,Volume_Forecast_Data,E$138,FALSE) -> 0
A199: > NHH UMS category D
A200: NHH UMS category D | B200: =VLOOKUP(Vlookup!B200,Volume_Forecast_Data,B$138,FALSE) -> 0 | E200: =VLOOKUP(Vlookup!E200,Volume_Forecast_Data,E$138,FALSE) -> 0
A201: LDNO LV: NHH UMS category D | B201: =VLOOKUP(Vlookup!B201,Volume_Forecast_Data,B$138,FALSE) -> 0 | E201: =VLOOKUP(Vlookup!E201,Volume_Forecast_Data,E$138,FALSE) -> 0
A202: LDNO HV: NHH UMS category D | B202: =VLOOKUP(Vlookup!B202,Volume_Forecast_Data,B$138,FALSE) -> 0 | E202: =VLOOKUP(Vlookup!E202,Volume_Forecast_Data,E$138,FALSE) -> 0
A203: > LV UMS (Pseudo HH Metered)
A204: LV UMS (Pseudo HH Metered) | B204: =VLOOKUP(Vlookup!B204,Volume_Forecast_Data,B$138,FALSE) -> 14251.60937 | C204: =VLOOKUP(Vlookup!C204,Volume_Forecast_Data,C$138,FALSE) -> 33447.65465 | D204: =VLOOKUP(Vlookup!D204,Volume_Forecast_Data,D$138,FALSE) -> 243149.9069 | E204: =VLOOKUP(Vlookup!E204,Volume_Forecast_Data,E$138,FALSE) -> 23.08981666
A205: LDNO LV: LV UMS (Pseudo HH Metered) | B205: =VLOOKUP(Vlookup!B205,Volume_Forecast_Data,B$138,FALSE) -> 0 | C205: =VLOOKUP(Vlookup!C205,Volume_Forecast_Data,C$138,FALSE) -> 0 | D205: =VLOOKUP(Vlookup!D205,Volume_Forecast_Data,D$138,FALSE) -> 0 | E205: =VLOOKUP(Vlookup!E205,Volume_Forecast_Data,E$138,FALSE) -> 0
A206: LDNO HV: LV UMS (Pseudo HH Metered) | B206: =VLOOKUP(Vlookup!B206,Volume_Forecast_Data,B$138,FALSE) -> 0 | C206: =VLOOKUP(Vlookup!C206,Volume_Forecast_Data,C$138,FALSE) -> 0 | D206: =VLOOKUP(Vlookup!D206,Volume_Forecast_Data,D$138,FALSE) -> 0 | E206: =VLOOKUP(Vlookup!E206,Volume_Forecast_Data,E$138,FALSE) -> 0
A207: > LV Generation NHH
A208: LV Generation NHH | B208: =VLOOKUP(Vlookup!B208,Volume_Forecast_Data,B$138,FALSE) -> 808.8952799 | E208: =VLOOKUP(Vlookup!E208,Volume_Forecast_Data,E$138,FALSE) -> 56.72063658
A209: LDNO LV: LV Generation NHH | B209: =VLOOKUP(Vlookup!B209,Volume_Forecast_Data,B$138,FALSE) -> 0 | E209: =VLOOKUP(Vlookup!E209,Volume_Forecast_Data,E$138,FALSE) -> 0
A210: LDNO HV: LV Generation NHH | B210: =VLOOKUP(Vlookup!B210,Volume_Forecast_Data,B$138,FALSE) -> 0 | E210: =VLOOKUP(Vlookup!E210,Volume_Forecast_Data,E$138,FALSE) -> 0
A211: > LV Sub Generation NHH
A212: LV Sub Generation NHH | B212: =VLOOKUP(Vlookup!B212,Volume_Forecast_Data,B$138,FALSE) -> 0 | E212: =VLOOKUP(Vlookup!E212,Volume_Forecast_Data,E$138,FALSE) -> 0
A213: LDNO HV: LV Sub Generation NHH | B213: =VLOOKUP(Vlookup!B213,Volume_Forecast_Data,B$138,FALSE) -> 0 | E213: =VLOOKUP(Vlookup!E213,Volume_Forecast_Data,E$138,FALSE) -> 0
A214: > LV Generation Intermittent
A215: LV Generation Intermittent | B215: =VLOOKUP(Vlookup!B215,Volume_Forecast_Data,B$138,FALSE) -> 8706.139573 | E215: =VLOOKUP(Vlookup!E215,Volume_Forecast_Data,E$138,FALSE) -> 89.68218645 | G215: =VLOOKUP(Vlookup!G215,Volume_Forecast_Data,G$138,FALSE) -> 353.0982633
A216: LDNO LV: LV Generation Intermittent | B216: =VLOOKUP(Vlookup!B216,Volume_Forecast_Data,B$138,FALSE) -> 0 | E216: =VLOOKUP(Vlookup!E216,Volume_Forecast_Data,E$138,FALSE) -> 0 | G216: =VLOOKUP(Vlookup!G216,Volume_Forecast_Data,G$138,FALSE) -> 0
A217: LDNO HV: LV Generation Intermittent | B217: =VLOOKUP(Vlookup!B217,Volume_Forecast_Data,B$138,FALSE) -> 0 | E217: =VLOOKUP(Vlookup!E217,Volume_Forecast_Data,E$138,FALSE) -> 0 | G217: =VLOOKUP(Vlookup!G217,Volume_Forecast_Data,G$138,FALSE) -> 0
A218: > LV Generation Non-Intermittent
A219: LV Generation Non-Intermittent | B219: =VLOOKUP(Vlookup!B219,Volume_Forecast_Data,B$138,FALSE) -> 57.39638698 | C219: =VLOOKUP(Vlookup!C219,Volume_Forecast_Data,C$138,FALSE) -> 187.2986821 | D219: =VLOOKUP(Vlookup!D219,Volume_Forecast_Data,D$138,FALSE) -> 391.7352057 | E219: =VLOOKUP(Vlookup!E219,Volume_Forecast_Data,E$138,FALSE) -> 9.369780674 | G219: =VLOOKUP(Vlookup!G219,Volume_Forecast_Data,G$138,FALSE) -> 1.257721347
